{"text_format":"1","workbook":"xlsx","n_sheets":14,"sheets":["Masterliste","Wettkampf","Training","Manuell","Spieler","Gegner","Mannschaften","ini","Generisch","Mailmerge","Ferien","Pfade","Bedienungsanleitung","Rohexport"],"not_rendered":{"charts":0,"images":1,"macros":1,"external_links":0,"defined_names":9,"comments":0,"pivot_tables":0},"unopened":[],"bounds":{"document_bytes":16777216,"sheet_cells":100000,"rows_first":2000,"rows_last":500,"rows_between":2000,"halvings":0,"cell_chars":16384,"cell_head_chars":4096},"cells_cut":0,"cells_raw":0,"read":"whole","date_system":"1900"}

{"sheet":"Masterliste","index":0,"n_rows":235,"n_cols":17,"rows_kept":235,"cut":false,"hidden":false,"merged":[[9,0,9,13],[0,0,0,12]]}
[]
[]
[]
[]
[]
[]
[]
[]
[]
[]
["Betrifft","Veranstaltung","Tag","Datum","Beginn","Ende","Wettbewerb","Gegner","Es spielt","Es fehlt","Betreuer/Fahrer","eMail_Fahrer","Treffen","Halle/Ort/Fahrzeit","Bemerkung","Eventcode"]
["Senioren","TT Vereinsmeisterschaft Erwachsene","So","2025-01-12","10:00:00",null,null,null,null,null,null,null,"09:30:00","Bürgerhaus Hüttenfeld",null,"M_0E04D28C4779"]
["Herren III","internes Duell","Mi","2025-01-15","19:30:00","21:30:00","Herren 3. KK W 1","SGH V",null,null,null,null,"19:00:00","Bürgerhaus Hüttenfeld, Alfred-Delp-Straße 50, 68623 Lampertheim-Hüttenfeld",null,"W_Herren 3. Kreisklasse352474102341023-1"]
["Herren V","internes Duell","Mi","2025-01-15","19:30:00","21:30:00","Herren 3. KK W 1","SGH III",null,null,null,null,"19:00:00","Bürgerhaus Hüttenfeld, Alfred-Delp-Straße 50, 68623 Lampertheim-Hüttenfeld",null,"W_Herren 3. Kreisklasse352474102341023-2"]
["Junioren","Neujahrs-Ausflug","Fr","2025-01-17",null,null,null,null,null,null,"kasc, casc, jori, hemö","katja@sg-huettenfeld.de,carla@sg-huettenfeld.de,jonas@sg-huettenfeld.de,heiko@sg-huettenfeld.de","09:00:00",null,null,"M_5042E2AE4FD8","015123274161, 01637964195, 01717057707, 017663884425"]
["Sonder-Training","Systemtraining (Udo Schumacher)","Sa","2025-01-18","11:00:00","13:00:00",null,null,null,null,null,null,"10:45:00","Bürgerhaus Hüttenfeld",null,"M_8CD74673024B"]
["Jungen 15 I","Auswärtsspiel","Sa","2025-01-18","13:00:00","15:00:00","Jungen 15 KL","TTC Heppenheim II",null,null,"casc","carla@sg-huettenfeld.de","12:20:00","Turnhalle Konrad-Adenauer-Schule, Mainzer Str.8 / Zufahrt über Weinheimer Straße, 64646 Heppenheim / 6,7km / 9min",null,"W_Jungen 15 Kreisliga212374102341053","01637964195"]
["Mädchenliga","4. Blockspieltag Mädchenliga 3er?","So","2025-01-19","10:00:00","18:00:00",null,null,"juob,zugu,lawe",null,"emmü","mimueller82@googlemail.com ",null,"TSV Turnhalle am Schwimmbad, Jahnstraße 1, 64739 Höchst / 62,7km / 54min",null,"M_93F8175CED32",""]
["Herren I","Heimspiel","So","2025-01-19","14:30:00","16:30:00","Herren BK Gr. 1","SV Kirschhausen I",null,null,null,null,"14:00:00","Bürgerhaus Hüttenfeld, Alfred-Delp-Straße 50, 68623 Lampertheim-Hüttenfeld",null,"W_Herren Bezirksklasse112484102341024"]
["Herren III","Auswärtsspiel","Mo","2025-01-20","20:15:00","22:15:00","Herren 3. KK W 1","TSV Hambach III",null,null,null,null,"19:25:00","Schlossberghalle, Im Schalbert 2, 64646 HP-Hambach / 9,7km / 16min",null,"W_Herren 3. Kreisklasse332504101841023"]
["Herren V","Heimspiel","Mi","2025-01-22","19:30:00","21:30:00","Herren 3. KK W 1","SG Gronau V",null,null,null,null,"19:00:00","Bürgerhaus Hüttenfeld, Alfred-Delp-Straße 50, 68623 Lampertheim-Hüttenfeld",null,"W_Herren 3. Kreisklasse552784101641023"]
["Herren IV","Heimspiel","Fr","2025-01-24","20:15:00","22:15:00","Herren 3. KK W 2","VfR Fehlheim VII",null,null,null,null,"19:45:00","Bürgerhaus Hüttenfeld, Alfred-Delp-Straße 50, 68623 Lampertheim-Hüttenfeld",null,"W_Herren 3. Kreisklasse472494101341023"]
["Sonder-Training","Systemtraining (Udo Schumacher)","Sa","2025-01-25","11:00:00","13:00:00",null,null,null,null,null,null,"10:45:00","Bürgerhaus Hüttenfeld",null,"M_1374FD0B351D"]
["Jungen 15 I","Auswärtsspiel","Sa","2025-01-25","13:30:00","15:30:00","Jungen 15 KL","TSV Ellenbach I",null,null,"dawa","wagnerdaniela@hotmail.com","12:30:00","TSV-Halle Ellenbach, Schlierbacher Straße 43, 64658 Fürth-Ellenbach / 22,1km / 32min",null,"W_Jungen 15 Kreisliga112384101141023","01782095866"]
["Info","SGH Glühweinfest am Sportpark","Sa","2025-01-25",null,null,null,null,null,null,null,null,null,"Sportlerheim im Sportpark Hegwald",null,"M_CC689C044606"]
["Jungen 19 I","Heimspiel","So","2025-01-26","10:00:00","12:00:00","Jungen 19 1. KK","TSV Ellenbach I",null,null,"pako","patricia@sg-huettenfeld.de","09:30:00","Bürgerhaus Hüttenfeld, Alfred-Delp-Straße 50, 68623 Lampertheim-Hüttenfeld",null,"W_Jungen 19 1. Kreisklasse112294101141023","015209496166"]
["Herren I","Heimspiel","So","2025-01-26","14:30:00","16:30:00","Herren BK Gr. 1","TSV Hambach I",null,null,null,null,"14:00:00","Bürgerhaus Hüttenfeld, Alfred-Delp-Straße 50, 68623 Lampertheim-Hüttenfeld",null,"W_Herren Bezirksklasse112514101841023"]
["Herren V","Auswärtsspiel","Di","2025-01-28","19:30:00","21:30:00","Herren 3. KK W 1","SKG Zell I",null,null,null,null,"18:40:00","Dorfgemeinschaftshaus Zell, Gronauer Straße 98-100, 64625 Bensheim-Zell / 13,6km / 22min",null,"W_Herren 3. Kreisklasse152534102341051"]
["Damen I","Auswärtsspiel","Di","2025-01-28","20:00:00","22:00:00","Damen BK Gr.1","SV RW Walldorf I",null,null,null,null,"18:50:00","Stadthalle Walldorf, Waldstraße 100, 64546 Mörfelden/Walldorf / 63,2km / 43min",null,"W_Damen Bezirksklasse112304102344028"]
["Jungen 15 I","Heimspiel","Fr","2025-01-31","18:15:00","20:15:00","Jungen 15 KL","TTC Heppenheim I",null,null,"kasc,casc","katja@sg-huettenfeld.de,carla@sg-huettenfeld.de","17:45:00","Bürgerhaus Hüttenfeld, Alfred-Delp-Straße 50, 68623 Lampertheim-Hüttenfeld",null,"W_Jungen 15 Kreisliga112424102341053","015123274161, 01637964195"]
["Herren IV","Heimspiel","Fr","2025-01-31","20:15:00","22:15:00","Herren 3. KK W 2","TSV Hambach IV",null,null,null,null,"19:45:00","Bürgerhaus Hüttenfeld, Alfred-Delp-Straße 50, 68623 Lampertheim-Hüttenfeld",null,"W_Herren 3. Kreisklasse442534101841023"]
["Herren II","Heimspiel","Fr","2025-01-31","20:15:00","22:15:00","Herren KL W","TV Bürstadt V",null,null,null,null,"19:45:00","Bürgerhaus Hüttenfeld, Alfred-Delp-Straße 50, 68623 Lampertheim-Hüttenfeld",null,"W_Herren Kreisliga252444100941023"]
["Sonder-Training","Systemtraining (Udo Schumacher)","Sa","2025-02-01","11:00:00","13:00:00",null,null,null,null,null,null,"10:45:00","Bürgerhaus Hüttenfeld",null,"M_970194FEFD7C"]
["Damen I","Heimspiel","So","2025-02-02","10:00:00","12:00:00","Damen BK Gr.1","SV Mörlenbach I",null,null,null,null,"09:10:00","Bürgerhaus Hüttenfeld, Alfred-Delp-Straße 50, 68623 Lampertheim-Hüttenfeld",null,"W_Damen Bezirksklasse112334102341033"]
["Jungen 13 I","Heimspiel","So","2025-02-02","10:00:00","12:00:00","Jungen 13 2.KK","SV Fürth  I",null,null,"divo","dirk@sg-huettenfeld.de","09:30:00","Bürgerhaus Hüttenfeld, Alfred-Delp-Straße 50, 68623 Lampertheim-Hüttenfeld",null,"W_Jungen 13 2.Kreisklasse112334101441023","015154826447"]
[null,"Ortsentscheid Minimeisterschaft","Di","2025-02-04","16:30:00","20:00:00",null,null,null,null,"chlu,lehe,casc,kasc","luft.christopher@gmx.de,leonherd@gmx.de,carla@sg-huettenfeld.de,katja@sg-huettenfeld.de",null,"Bürgerhaus Hüttenfeld",null,"M_F53B16B22579","015735222603, 01728903319, 01637964195, 015123274161"]
["TT-AG","Training","Di","2025-02-04","16:30:00","17:30:00",null,null,null,null,"chlu","luft.christopher@gmx.de","16:30:00","Bürgerhaus, Hüttenfeld",null,"T_B36AC7747E72","015735222603"]
["Nachwuchs","Training","Di","2025-02-04","17:30:00","19:15:00",null,null,null,null,"chlu,jori,lehe","luft.christopher@gmx.de,jonas@sg-huettenfeld.de,leonherd@gmx.de","17:30:00","Bürgerhaus, Hüttenfeld",null,"T_F8B540FBC9A0","015735222603, 01717057707, 01728903319"]
["Erwachsene","Training","Mi","2025-02-05","18:30:00","20:00:00",null,null,null,null,null,null,"18:30:00","Bürgerhaus, Hüttenfeld",null,"T_A82DB76D2FCA"]
["Badminton","Badminton-Training","Mi","2025-02-05","20:00:00","22:00:00",null,null,null,null,null,null,"20:00:00","Bürgerhaus, Hüttenfeld",null,"T_977156CF0F2A"]
["Herren V","Auswärtsspiel","Mi","2025-02-05","20:00:00","22:00:00","Herren 3. KK W 1","TTC Lampertheim XI",null,null,null,null,"19:20:00","Sedanhalle, Sedanstraße 7, 68623 Lampertheim / 9,5km / 12min",null,"W_Herren 3. Kreisklasse1152584102341027"]
["Erwachsene","Training","Do","2025-02-06","19:30:00","22:00:00",null,null,null,null,null,null,"19:30:00","Bürgerhaus, Hüttenfeld",null,"T_B4068FF0936F"]
["Herren IV","Auswärtsspiel","Do","2025-02-06","20:00:00","22:00:00","Herren 3. KK W 2","TV Ober-Laudenbach II",null,null,null,null,"19:10:00","Turnhalle Oberlaudenbach, Oberlaudenbacher Str., 64646 Heppenheim / 9,8km / 15min",null,"W_Herren 3. Kreisklasse242544102341037"]
["Nachwuchs","Training","Fr","2025-02-07","18:00:00","19:30:00",null,null,null,null,"jori,hemö,pihö,erku","jonas@sg-huettenfeld.de,heiko@sg-huettenfeld.de,pia@sg-huettenfeld.de,k_uzu@hotmail.de","18:00:00","Bürgerhaus, Hüttenfeld",null,"T_30680D5D27DE","01717057707, 017663884425, 015201585090, 017671958302"]
["Erwachsene","Training","Fr","2025-02-07","19:30:00","22:00:00",null,null,null,null,null,null,"19:30:00","Bürgerhaus, Hüttenfeld",null,"T_3EF022C6962A"]
["Herren I","Auswärtsspiel","Fr","2025-02-07","20:30:00","22:30:00","Herren BK Gr. 1","TV Bürstadt IV",null,null,null,null,"19:40:00","Neue Jahnturnhalle, Wasserwerkstr. 4, 68642 Bürstadt / 20,3km / 24min",null,"W_Herren Bezirksklasse412574100941023"]
["Sonder-Training","Systemtraining (Udo Schumacher)","Sa","2025-02-08","11:00:00","13:00:00",null,null,null,null,null,null,"10:45:00","Bürgerhaus Hüttenfeld",null,"M_55C577D7BA7F"]
["Jungen 13 I","Auswärtsspiel","Sa","2025-02-08","14:00:00","16:00:00","Jungen 13 2.KK","TTC Groß Rohrheim III",null,null,"thja","thomas@sg-huettenfeld.de","13:00:00","Bürgerhalle / Bürgerhallenanbau, Jahnstraße, 68649 Groß-Rohrheim / 21,1km / 26min",null,"W_Jungen 13 2.Kreisklasse312234101741023","015142601126"]
["Jungen 13 I","Heimspiel","So","2025-02-09","10:00:00","12:00:00","Jungen 13 2.KK","TSV Weiher I",null,null,"joda","johannes@sg-huettenfeld.de","09:30:00","Bürgerhaus Hüttenfeld, Alfred-Delp-Straße 50, 68623 Lampertheim-Hüttenfeld",null,"W_Jungen 13 2.Kreisklasse112244102341050","017621352190"]
["Jungen 19 I","Heimspiel","So","2025-02-09","10:00:00","12:00:00","Jungen 19 1. KK","TSV Auerbach I",null,null,"maw2","markus.wetzel@sg-huettenfeld.de","09:30:00","Bürgerhaus Hüttenfeld, Alfred-Delp-Straße 50, 68623 Lampertheim-Hüttenfeld",null,"W_Jungen 19 1. Kreisklasse112344100141023","01707661010"]
["Herren II","Auswärtsspiel","Mo","2025-02-10","20:00:00","22:00:00","Herren KL W","TTC Lampertheim VI",null,null,null,null,"19:20:00","Sedanhalle, Sedanstraße 7, 68623 Lampertheim / 9,5km / 12min",null,"W_Herren Kreisliga622484102341027"]
["TT-AG","Training","Di","2025-02-11","16:30:00","17:30:00",null,null,null,null,"chlu","luft.christopher@gmx.de","16:30:00","Bürgerhaus, Hüttenfeld",null,"T_61C83DDE894A","015735222603"]
["Nachwuchs","Training","Di","2025-02-11","17:30:00","19:15:00",null,null,null,null,"chlu,jori,lehe","luft.christopher@gmx.de,jonas@sg-huettenfeld.de,leonherd@gmx.de","17:30:00","Bürgerhaus, Hüttenfeld",null,"T_907550C69702","015735222603, 01717057707, 01728903319"]
["Jungen 15 I","Auswärtsspiel","Mi","2025-02-12","17:30:00","19:30:00","Jungen 15 KL","TSK Rimbach I",null,null,"kasc","katja@sg-huettenfeld.de","16:30:00","Odenwaldhalle, Kleiststraße 11, 64668 Rimbach / 18,8km / 25min",null,"W_Jungen 15 Kreisliga112484102341040","015123274161"]
["Erwachsene","Training","Mi","2025-02-12","18:30:00","22:00:00",null,null,null,null,null,null,"18:30:00","Bürgerhaus, Hüttenfeld",null,"T_73EEFA2A6E4B"]
["Herren V","Heimspiel","Mi","2025-02-12","19:30:00","21:30:00","Herren 3. KK W 1","TSV Auerbach VII",null,null,null,null,"19:00:00","Bürgerhaus Hüttenfeld, Alfred-Delp-Straße 50, 68623 Lampertheim-Hüttenfeld",null,"W_Herren 3. Kreisklasse572604100141023"]
["Erwachsene","Training","Do","2025-02-13","19:30:00","22:00:00",null,null,null,null,null,null,"19:30:00","Bürgerhaus, Hüttenfeld",null,"T_D62A893F6FEE"]
["Damen I","Heimspiel","Do","2025-02-13","20:00:00","22:00:00","Damen BK Gr.1","TTC Kelsterbach I",null,null,null,null,"19:10:00","Bürgerhaus Hüttenfeld, Alfred-Delp-Straße 50, 68623 Lampertheim-Hüttenfeld",null,"W_Damen Bezirksklasse112384102344013"]
["Nachwuchs","Training","Fr","2025-02-14","18:00:00","19:30:00",null,null,null,null,"jori,hemö,pihö,erku","jonas@sg-huettenfeld.de,heiko@sg-huettenfeld.de,pia@sg-huettenfeld.de,k_uzu@hotmail.de","18:00:00","Bürgerhaus, Hüttenfeld",null,"T_258FCA7768AD","01717057707, 017663884425, 015201585090, 017671958302"]
["Erwachsene","Training","Fr","2025-02-14","19:30:00","22:00:00",null,null,null,null,null,null,"19:30:00","Bürgerhaus, Hüttenfeld",null,"T_81467F7D38C6"]
["Herren III","Heimspiel","Fr","2025-02-14","20:15:00","22:15:00","Herren 3. KK W 1","TTC Heppenheim VII",null,null,null,null,"19:45:00","Bürgerhaus Hüttenfeld, Alfred-Delp-Straße 50, 68623 Lampertheim-Hüttenfeld",null,"W_Herren 3. Kreisklasse372634102341053"]
["Flohmarktinitiative","Flohmarkt alles fürs Kind","Sa","2025-02-15","11:00:00","23:59:00",null,null,null,null,null,null,null,"Bürgerhaus Hüttenfeld","Halle belegt","M_A940B8E5AE56"]
["Flohmarktinitiative","Flohmarkt alles fürs Kind","So","2025-02-16","00:00:00","12:00:00",null,null,null,null,null,null,null,"Bürgerhaus Hüttenfeld","Halle belegt","M_15FC0059CD29"]
["Mädchenliga","5. Blockspieltag Mädchenliga","So","2025-02-16","10:00:00","18:00:00",null,null,null,null,"xxxx, yyyy","erinnerungsdienst@sg-huettenfeld.de,erinnerungsdienst@sg-huettenfeld.de",null,"Turnhalle Königsbrunnenstrasse 7, 64385 Reichelsheim (Oberkainsbach) / 37,5km / 49min","Zwei Spielrunden, Beginn 11:00 und  13:00 Uhr","M_728B87FF0902","015161481925, 015161481925"]
["Herren V","Auswärtsspiel","So","2025-02-16","13:00:00","15:00:00","Herren 3. KK W 1","TTC Heppenheim VII",null,null,null,null,"12:20:00","Turnhalle Konrad-Adenauer-Schule, Mainzer Str.8 / Zufahrt über Weinheimer Straße, 64646 Heppenheim / 6,7km / 9min",null,"W_Herren 3. Kreisklasse752644102341053"]
["TT-AG","Training","Di","2025-02-18","16:30:00","17:30:00",null,null,null,null,"chlu","luft.christopher@gmx.de","16:30:00","Bürgerhaus, Hüttenfeld",null,"T_2E5E7B7C6C14","015735222603"]
["Nachwuchs","Training","Di","2025-02-18","17:30:00","19:15:00",null,null,null,null,"chlu,jori,lehe","luft.christopher@gmx.de,jonas@sg-huettenfeld.de,leonherd@gmx.de","17:30:00","Bürgerhaus, Hüttenfeld",null,"T_46FAE44B844E","015735222603, 01717057707, 01728903319"]
["Erwachsene","Training","Mi","2025-02-19","18:30:00","22:00:00",null,null,null,null,null,null,"18:30:00","Bürgerhaus, Hüttenfeld",null,"T_68077FAD4EC2"]
["Lit. Gym.","Litauischer Unabhängigkeitstag","Do","2025-02-20","00:01:00","23:59:00",null,null,null,null,null,null,null,"Bürgerhaus Hüttenfeld","Halle belegt","M_3513799C1715"]
["Lit. Gym.","Litauischer Unabhängigkeitstag","Fr","2025-02-21","00:01:00","23:59:00",null,null,null,null,null,null,null,"Bürgerhaus Hüttenfeld","Halle belegt","M_0906EC07B314"]
["Herren III","Auswärtsspiel","Fr","2025-02-21","20:00:00","22:00:00","Herren 3. KK W 1","SKG Zell I",null,null,null,null,"19:10:00","Dorfgemeinschaftshaus Zell, Gronauer Straße 98-100, 64625 Bensheim-Zell / 13,6km / 22min",null,"W_Herren 3. Kreisklasse132654102341051"]
["Lit. Gym.","Litauischer Unabhängigkeitstag","Sa","2025-02-22","00:01:00","23:59:00",null,null,null,null,null,null,null,"Bürgerhaus Hüttenfeld","Halle belegt","M_CF6AC1C840EF"]
["Lit. Gym.","Litauischer Unabhängigkeitstag","So","2025-02-23","00:01:00","23:59:00",null,null,null,null,null,null,null,"Bürgerhaus Hüttenfeld","Halle belegt","M_A1AF1F250C11"]
["Lit. Gym.","Abbau Bühne","Mo","2025-02-24","00:01:00","16:00:00",null,null,null,null,null,null,null,"Bürgerhaus Hüttenfeld","Halle belegt","M_0679B86270C0"]
["Jungen 19 I","Auswärtsspiel","Mo","2025-02-24","18:15:00","20:15:00","Jungen 19 1. KK","TSV Hambach I",null,null,"kieh","ehretkirsten@gmail.com","17:25:00","Schlossberghalle, Im Schalbert 2, 64646 HP-Hambach / 9,7km / 16min",null,"W_Jungen 19 1. Kreisklasse112394101841023","01631706338"]
["Damen I","Auswärtsspiel","Mo","2025-02-24","19:30:00","21:30:00","Damen BK Gr.1","TTC Ginsheim II",null,null,null,null,"18:20:00","IGS Mainspitze Halle B, Sophie-und-Hans-Scholl-Strasse, 65462 Ginsheim-Gustavsburg / 65km / 44min",null,"W_Damen Bezirksklasse212414102344010"]
["Herren II","Auswärtsspiel","Mo","2025-02-24","20:15:00","22:15:00","Herren KL W","TSV Auerbach II",null,null,null,null,"19:25:00","GGEW Sportzentrum Geb. B, Saarstrasse 56, 64625 Bensheim-Auerbach / 14,9km / 17min",null,"W_Herren Kreisliga222544100141023"]
["TT-AG","Training","Di","2025-02-25","16:30:00","17:30:00",null,null,null,null,"chlu","luft.christopher@gmx.de","16:30:00","Bürgerhaus, Hüttenfeld",null,"T_F56E962D6646","015735222603"]
["Nachwuchs","Training","Di","2025-02-25","17:30:00","19:15:00",null,null,null,null,"chlu,jori,lehe","luft.christopher@gmx.de,jonas@sg-huettenfeld.de,leonherd@gmx.de","17:30:00","Bürgerhaus, Hüttenfeld",null,"T_9266CE6E745C","015735222603, 01717057707, 01728903319"]
["Erwachsene","Training","Mi","2025-02-26","18:30:00","22:00:00",null,null,null,null,null,null,"18:30:00","Bürgerhaus, Hüttenfeld",null,"T_DE7278843D77"]
["Herren V","Heimspiel","Mi","2025-02-26","19:30:00","21:30:00","Herren 3. KK W 1","TV Ober-Laudenbach III",null,null,null,null,"19:00:00","Bürgerhaus Hüttenfeld, Alfred-Delp-Straße 50, 68623 Lampertheim-Hüttenfeld",null,"W_Herren 3. Kreisklasse532684102341037"]
["Erwachsene","Training","Do","2025-02-27","19:30:00","22:00:00",null,null,null,null,null,null,"19:30:00","Bürgerhaus, Hüttenfeld",null,"T_44FF251376B6"]
["Herren IV","Auswärtsspiel","Do","2025-02-27","20:15:00","22:15:00","Herren 3. KK W 2","SG Gronau IV",null,null,null,null,"19:25:00","Dorfgemeinschaftshaus Gronau, Märkerwaldstr. 81a, 64625 Bensheim-Gronau / 16km / 24min",null,"W_Herren 3. Kreisklasse442624101641023"]
["Nachwuchs","Training","Fr","2025-02-28","18:00:00","19:30:00",null,null,null,null,"jori,hemö,pihö,erku","jonas@sg-huettenfeld.de,heiko@sg-huettenfeld.de,pia@sg-huettenfeld.de,k_uzu@hotmail.de","18:00:00","Bürgerhaus, Hüttenfeld",null,"T_174FF97519EF","01717057707, 017663884425, 015201585090, 017671958302"]
["Jungen 13 I","Auswärtsspiel","Fr","2025-02-28","18:15:00","20:15:00","Jungen 13 2.KK","SG Wald-Michelbach II",null,null,"miw2","michaelwegner1107@gmail.com","17:05:00","Turnhalle Überwald-Gymnasium, Forsthausstr. 20, 69483 Wald-Michelbach / 27km / 36min",null,"W_Jungen 13 2.Kreisklasse212294102341048","01713451864"]
["Erwachsene","Training","Fr","2025-02-28","19:30:00","22:00:00",null,null,null,null,null,null,"19:30:00","Bürgerhaus, Hüttenfeld",null,"T_AB9776EACA41"]
["Herren III","Heimspiel","Fr","2025-02-28","20:15:00","22:15:00","Herren 3. KK W 1","TSV Auerbach VII",null,null,null,null,"19:45:00","Bürgerhaus Hüttenfeld, Alfred-Delp-Straße 50, 68623 Lampertheim-Hüttenfeld",null,"W_Herren 3. Kreisklasse372694100141023"]
["Sonder-Training","Systemtraining (Udo Schumacher)","Sa","2025-03-01","11:00:00","13:00:00",null,null,null,null,null,null,"10:45:00","Bürgerhaus Hüttenfeld",null,"M_AC7CBBB4C24F"]
["Herren I","Auswärtsspiel","Sa","2025-03-01","18:00:00","20:00:00","Herren BK Gr. 1","TSV Ellenbach II",null,null,null,null,"17:00:00","TSV-Halle Ellenbach, Schlierbacher Straße 43, 64658 Fürth-Ellenbach / 22,1km / 32min",null,"W_Herren Bezirksklasse212664101141023"]
["Jungen 19 I","Heimspiel","So","2025-03-02","10:00:00","12:00:00","Jungen 19 1. KK","SKG Ober-Mumbach II",null,null,"kasc","katja@sg-huettenfeld.de","09:30:00","Bürgerhaus Hüttenfeld, Alfred-Delp-Straße 50, 68623 Lampertheim-Hüttenfeld",null,"W_Jungen 19 1. Kreisklasse122444102341038","015123274161"]
["SGH","Aufbau Kinderfasching","So","2025-03-02","16:00:00","22:00:00",null,null,null,null,null,null,null,"Bürgerhaus Hüttenfeld","Halle belegt","M_D434E55BACC5"]
["SGH","Kinderfasching","Mo","2025-03-03","13:00:00","22:00:00",null,null,null,null,null,null,null,"Bürgerhaus Hüttenfeld","Halle belegt","M_DBE469640A31"]
["TT-AG","Training","Di","2025-03-04","16:30:00","17:30:00",null,null,null,null,"chlu","luft.christopher@gmx.de","16:30:00","Bürgerhaus, Hüttenfeld",null,"T_1D417005C8B0","015735222603"]
["Nachwuchs","Training","Di","2025-03-04","17:30:00","19:15:00",null,null,null,null,"chlu,jori,lehe","luft.christopher@gmx.de,jonas@sg-huettenfeld.de,leonherd@gmx.de","17:30:00","Bürgerhaus, Hüttenfeld",null,"T_265B8D6446D1","015735222603, 01717057707, 01728903319"]
["Erwachsene","Training","Mi","2025-03-05","18:30:00","20:00:00",null,null,null,null,null,null,"18:30:00","Bürgerhaus, Hüttenfeld",null,"T_B134090325F9"]
["Badminton","Badminton-Training","Mi","2025-03-05","20:00:00","22:00:00",null,null,null,null,null,null,"20:00:00","Bürgerhaus, Hüttenfeld",null,"T_E90227E54895"]
["Damen I","Auswärtsspiel","Mi","2025-03-05","20:00:00","22:00:00","Damen BK Gr.1","SG Seidenbuch II",null,null,null,null,"19:00:00","Sporthaus am Sportplatz, Glashüttenweg 11, 64678 Lindenfels-Seidenbuch / 21,2km / 33min",null,"W_Damen Bezirksklasse212444102341043"]
["Erwachsene","Training","Do","2025-03-06","19:30:00","22:00:00",null,null,null,null,null,null,"19:30:00","Bürgerhaus, Hüttenfeld",null,"T_E4E58132F42A"]
["Herren II","Auswärtsspiel","Do","2025-03-06","20:15:00","22:15:00","Herren KL W","SG Nordheim-Wattenheim I",null,null,null,null,"19:15:00","Sporthalle Wattenheim, Schulstr. 30, 68647 Biblis-Wattenheim / 23,1km / 25min",null,"W_Herren Kreisliga122594102341060"]
["Nachwuchs","Training","Fr","2025-03-07","18:00:00","19:30:00",null,null,null,null,"jori,hemö,pihö,erku","jonas@sg-huettenfeld.de,heiko@sg-huettenfeld.de,pia@sg-huettenfeld.de,k_uzu@hotmail.de","18:00:00","Bürgerhaus, Hüttenfeld",null,"T_20A63E725E5E","01717057707, 017663884425, 015201585090, 017671958302"]
["Jungen 15 I","Heimspiel","Fr","2025-03-07","18:15:00","20:15:00","Jungen 15 KL","TV Bürstadt I",null,null,"jori,hemö,yyyy","jonas@sg-huettenfeld.de,heiko@sg-huettenfeld.de,erinnerungsdienst@sg-huettenfeld.de","17:45:00","Bürgerhaus Hüttenfeld, Alfred-Delp-Straße 50, 68623 Lampertheim-Hüttenfeld",null,"W_Jungen 15 Kreisliga112604100941023","01717057707, 017663884425, 015161481925"]
["Erwachsene","Training","Fr","2025-03-07","19:30:00","22:00:00",null,null,null,null,null,null,"19:30:00","Bürgerhaus, Hüttenfeld",null,"T_B7F9BADE6ECB"]
["Herren IV","Heimspiel","Fr","2025-03-07","20:15:00","22:15:00","Herren 3. KK W 2","TTC Lorsch II",null,null,null,null,"19:45:00","Bürgerhaus Hüttenfeld, Alfred-Delp-Straße 50, 68623 Lampertheim-Hüttenfeld",null,"W_Herren 3. Kreisklasse422714102341057"]
["Senioren","Hessische Einzelmeisterschaft (HEM) Senioren","Fr","2025-03-07",null,null,null,null,null,null,null,null,null,"Arheilgen",null,"M_ADA738FC789A"]
["Sonder-Training","Systemtraining (Udo Schumacher)","Sa","2025-03-08","11:00:00","13:00:00",null,null,null,null,null,null,"10:45:00","Bürgerhaus Hüttenfeld",null,"M_1AE627C67B7B"]
["Herren I","Heimspiel","Sa","2025-03-08","16:45:00","18:45:00","Herren BK Gr. 1","TTC Lampertheim V",null,null,null,null,"16:15:00","Bürgerhaus Hüttenfeld, Alfred-Delp-Straße 50, 68623 Lampertheim-Hüttenfeld",null,"W_Herren Bezirksklasse152714102341027"]
["Junioren","Kreis-Vorranglistenturnier Nachwuchs","Sa","2025-03-08",null,null,null,null,null,null,"jori,pihö,thja,sige,erku","jonas@sg-huettenfeld.de,pia@sg-huettenfeld.de,thomas@sg-huettenfeld.de,simon@sg-huettenfeld.de,k_uzu@hotmail.de",null,"Odenwaldhalle, Kleiststraße 11, 64668 Rimbach / 18,8km / 25min",null,"M_528801636CAF","01717057707, 015201585090, 015142601126, 017624943376, 017671958302"]
["Senioren","Hessische Einzelmeisterschaft (HEM) Senioren","Sa","2025-03-08",null,null,null,null,null,null,null,null,null,null,null,"M_9352F505D6C3"]
["Junioren","Kreis-Endranglistenturnier Nachwuchs","So","2025-03-09",null,null,null,null,null,null,"hemö,leme,yyyy","heiko@sg-huettenfeld.de,leon@sg-huettenfeld.de,erinnerungsdienst@sg-huettenfeld.de",null,"Odenwaldhalle, Kleiststraße 11, 64668 Rimbach / 18,8km / 25min",null,"M_5990576F9081","017663884425, 017658806863, 015161481925"]
["Senioren","Hessische Einzelmeisterschaft (HEM) Senioren","So","2025-03-09",null,null,null,null,null,null,null,null,null,null,null,"M_D904E600CBAC"]
["TT-AG","Training","Di","2025-03-11","16:30:00","17:30:00",null,null,null,null,"chlu","luft.christopher@gmx.de","16:30:00","Bürgerhaus, Hüttenfeld",null,"T_E01AF328B02A","015735222603"]
["Nachwuchs","Training","Di","2025-03-11","17:30:00","19:15:00",null,null,null,null,"chlu,jori,lehe","luft.christopher@gmx.de,jonas@sg-huettenfeld.de,leonherd@gmx.de","17:30:00","Bürgerhaus, Hüttenfeld",null,"T_31C51A8AAD21","015735222603, 01717057707, 01728903319"]
["Herren II","Auswärtsspiel","Di","2025-03-11","20:00:00","22:00:00","Herren KL W","SG Gronau II",null,null,null,null,"19:10:00","Dorfgemeinschaftshaus Gronau, Märkerwaldstr. 81a, 64625 Bensheim-Gronau / 16km / 24min",null,"W_Herren Kreisliga222604101641023"]
["Erwachsene","Training","Mi","2025-03-12","18:30:00","22:00:00",null,null,null,null,null,null,"18:30:00","Bürgerhaus, Hüttenfeld",null,"T_1ADAA432DD2A"]
["Erwachsene","Training","Do","2025-03-13","19:30:00","22:00:00",null,null,null,null,null,null,"19:30:00","Bürgerhaus, Hüttenfeld",null,"T_C333D5031D2A"]
["Jungen 13 I","Auswärtsspiel","Fr","2025-03-14","17:45:00","19:45:00","Jungen 13 2.KK","TSK Rimbach II",null,null,"xxxx","erinnerungsdienst@sg-huettenfeld.de","16:45:00","Odenwaldhalle, Kleiststraße 11, 64668 Rimbach / 18,8km / 25min","Wird noch verlegt","W_Jungen 13 2.Kreisklasse212394102341040","015161481925"]
["Nachwuchs","Training","Fr","2025-03-14","18:00:00","19:30:00",null,null,null,null,"jori,hemö,pihö,erku","jonas@sg-huettenfeld.de,heiko@sg-huettenfeld.de,pia@sg-huettenfeld.de,k_uzu@hotmail.de","18:00:00","Bürgerhaus, Hüttenfeld",null,"T_97A8BF730540","01717057707, 017663884425, 015201585090, 017671958302"]
["Jungen 15 I","Heimspiel","Fr","2025-03-14","18:15:00","20:15:00","Jungen 15 KL","TSV Auerbach I",null,null,"jori,hemö,yyyy","jonas@sg-huettenfeld.de,heiko@sg-huettenfeld.de,erinnerungsdienst@sg-huettenfeld.de","17:45:00","Bürgerhaus Hüttenfeld, Alfred-Delp-Straße 50, 68623 Lampertheim-Hüttenfeld",null,"W_Jungen 15 Kreisliga112544100141023","01717057707, 017663884425, 015161481925"]
["Erwachsene","Training","Fr","2025-03-14","19:30:00","22:00:00",null,null,null,null,null,null,"19:30:00","Bürgerhaus, Hüttenfeld",null,"T_C72DA0343886"]
["Herren IV","Auswärtsspiel","Fr","2025-03-14","20:15:00","22:15:00","Herren 3. KK W 2","BSC Einhausen II",null,null,null,null,"19:25:00","Sporthalle Einhausen, Sepp-Herberger-Straße, 64683 Einhausen / 12,3km / 16min",null,"W_Herren 3. Kreisklasse242774101041023"]
["Herren III","Heimspiel","Fr","2025-03-14","20:15:00","22:15:00","Herren 3. KK W 1","TV Ober-Laudenbach III",null,null,null,null,"19:45:00","Bürgerhaus Hüttenfeld, Alfred-Delp-Straße 50, 68623 Lampertheim-Hüttenfeld",null,"W_Herren 3. Kreisklasse332764102341037"]
["Lit. Gym.","\"kleines\" Basketball-Turnier","Sa","2025-03-15","08:00:00","14:00:00",null,null,null,null,null,null,null,"Bürgerhaus Hüttenfeld","Halle belegt, LigaspielSGH I nach 16:00","M_73A34720B876"]
["Herren I","Heimspiel","Sa","2025-03-15","16:45:00","18:45:00","Herren BK Gr. 1","TV Bürstadt II",null,null,null,null,"16:15:00","Bürgerhaus Hüttenfeld, Alfred-Delp-Straße 50, 68623 Lampertheim-Hüttenfeld",null,"W_Herren Bezirksklasse122754100941023"]
[null,"Kreisentscheid Minimeisterschaften","Sa","2025-03-15",null,null,null,null,null,null,null,null,null,"Veranstaltungsort offen",null,"M_B41E18BCD48D"]
[null,"Kreisentscheid Minimeisterschaften","So","2025-03-16",null,null,null,null,null,null,null,null,null,"Veranstaltungsort offen",null,"M_15F6A6664470"]
["Junioren","Kreis-Jahrgangsmeisterschaften (KJM)","So","2025-03-16",null,null,null,null,null,null,"hemö,leme,yyyy","heiko@sg-huettenfeld.de,leon@sg-huettenfeld.de,erinnerungsdienst@sg-huettenfeld.de",null,"Neue Jahnturnhalle, Wasserwerkstr. 4, 68642 Bürstadt / 20,3km / 24min",null,"M_D7864C99A2B5","017663884425, 017658806863, 015161481925"]
["TT-AG","Training","Di","2025-03-18","16:30:00","17:30:00",null,null,null,null,"chlu","luft.christopher@gmx.de","16:30:00","Bürgerhaus, Hüttenfeld",null,"T_E0CCAAAB2FA6","015735222603"]
["Nachwuchs","Training","Di","2025-03-18","17:30:00","19:15:00",null,null,null,null,"chlu,jori,lehe","luft.christopher@gmx.de,jonas@sg-huettenfeld.de,leonherd@gmx.de","17:30:00","Bürgerhaus, Hüttenfeld",null,"T_F118B6AA0BCA","015735222603, 01717057707, 01728903319"]
["Erwachsene","Training","Mi","2025-03-19","18:30:00","22:00:00",null,null,null,null,null,null,"18:30:00","Bürgerhaus, Hüttenfeld",null,"T_E8B737484260"]
["Herren III","Auswärtsspiel","Mi","2025-03-19","19:30:00","21:30:00","Herren 3. KK W 1","TTC Lorsch III",null,null,null,null,"18:50:00","Sporthalle Wingertsbergschule, Bahnhofstraße 17 a, 64653 Lorsch / 7,7km / 12min",null,"W_Herren 3. Kreisklasse332794102341057"]
["Badminton","Badminton-Training","Do","2025-03-20","20:00:00","23:00:00",null,null,null,null,null,null,"20:00:00","Bürgerhaus, Hüttenfeld",null,"T_DD9254F53740"]
["Nachwuchs","Training","Fr","2025-03-21","18:00:00","19:30:00",null,null,null,null,"jori,hemö,pihö,erku","jonas@sg-huettenfeld.de,heiko@sg-huettenfeld.de,pia@sg-huettenfeld.de,k_uzu@hotmail.de","18:00:00","Bürgerhaus, Hüttenfeld",null,"T_E0BFF96ED882","01717057707, 017663884425, 015201585090, 017671958302"]
["Erwachsene","Training","Fr","2025-03-21","19:30:00","22:00:00",null,null,null,null,null,null,"19:30:00","Bürgerhaus, Hüttenfeld",null,"T_94935BD0A0E3"]
["Herren I","Auswärtsspiel","Fr","2025-03-21","20:00:00","22:00:00","Herren BK Gr. 1","VfR Fehlheim V",null,null,null,null,"19:10:00","Turnhalle der Carl-Orff-Schule, Im Ebertswinkel, 64625 Bensheim-Fehlheim / 19,8km / 18min",null,"W_Herren Bezirksklasse512774101341023"]
["Herren IV","Heimspiel","Fr","2025-03-21","20:15:00","22:15:00","Herren 3. KK W 2","TSV Auerbach VI",null,null,null,null,"19:45:00","Bürgerhaus Hüttenfeld, Alfred-Delp-Straße 50, 68623 Lampertheim-Hüttenfeld",null,"W_Herren 3. Kreisklasse462804100141023"]
["Herren II","Heimspiel","Fr","2025-03-21","20:15:00","22:15:00","Herren KL W","VfL Bensheim I",null,null,null,null,"19:45:00","Bürgerhaus Hüttenfeld, Alfred-Delp-Straße 50, 68623 Lampertheim-Hüttenfeld",null,"W_Herren Kreisliga212644100441023"]
["Jungen 15 I","Auswärtsspiel","Sa","2025-03-22","10:00:00","12:00:00","Jungen 15 KL","TTC Heppenheim I",null,null,"ange","anke.gerhardt@gmx.net ","09:20:00","Turnhalle Konrad-Adenauer-Schule, Mainzer Str.8 / Zufahrt über Weinheimer Straße, 64646 Heppenheim / 6,7km / 9min",null,"W_Jungen 15 Kreisliga112654102341053","015202991512"]
["Sonder-Training","Systemtraining (Udo Schumacher)","Sa","2025-03-22","11:00:00","13:00:00",null,null,null,null,null,null,"10:45:00","Bürgerhaus Hüttenfeld",null,"M_4A002134705D"]
["Jungen 19 I","Auswärtsspiel","Sa","2025-03-22","14:00:00","16:00:00","Jungen 19 1. KK","TSV Reichenbach I",null,null,"bicz","Tb-czermak@web.de","13:00:00","TSV-Turnhalle, Brandauer-Klinger-Weg, 64686 Lautertal-Reichenbach / 23,3km / 28min",null,"W_Jungen 19 1. Kreisklasse112494102341039","01781532322"]
["Jungen 13 I","Heimspiel","So","2025-03-23","10:00:00","12:00:00","Jungen 13 2.KK","TSV Auerbach II",null,null,"mas1,besc","mattihuettenfeld@gmail.com,carla@sg-huettenfeld.de","09:30:00","Bürgerhaus Hüttenfeld, Alfred-Delp-Straße 50, 68623 Lampertheim-Hüttenfeld",null,"W_Jungen 13 2.Kreisklasse122384100141023",", "]
["Herren V","Auswärtsspiel","Mo","2025-03-24","20:15:00","22:15:00","Herren 3. KK W 1","TSV Hambach III",null,null,null,null,"19:25:00","Schlossberghalle, Im Schalbert 2, 64646 HP-Hambach / 9,7km / 16min",null,"W_Herren 3. Kreisklasse352814101841023"]
["TT-AG","Training","Di","2025-03-25","16:30:00","17:30:00",null,null,null,null,"chlu","luft.christopher@gmx.de","16:30:00","Bürgerhaus, Hüttenfeld",null,"T_6D7655FE8C39","015735222603"]
["Nachwuchs","Training","Di","2025-03-25","17:30:00","19:15:00",null,null,null,null,"chlu,jori,lehe","luft.christopher@gmx.de,jonas@sg-huettenfeld.de,leonherd@gmx.de","17:30:00","Bürgerhaus, Hüttenfeld",null,"T_E113E338640D","015735222603, 01717057707, 01728903319"]
["Erwachsene","Training","Mi","2025-03-26","18:30:00","22:00:00",null,null,null,null,null,null,"18:30:00","Bürgerhaus, Hüttenfeld",null,"T_942FE3E9D089"]
["Erwachsene","Training","Do","2025-03-27","19:30:00","22:00:00",null,null,null,null,null,null,"19:30:00","Bürgerhaus, Hüttenfeld",null,"T_3F02EC9649F1"]
["Damen I","Heimspiel","Do","2025-03-27","20:00:00","22:00:00","Damen BK Gr.1","BSC Einhausen I",null,null,null,null,"19:10:00","Bürgerhaus Hüttenfeld, Alfred-Delp-Straße 50, 68623 Lampertheim-Hüttenfeld",null,"W_Damen Bezirksklasse112494101041023"]
["Nachwuchs","Training","Fr","2025-03-28","18:00:00","19:30:00",null,null,null,null,"jori,hemö,pihö,erku","jonas@sg-huettenfeld.de,heiko@sg-huettenfeld.de,pia@sg-huettenfeld.de,k_uzu@hotmail.de","18:00:00","Bürgerhaus, Hüttenfeld",null,"T_08697A925709","01717057707, 017663884425, 015201585090, 017671958302"]
["Erwachsene","Training","Fr","2025-03-28","19:30:00","22:00:00",null,null,null,null,null,null,"19:30:00","Bürgerhaus, Hüttenfeld",null,"T_9FCC17FEDB40"]
["Herren IV","Auswärtsspiel","Fr","2025-03-28","19:30:00","21:30:00","Herren 3. KK W 2","SSG Bensheim IV",null,null,null,null,"18:50:00","Karl Kübel Schule, Berliner Ring 34-38, 64625 Bensheim / 14,2km / 11min",null,"W_Herren 3. Kreisklasse442834100241023"]
["Herren II","Auswärtsspiel","Fr","2025-03-28","20:00:00","22:00:00","Herren KL W","SV Kirschhausen II",null,null,null,null,"19:10:00","Turnhalle Eichendorff Schule, Schulstr. 26, 64646 Kirschhausen / 12km / 19min",null,"W_Herren Kreisliga222684102341024"]
["Herren III","Heimspiel","Fr","2025-03-28","20:15:00","22:15:00","Herren 3. KK W 1","SG Gronau V",null,null,null,null,"19:45:00","Bürgerhaus Hüttenfeld, Alfred-Delp-Straße 50, 68623 Lampertheim-Hüttenfeld",null,"W_Herren 3. Kreisklasse352854101641023"]
["Sonder-Training","Systemtraining (Udo Schumacher)","Sa","2025-03-29","11:00:00","13:00:00",null,null,null,null,null,null,"10:45:00","Bürgerhaus Hüttenfeld",null,"M_E97153AF54E3"]
["Herren I","Heimspiel","Sa","2025-03-29","14:30:00","16:30:00","Herren BK Gr. 1","SG Mitlechtern I",null,null,null,null,"14:00:00","Bürgerhaus Hüttenfeld, Alfred-Delp-Straße 50, 68623 Lampertheim-Hüttenfeld",null,"W_Herren Bezirksklasse112854102341056"]
["TT-AG","Training","Di","2025-04-01","16:30:00","17:30:00",null,null,null,null,"chlu","luft.christopher@gmx.de","16:30:00","Bürgerhaus, Hüttenfeld",null,"T_9509E65F43B5","015735222603"]
["Nachwuchs","Training","Di","2025-04-01","17:30:00","19:15:00",null,null,null,null,"chlu,jori,lehe","luft.christopher@gmx.de,jonas@sg-huettenfeld.de,leonherd@gmx.de","17:30:00","Bürgerhaus, Hüttenfeld",null,"T_0D08EF288206","015735222603, 01717057707, 01728903319"]
["Erwachsene","Training","Mi","2025-04-02","18:30:00","20:00:00",null,null,null,null,null,null,"18:30:00","Bürgerhaus, Hüttenfeld",null,"T_7E782DEFD2FF"]
["Herren V","Auswärtsspiel","Mi","2025-04-02","19:30:00","21:30:00","Herren 3. KK W 1","TTC Lorsch III",null,null,null,null,"18:50:00","Sporthalle Wingertsbergschule, Bahnhofstraße 17 a, 64653 Lorsch / 7,7km / 12min",null,"W_Herren 3. Kreisklasse352864102341057"]
["Badminton","Badminton-Training","Mi","2025-04-02","20:00:00","22:00:00",null,null,null,null,null,null,"20:00:00","Bürgerhaus, Hüttenfeld",null,"T_CB204FFBE1C8"]
["Herren III","Auswärtsspiel","Mi","2025-04-02","20:00:00","22:00:00","Herren 3. KK W 1","TTC Lampertheim XI",null,null,null,null,"19:20:00","Sedanhalle, Sedanstraße 7, 68623 Lampertheim / 9,5km / 12min",null,"W_Herren 3. Kreisklasse1132874102341027"]
["Herren I","Auswärtsspiel","Mi","2025-04-02","20:00:00","22:00:00","Herren BK Gr. 1","TTC Lampertheim III",null,null,null,null,"19:20:00","Sedanhalle, Sedanstraße 7, 68623 Lampertheim / 9,5km / 12min",null,"W_Herren Bezirksklasse312864102341027"]
["Erwachsene","Training","Do","2025-04-03","19:30:00","22:00:00",null,null,null,null,null,null,"19:30:00","Bürgerhaus, Hüttenfeld",null,"T_FB4C918C7E95"]
["Herren II","Heimspiel","Do","2025-04-03","20:15:00","22:15:00","Herren KL W","SSG Bensheim II",null,null,null,null,"19:45:00","Bürgerhaus Hüttenfeld, Alfred-Delp-Straße 50, 68623 Lampertheim-Hüttenfeld",null,"W_Herren Kreisliga222704100241023"]
["Nachwuchs","Training","Fr","2025-04-04","18:00:00","19:30:00",null,null,null,null,"jori,hemö,pihö,erku","jonas@sg-huettenfeld.de,heiko@sg-huettenfeld.de,pia@sg-huettenfeld.de,k_uzu@hotmail.de","18:00:00","Bürgerhaus, Hüttenfeld",null,"T_EAEB415DCFA6","01717057707, 017663884425, 015201585090, 017671958302"]
["Jungen 15 I","Heimspiel","Fr","2025-04-04","18:15:00","20:15:00","Jungen 15 KL","TTC Groß Rohrheim I",null,null,"jori,hemö","jonas@sg-huettenfeld.de,heiko@sg-huettenfeld.de","17:45:00","Bürgerhaus Hüttenfeld, Alfred-Delp-Straße 50, 68623 Lampertheim-Hüttenfeld",null,"W_Jungen 15 Kreisliga112704101741023","01717057707, 017663884425"]
["Erwachsene","Training","Fr","2025-04-04","19:30:00","22:00:00",null,null,null,null,null,null,"19:30:00","Bürgerhaus, Hüttenfeld",null,"T_FAAE386AB8A8"]
["Herren IV","Heimspiel","Fr","2025-04-04","20:15:00","22:15:00","Herren 3. KK W 2","TV Bürstadt IX",null,null,null,null,"19:45:00","Bürgerhaus Hüttenfeld, Alfred-Delp-Straße 50, 68623 Lampertheim-Hüttenfeld",null,"W_Herren 3. Kreisklasse492904100941023"]
["Mädchenliga","6. Blockspieltag Mädchenliga","Sa","2025-04-05","10:00:00","18:00:00",null,null,null,null,"xxxx,yyyy","erinnerungsdienst@sg-huettenfeld.de,erinnerungsdienst@sg-huettenfeld.de",null,"Halle der Käthe-Kollwitz Schule Westhöchsterstr. 103, 65931 Frankfurt / 72,1km / 47min","Zwei Spielrunden, Beginn 11:00 und  13:00 Uhr","M_000BD27D5A7D","015161481925, 015161481925"]
["Damen I","Auswärtsspiel","Sa","2025-04-05","11:00:00","13:00:00","Damen BK Gr.1","TSK Rimbach II",null,null,null,null,"10:00:00","Odenwaldhalle, Kleiststraße 11, 64668 Rimbach / 18,8km / 25min",null,"W_Damen Bezirksklasse212554102341040"]
["Jungen 19 I","Heimspiel","So","2025-04-06","10:00:00","12:00:00","Jungen 19 1. KK","TSV Lindenfels I",null,null,"vobe","volker@sg-huettenfeld.de","09:30:00","Bürgerhaus Hüttenfeld, Alfred-Delp-Straße 50, 68623 Lampertheim-Hüttenfeld",null,"W_Jungen 19 1. Kreisklasse112564102341029","017623165187"]
["Nachwuchs","Training","Di","2025-04-08","17:30:00","19:15:00",null,null,null,null,"chlu,jori,lehe","luft.christopher@gmx.de,jonas@sg-huettenfeld.de,leonherd@gmx.de","17:30:00","Bürgerhaus, Hüttenfeld","Osterfereien","T_1C42D61BF29E","015735222603, 01717057707, 01728903319"]
["Erwachsene","Training","Mi","2025-04-09","18:30:00","22:00:00",null,null,null,null,null,null,"18:30:00","Bürgerhaus, Hüttenfeld","Osterfereien","T_6989AF19D159"]
["Erwachsene","Training","Do","2025-04-10","19:30:00","22:00:00",null,null,null,null,null,null,"19:30:00","Bürgerhaus, Hüttenfeld","Osterfereien","T_AB8CB670A57C"]
["Nachwuchs","Training","Fr","2025-04-11","18:00:00","19:30:00",null,null,null,null,"jori,hemö,pihö,erku","jonas@sg-huettenfeld.de,heiko@sg-huettenfeld.de,pia@sg-huettenfeld.de,k_uzu@hotmail.de","18:00:00","Bürgerhaus, Hüttenfeld","Osterfereien","T_D2778F4B584A","01717057707, 017663884425, 015201585090, 017671958302"]
["Erwachsene","Training","Fr","2025-04-11","19:30:00","22:00:00",null,null,null,null,null,null,"19:30:00","Bürgerhaus, Hüttenfeld","Osterfereien","T_42F2EC9DC109"]
["MGV","Dampfnudelessen & Ehrungen","Sa","2025-04-12","11:00:00","23:00:00",null,null,null,null,null,null,null,"Bürgerhaus Hüttenfeld","Halle belegt","M_7D4BE4FFD9A8"]
["Nachwuchs","Training","Di","2025-04-15","17:30:00","19:15:00",null,null,null,null,"chlu,jori,lehe","luft.christopher@gmx.de,jonas@sg-huettenfeld.de,leonherd@gmx.de","17:30:00","Bürgerhaus, Hüttenfeld","Osterfereien","T_1376F9D8A833","015735222603, 01717057707, 01728903319"]
["Erwachsene","Training","Mi","2025-04-16","18:30:00","22:00:00",null,null,null,null,null,null,"18:30:00","Bürgerhaus, Hüttenfeld","Osterfereien","T_C6842FF091E8"]
["Badminton","Badminton-Training","Do","2025-04-17","20:00:00","23:00:00",null,null,null,null,null,null,"20:00:00","Bürgerhaus, Hüttenfeld","Osterfereien","T_555051D8F6AE"]
["TT-AG","Training","Di","2025-04-22","16:30:00","17:30:00",null,null,null,null,"chlu","luft.christopher@gmx.de","16:30:00","Bürgerhaus, Hüttenfeld",null,"T_517A9F6A6F62","015735222603"]
["Nachwuchs","Training","Di","2025-04-22","17:30:00","19:15:00",null,null,null,null,"chlu,jori,lehe","luft.christopher@gmx.de,jonas@sg-huettenfeld.de,leonherd@gmx.de","17:30:00","Bürgerhaus, Hüttenfeld",null,"T_165206A4F74C","015735222603, 01717057707, 01728903319"]
["Erwachsene","Training","Mi","2025-04-23","18:30:00","22:00:00",null,null,null,null,null,null,"18:30:00","Bürgerhaus, Hüttenfeld",null,"T_9B4FB6B61430"]
["Erwachsene","Training","Do","2025-04-24","19:30:00","22:00:00",null,null,null,null,null,null,"19:30:00","Bürgerhaus, Hüttenfeld",null,"T_371C9142FF41"]
["Nachwuchs","Training","Fr","2025-04-25","18:00:00","19:30:00",null,null,null,null,"jori,hemö,pihö,erku","jonas@sg-huettenfeld.de,heiko@sg-huettenfeld.de,pia@sg-huettenfeld.de,k_uzu@hotmail.de","18:00:00","Bürgerhaus, Hüttenfeld",null,"T_01A935196F4C","01717057707, 017663884425, 015201585090, 017671958302"]
["Erwachsene","Training","Fr","2025-04-25","19:30:00","22:00:00",null,null,null,null,null,null,"19:30:00","Bürgerhaus, Hüttenfeld",null,"T_BF4B573E19E7"]
["Junioren","Bezirksentscheid Mini-Meisterschaften","Sa","2025-04-26",null,null,null,null,null,null,null,null,null,"Veranstaltungsort offen",null,"M_1A091B6F5666"]
["Junioren","Bezirks-Jahrgangsmeisterschaften (BJM)","Sa","2025-04-26",null,null,null,null,null,null,"jori,yyyy","jonas@sg-huettenfeld.de,erinnerungsdienst@sg-huettenfeld.de",null,"Veranstaltungsort offen",null,"M_3A0D6191685F","01717057707, 015161481925"]
[null,"Bezirksentscheid Mini-Meisterschaften","So","2025-04-27",null,null,null,null,null,null,null,null,null,"Veranstaltungsort offen",null,"M_40B500FE4CC7"]
["Junioren","Bezirks-Jahrgangsmeisterschaften (BJM)","So","2025-04-27",null,null,null,null,null,null,"jori,yyyy","jonas@sg-huettenfeld.de,erinnerungsdienst@sg-huettenfeld.de",null,"Veranstaltungsort offen",null,"M_A883F30A2ABC","01717057707, 015161481925"]
["TT-AG","Training","Di","2025-04-29","16:30:00","17:30:00",null,null,null,null,"chlu","luft.christopher@gmx.de","16:30:00","Bürgerhaus, Hüttenfeld",null,"T_5C6A607785FF","015735222603"]
["Nachwuchs","Training","Di","2025-04-29","17:30:00","19:15:00",null,null,null,null,"chlu,jori,lehe","luft.christopher@gmx.de,jonas@sg-huettenfeld.de,leonherd@gmx.de","17:30:00","Bürgerhaus, Hüttenfeld",null,"T_4C8EB11951C2","015735222603, 01717057707, 01728903319"]
["Erwachsene","Training","Mi","2025-04-30","18:30:00","22:00:00",null,null,null,null,null,null,"18:30:00","Bürgerhaus, Hüttenfeld",null,"T_DDA381BB78D7"]
["SGH","SGH-Maifest","Do","2025-05-01",null,null,null,null,null,null,null,null,null,"Sportpark im Hegwald","Tag der Arbeit","M_728017236F05"]
["Nachwuchs","Training","Fr","2025-05-02","18:00:00","19:30:00",null,null,null,null,"jori,hemö,pihö,erku","jonas@sg-huettenfeld.de,heiko@sg-huettenfeld.de,pia@sg-huettenfeld.de,k_uzu@hotmail.de","18:00:00","Bürgerhaus, Hüttenfeld",null,"T_8F9538E2002D","01717057707, 017663884425, 015201585090, 017671958302"]
["Erwachsene","Training","Fr","2025-05-02","19:30:00","22:00:00",null,null,null,null,null,null,"19:30:00","Bürgerhaus, Hüttenfeld",null,"T_73CAE4380CBB"]
["Sonder-Training","Systemtraining (Udo Schumacher)","Sa","2025-05-03","11:00:00","13:00:00",null,null,null,null,null,null,"10:45:00","Bürgerhaus Hüttenfeld",null,"M_78287F539697"]
["TT-AG","Training","Di","2025-05-06","16:30:00","17:30:00",null,null,null,null,"chlu","luft.christopher@gmx.de","16:30:00","Bürgerhaus, Hüttenfeld",null,"T_ED20E7DCED5A","015735222603"]
["Nachwuchs","Training","Di","2025-05-06","17:30:00","19:15:00",null,null,null,null,"chlu,jori,lehe","luft.christopher@gmx.de,jonas@sg-huettenfeld.de,leonherd@gmx.de","17:30:00","Bürgerhaus, Hüttenfeld",null,"T_9C86B9087B0B","015735222603, 01717057707, 01728903319"]
["Eltern als Betreuer","Elternabend Tischtennis-Nachwuchs","Di","2025-05-06","19:30:00","20:30:00",null,null,null,null,"kasc,casc,hemö,jori","katja@sg-huettenfeld.de,carla@sg-huettenfeld.de,heiko@sg-huettenfeld.de,jonas@sg-huettenfeld.de",null,"Bürgerhaus, Foyer oder Gruppenraum",null,"M_B9055C1CDB17","015123274161, 01637964195, 017663884425, 01717057707"]
["Erwachsene","Training","Mi","2025-05-07","18:30:00","20:00:00",null,null,null,null,null,null,"18:30:00","Bürgerhaus, Hüttenfeld",null,"T_F6EE9006BA03"]
["Badminton","Badminton-Training","Mi","2025-05-07","20:00:00","22:00:00",null,null,null,null,null,null,"20:00:00","Bürgerhaus, Hüttenfeld",null,"T_0E07F34080E6"]
["Erwachsene","Training","Do","2025-05-08","19:30:00","22:00:00",null,null,null,null,null,null,"19:30:00","Bürgerhaus, Hüttenfeld",null,"T_E70C0EB4D3A6"]
["Nachwuchs","Training","Fr","2025-05-09","18:00:00","19:30:00",null,null,null,null,"jori,hemö,pihö,erku","jonas@sg-huettenfeld.de,heiko@sg-huettenfeld.de,pia@sg-huettenfeld.de,k_uzu@hotmail.de","18:00:00","Bürgerhaus, Hüttenfeld",null,"T_89767418832B","01717057707, 017663884425, 015201585090, 017671958302"]
["Erwachsene","Training","Fr","2025-05-09","19:30:00","22:00:00",null,null,null,null,null,null,"19:30:00","Bürgerhaus, Hüttenfeld",null,"T_1912E460AEBC"]
["Sonder-Training","Systemtraining (Udo Schumacher)","Sa","2025-05-10","11:00:00","13:00:00",null,null,null,null,null,null,"10:45:00","Bürgerhaus Hüttenfeld",null,"M_52A69E707123"]
["TT-AG","Training","Di","2025-05-13","16:30:00","17:30:00",null,null,null,null,"chlu","luft.christopher@gmx.de","16:30:00","Bürgerhaus, Hüttenfeld",null,"T_D24C194E7D47","015735222603"]
["Nachwuchs","Training","Di","2025-05-13","17:30:00","19:15:00",null,null,null,null,"chlu,jori,lehe","luft.christopher@gmx.de,jonas@sg-huettenfeld.de,leonherd@gmx.de","17:30:00","Bürgerhaus, Hüttenfeld",null,"T_57E879A60D74","015735222603, 01717057707, 01728903319"]
["Erwachsene","Training","Mi","2025-05-14","18:30:00","22:00:00",null,null,null,null,null,null,"18:30:00","Bürgerhaus, Hüttenfeld",null,"T_CCE05FC9385D"]
["Badminton","Badminton-Training","Do","2025-05-15","20:00:00","23:00:00",null,null,null,null,null,null,"20:00:00","Bürgerhaus, Hüttenfeld",null,"T_C42A4C61DFF4"]
["Junioren","Vereinsmeisterschaft Nachwuchs","Fr","2025-05-16","18:00:00","20:15:00",null,null,null,null,"pihö, hemö, jori","pia@sg-huettenfeld.de,heiko@sg-huettenfeld.de,jonas@sg-huettenfeld.de",null,"Bürgerhaus Hüttenfeld",null,"M_3C531BD9CF92","015201585090, 017663884425, 01717057707"]
["Nachwuchs","Training","Fr","2025-05-16","18:00:00","19:30:00",null,null,null,null,"jori,hemö,pihö,erku","jonas@sg-huettenfeld.de,heiko@sg-huettenfeld.de,pia@sg-huettenfeld.de,k_uzu@hotmail.de","18:00:00","Bürgerhaus, Hüttenfeld",null,"T_546CFCF1FBDE","01717057707, 017663884425, 015201585090, 017671958302"]
["Erwachsene","Training","Fr","2025-05-16","19:30:00","22:00:00",null,null,null,null,null,null,"19:30:00","Bürgerhaus, Hüttenfeld",null,"T_5452663FAFF9"]
["Lit. Gym.","\"großes\" Basketball-Turnier","Sa","2025-05-17","08:00:00","22:00:00",null,null,null,null,null,null,null,"Bürgerhaus Hüttenfeld","Halle belegt","M_A65A774E3709"]
["Junioren","Hessische Jahrgangsmeisterschaften (HJM)","Sa","2025-05-17",null,null,null,null,null,null,"peha","peter@sg-huettenfeld.de",null,"Veranstaltungsort offen",null,"M_B261CE54F476","017634513703"]
["Junioren","Hessische Jahrgangsmeisterschaften (HJM)","So","2025-05-18",null,null,null,null,null,null,"peha","peter@sg-huettenfeld.de",null,"Veranstaltungsort offen",null,"M_6F093E1CB4F8","017634513703"]
["TT-AG","Training","Di","2025-05-20","16:30:00","17:30:00",null,null,null,null,"chlu","luft.christopher@gmx.de","16:30:00","Bürgerhaus, Hüttenfeld",null,"T_BBDA7ADC1068","015735222603"]
["Nachwuchs","Training","Di","2025-05-20","17:30:00","19:15:00",null,null,null,null,"chlu,jori,lehe","luft.christopher@gmx.de,jonas@sg-huettenfeld.de,leonherd@gmx.de","17:30:00","Bürgerhaus, Hüttenfeld",null,"T_A478644119E7","015735222603, 01717057707, 01728903319"]
["Erwachsene","Training","Mi","2025-05-21","18:30:00","22:00:00",null,null,null,null,null,null,"18:30:00","Bürgerhaus, Hüttenfeld",null,"T_71DAF909FEEE"]
["Erwachsene","Training","Do","2025-05-22","19:30:00","22:00:00",null,null,null,null,null,null,"19:30:00","Bürgerhaus, Hüttenfeld",null,"T_75340EC2FE6A"]
["Nachwuchs","Training","Fr","2025-05-23","18:00:00","19:30:00",null,null,null,null,"jori,hemö,pihö,erku","jonas@sg-huettenfeld.de,heiko@sg-huettenfeld.de,pia@sg-huettenfeld.de,k_uzu@hotmail.de","18:00:00","Bürgerhaus, Hüttenfeld",null,"T_E049EA703C09","01717057707, 017663884425, 015201585090, 017671958302"]
["Erwachsene","Training","Fr","2025-05-23","19:30:00","22:00:00",null,null,null,null,null,null,"19:30:00","Bürgerhaus, Hüttenfeld",null,"T_3C9DC0A640A8"]
["Sonder-Training","Systemtraining (Udo Schumacher)","Sa","2025-05-24","11:00:00","13:00:00",null,null,null,null,null,null,"10:45:00","Bürgerhaus Hüttenfeld",null,"M_B74098AC2321"]
["Junioren","Bezirks-Vorranglistenturnier Nachwuchs","Sa","2025-05-24",null,null,null,null,null,null,"pihö,leme,erku,yyyy","pia@sg-huettenfeld.de,leon@sg-huettenfeld.de,k_uzu@hotmail.de,erinnerungsdienst@sg-huettenfeld.de",null,"Veranstaltungsort offen",null,"M_9F46E84D23FD","015201585090, 017658806863, 017671958302, 015161481925"]
["Junioren","Bezirks-Vorranglistenturnier Nachwuchs","So","2025-05-25",null,null,null,null,null,null,"pihö,leme,erku,yyyy","pia@sg-huettenfeld.de,leon@sg-huettenfeld.de,k_uzu@hotmail.de,erinnerungsdienst@sg-huettenfeld.de",null,"Veranstaltungsort offen",null,"M_DF4AAF71E340","015201585090, 017658806863, 017671958302, 015161481925"]
["TT-AG","Training","Di","2025-05-27","16:30:00","17:30:00",null,null,null,null,"chlu","luft.christopher@gmx.de","16:30:00","Bürgerhaus, Hüttenfeld",null,"T_C7D26A8973FF","015735222603"]
["Nachwuchs","Training","Di","2025-05-27","17:30:00","19:15:00",null,null,null,null,"chlu,jori,lehe","luft.christopher@gmx.de,jonas@sg-huettenfeld.de,leonherd@gmx.de","17:30:00","Bürgerhaus, Hüttenfeld",null,"T_565A9D91A787","015735222603, 01717057707, 01728903319"]
["Erwachsene","Training","Mi","2025-05-28","18:30:00","22:00:00",null,null,null,null,null,null,"18:30:00","Bürgerhaus, Hüttenfeld",null,"T_115767E007BF"]
["Nachwuchs","Training","Fr","2025-05-30","18:00:00","19:30:00",null,null,null,null,"jori,hemö,pihö,erku","jonas@sg-huettenfeld.de,heiko@sg-huettenfeld.de,pia@sg-huettenfeld.de,k_uzu@hotmail.de","18:00:00","Bürgerhaus, Hüttenfeld",null,"T_4374E3BDA86A","01717057707, 017663884425, 015201585090, 017671958302"]
["Erwachsene","Training","Fr","2025-05-30","19:30:00","22:00:00",null,null,null,null,null,null,"19:30:00","Bürgerhaus, Hüttenfeld",null,"T_80DBC524B0EA"]
["Junioren","Jugendfreizeit Mosbach","Fr","2025-06-13",null,null,null,null,null,null,"kasc,casc,jori,hemö,pihö","katja@sg-huettenfeld.de,carla@sg-huettenfeld.de,jonas@sg-huettenfeld.de,heiko@sg-huettenfeld.de,pia@sg-huettenfeld.de",null,null,null,"M_69E9FC7C0811","015123274161, 01637964195, 01717057707, 017663884425, 015201585090"]
["MGV","Sommerkonzert der Youg Voices","Sa","2025-06-14","10:00:00","22:00:00",null,null,null,null,null,null,null,"Bürgerhaus Hüttenfeld","Halle belegt","M_DBE3CAEDCC8B"]
["Junioren","Bezirks-Endrangliste (BERL)","Sa","2025-06-14",null,null,null,null,null,null,"leme,erku,pihö,peha","leon@sg-huettenfeld.de,k_uzu@hotmail.de,pia@sg-huettenfeld.de,peter@sg-huettenfeld.de",null,"Veranstaltungsort offen","Kollission mit Freizeit Mosbach?","M_5CDF58EE9E07","017658806863, 017671958302, 015201585090, 017634513703"]
["Junioren","Jugendfreizeit Mosbach","Sa","2025-06-14",null,null,null,null,null,null,"kasc,casc,jori,hemö,pihö","katja@sg-huettenfeld.de,carla@sg-huettenfeld.de,jonas@sg-huettenfeld.de,heiko@sg-huettenfeld.de,pia@sg-huettenfeld.de",null,null,null,"M_676A373F51CB","015123274161, 01637964195, 01717057707, 017663884425, 015201585090"]
["Junioren","Bezirks-Endrangliste (BERL)","So","2025-06-15",null,null,null,null,null,null,"leme,erku,pihö,peha","leon@sg-huettenfeld.de,k_uzu@hotmail.de,pia@sg-huettenfeld.de,peter@sg-huettenfeld.de",null,"Veranstaltungsort offen","Kollission mit Freizeit Mosbach?","M_0358ED7F9F8C","017658806863, 017671958302, 015201585090, 017634513703"]
["Junioren","Jugendfreizeit Mosbach","So","2025-06-15",null,null,null,null,null,null,"kasc,casc,jori,hemö,pihö","katja@sg-huettenfeld.de,carla@sg-huettenfeld.de,jonas@sg-huettenfeld.de,heiko@sg-huettenfeld.de,pia@sg-huettenfeld.de",null,null,null,"M_52E0DCCE1D45","015123274161, 01637964195, 01717057707, 017663884425, 015201585090"]
["Sonder-Training","Systemtraining (Udo Schumacher)","Sa","2025-06-28","11:00:00","13:00:00",null,null,null,null,null,null,"10:45:00","Bürgerhaus Hüttenfeld",null,"M_1EF59644300D"]

{"sheet":"Wettkampf","index":1,"n_rows":160,"n_cols":16,"rows_kept":160,"cut":false,"hidden":false,"merged":[[0,0,8,14],[9,0,9,14]]}
[]
[]
[]
[]
[]
[]
[]
[]
[]
[]
["Betrifft","Veranstaltung","Tag","Datum","Beginn","Ende","Wettbewerb","Gegner","Es spielt","Es fehlt","Betreuer/Fahrer","eMail_Fahrer","Treffen","Halle/Ort/Fahrzeit","Bemerkung","Eventcode"]
["Herren V","internes Duell","Fr","2024-09-06","20:15:00","22:15:00","Herren 3. KK W 1","SGH III",null,null,null,null,"19:45:00","Bürgerhaus Hüttenfeld, Alfred-Delp-Straße 50, 68623 Lampertheim-Hüttenfeld",null,"W_Herren 3. Kreisklasse53134102341023-1"]
["Herren III","internes Duell","Fr","2024-09-06","20:15:00","22:15:00","Herren 3. KK W 1","SGH V",null,null,null,null,"19:45:00","Bürgerhaus Hüttenfeld, Alfred-Delp-Straße 50, 68623 Lampertheim-Hüttenfeld",null,"W_Herren 3. Kreisklasse53134102341023-2"]
["Herren IV","Heimspiel","Fr","2024-09-06","20:15:00","22:15:00","Herren 3. KK W 2","BSC Einhausen II",null,null,null,null,"19:45:00","Bürgerhaus Hüttenfeld, Alfred-Delp-Straße 50, 68623 Lampertheim-Hüttenfeld",null,"W_Herren 3. Kreisklasse42114101041023"]
["Jungen 15 I","Auswärtsspiel","Sa","2024-09-07","14:00:00","16:00:00","Jungen 15 KL","TV Bürstadt I",null,null,"ange","anke.gerhardt@gmx.net ","13:10:00","Neue Jahnturnhalle, Wasserwerkstr. 4, 68642 Bürstadt / 20,3km / 24min",null,"W_Jungen 15 Kreisliga11144100941023"]
["Herren IV","Auswärtsspiel","Mo","2024-09-09","19:30:00","21:30:00","Herren 3. KK W 2","TTC Lorsch II",null,null,null,null,"18:50:00","Sporthalle Wingertsbergschule, Bahnhofstraße 17 a, 64653 Lorsch / 7,7km / 12min",null,"W_Herren 3. Kreisklasse24134102341057"]
["Jungen 19 I","Auswärtsspiel","Di","2024-09-10","18:00:00","20:00:00","Jungen 19 1. KK","SKG Ober-Mumbach II",null,null,"tiwo","t.wolf@treppenwolf.de","17:10:00","Hermann Schütz Sporthalle, Hellklinger Straße, 69509 Mörlenbach/Ober-Mumbach / 17,8km / 23min",null,"W_Jungen 19 1. Kreisklasse21114102341038"]
["Herren III","Auswärtsspiel","Do","2024-09-12","20:00:00","22:00:00","Herren 3. KK W 1","TV Ober-Laudenbach III",null,null,null,null,"19:10:00","Turnhalle Oberlaudenbach, Oberlaudenbacher Str., 64646 Heppenheim / 9,8km / 15min",null,"W_Herren 3. Kreisklasse33164102341037"]
["Herren I","Heimspiel","So","2024-09-15","18:00:00","20:00:00","Herren BK Gr. 1","TSV Ellenbach II",null,null,null,null,"17:30:00","Bürgerhaus Hüttenfeld, Alfred-Delp-Straße 50, 68623 Lampertheim-Hüttenfeld",null,"W_Herren Bezirksklasse12164101141023"]
["Herren V","Auswärtsspiel","Do","2024-09-19","20:00:00","22:00:00","Herren 3. KK W 1","TV Ober-Laudenbach III",null,null,null,null,"19:10:00","Turnhalle Oberlaudenbach, Oberlaudenbacher Str., 64646 Heppenheim / 9,8km / 15min",null,"W_Herren 3. Kreisklasse35184102341037"]
["Jungen 15 I","Heimspiel","Fr","2024-09-20","18:15:00","20:15:00","Jungen 15 KL","TTC Heppenheim II",null,null," jori","jonas@sg-huettenfeld.de","17:45:00","Bürgerhaus Hüttenfeld, Alfred-Delp-Straße 50, 68623 Lampertheim-Hüttenfeld",null,"W_Jungen 15 Kreisliga12184102341053"]
["Herren II","Auswärtsspiel","Fr","2024-09-20","19:30:00","21:30:00","Herren KL W","SSG Bensheim II",null,null,null,null,"18:50:00","Karl Kübel Schule, Berliner Ring 34-38, 64625 Bensheim / 14,2km / 11min",null,"W_Herren Kreisliga22154100241023"]
["Herren IV","Heimspiel","Fr","2024-09-20","20:15:00","22:15:00","Herren 3. KK W 2","SSG Bensheim IV",null,null,null,null,"19:45:00","Bürgerhaus Hüttenfeld, Alfred-Delp-Straße 50, 68623 Lampertheim-Hüttenfeld",null,"W_Herren 3. Kreisklasse441104100241023"]
["Herren III","Heimspiel","Fr","2024-09-20","20:25:00","22:25:00","Herren 3. KK W 1","TTC Lorsch III",null,null,null,null,"19:55:00","Bürgerhaus Hüttenfeld, Alfred-Delp-Straße 50, 68623 Lampertheim-Hüttenfeld",null,"W_Herren 3. Kreisklasse331104102341057"]
["Jungen 19 I","Heimspiel","So","2024-09-22","10:00:00","12:00:00","Jungen 19 1. KK","TSV Hambach I",null,null,"stbr","stefan@sg-huettenfeld.de","09:30:00","Bürgerhaus Hüttenfeld, Alfred-Delp-Straße 50, 68623 Lampertheim-Hüttenfeld",null,"W_Jungen 19 1. Kreisklasse11144101841023"]
["Jungen 15 I","Auswärtsspiel","Mo","2024-09-23","18:15:00","20:15:00","Jungen 15 KL","TSV Auerbach I",null,null,"dawa",null,"17:25:00","GGEW Sportzentrum Geb. B, Saarstrasse 56, 64625 Bensheim-Auerbach / 14,9km / 17min",null,"W_Jungen 15 Kreisliga111114100141023"]
["Jungen 13 I","Auswärtsspiel","Mi","2024-09-25","18:30:00","20:30:00","Jungen 13 2.KK","SV Fürth  I",null,null,"miw2","michaelwegner1107@gmail.com","17:30:00","Neu Sporthalle,An der Grundschule, Goethestr. 6, 64658 Fürth / 21,2km / 31min",null,"W_Jungen 13 2.Kreisklasse11154101441023"]
["Herren V","Heimspiel","Mi","2024-09-25","19:30:00","21:30:00","Herren 3. KK W 1","TTC Lampertheim XI",null,null,null,null,"19:00:00","Bürgerhaus Hüttenfeld, Alfred-Delp-Straße 50, 68623 Lampertheim-Hüttenfeld",null,"W_Herren 3. Kreisklasse5111134102341027"]
["Damen I","Heimspiel","Do","2024-09-26","20:00:00","22:00:00","Damen BK Gr.1","TSK Rimbach II",null,null,null,null,"19:10:00","Bürgerhaus Hüttenfeld, Alfred-Delp-Straße 50, 68623 Lampertheim-Hüttenfeld",null,"W_Damen Bezirksklasse12164102341040"]
["Jungen 13 I","Auswärtsspiel","Fr","2024-09-27","18:30:00","20:30:00","Jungen 13 2.KK","TSV Weiher I",null,null,"ansi","anja@sg-huettenfeld.de","17:40:00","TSV-Halle, Krabbengasse, 69509 Mörlenbach-Weiher / 18,2km / 24min",null,"W_Jungen 13 2.Kreisklasse11114102341050"]
["Herren II","Heimspiel","Fr","2024-09-27","20:15:00","22:15:00","Herren KL W","SV Kirschhausen II",null,null,null,null,"19:45:00","Bürgerhaus Hüttenfeld, Alfred-Delp-Straße 50, 68623 Lampertheim-Hüttenfeld",null,"W_Herren Kreisliga221124102341024"]
["Damen I","Auswärtsspiel","Di","2024-10-01","19:30:00","21:30:00","Damen BK Gr.1","TTC Kelsterbach I",null,null,null,null,"18:20:00","Kl. Halle der Gesamtschule, Mörfelder Strasse 52, 65451 Kelsterbach / 66km / 42min",null,"W_Damen Bezirksklasse11174102344013"]
["Jungen 19 I","Auswärtsspiel","Fr","2024-10-04","18:30:00","20:30:00","Jungen 19 1. KK","TSV Lindenfels I",null,null,"inwe","planet-inga@web.de","17:20:00","Turnhalle Carl-Orff-Schule, Almenweg, 64678 Lindenfels / 26,1km / 36min",null,"W_Jungen 19 1. Kreisklasse111104102341029"]
["Herren I","Auswärtsspiel","Fr","2024-10-04","20:00:00","22:00:00","Herren BK Gr. 1","TTC Lampertheim V",null,null,null,null,"19:20:00","Sedanhalle, Sedanstraße 7, 68623 Lampertheim / 9,5km / 12min",null,"W_Herren Bezirksklasse511154102341027"]
["Herren II","Heimspiel","Fr","2024-10-04","20:15:00","22:15:00","Herren KL W","SG Nordheim-Wattenheim I",null,null,null,null,"19:45:00","Bürgerhaus Hüttenfeld, Alfred-Delp-Straße 50, 68623 Lampertheim-Hüttenfeld",null,"W_Herren Kreisliga21114102341060"]
["Herren III","Heimspiel","Fr","2024-10-04","20:15:00","22:15:00","Herren 3. KK W 1","TTC Lampertheim XI",null,null,null,null,"19:45:00","Bürgerhaus Hüttenfeld, Alfred-Delp-Straße 50, 68623 Lampertheim-Hüttenfeld",null,"W_Herren 3. Kreisklasse3111174102341027"]
["Herren IV","Auswärtsspiel","Fr","2024-10-04","20:30:00","22:30:00","Herren 3. KK W 2","TV Bürstadt IX",null,null,null,null,"19:40:00","Neue Jahnturnhalle, Wasserwerkstr. 4, 68642 Bürstadt / 20,3km / 24min",null,"W_Herren 3. Kreisklasse941164100941023"]
["Herren III","Auswärtsspiel","Mi","2024-10-09","19:30:00","21:30:00","Pok. 3. KK","TTC Lorsch III",null,null,null,null,"18:50:00","Sporthalle Wingertsbergschule, Bahnhofstraße 17 a, 64653 Lorsch / 7,7km / 12min",null,"W_Herren 3. Kreisklasse3331064102341057"]
["Herren V","Heimspiel","Mi","2024-10-09","19:30:00","21:30:00","Herren 3. KK W 1","TSV Hambach III",null,null,null,null,"19:00:00","Bürgerhaus Hüttenfeld, Alfred-Delp-Straße 50, 68623 Lampertheim-Hüttenfeld",null,"W_Herren 3. Kreisklasse531184101841023"]
["Herren II","Heimspiel","Mi","2024-10-09","20:15:00","22:15:00","Pok. KL","SG Gronau II",null,null,null,null,"19:45:00","Bürgerhaus Hüttenfeld, Alfred-Delp-Straße 50, 68623 Lampertheim-Hüttenfeld",null,"W_Herren Kreisliga2231054101641023"]
["Damen I","Heimspiel","Do","2024-10-10","20:00:00","22:00:00","Damen BK Gr.1","SG Seidenbuch II",null,null,null,null,"19:10:00","Bürgerhaus Hüttenfeld, Alfred-Delp-Straße 50, 68623 Lampertheim-Hüttenfeld",null,"W_Damen Bezirksklasse121124102341043"]
["Herren III","Auswärtsspiel","Do","2024-10-10","20:15:00","22:15:00","Herren 3. KK W 1","SG Gronau V",null,null,null,null,"19:25:00","Dorfgemeinschaftshaus Gronau, Märkerwaldstr. 81a, 64625 Bensheim-Gronau / 16km / 24min",null,"W_Herren 3. Kreisklasse531204101641023"]
["Herren II","Heimspiel","Fr","2024-10-11","20:15:00","22:15:00","Herren KL W","TTC Lampertheim VI",null,null,null,null,"19:45:00","Bürgerhaus Hüttenfeld, Alfred-Delp-Straße 50, 68623 Lampertheim-Hüttenfeld",null,"W_Herren Kreisliga261184102341027"]
["Herren IV","Auswärtsspiel","Fr","2024-10-11","20:15:00","22:15:00","Herren 3. KK W 2","TSV Auerbach VI",null,null,null,null,"19:25:00","GGEW Sportzentrum Geb. B, Saarstrasse 56, 64625 Bensheim-Auerbach / 14,9km / 17min",null,"W_Herren 3. Kreisklasse641204100141023"]
["Herren I","Heimspiel","Sa","2024-10-12","16:30:00","18:30:00","Herren BK Gr. 1","VfR Fehlheim V",null,null,null,null,"16:00:00","Bürgerhaus Hüttenfeld, Alfred-Delp-Straße 50, 68623 Lampertheim-Hüttenfeld",null,"W_Herren Bezirksklasse151224101341023"]
["Herren V","Auswärtsspiel","Sa","2024-10-12","16:30:00","18:30:00","Pok. 3. KK","SV Fürth  IV",null,null,null,null,"15:30:00","Neu Sporthalle,An der Grundschule, Goethestr. 6, 64658 Fürth / 21,2km / 31min",null,"W_Herren 3. Kreisklasse4531074101441023"]
["Jungen 13 I","Heimspiel","So","2024-10-13","10:00:00","12:00:00","Jungen 13 2.KK","TTC Groß Rohrheim III",null,null,"sige","simon@sg-huettenfeld.de","09:30:00","Bürgerhaus Hüttenfeld, Alfred-Delp-Straße 50, 68623 Lampertheim-Hüttenfeld",null,"W_Jungen 13 2.Kreisklasse131114101741023"]
["Jungen 15 I","Heimspiel","So","2024-10-13","16:00:00","18:00:00","Pok. Jungen 15 KL","TTC Groß Rohrheim I",null,null,"erhä","erich@sg-huettenfeld.de","15:30:00","Bürgerhaus Hüttenfeld, Alfred-Delp-Straße 50, 68623 Lampertheim-Hüttenfeld",null,"W_Jungen 15 Kreisliga1131044101741023"]
["Herren I","Auswärtsspiel","Fr","2024-10-18","20:15:00","22:15:00","Herren BK Gr. 1","SV Kirschhausen I",null,null,null,null,"19:25:00","Turnhalle Eichendorff Schule, Schulstr. 26, 64646 Kirschhausen / 12km / 19min",null,"W_Herren Bezirksklasse11114102341024"]
["Herren I","Heimspiel","Mi","2024-10-23","20:30:00","22:30:00","Pok. Pok. Herren BK","TG Sachsenhausen 04 II",null,null,null,null,"20:00:00","Bürgerhaus Hüttenfeld, Alfred-Delp-Straße 50, 68623 Lampertheim-Hüttenfeld",null,"W_Herren Bezirksklasse123114102343044"]
["Herren V","Auswärtsspiel","Mo","2024-10-28","20:15:00","22:15:00","Herren 3. KK W 1","TSV Auerbach VII",null,null,null,null,"19:25:00","GGEW Sportzentrum Geb. B, Saarstrasse 56, 64625 Bensheim-Auerbach / 14,9km / 17min",null,"W_Herren 3. Kreisklasse751224100141023"]
["Herren II","Auswärtsspiel","Mi","2024-10-30","19:30:00","21:30:00","Herren KL W","VfL Bensheim I",null,null,null,null,"18:40:00","neue Halle am Alten Kurfürstlichen Gymnasium, Franz-Liszt-Straße / Fehlheimer Straße, 64625 Bensheim / 14,7km / 20min",null,"W_Herren Kreisliga121204100441023"]
["Herren III","Heimspiel","Fr","2024-11-01","20:15:00","22:15:00","Herren 3. KK W 1","SKG Zell I",null,null,null,null,"19:45:00","Bürgerhaus Hüttenfeld, Alfred-Delp-Straße 50, 68623 Lampertheim-Hüttenfeld",null,"W_Herren 3. Kreisklasse311254102341051"]
["Herren IV","Heimspiel","Fr","2024-11-01","20:15:00","22:15:00","Herren 3. KK W 2","TV Ober-Laudenbach II",null,null,null,null,"19:45:00","Bürgerhaus Hüttenfeld, Alfred-Delp-Straße 50, 68623 Lampertheim-Hüttenfeld",null,"W_Herren 3. Kreisklasse421264102341037"]
["Herren I","Auswärtsspiel","Fr","2024-11-01","20:30:00","22:30:00","Herren BK Gr. 1","TV Bürstadt II",null,null,null,null,"19:40:00","Neue Jahnturnhalle, Wasserwerkstr. 4, 68642 Bürstadt / 20,3km / 24min",null,"W_Herren Bezirksklasse211124100941023"]
["Herren I","Auswärtsspiel","Sa","2024-11-02","18:00:00","20:00:00","Herren BK Gr. 1","SG Mitlechtern I",null,null,null,null,"17:10:00","Pfalzbach-Halle, Alzenauer Str., 64668 Mitlechtern / 16,2km / 24min",null,"W_Herren Bezirksklasse111264102341056"]
["Herren III","Auswärtsspiel","Mo","2024-11-04","20:00:00","22:00:00","Herren 3. KK W 1","TTC Heppenheim VII",null,null,null,null,"19:20:00","Turnhalle Konrad-Adenauer-Schule, Mainzer Str.8 / Zufahrt über Weinheimer Straße, 64646 Heppenheim / 6,7km / 9min",null,"W_Herren 3. Kreisklasse731264102341053"]
["Jungen 15 I","Heimspiel","Fr","2024-11-08","18:15:00","20:15:00","Jungen 15 KL","TTC Heppenheim I",null,null,"leme,pihö","leon@sg-huettenfeld.de,pia@sg-huettenfeld.de","17:45:00","Bürgerhaus Hüttenfeld, Alfred-Delp-Straße 50, 68623 Lampertheim-Hüttenfeld",null,"W_Jungen 15 Kreisliga111224102341053"]
["Herren V","Heimspiel","Fr","2024-11-08","20:00:00","22:00:00","Herren 3. KK W 1","SKG Zell I",null,null,null,null,"19:30:00","Bürgerhaus Hüttenfeld, Alfred-Delp-Straße 50, 68623 Lampertheim-Hüttenfeld",null,"W_Herren 3. Kreisklasse511284102341051"]
["Damen I","Auswärtsspiel","Fr","2024-11-08","20:15:00","22:15:00","Damen BK Gr.1","BSC Einhausen I",null,null,null,null,"19:25:00","Sporthalle Einhausen, Sepp-Herberger-Straße, 64683 Einhausen / 12,3km / 16min",null,"W_Damen Bezirksklasse111164101041023"]
["Jungen 19 I","Heimspiel","So","2024-11-10","10:00:00","12:00:00","Jungen 19 1. KK","TSV Reichenbach I",null,null,"lugü","ludwig@sg-huettenfeld.de","09:30:00","Bürgerhaus Hüttenfeld, Alfred-Delp-Straße 50, 68623 Lampertheim-Hüttenfeld",null,"W_Jungen 19 1. Kreisklasse111184102341039"]
["Jungen 13 I","Heimspiel","So","2024-11-10","10:00:00","12:00:00","Jungen 13 2.KK","SG Wald-Michelbach II",null,null,"thja","thomas@sg-huettenfeld.de","09:30:00","Bürgerhaus Hüttenfeld, Alfred-Delp-Straße 50, 68623 Lampertheim-Hüttenfeld",null,"W_Jungen 13 2.Kreisklasse121144102341048"]
["Herren V","Heimspiel","Mi","2024-11-13","19:30:00","21:30:00","Herren 3. KK W 1","TTC Heppenheim VII",null,null,null,null,"19:00:00","Bürgerhaus Hüttenfeld, Alfred-Delp-Straße 50, 68623 Lampertheim-Hüttenfeld",null,"W_Herren 3. Kreisklasse571304102341053"]
["Jungen 15 I","Heimspiel","Fr","2024-11-15","18:15:00","20:15:00","Jungen 15 KL","TSK Rimbach I",null,null,"leme,hemö","leon@sg-huettenfeld.de,heiko@sg-huettenfeld.de","17:45:00","Bürgerhaus Hüttenfeld, Alfred-Delp-Straße 50, 68623 Lampertheim-Hüttenfeld",null,"W_Jungen 15 Kreisliga111254102341040"]
["Herren II","Heimspiel","Fr","2024-11-15","20:15:00","22:15:00","Herren KL W","SG Gronau II",null,null,null,null,"19:45:00","Bürgerhaus Hüttenfeld, Alfred-Delp-Straße 50, 68623 Lampertheim-Hüttenfeld",null,"W_Herren Kreisliga221274101641023"]
["Herren IV","Heimspiel","Fr","2024-11-15","20:20:00","22:20:00","Herren 3. KK W 2","SG Gronau IV",null,null,null,null,"19:50:00","Bürgerhaus Hüttenfeld, Alfred-Delp-Straße 50, 68623 Lampertheim-Hüttenfeld",null,"W_Herren 3. Kreisklasse441324101641023"]
["Herren I","Heimspiel","Sa","2024-11-16","16:45:00","18:45:00","Herren BK Gr. 1","TV Bürstadt IV",null,null,null,null,"16:15:00","Bürgerhaus Hüttenfeld, Alfred-Delp-Straße 50, 68623 Lampertheim-Hüttenfeld",null,"W_Herren Bezirksklasse141334100941023"]
["Herren III","Auswärtsspiel","Mo","2024-11-18","20:15:00","22:15:00","Herren 3. KK W 1","TSV Auerbach VII",null,null,null,null,"19:25:00","GGEW Sportzentrum Geb. B, Saarstrasse 56, 64625 Bensheim-Auerbach / 14,9km / 17min",null,"W_Herren 3. Kreisklasse731334100141023"]
["Herren II","Heimspiel","Fr","2024-11-22","20:15:00","22:15:00","Herren KL W","TSV Auerbach II",null,null,null,null,"19:45:00","Bürgerhaus Hüttenfeld, Alfred-Delp-Straße 50, 68623 Lampertheim-Hüttenfeld",null,"W_Herren Kreisliga221294100141023"]
["Herren V","Heimspiel","Fr","2024-11-22","20:15:00","22:15:00","Herren 3. KK W 1","TTC Lorsch III",null,null,null,null,"19:45:00","Bürgerhaus Hüttenfeld, Alfred-Delp-Straße 50, 68623 Lampertheim-Hüttenfeld",null,"W_Herren 3. Kreisklasse531364102341057"]
["Jungen 15 I","Auswärtsspiel","Sa","2024-11-23","15:30:00","17:30:00","Jungen 15 KL","TTC Heppenheim I",null,null,"casc","carla@sg-huettenfeld.de","14:50:00","Turnhalle Konrad-Adenauer-Schule, Mainzer Str.8 / Zufahrt über Weinheimer Straße, 64646 Heppenheim / 6,7km / 9min",null,"W_Jungen 15 Kreisliga111294102341053"]
["Damen I","Auswärtsspiel","Sa","2024-11-23","17:00:00","19:00:00","Damen BK Gr.1","SV Mörlenbach I",null,null,null,null,"16:10:00","Weschnitztalhalle, Schulstraße, 69509 Mörlenbach / 16,2km / 22min",null,"W_Damen Bezirksklasse111234102341033"]
["Damen I","Heimspiel","So","2024-11-24","13:00:00","15:00:00","Damen BK Gr.1","SV RW Walldorf I",null,null,null,null,"12:10:00","Bürgerhaus Hüttenfeld, Alfred-Delp-Straße 50, 68623 Lampertheim-Hüttenfeld",null,"W_Damen Bezirksklasse111204102344028"]
["Jungen 13 I","Heimspiel","So","2024-11-24","13:00:00","15:00:00","Jungen 13 2.KK","TSK Rimbach II",null,null,"pasl","pascal@sg-huettenfeld.de","12:30:00","Bürgerhaus Hüttenfeld, Alfred-Delp-Straße 50, 68623 Lampertheim-Hüttenfeld",null,"W_Jungen 13 2.Kreisklasse121164102341040"]
["Jungen 19 I","Auswärtsspiel","Mo","2024-11-25","18:30:00","20:30:00","Jungen 19 1. KK","TSV Auerbach I",null,null,"kieh",null,"17:40:00","GGEW Sportzentrum Geb. B, Saarstrasse 56, 64625 Bensheim-Auerbach / 14,9km / 17min",null,"W_Jungen 19 1. Kreisklasse111234100141023"]
["Herren I","Auswärtsspiel","Do","2024-11-28","20:15:00","22:15:00","Herren BK Gr. 1","TSV Hambach I",null,null,null,null,"19:25:00","Schlossberghalle, Im Schalbert 2, 64646 HP-Hambach / 9,7km / 16min",null,"W_Herren Bezirksklasse111384101841023"]
["Jungen 15 I","Auswärtsspiel","Sa","2024-11-30","16:00:00","18:00:00","Jungen 15 KL","TTC Groß Rohrheim I",null,null,"kasc,casc","katja@sg-huettenfeld.de,carla@sg-huettenfeld.de","15:00:00","Bürgerhalle / Bürgerhallenanbau, Jahnstraße, 68649 Groß-Rohrheim / 21,1km / 26min",null,"W_Jungen 15 Kreisliga111204101741023"]
["Herren IV","Auswärtsspiel","Mo","2024-12-02","19:45:00","21:45:00","Herren 3. KK W 2","VfR Fehlheim VII",null,null,null,null,"18:55:00","Turnhalle der Carl-Orff-Schule, Im Ebertswinkel, 64625 Bensheim-Fehlheim / 19,8km / 18min",null,"W_Herren 3. Kreisklasse741414101341023"]
["Jungen 13 I","Auswärtsspiel","Mi","2024-12-04","18:30:00","20:30:00","Jungen 13 2.KK","TSV Auerbach II",null,null,"thja","thomas@sg-huettenfeld.de","17:40:00","GGEW Sportzentrum Geb. B, Saarstrasse 56, 64625 Bensheim-Auerbach / 14,9km / 17min",null,"W_Jungen 13 2.Kreisklasse211204100141023"]
["Damen I","Heimspiel","Do","2024-12-05","20:00:00","22:00:00","Damen BK Gr.1","TTC Ginsheim II",null,null,null,null,"19:10:00","Bürgerhaus Hüttenfeld, Alfred-Delp-Straße 50, 68623 Lampertheim-Hüttenfeld",null,"W_Damen Bezirksklasse121274102344010"]
["Herren IV","Auswärtsspiel","Do","2024-12-05","20:15:00","22:15:00","Herren 3. KK W 2","TSV Hambach IV",null,null,null,null,"19:25:00","Schlossberghalle, Im Schalbert 2, 64646 HP-Hambach / 9,7km / 16min",null,"W_Herren 3. Kreisklasse441434101841023"]
["Jungen 15 I","Heimspiel","Fr","2024-12-06","18:15:00","20:15:00","Jungen 15 KL","TSV Ellenbach I",null,null,"kasc,casc","katja@sg-huettenfeld.de,carla@sg-huettenfeld.de","17:45:00","Bürgerhaus Hüttenfeld, Alfred-Delp-Straße 50, 68623 Lampertheim-Hüttenfeld",null,"W_Jungen 15 Kreisliga111354101141023"]
["Herren V","Auswärtsspiel","Fr","2024-12-06","20:00:00","22:00:00","Herren 3. KK W 1","SG Gronau V",null,null,null,null,"19:10:00","Dorfgemeinschaftshaus Gronau, Märkerwaldstr. 81a, 64625 Bensheim-Gronau / 16km / 24min",null,"W_Herren 3. Kreisklasse551444101641023"]
["Herren III","Heimspiel","Fr","2024-12-06","20:15:00","22:15:00","Herren 3. KK W 1","TSV Hambach III",null,null,null,null,"19:45:00","Bürgerhaus Hüttenfeld, Alfred-Delp-Straße 50, 68623 Lampertheim-Hüttenfeld",null,"W_Herren 3. Kreisklasse331454101841023"]
["Herren II","Auswärtsspiel","Fr","2024-12-06","20:30:00","22:30:00","Herren KL W","TV Bürstadt V",null,null,null,null,"19:40:00","Neue Jahnturnhalle, Wasserwerkstr. 4, 68642 Bürstadt / 20,3km / 24min",null,"W_Herren Kreisliga521364100941023"]
["Jungen 19 I","Auswärtsspiel","Sa","2024-12-07","13:30:00","15:30:00","Jungen 19 1. KK","TSV Ellenbach I",null,null,"ange","anke.gerhardt@gmx.net ","12:30:00","TSV-Halle Ellenbach, Schlierbacher Straße 43, 64658 Fürth-Ellenbach / 22,1km / 32min","Betreuer: JÖRG GERHARDT","W_Jungen 19 1. Kreisklasse111284101141023"]
["Herren I","Heimspiel","Sa","2024-12-07","16:45:00","18:45:00","Herren BK Gr. 1","TTC Lampertheim III",null,null,null,null,"16:15:00","Bürgerhaus Hüttenfeld, Alfred-Delp-Straße 50, 68623 Lampertheim-Hüttenfeld",null,"W_Herren Bezirksklasse131444102341027"]
["Herren II","Auswärtsspiel","Fr","2024-12-13","20:00:00","22:00:00","Pok. KL","SV Mörlenbach I",null,null,null,null,"19:10:00","Weschnitztalhalle, Schulstraße, 69509 Mörlenbach / 16,2km / 22min",null,"W_Herren Kreisliga1232024102341033"]
["Herren IV","Auswärtsspiel","Fr","2024-12-13","20:15:00","22:15:00","Pok. 3. KK","TTC Gadernheim II",null,null,null,null,"19:05:00","Turnhalle der Mittelpunkt-Schule Gadernheim, Heidenbergstr. 18, 64686 Lautertal-Gadernheim / 25,7km / 37min",null,"W_Herren 3. Kreisklasse2432084101541023"]
["Herren III","internes Duell","Mi","2025-01-15","19:30:00","21:30:00","Herren 3. KK W 1","SGH V",null,null,null,null,"19:00:00","Bürgerhaus Hüttenfeld, Alfred-Delp-Straße 50, 68623 Lampertheim-Hüttenfeld",null,"W_Herren 3. Kreisklasse352474102341023-1"]
["Herren V","internes Duell","Mi","2025-01-15","19:30:00","21:30:00","Herren 3. KK W 1","SGH III",null,null,null,null,"19:00:00","Bürgerhaus Hüttenfeld, Alfred-Delp-Straße 50, 68623 Lampertheim-Hüttenfeld",null,"W_Herren 3. Kreisklasse352474102341023-2"]
["Jungen 15 I","Auswärtsspiel","Sa","2025-01-18","13:00:00","15:00:00","Jungen 15 KL","TTC Heppenheim II",null,null,"casc","carla@sg-huettenfeld.de","12:20:00","Turnhalle Konrad-Adenauer-Schule, Mainzer Str.8 / Zufahrt über Weinheimer Straße, 64646 Heppenheim / 6,7km / 9min",null,"W_Jungen 15 Kreisliga212374102341053"]
["Herren I","Heimspiel","So","2025-01-19","14:30:00","16:30:00","Herren BK Gr. 1","SV Kirschhausen I",null,null,null,null,"14:00:00","Bürgerhaus Hüttenfeld, Alfred-Delp-Straße 50, 68623 Lampertheim-Hüttenfeld",null,"W_Herren Bezirksklasse112484102341024"]
["Herren III","Auswärtsspiel","Mo","2025-01-20","20:15:00","22:15:00","Herren 3. KK W 1","TSV Hambach III",null,null,null,null,"19:25:00","Schlossberghalle, Im Schalbert 2, 64646 HP-Hambach / 9,7km / 16min",null,"W_Herren 3. Kreisklasse332504101841023"]
["Herren V","Heimspiel","Mi","2025-01-22","19:30:00","21:30:00","Herren 3. KK W 1","SG Gronau V",null,null,null,null,"19:00:00","Bürgerhaus Hüttenfeld, Alfred-Delp-Straße 50, 68623 Lampertheim-Hüttenfeld",null,"W_Herren 3. Kreisklasse552784101641023"]
["Herren IV","Heimspiel","Fr","2025-01-24","20:15:00","22:15:00","Herren 3. KK W 2","VfR Fehlheim VII",null,null,null,null,"19:45:00","Bürgerhaus Hüttenfeld, Alfred-Delp-Straße 50, 68623 Lampertheim-Hüttenfeld",null,"W_Herren 3. Kreisklasse472494101341023"]
["Jungen 15 I","Auswärtsspiel","Sa","2025-01-25","13:30:00","15:30:00","Jungen 15 KL","TSV Ellenbach I",null,null,"dawa","wagnerdaniela@hotmail.com","12:30:00","TSV-Halle Ellenbach, Schlierbacher Straße 43, 64658 Fürth-Ellenbach / 22,1km / 32min",null,"W_Jungen 15 Kreisliga112384101141023"]
["Jungen 19 I","Heimspiel","So","2025-01-26","10:00:00","12:00:00","Jungen 19 1. KK","TSV Ellenbach I",null,null,"pako","patricia@sg-huettenfeld.de","09:30:00","Bürgerhaus Hüttenfeld, Alfred-Delp-Straße 50, 68623 Lampertheim-Hüttenfeld",null,"W_Jungen 19 1. Kreisklasse112294101141023"]
["Herren I","Heimspiel","So","2025-01-26","14:30:00","16:30:00","Herren BK Gr. 1","TSV Hambach I",null,null,null,null,"14:00:00","Bürgerhaus Hüttenfeld, Alfred-Delp-Straße 50, 68623 Lampertheim-Hüttenfeld",null,"W_Herren Bezirksklasse112514101841023"]
["Herren V","Auswärtsspiel","Di","2025-01-28","19:30:00","21:30:00","Herren 3. KK W 1","SKG Zell I",null,null,null,null,"18:40:00","Dorfgemeinschaftshaus Zell, Gronauer Straße 98-100, 64625 Bensheim-Zell / 13,6km / 22min",null,"W_Herren 3. Kreisklasse152534102341051"]
["Damen I","Auswärtsspiel","Di","2025-01-28","20:00:00","22:00:00","Damen BK Gr.1","SV RW Walldorf I",null,null,null,null,"18:50:00","Stadthalle Walldorf, Waldstraße 100, 64546 Mörfelden/Walldorf / 63,2km / 43min",null,"W_Damen Bezirksklasse112304102344028"]
["Jungen 15 I","Heimspiel","Fr","2025-01-31","18:15:00","20:15:00","Jungen 15 KL","TTC Heppenheim I",null,null,"kasc,casc","katja@sg-huettenfeld.de,carla@sg-huettenfeld.de","17:45:00","Bürgerhaus Hüttenfeld, Alfred-Delp-Straße 50, 68623 Lampertheim-Hüttenfeld",null,"W_Jungen 15 Kreisliga112424102341053"]
["Herren II","Heimspiel","Fr","2025-01-31","20:15:00","22:15:00","Herren KL W","TV Bürstadt V",null,null,null,null,"19:45:00","Bürgerhaus Hüttenfeld, Alfred-Delp-Straße 50, 68623 Lampertheim-Hüttenfeld",null,"W_Herren Kreisliga252444100941023"]
["Herren IV","Heimspiel","Fr","2025-01-31","20:15:00","22:15:00","Herren 3. KK W 2","TSV Hambach IV",null,null,null,null,"19:45:00","Bürgerhaus Hüttenfeld, Alfred-Delp-Straße 50, 68623 Lampertheim-Hüttenfeld",null,"W_Herren 3. Kreisklasse442534101841023"]
["Damen I","Heimspiel","So","2025-02-02","10:00:00","12:00:00","Damen BK Gr.1","SV Mörlenbach I",null,null,null,null,"09:10:00","Bürgerhaus Hüttenfeld, Alfred-Delp-Straße 50, 68623 Lampertheim-Hüttenfeld",null,"W_Damen Bezirksklasse112334102341033"]
["Jungen 13 I","Heimspiel","So","2025-02-02","10:00:00","12:00:00","Jungen 13 2.KK","SV Fürth  I",null,null,"divo","dirk@sg-huettenfeld.de","09:30:00","Bürgerhaus Hüttenfeld, Alfred-Delp-Straße 50, 68623 Lampertheim-Hüttenfeld",null,"W_Jungen 13 2.Kreisklasse112334101441023"]
["Herren V","Auswärtsspiel","Mi","2025-02-05","20:00:00","22:00:00","Herren 3. KK W 1","TTC Lampertheim XI",null,null,null,null,"19:20:00","Sedanhalle, Sedanstraße 7, 68623 Lampertheim / 9,5km / 12min",null,"W_Herren 3. Kreisklasse1152584102341027"]
["Herren IV","Auswärtsspiel","Do","2025-02-06","20:00:00","22:00:00","Herren 3. KK W 2","TV Ober-Laudenbach II",null,null,null,null,"19:10:00","Turnhalle Oberlaudenbach, Oberlaudenbacher Str., 64646 Heppenheim / 9,8km / 15min",null,"W_Herren 3. Kreisklasse242544102341037"]
["Herren I","Auswärtsspiel","Fr","2025-02-07","20:30:00","22:30:00","Herren BK Gr. 1","TV Bürstadt IV",null,null,null,null,"19:40:00","Neue Jahnturnhalle, Wasserwerkstr. 4, 68642 Bürstadt / 20,3km / 24min",null,"W_Herren Bezirksklasse412574100941023"]
["Jungen 13 I","Auswärtsspiel","Sa","2025-02-08","14:00:00","16:00:00","Jungen 13 2.KK","TTC Groß Rohrheim III",null,null,"thja","thomas@sg-huettenfeld.de","13:00:00","Bürgerhalle / Bürgerhallenanbau, Jahnstraße, 68649 Groß-Rohrheim / 21,1km / 26min",null,"W_Jungen 13 2.Kreisklasse312234101741023"]
["Jungen 19 I","Heimspiel","So","2025-02-09","10:00:00","12:00:00","Jungen 19 1. KK","TSV Auerbach I",null,null,"maw2","markus.wetzel@sg-huettenfeld.de","09:30:00","Bürgerhaus Hüttenfeld, Alfred-Delp-Straße 50, 68623 Lampertheim-Hüttenfeld",null,"W_Jungen 19 1. Kreisklasse112344100141023"]
["Jungen 13 I","Heimspiel","So","2025-02-09","10:00:00","12:00:00","Jungen 13 2.KK","TSV Weiher I",null,null,"joda","johannes@sg-huettenfeld.de","09:30:00","Bürgerhaus Hüttenfeld, Alfred-Delp-Straße 50, 68623 Lampertheim-Hüttenfeld",null,"W_Jungen 13 2.Kreisklasse112244102341050"]
["Herren II","Auswärtsspiel","Mo","2025-02-10","20:00:00","22:00:00","Herren KL W","TTC Lampertheim VI",null,null,null,null,"19:20:00","Sedanhalle, Sedanstraße 7, 68623 Lampertheim / 9,5km / 12min",null,"W_Herren Kreisliga622484102341027"]
["Jungen 15 I","Auswärtsspiel","Mi","2025-02-12","17:30:00","19:30:00","Jungen 15 KL","TSK Rimbach I",null,null,"kasc","katja@sg-huettenfeld.de","16:30:00","Odenwaldhalle, Kleiststraße 11, 64668 Rimbach / 18,8km / 25min",null,"W_Jungen 15 Kreisliga112484102341040"]
["Herren V","Heimspiel","Mi","2025-02-12","19:30:00","21:30:00","Herren 3. KK W 1","TSV Auerbach VII",null,null,null,null,"19:00:00","Bürgerhaus Hüttenfeld, Alfred-Delp-Straße 50, 68623 Lampertheim-Hüttenfeld",null,"W_Herren 3. Kreisklasse572604100141023"]
["Damen I","Heimspiel","Do","2025-02-13","20:00:00","22:00:00","Damen BK Gr.1","TTC Kelsterbach I",null,null,null,null,"19:10:00","Bürgerhaus Hüttenfeld, Alfred-Delp-Straße 50, 68623 Lampertheim-Hüttenfeld",null,"W_Damen Bezirksklasse112384102344013"]
["Herren III","Heimspiel","Fr","2025-02-14","20:15:00","22:15:00","Herren 3. KK W 1","TTC Heppenheim VII",null,null,null,null,"19:45:00","Bürgerhaus Hüttenfeld, Alfred-Delp-Straße 50, 68623 Lampertheim-Hüttenfeld",null,"W_Herren 3. Kreisklasse372634102341053"]
["Herren V","Auswärtsspiel","So","2025-02-16","13:00:00","15:00:00","Herren 3. KK W 1","TTC Heppenheim VII",null,null,null,null,"12:20:00","Turnhalle Konrad-Adenauer-Schule, Mainzer Str.8 / Zufahrt über Weinheimer Straße, 64646 Heppenheim / 6,7km / 9min",null,"W_Herren 3. Kreisklasse752644102341053"]
["Herren III","Auswärtsspiel","Fr","2025-02-21","20:00:00","22:00:00","Herren 3. KK W 1","SKG Zell I",null,null,null,null,"19:10:00","Dorfgemeinschaftshaus Zell, Gronauer Straße 98-100, 64625 Bensheim-Zell / 13,6km / 22min",null,"W_Herren 3. Kreisklasse132654102341051"]
["Jungen 19 I","Auswärtsspiel","Mo","2025-02-24","18:15:00","20:15:00","Jungen 19 1. KK","TSV Hambach I",null,null,"kieh","ehretkirsten@gmail.com","17:25:00","Schlossberghalle, Im Schalbert 2, 64646 HP-Hambach / 9,7km / 16min",null,"W_Jungen 19 1. Kreisklasse112394101841023"]
["Damen I","Auswärtsspiel","Mo","2025-02-24","19:30:00","21:30:00","Damen BK Gr.1","TTC Ginsheim II",null,null,null,null,"18:20:00","IGS Mainspitze Halle B, Sophie-und-Hans-Scholl-Strasse, 65462 Ginsheim-Gustavsburg / 65km / 44min",null,"W_Damen Bezirksklasse212414102344010"]
["Herren II","Auswärtsspiel","Mo","2025-02-24","20:15:00","22:15:00","Herren KL W","TSV Auerbach II",null,null,null,null,"19:25:00","GGEW Sportzentrum Geb. B, Saarstrasse 56, 64625 Bensheim-Auerbach / 14,9km / 17min",null,"W_Herren Kreisliga222544100141023"]
["Herren V","Heimspiel","Mi","2025-02-26","19:30:00","21:30:00","Herren 3. KK W 1","TV Ober-Laudenbach III",null,null,null,null,"19:00:00","Bürgerhaus Hüttenfeld, Alfred-Delp-Straße 50, 68623 Lampertheim-Hüttenfeld",null,"W_Herren 3. Kreisklasse532684102341037"]
["Herren IV","Auswärtsspiel","Do","2025-02-27","20:15:00","22:15:00","Herren 3. KK W 2","SG Gronau IV",null,null,null,null,"19:25:00","Dorfgemeinschaftshaus Gronau, Märkerwaldstr. 81a, 64625 Bensheim-Gronau / 16km / 24min",null,"W_Herren 3. Kreisklasse442624101641023"]
["Jungen 13 I","Auswärtsspiel","Fr","2025-02-28","18:15:00","20:15:00","Jungen 13 2.KK","SG Wald-Michelbach II",null,null,"miw2","michaelwegner1107@gmail.com","17:05:00","Turnhalle Überwald-Gymnasium, Forsthausstr. 20, 69483 Wald-Michelbach / 27km / 36min",null,"W_Jungen 13 2.Kreisklasse212294102341048"]
["Herren III","Heimspiel","Fr","2025-02-28","20:15:00","22:15:00","Herren 3. KK W 1","TSV Auerbach VII",null,null,null,null,"19:45:00","Bürgerhaus Hüttenfeld, Alfred-Delp-Straße 50, 68623 Lampertheim-Hüttenfeld",null,"W_Herren 3. Kreisklasse372694100141023"]
["Herren I","Auswärtsspiel","Sa","2025-03-01","18:00:00","20:00:00","Herren BK Gr. 1","TSV Ellenbach II",null,null,null,null,"17:00:00","TSV-Halle Ellenbach, Schlierbacher Straße 43, 64658 Fürth-Ellenbach / 22,1km / 32min",null,"W_Herren Bezirksklasse212664101141023"]
["Jungen 19 I","Heimspiel","So","2025-03-02","10:00:00","12:00:00","Jungen 19 1. KK","SKG Ober-Mumbach II",null,null,"kasc","katja@sg-huettenfeld.de","09:30:00","Bürgerhaus Hüttenfeld, Alfred-Delp-Straße 50, 68623 Lampertheim-Hüttenfeld",null,"W_Jungen 19 1. Kreisklasse122444102341038"]
["Damen I","Auswärtsspiel","Mi","2025-03-05","20:00:00","22:00:00","Damen BK Gr.1","SG Seidenbuch II",null,null,null,null,"19:00:00","Sporthaus am Sportplatz, Glashüttenweg 11, 64678 Lindenfels-Seidenbuch / 21,2km / 33min",null,"W_Damen Bezirksklasse212444102341043"]
["Herren II","Auswärtsspiel","Do","2025-03-06","20:15:00","22:15:00","Herren KL W","SG Nordheim-Wattenheim I",null,null,null,null,"19:15:00","Sporthalle Wattenheim, Schulstr. 30, 68647 Biblis-Wattenheim / 23,1km / 25min",null,"W_Herren Kreisliga122594102341060"]
["Jungen 15 I","Heimspiel","Fr","2025-03-07","18:15:00","20:15:00","Jungen 15 KL","TV Bürstadt I",null,null,"jori,hemö,yyyy","jonas@sg-huettenfeld.de,heiko@sg-huettenfeld.de,erinnerungsdienst@sg-huettenfeld.de","17:45:00","Bürgerhaus Hüttenfeld, Alfred-Delp-Straße 50, 68623 Lampertheim-Hüttenfeld",null,"W_Jungen 15 Kreisliga112604100941023"]
["Herren IV","Heimspiel","Fr","2025-03-07","20:15:00","22:15:00","Herren 3. KK W 2","TTC Lorsch II",null,null,null,null,"19:45:00","Bürgerhaus Hüttenfeld, Alfred-Delp-Straße 50, 68623 Lampertheim-Hüttenfeld",null,"W_Herren 3. Kreisklasse422714102341057"]
["Herren I","Heimspiel","Sa","2025-03-08","16:45:00","18:45:00","Herren BK Gr. 1","TTC Lampertheim V",null,null,null,null,"16:15:00","Bürgerhaus Hüttenfeld, Alfred-Delp-Straße 50, 68623 Lampertheim-Hüttenfeld",null,"W_Herren Bezirksklasse152714102341027"]
["Herren II","Auswärtsspiel","Di","2025-03-11","20:00:00","22:00:00","Herren KL W","SG Gronau II",null,null,null,null,"19:10:00","Dorfgemeinschaftshaus Gronau, Märkerwaldstr. 81a, 64625 Bensheim-Gronau / 16km / 24min",null,"W_Herren Kreisliga222604101641023"]
["Jungen 13 I","Auswärtsspiel","Fr","2025-03-14","17:45:00","19:45:00","Jungen 13 2.KK","TSK Rimbach II",null,null,"xxxx","erinnerungsdienst@sg-huettenfeld.de","16:45:00","Odenwaldhalle, Kleiststraße 11, 64668 Rimbach / 18,8km / 25min","Wird noch verlegt","W_Jungen 13 2.Kreisklasse212394102341040"]
["Jungen 15 I","Heimspiel","Fr","2025-03-14","18:15:00","20:15:00","Jungen 15 KL","TSV Auerbach I",null,null,"jori,hemö,yyyy","jonas@sg-huettenfeld.de,heiko@sg-huettenfeld.de,erinnerungsdienst@sg-huettenfeld.de","17:45:00","Bürgerhaus Hüttenfeld, Alfred-Delp-Straße 50, 68623 Lampertheim-Hüttenfeld",null,"W_Jungen 15 Kreisliga112544100141023"]
["Herren III","Heimspiel","Fr","2025-03-14","20:15:00","22:15:00","Herren 3. KK W 1","TV Ober-Laudenbach III",null,null,null,null,"19:45:00","Bürgerhaus Hüttenfeld, Alfred-Delp-Straße 50, 68623 Lampertheim-Hüttenfeld",null,"W_Herren 3. Kreisklasse332764102341037"]
["Herren IV","Auswärtsspiel","Fr","2025-03-14","20:15:00","22:15:00","Herren 3. KK W 2","BSC Einhausen II",null,null,null,null,"19:25:00","Sporthalle Einhausen, Sepp-Herberger-Straße, 64683 Einhausen / 12,3km / 16min",null,"W_Herren 3. Kreisklasse242774101041023"]
["Herren I","Heimspiel","Sa","2025-03-15","16:45:00","18:45:00","Herren BK Gr. 1","TV Bürstadt II",null,null,null,null,"16:15:00","Bürgerhaus Hüttenfeld, Alfred-Delp-Straße 50, 68623 Lampertheim-Hüttenfeld",null,"W_Herren Bezirksklasse122754100941023"]
["Herren III","Auswärtsspiel","Mi","2025-03-19","19:30:00","21:30:00","Herren 3. KK W 1","TTC Lorsch III",null,null,null,null,"18:50:00","Sporthalle Wingertsbergschule, Bahnhofstraße 17 a, 64653 Lorsch / 7,7km / 12min",null,"W_Herren 3. Kreisklasse332794102341057"]
["Herren I","Auswärtsspiel","Fr","2025-03-21","20:00:00","22:00:00","Herren BK Gr. 1","VfR Fehlheim V",null,null,null,null,"19:10:00","Turnhalle der Carl-Orff-Schule, Im Ebertswinkel, 64625 Bensheim-Fehlheim / 19,8km / 18min",null,"W_Herren Bezirksklasse512774101341023"]
["Herren II","Heimspiel","Fr","2025-03-21","20:15:00","22:15:00","Herren KL W","VfL Bensheim I",null,null,null,null,"19:45:00","Bürgerhaus Hüttenfeld, Alfred-Delp-Straße 50, 68623 Lampertheim-Hüttenfeld",null,"W_Herren Kreisliga212644100441023"]
["Herren IV","Heimspiel","Fr","2025-03-21","20:15:00","22:15:00","Herren 3. KK W 2","TSV Auerbach VI",null,null,null,null,"19:45:00","Bürgerhaus Hüttenfeld, Alfred-Delp-Straße 50, 68623 Lampertheim-Hüttenfeld",null,"W_Herren 3. Kreisklasse462804100141023"]
["Jungen 15 I","Auswärtsspiel","Sa","2025-03-22","10:00:00","12:00:00","Jungen 15 KL","TTC Heppenheim I",null,null,"ange","anke.gerhardt@gmx.net ","09:20:00","Turnhalle Konrad-Adenauer-Schule, Mainzer Str.8 / Zufahrt über Weinheimer Straße, 64646 Heppenheim / 6,7km / 9min",null,"W_Jungen 15 Kreisliga112654102341053"]
["Jungen 19 I","Auswärtsspiel","Sa","2025-03-22","14:00:00","16:00:00","Jungen 19 1. KK","TSV Reichenbach I",null,null,"bicz","Tb-czermak@web.de","13:00:00","TSV-Turnhalle, Brandauer-Klinger-Weg, 64686 Lautertal-Reichenbach / 23,3km / 28min",null,"W_Jungen 19 1. Kreisklasse112494102341039"]
["Jungen 13 I","Heimspiel","So","2025-03-23","10:00:00","12:00:00","Jungen 13 2.KK","TSV Auerbach II",null,null,"mas1,besc","mattihuettenfeld@gmail.com,carla@sg-huettenfeld.de","09:30:00","Bürgerhaus Hüttenfeld, Alfred-Delp-Straße 50, 68623 Lampertheim-Hüttenfeld",null,"W_Jungen 13 2.Kreisklasse122384100141023"]
["Herren V","Auswärtsspiel","Mo","2025-03-24","20:15:00","22:15:00","Herren 3. KK W 1","TSV Hambach III",null,null,null,null,"19:25:00","Schlossberghalle, Im Schalbert 2, 64646 HP-Hambach / 9,7km / 16min",null,"W_Herren 3. Kreisklasse352814101841023"]
["Damen I","Heimspiel","Do","2025-03-27","20:00:00","22:00:00","Damen BK Gr.1","BSC Einhausen I",null,null,null,null,"19:10:00","Bürgerhaus Hüttenfeld, Alfred-Delp-Straße 50, 68623 Lampertheim-Hüttenfeld",null,"W_Damen Bezirksklasse112494101041023"]
["Herren IV","Auswärtsspiel","Fr","2025-03-28","19:30:00","21:30:00","Herren 3. KK W 2","SSG Bensheim IV",null,null,null,null,"18:50:00","Karl Kübel Schule, Berliner Ring 34-38, 64625 Bensheim / 14,2km / 11min",null,"W_Herren 3. Kreisklasse442834100241023"]
["Herren II","Auswärtsspiel","Fr","2025-03-28","20:00:00","22:00:00","Herren KL W","SV Kirschhausen II",null,null,null,null,"19:10:00","Turnhalle Eichendorff Schule, Schulstr. 26, 64646 Kirschhausen / 12km / 19min",null,"W_Herren Kreisliga222684102341024"]
["Herren III","Heimspiel","Fr","2025-03-28","20:15:00","22:15:00","Herren 3. KK W 1","SG Gronau V",null,null,null,null,"19:45:00","Bürgerhaus Hüttenfeld, Alfred-Delp-Straße 50, 68623 Lampertheim-Hüttenfeld",null,"W_Herren 3. Kreisklasse352854101641023"]
["Herren I","Heimspiel","Sa","2025-03-29","14:30:00","16:30:00","Herren BK Gr. 1","SG Mitlechtern I",null,null,null,null,"14:00:00","Bürgerhaus Hüttenfeld, Alfred-Delp-Straße 50, 68623 Lampertheim-Hüttenfeld",null,"W_Herren Bezirksklasse112854102341056"]
["Herren V","Auswärtsspiel","Mi","2025-04-02","19:30:00","21:30:00","Herren 3. KK W 1","TTC Lorsch III",null,null,null,null,"18:50:00","Sporthalle Wingertsbergschule, Bahnhofstraße 17 a, 64653 Lorsch / 7,7km / 12min",null,"W_Herren 3. Kreisklasse352864102341057"]
["Herren I","Auswärtsspiel","Mi","2025-04-02","20:00:00","22:00:00","Herren BK Gr. 1","TTC Lampertheim III",null,null,null,null,"19:20:00","Sedanhalle, Sedanstraße 7, 68623 Lampertheim / 9,5km / 12min",null,"W_Herren Bezirksklasse312864102341027"]
["Herren III","Auswärtsspiel","Mi","2025-04-02","20:00:00","22:00:00","Herren 3. KK W 1","TTC Lampertheim XI",null,null,null,null,"19:20:00","Sedanhalle, Sedanstraße 7, 68623 Lampertheim / 9,5km / 12min",null,"W_Herren 3. Kreisklasse1132874102341027"]
["Herren II","Heimspiel","Do","2025-04-03","20:15:00","22:15:00","Herren KL W","SSG Bensheim II",null,null,null,null,"19:45:00","Bürgerhaus Hüttenfeld, Alfred-Delp-Straße 50, 68623 Lampertheim-Hüttenfeld",null,"W_Herren Kreisliga222704100241023"]
["Jungen 15 I","Heimspiel","Fr","2025-04-04","18:15:00","20:15:00","Jungen 15 KL","TTC Groß Rohrheim I",null,null,"jori,hemö","jonas@sg-huettenfeld.de,heiko@sg-huettenfeld.de","17:45:00","Bürgerhaus Hüttenfeld, Alfred-Delp-Straße 50, 68623 Lampertheim-Hüttenfeld",null,"W_Jungen 15 Kreisliga112704101741023"]
["Herren IV","Heimspiel","Fr","2025-04-04","20:15:00","22:15:00","Herren 3. KK W 2","TV Bürstadt IX",null,null,null,null,"19:45:00","Bürgerhaus Hüttenfeld, Alfred-Delp-Straße 50, 68623 Lampertheim-Hüttenfeld",null,"W_Herren 3. Kreisklasse492904100941023"]
["Damen I","Auswärtsspiel","Sa","2025-04-05","11:00:00","13:00:00","Damen BK Gr.1","TSK Rimbach II",null,null,null,null,"10:00:00","Odenwaldhalle, Kleiststraße 11, 64668 Rimbach / 18,8km / 25min",null,"W_Damen Bezirksklasse212554102341040"]
["Jungen 19 I","Heimspiel","So","2025-04-06","10:00:00","12:00:00","Jungen 19 1. KK","TSV Lindenfels I",null,null,"vobe","volker@sg-huettenfeld.de","09:30:00","Bürgerhaus Hüttenfeld, Alfred-Delp-Straße 50, 68623 Lampertheim-Hüttenfeld",null,"W_Jungen 19 1. Kreisklasse112564102341029"]

{"sheet":"Training","index":2,"n_rows":108,"n_cols":27,"rows_kept":108,"cut":false,"hidden":false,"merged":[[0,10,0,11],[0,7,0,8],[0,14,8,16],[3,7,3,8]]}
[null,null,null,null,null,null,null,"Trainings generieren",null,null,null,null,null,null,"Wichtiger Hinweis:\nDie in Spalte R (18) definierten Trainingsgruppen müssen exakt übereinstimmen mit den Trainingsgruppen in Sheet \"Spieler\", wenn die Trainingstermine in den personalisierten Terminlisten der Spieler erscheinen sollen!",null,null,"Gruppe","Veranstaltung","Wochentag","T. im Monat_1","T. im Monat_2","T. im Monat_3","T. im Monat_4","T. im Monat_5","von","bis"]
[null,null,null,null,null,null,null,"von","bis",null,null,null,null,null,null,null,null,"Nachwuchs","Training","Di","chlu,jori","chlu,jori","chlu,jori","chlu,jori","chlu,jori","17:30:00","19:15:00"]
[null,null,null,null,null,null,null,"2024-05-20","2025-06-01",null,null,null,null,null,null,null,null,"Nachwuchs","Training","Fr","jori,hemö,pihö","jori,hemö,pihö","jori,hemö,pihö","jori,hemö,pihö","jori,hemö,pihö","18:00:00","19:30:00"]
[null,null,null,null,null,null,null,"Sperrtermine",null,null,null,null,".",null,null,null,null,"Erwachsene","Training","Mi",null,"x","x","x","x","18:30:00","22:00:00"]
[null,null,null,null,null,null,null,"von","bis",null,null,null,null,null,null,null,null,"Erwachsene","Training","Mi","x",null,null,null,null,"18:30:00","20:00:00"]
[null,null,null,null,null,null,null,null,null,null,null,null,null,null,null,null,null,"Erwachsene","Training","Do","x","x",null,"x","x","19:30:00","22:00:00"]
[null,null,null,null,null,null,null,null,null,null,null,null,null,null,null,null,null,"Erwachsene","Training","Fr","x","X","x","x","x","19:30:00","22:00:00"]
[null,null,null,null,null,null,null,null,null,null,null,null,null,null,null,null,null,"Badminton","Badminton-Training","Mi","x",null,null,null,null,"20:00:00","22:00:00"]
[null,null,null,null,null,null,null,null,null,null,null,null,null,null,null,null,null,"Badminton","Badminton-Training","Do",null,null,"x",null,null,"20:00:00","23:00:00"]
[null,null,null,null,null,null,null,null,null,null,null,null,null,null,null,null,null,"TT-AG","Training","Di","chlu","chlu","chlu","chlu","chlu","16:30:00","17:30:00"]
["Betrifft","Veranstaltung","Tag","Datum","Beginn","Ende","Wettbewerb","Gegner","Es spielt","Es fehlt","Betreuer/Fahrer","eMail_Fahrer","Treffen","Halle/Ort/Fahrzeit","Bemerkung","Eventcode"]
["TT-AG","Training","Di","2025-02-04","16:30:00","17:30:00",null,null,null,null,"chlu","luft.christopher@gmx.de","16:30:00","Bürgerhaus, Hüttenfeld",null,"T_B36AC7747E72","015735222603"]
["Nachwuchs","Training","Di","2025-02-04","17:30:00","19:15:00",null,null,null,null,"chlu,jori,lehe","luft.christopher@gmx.de,jonas@sg-huettenfeld.de,leonherd@gmx.de","17:30:00","Bürgerhaus, Hüttenfeld",null,"T_F8B540FBC9A0","015735222603, 01717057707, 01728903319"]
["Erwachsene","Training","Mi","2025-02-05","18:30:00","20:00:00",null,null,null,null,null,null,"18:30:00","Bürgerhaus, Hüttenfeld",null,"T_A82DB76D2FCA"]
["Badminton","Badminton-Training","Mi","2025-02-05","20:00:00","22:00:00",null,null,null,null,null,null,"20:00:00","Bürgerhaus, Hüttenfeld",null,"T_977156CF0F2A"]
["Erwachsene","Training","Do","2025-02-06","19:30:00","22:00:00",null,null,null,null,null,null,"19:30:00","Bürgerhaus, Hüttenfeld",null,"T_B4068FF0936F"]
["Nachwuchs","Training","Fr","2025-02-07","18:00:00","19:30:00",null,null,null,null,"jori,hemö,pihö,erku","jonas@sg-huettenfeld.de,heiko@sg-huettenfeld.de,pia@sg-huettenfeld.de,k_uzu@hotmail.de","18:00:00","Bürgerhaus, Hüttenfeld",null,"T_30680D5D27DE","01717057707, 017663884425, 015201585090, 017671958302"]
["Erwachsene","Training","Fr","2025-02-07","19:30:00","22:00:00",null,null,null,null,null,null,"19:30:00","Bürgerhaus, Hüttenfeld",null,"T_3EF022C6962A"]
["TT-AG","Training","Di","2025-02-11","16:30:00","17:30:00",null,null,null,null,"chlu","luft.christopher@gmx.de","16:30:00","Bürgerhaus, Hüttenfeld",null,"T_61C83DDE894A","015735222603"]
["Nachwuchs","Training","Di","2025-02-11","17:30:00","19:15:00",null,null,null,null,"chlu,jori,lehe","luft.christopher@gmx.de,jonas@sg-huettenfeld.de,leonherd@gmx.de","17:30:00","Bürgerhaus, Hüttenfeld",null,"T_907550C69702","015735222603, 01717057707, 01728903319"]
["Erwachsene","Training","Mi","2025-02-12","18:30:00","22:00:00",null,null,null,null,null,null,"18:30:00","Bürgerhaus, Hüttenfeld",null,"T_73EEFA2A6E4B"]
["Erwachsene","Training","Do","2025-02-13","19:30:00","22:00:00",null,null,null,null,null,null,"19:30:00","Bürgerhaus, Hüttenfeld",null,"T_D62A893F6FEE"]
["Nachwuchs","Training","Fr","2025-02-14","18:00:00","19:30:00",null,null,null,null,"jori,hemö,pihö,erku","jonas@sg-huettenfeld.de,heiko@sg-huettenfeld.de,pia@sg-huettenfeld.de,k_uzu@hotmail.de","18:00:00","Bürgerhaus, Hüttenfeld",null,"T_258FCA7768AD","01717057707, 017663884425, 015201585090, 017671958302"]
["Erwachsene","Training","Fr","2025-02-14","19:30:00","22:00:00",null,null,null,null,null,null,"19:30:00","Bürgerhaus, Hüttenfeld",null,"T_81467F7D38C6"]
["TT-AG","Training","Di","2025-02-18","16:30:00","17:30:00",null,null,null,null,"chlu","luft.christopher@gmx.de","16:30:00","Bürgerhaus, Hüttenfeld",null,"T_2E5E7B7C6C14","015735222603"]
["Nachwuchs","Training","Di","2025-02-18","17:30:00","19:15:00",null,null,null,null,"chlu,jori,lehe","luft.christopher@gmx.de,jonas@sg-huettenfeld.de,leonherd@gmx.de","17:30:00","Bürgerhaus, Hüttenfeld",null,"T_46FAE44B844E","015735222603, 01717057707, 01728903319"]
["Erwachsene","Training","Mi","2025-02-19","18:30:00","22:00:00",null,null,null,null,null,null,"18:30:00","Bürgerhaus, Hüttenfeld",null,"T_68077FAD4EC2"]
["TT-AG","Training","Di","2025-02-25","16:30:00","17:30:00",null,null,null,null,"chlu","luft.christopher@gmx.de","16:30:00","Bürgerhaus, Hüttenfeld",null,"T_F56E962D6646","015735222603"]
["Nachwuchs","Training","Di","2025-02-25","17:30:00","19:15:00",null,null,null,null,"chlu,jori,lehe","luft.christopher@gmx.de,jonas@sg-huettenfeld.de,leonherd@gmx.de","17:30:00","Bürgerhaus, Hüttenfeld",null,"T_9266CE6E745C","015735222603, 01717057707, 01728903319"]
["Erwachsene","Training","Mi","2025-02-26","18:30:00","22:00:00",null,null,null,null,null,null,"18:30:00","Bürgerhaus, Hüttenfeld",null,"T_DE7278843D77"]
["Erwachsene","Training","Do","2025-02-27","19:30:00","22:00:00",null,null,null,null,null,null,"19:30:00","Bürgerhaus, Hüttenfeld",null,"T_44FF251376B6"]
["Nachwuchs","Training","Fr","2025-02-28","18:00:00","19:30:00",null,null,null,null,"jori,hemö,pihö,erku","jonas@sg-huettenfeld.de,heiko@sg-huettenfeld.de,pia@sg-huettenfeld.de,k_uzu@hotmail.de","18:00:00","Bürgerhaus, Hüttenfeld",null,"T_174FF97519EF","01717057707, 017663884425, 015201585090, 017671958302"]
["Erwachsene","Training","Fr","2025-02-28","19:30:00","22:00:00",null,null,null,null,null,null,"19:30:00","Bürgerhaus, Hüttenfeld",null,"T_AB9776EACA41"]
["TT-AG","Training","Di","2025-03-04","16:30:00","17:30:00",null,null,null,null,"chlu","luft.christopher@gmx.de","16:30:00","Bürgerhaus, Hüttenfeld",null,"T_1D417005C8B0","015735222603"]
["Nachwuchs","Training","Di","2025-03-04","17:30:00","19:15:00",null,null,null,null,"chlu,jori,lehe","luft.christopher@gmx.de,jonas@sg-huettenfeld.de,leonherd@gmx.de","17:30:00","Bürgerhaus, Hüttenfeld",null,"T_265B8D6446D1","015735222603, 01717057707, 01728903319"]
["Erwachsene","Training","Mi","2025-03-05","18:30:00","20:00:00",null,null,null,null,null,null,"18:30:00","Bürgerhaus, Hüttenfeld",null,"T_B134090325F9"]
["Badminton","Badminton-Training","Mi","2025-03-05","20:00:00","22:00:00",null,null,null,null,null,null,"20:00:00","Bürgerhaus, Hüttenfeld",null,"T_E90227E54895"]
["Erwachsene","Training","Do","2025-03-06","19:30:00","22:00:00",null,null,null,null,null,null,"19:30:00","Bürgerhaus, Hüttenfeld",null,"T_E4E58132F42A"]
["Nachwuchs","Training","Fr","2025-03-07","18:00:00","19:30:00",null,null,null,null,"jori,hemö,pihö,erku","jonas@sg-huettenfeld.de,heiko@sg-huettenfeld.de,pia@sg-huettenfeld.de,k_uzu@hotmail.de","18:00:00","Bürgerhaus, Hüttenfeld",null,"T_20A63E725E5E","01717057707, 017663884425, 015201585090, 017671958302"]
["Erwachsene","Training","Fr","2025-03-07","19:30:00","22:00:00",null,null,null,null,null,null,"19:30:00","Bürgerhaus, Hüttenfeld",null,"T_B7F9BADE6ECB"]
["TT-AG","Training","Di","2025-03-11","16:30:00","17:30:00",null,null,null,null,"chlu","luft.christopher@gmx.de","16:30:00","Bürgerhaus, Hüttenfeld",null,"T_E01AF328B02A","015735222603"]
["Nachwuchs","Training","Di","2025-03-11","17:30:00","19:15:00",null,null,null,null,"chlu,jori,lehe","luft.christopher@gmx.de,jonas@sg-huettenfeld.de,leonherd@gmx.de","17:30:00","Bürgerhaus, Hüttenfeld",null,"T_31C51A8AAD21","015735222603, 01717057707, 01728903319"]
["Erwachsene","Training","Mi","2025-03-12","18:30:00","22:00:00",null,null,null,null,null,null,"18:30:00","Bürgerhaus, Hüttenfeld",null,"T_1ADAA432DD2A"]
["Erwachsene","Training","Do","2025-03-13","19:30:00","22:00:00",null,null,null,null,null,null,"19:30:00","Bürgerhaus, Hüttenfeld",null,"T_C333D5031D2A"]
["Nachwuchs","Training","Fr","2025-03-14","18:00:00","19:30:00",null,null,null,null,"jori,hemö,pihö,erku","jonas@sg-huettenfeld.de,heiko@sg-huettenfeld.de,pia@sg-huettenfeld.de,k_uzu@hotmail.de","18:00:00","Bürgerhaus, Hüttenfeld",null,"T_97A8BF730540","01717057707, 017663884425, 015201585090, 017671958302"]
["Erwachsene","Training","Fr","2025-03-14","19:30:00","22:00:00",null,null,null,null,null,null,"19:30:00","Bürgerhaus, Hüttenfeld",null,"T_C72DA0343886"]
["TT-AG","Training","Di","2025-03-18","16:30:00","17:30:00",null,null,null,null,"chlu","luft.christopher@gmx.de","16:30:00","Bürgerhaus, Hüttenfeld",null,"T_E0CCAAAB2FA6","015735222603"]
["Nachwuchs","Training","Di","2025-03-18","17:30:00","19:15:00",null,null,null,null,"chlu,jori,lehe","luft.christopher@gmx.de,jonas@sg-huettenfeld.de,leonherd@gmx.de","17:30:00","Bürgerhaus, Hüttenfeld",null,"T_F118B6AA0BCA","015735222603, 01717057707, 01728903319"]
["Erwachsene","Training","Mi","2025-03-19","18:30:00","22:00:00",null,null,null,null,null,null,"18:30:00","Bürgerhaus, Hüttenfeld",null,"T_E8B737484260"]
["Badminton","Badminton-Training","Do","2025-03-20","20:00:00","23:00:00",null,null,null,null,null,null,"20:00:00","Bürgerhaus, Hüttenfeld",null,"T_DD9254F53740"]
["Nachwuchs","Training","Fr","2025-03-21","18:00:00","19:30:00",null,null,null,null,"jori,hemö,pihö,erku","jonas@sg-huettenfeld.de,heiko@sg-huettenfeld.de,pia@sg-huettenfeld.de,k_uzu@hotmail.de","18:00:00","Bürgerhaus, Hüttenfeld",null,"T_E0BFF96ED882","01717057707, 017663884425, 015201585090, 017671958302"]
["Erwachsene","Training","Fr","2025-03-21","19:30:00","22:00:00",null,null,null,null,null,null,"19:30:00","Bürgerhaus, Hüttenfeld",null,"T_94935BD0A0E3"]
["TT-AG","Training","Di","2025-03-25","16:30:00","17:30:00",null,null,null,null,"chlu","luft.christopher@gmx.de","16:30:00","Bürgerhaus, Hüttenfeld",null,"T_6D7655FE8C39","015735222603"]
["Nachwuchs","Training","Di","2025-03-25","17:30:00","19:15:00",null,null,null,null,"chlu,jori,lehe","luft.christopher@gmx.de,jonas@sg-huettenfeld.de,leonherd@gmx.de","17:30:00","Bürgerhaus, Hüttenfeld",null,"T_E113E338640D","015735222603, 01717057707, 01728903319"]
["Erwachsene","Training","Mi","2025-03-26","18:30:00","22:00:00",null,null,null,null,null,null,"18:30:00","Bürgerhaus, Hüttenfeld",null,"T_942FE3E9D089"]
["Erwachsene","Training","Do","2025-03-27","19:30:00","22:00:00",null,null,null,null,null,null,"19:30:00","Bürgerhaus, Hüttenfeld",null,"T_3F02EC9649F1"]
["Nachwuchs","Training","Fr","2025-03-28","18:00:00","19:30:00",null,null,null,null,"jori,hemö,pihö,erku","jonas@sg-huettenfeld.de,heiko@sg-huettenfeld.de,pia@sg-huettenfeld.de,k_uzu@hotmail.de","18:00:00","Bürgerhaus, Hüttenfeld",null,"T_08697A925709","01717057707, 017663884425, 015201585090, 017671958302"]
["Erwachsene","Training","Fr","2025-03-28","19:30:00","22:00:00",null,null,null,null,null,null,"19:30:00","Bürgerhaus, Hüttenfeld",null,"T_9FCC17FEDB40"]
["TT-AG","Training","Di","2025-04-01","16:30:00","17:30:00",null,null,null,null,"chlu","luft.christopher@gmx.de","16:30:00","Bürgerhaus, Hüttenfeld",null,"T_9509E65F43B5","015735222603"]
["Nachwuchs","Training","Di","2025-04-01","17:30:00","19:15:00",null,null,null,null,"chlu,jori,lehe","luft.christopher@gmx.de,jonas@sg-huettenfeld.de,leonherd@gmx.de","17:30:00","Bürgerhaus, Hüttenfeld",null,"T_0D08EF288206","015735222603, 01717057707, 01728903319"]
["Erwachsene","Training","Mi","2025-04-02","18:30:00","20:00:00",null,null,null,null,null,null,"18:30:00","Bürgerhaus, Hüttenfeld",null,"T_7E782DEFD2FF"]
["Badminton","Badminton-Training","Mi","2025-04-02","20:00:00","22:00:00",null,null,null,null,null,null,"20:00:00","Bürgerhaus, Hüttenfeld",null,"T_CB204FFBE1C8"]
["Erwachsene","Training","Do","2025-04-03","19:30:00","22:00:00",null,null,null,null,null,null,"19:30:00","Bürgerhaus, Hüttenfeld",null,"T_FB4C918C7E95"]
["Nachwuchs","Training","Fr","2025-04-04","18:00:00","19:30:00",null,null,null,null,"jori,hemö,pihö,erku","jonas@sg-huettenfeld.de,heiko@sg-huettenfeld.de,pia@sg-huettenfeld.de,k_uzu@hotmail.de","18:00:00","Bürgerhaus, Hüttenfeld",null,"T_EAEB415DCFA6","01717057707, 017663884425, 015201585090, 017671958302"]
["Erwachsene","Training","Fr","2025-04-04","19:30:00","22:00:00",null,null,null,null,null,null,"19:30:00","Bürgerhaus, Hüttenfeld",null,"T_FAAE386AB8A8"]
["Nachwuchs","Training","Di","2025-04-08","17:30:00","19:15:00",null,null,null,null,"chlu,jori,lehe","luft.christopher@gmx.de,jonas@sg-huettenfeld.de,leonherd@gmx.de","17:30:00","Bürgerhaus, Hüttenfeld","Osterfereien","T_1C42D61BF29E","015735222603, 01717057707, 01728903319"]
["Erwachsene","Training","Mi","2025-04-09","18:30:00","22:00:00",null,null,null,null,null,null,"18:30:00","Bürgerhaus, Hüttenfeld","Osterfereien","T_6989AF19D159"]
["Erwachsene","Training","Do","2025-04-10","19:30:00","22:00:00",null,null,null,null,null,null,"19:30:00","Bürgerhaus, Hüttenfeld","Osterfereien","T_AB8CB670A57C"]
["Nachwuchs","Training","Fr","2025-04-11","18:00:00","19:30:00",null,null,null,null,"jori,hemö,pihö,erku","jonas@sg-huettenfeld.de,heiko@sg-huettenfeld.de,pia@sg-huettenfeld.de,k_uzu@hotmail.de","18:00:00","Bürgerhaus, Hüttenfeld","Osterfereien","T_D2778F4B584A","01717057707, 017663884425, 015201585090, 017671958302"]
["Erwachsene","Training","Fr","2025-04-11","19:30:00","22:00:00",null,null,null,null,null,null,"19:30:00","Bürgerhaus, Hüttenfeld","Osterfereien","T_42F2EC9DC109"]
["Nachwuchs","Training","Di","2025-04-15","17:30:00","19:15:00",null,null,null,null,"chlu,jori,lehe","luft.christopher@gmx.de,jonas@sg-huettenfeld.de,leonherd@gmx.de","17:30:00","Bürgerhaus, Hüttenfeld","Osterfereien","T_1376F9D8A833","015735222603, 01717057707, 01728903319"]
["Erwachsene","Training","Mi","2025-04-16","18:30:00","22:00:00",null,null,null,null,null,null,"18:30:00","Bürgerhaus, Hüttenfeld","Osterfereien","T_C6842FF091E8"]
["Badminton","Badminton-Training","Do","2025-04-17","20:00:00","23:00:00",null,null,null,null,null,null,"20:00:00","Bürgerhaus, Hüttenfeld","Osterfereien","T_555051D8F6AE"]
["TT-AG","Training","Di","2025-04-22","16:30:00","17:30:00",null,null,null,null,"chlu","luft.christopher@gmx.de","16:30:00","Bürgerhaus, Hüttenfeld",null,"T_517A9F6A6F62","015735222603"]
["Nachwuchs","Training","Di","2025-04-22","17:30:00","19:15:00",null,null,null,null,"chlu,jori,lehe","luft.christopher@gmx.de,jonas@sg-huettenfeld.de,leonherd@gmx.de","17:30:00","Bürgerhaus, Hüttenfeld",null,"T_165206A4F74C","015735222603, 01717057707, 01728903319"]
["Erwachsene","Training","Mi","2025-04-23","18:30:00","22:00:00",null,null,null,null,null,null,"18:30:00","Bürgerhaus, Hüttenfeld",null,"T_9B4FB6B61430"]
["Erwachsene","Training","Do","2025-04-24","19:30:00","22:00:00",null,null,null,null,null,null,"19:30:00","Bürgerhaus, Hüttenfeld",null,"T_371C9142FF41"]
["Nachwuchs","Training","Fr","2025-04-25","18:00:00","19:30:00",null,null,null,null,"jori,hemö,pihö,erku","jonas@sg-huettenfeld.de,heiko@sg-huettenfeld.de,pia@sg-huettenfeld.de,k_uzu@hotmail.de","18:00:00","Bürgerhaus, Hüttenfeld",null,"T_01A935196F4C","01717057707, 017663884425, 015201585090, 017671958302"]
["Erwachsene","Training","Fr","2025-04-25","19:30:00","22:00:00",null,null,null,null,null,null,"19:30:00","Bürgerhaus, Hüttenfeld",null,"T_BF4B573E19E7"]
["TT-AG","Training","Di","2025-04-29","16:30:00","17:30:00",null,null,null,null,"chlu","luft.christopher@gmx.de","16:30:00","Bürgerhaus, Hüttenfeld",null,"T_5C6A607785FF","015735222603"]
["Nachwuchs","Training","Di","2025-04-29","17:30:00","19:15:00",null,null,null,null,"chlu,jori,lehe","luft.christopher@gmx.de,jonas@sg-huettenfeld.de,leonherd@gmx.de","17:30:00","Bürgerhaus, Hüttenfeld",null,"T_4C8EB11951C2","015735222603, 01717057707, 01728903319"]
["Erwachsene","Training","Mi","2025-04-30","18:30:00","22:00:00",null,null,null,null,null,null,"18:30:00","Bürgerhaus, Hüttenfeld",null,"T_DDA381BB78D7"]
["Nachwuchs","Training","Fr","2025-05-02","18:00:00","19:30:00",null,null,null,null,"jori,hemö,pihö,erku","jonas@sg-huettenfeld.de,heiko@sg-huettenfeld.de,pia@sg-huettenfeld.de,k_uzu@hotmail.de","18:00:00","Bürgerhaus, Hüttenfeld",null,"T_8F9538E2002D","01717057707, 017663884425, 015201585090, 017671958302"]
["Erwachsene","Training","Fr","2025-05-02","19:30:00","22:00:00",null,null,null,null,null,null,"19:30:00","Bürgerhaus, Hüttenfeld",null,"T_73CAE4380CBB"]
["TT-AG","Training","Di","2025-05-06","16:30:00","17:30:00",null,null,null,null,"chlu","luft.christopher@gmx.de","16:30:00","Bürgerhaus, Hüttenfeld",null,"T_ED20E7DCED5A","015735222603"]
["Nachwuchs","Training","Di","2025-05-06","17:30:00","19:15:00",null,null,null,null,"chlu,jori,lehe","luft.christopher@gmx.de,jonas@sg-huettenfeld.de,leonherd@gmx.de","17:30:00","Bürgerhaus, Hüttenfeld",null,"T_9C86B9087B0B","015735222603, 01717057707, 01728903319"]
["Erwachsene","Training","Mi","2025-05-07","18:30:00","20:00:00",null,null,null,null,null,null,"18:30:00","Bürgerhaus, Hüttenfeld",null,"T_F6EE9006BA03"]
["Badminton","Badminton-Training","Mi","2025-05-07","20:00:00","22:00:00",null,null,null,null,null,null,"20:00:00","Bürgerhaus, Hüttenfeld",null,"T_0E07F34080E6"]
["Erwachsene","Training","Do","2025-05-08","19:30:00","22:00:00",null,null,null,null,null,null,"19:30:00","Bürgerhaus, Hüttenfeld",null,"T_E70C0EB4D3A6"]
["Nachwuchs","Training","Fr","2025-05-09","18:00:00","19:30:00",null,null,null,null,"jori,hemö,pihö,erku","jonas@sg-huettenfeld.de,heiko@sg-huettenfeld.de,pia@sg-huettenfeld.de,k_uzu@hotmail.de","18:00:00","Bürgerhaus, Hüttenfeld",null,"T_89767418832B","01717057707, 017663884425, 015201585090, 017671958302"]
["Erwachsene","Training","Fr","2025-05-09","19:30:00","22:00:00",null,null,null,null,null,null,"19:30:00","Bürgerhaus, Hüttenfeld",null,"T_1912E460AEBC"]
["TT-AG","Training","Di","2025-05-13","16:30:00","17:30:00",null,null,null,null,"chlu","luft.christopher@gmx.de","16:30:00","Bürgerhaus, Hüttenfeld",null,"T_D24C194E7D47","015735222603"]
["Nachwuchs","Training","Di","2025-05-13","17:30:00","19:15:00",null,null,null,null,"chlu,jori,lehe","luft.christopher@gmx.de,jonas@sg-huettenfeld.de,leonherd@gmx.de","17:30:00","Bürgerhaus, Hüttenfeld",null,"T_57E879A60D74","015735222603, 01717057707, 01728903319"]
["Erwachsene","Training","Mi","2025-05-14","18:30:00","22:00:00",null,null,null,null,null,null,"18:30:00","Bürgerhaus, Hüttenfeld",null,"T_CCE05FC9385D"]
["Badminton","Badminton-Training","Do","2025-05-15","20:00:00","23:00:00",null,null,null,null,null,null,"20:00:00","Bürgerhaus, Hüttenfeld",null,"T_C42A4C61DFF4"]
["Nachwuchs","Training","Fr","2025-05-16","18:00:00","19:30:00",null,null,null,null,"jori,hemö,pihö,erku","jonas@sg-huettenfeld.de,heiko@sg-huettenfeld.de,pia@sg-huettenfeld.de,k_uzu@hotmail.de","18:00:00","Bürgerhaus, Hüttenfeld",null,"T_546CFCF1FBDE","01717057707, 017663884425, 015201585090, 017671958302"]
["Erwachsene","Training","Fr","2025-05-16","19:30:00","22:00:00",null,null,null,null,null,null,"19:30:00","Bürgerhaus, Hüttenfeld",null,"T_5452663FAFF9"]
["TT-AG","Training","Di","2025-05-20","16:30:00","17:30:00",null,null,null,null,"chlu","luft.christopher@gmx.de","16:30:00","Bürgerhaus, Hüttenfeld",null,"T_BBDA7ADC1068","015735222603"]
["Nachwuchs","Training","Di","2025-05-20","17:30:00","19:15:00",null,null,null,null,"chlu,jori,lehe","luft.christopher@gmx.de,jonas@sg-huettenfeld.de,leonherd@gmx.de","17:30:00","Bürgerhaus, Hüttenfeld",null,"T_A478644119E7","015735222603, 01717057707, 01728903319"]
["Erwachsene","Training","Mi","2025-05-21","18:30:00","22:00:00",null,null,null,null,null,null,"18:30:00","Bürgerhaus, Hüttenfeld",null,"T_71DAF909FEEE"]
["Erwachsene","Training","Do","2025-05-22","19:30:00","22:00:00",null,null,null,null,null,null,"19:30:00","Bürgerhaus, Hüttenfeld",null,"T_75340EC2FE6A"]
["Nachwuchs","Training","Fr","2025-05-23","18:00:00","19:30:00",null,null,null,null,"jori,hemö,pihö,erku","jonas@sg-huettenfeld.de,heiko@sg-huettenfeld.de,pia@sg-huettenfeld.de,k_uzu@hotmail.de","18:00:00","Bürgerhaus, Hüttenfeld",null,"T_E049EA703C09","01717057707, 017663884425, 015201585090, 017671958302"]
["Erwachsene","Training","Fr","2025-05-23","19:30:00","22:00:00",null,null,null,null,null,null,"19:30:00","Bürgerhaus, Hüttenfeld",null,"T_3C9DC0A640A8"]
["TT-AG","Training","Di","2025-05-27","16:30:00","17:30:00",null,null,null,null,"chlu","luft.christopher@gmx.de","16:30:00","Bürgerhaus, Hüttenfeld",null,"T_C7D26A8973FF","015735222603"]
["Nachwuchs","Training","Di","2025-05-27","17:30:00","19:15:00",null,null,null,null,"chlu,jori,lehe","luft.christopher@gmx.de,jonas@sg-huettenfeld.de,leonherd@gmx.de","17:30:00","Bürgerhaus, Hüttenfeld",null,"T_565A9D91A787","015735222603, 01717057707, 01728903319"]
["Erwachsene","Training","Mi","2025-05-28","18:30:00","22:00:00",null,null,null,null,null,null,"18:30:00","Bürgerhaus, Hüttenfeld",null,"T_115767E007BF"]
["Nachwuchs","Training","Fr","2025-05-30","18:00:00","19:30:00",null,null,null,null,"jori,hemö,pihö,erku","jonas@sg-huettenfeld.de,heiko@sg-huettenfeld.de,pia@sg-huettenfeld.de,k_uzu@hotmail.de","18:00:00","Bürgerhaus, Hüttenfeld",null,"T_4374E3BDA86A","01717057707, 017663884425, 015201585090, 017671958302"]
["Erwachsene","Training","Fr","2025-05-30","19:30:00","22:00:00",null,null,null,null,null,null,"19:30:00","Bürgerhaus, Hüttenfeld",null,"T_80DBC524B0EA"]

{"sheet":"Manuell","index":3,"n_rows":95,"n_cols":17,"rows_kept":95,"cut":false,"hidden":false,"merged":[[0,5,5,12]]}
[null,null,null,null,null,"Wichtiger Hinweis:\nWenn ein Termin in einer personalisierten Terminliste erscheinem soll,\ndann muss der Eintrag in der ersten Splate exakt mit einer im\nSheet \"Spieler\" festgelegten Abteilungs- oder Trainingsgruppe übereinstimmen.\nAusnahme: Zauberwort \"alle\" bzw. \"Alle\""]
[]
[]
[]
[]
[]
[]
[]
[]
[]
["Betrifft","Veranstaltung","Tag","Datum","Beginn","Ende","Wettbewerb","Gegner","Es spielt","Es fehlt","Betreuer/Fahrer","eMail_Fahrer","Treffen","Halle/Ort/Fahrzeit","Bemerkung","Eventcode"]
["Senioren","TT Vereinsmeisterschaft Erwachsene","So","2025-01-12","10:00:00",null,null,null,null,null,null,null,"09:30:00","Bürgerhaus Hüttenfeld",null,"M_0E04D28C4779"]
["Junioren","Neujahrs-Ausflug","Fr","2025-01-17",null,null,null,null,null,null,"kasc, casc, jori, hemö","katja@sg-huettenfeld.de,carla@sg-huettenfeld.de,jonas@sg-huettenfeld.de,heiko@sg-huettenfeld.de","09:00:00",null,null,"M_5042E2AE4FD8","015123274161, 01637964195, 01717057707, 017663884425"]
["Sonder-Training","Systemtraining (Udo Schumacher)","Sa","2025-01-18","11:00:00","13:00:00",null,null,null,null,null,null,"10:45:00","Bürgerhaus Hüttenfeld",null,"M_8CD74673024B"]
["Mädchenliga","4. Blockspieltag Mädchenliga 3er?","So","2025-01-19","10:00:00","18:00:00",null,null,"juob,zugu,lawe",null,"emmü","mimueller82@googlemail.com ",null,"TSV Turnhalle am Schwimmbad, Jahnstraße 1, 64739 Höchst / 62,7km / 54min",null,"M_93F8175CED32",""]
["Sonder-Training","Systemtraining (Udo Schumacher)","Sa","2025-01-25","11:00:00","13:00:00",null,null,null,null,null,null,"10:45:00","Bürgerhaus Hüttenfeld",null,"M_1374FD0B351D"]
["Info","SGH Glühweinfest am Sportpark","Sa","2025-01-25",null,null,null,null,null,null,null,null,null,"Sportlerheim im Sportpark Hegwald",null,"M_CC689C044606"]
["Sonder-Training","Systemtraining (Udo Schumacher)","Sa","2025-02-01","11:00:00","13:00:00",null,null,null,null,null,null,"10:45:00","Bürgerhaus Hüttenfeld",null,"M_970194FEFD7C"]
[null,"Ortsentscheid Minimeisterschaft","Di","2025-02-04","16:30:00","20:00:00",null,null,null,null,"chlu,lehe,casc,kasc","luft.christopher@gmx.de,leonherd@gmx.de,carla@sg-huettenfeld.de,katja@sg-huettenfeld.de",null,"Bürgerhaus Hüttenfeld",null,"M_F53B16B22579","015735222603, 01728903319, 01637964195, 015123274161"]
["Sonder-Training","Systemtraining (Udo Schumacher)","Sa","2025-02-08","11:00:00","13:00:00",null,null,null,null,null,null,"10:45:00","Bürgerhaus Hüttenfeld",null,"M_55C577D7BA7F"]
["Flohmarktinitiative","Flohmarkt alles fürs Kind","Sa","2025-02-15","11:00:00","23:59:00",null,null,null,null,null,null,null,"Bürgerhaus Hüttenfeld","Halle belegt","M_A940B8E5AE56"]
["Flohmarktinitiative","Flohmarkt alles fürs Kind","So","2025-02-16","00:00:00","12:00:00",null,null,null,null,null,null,null,"Bürgerhaus Hüttenfeld","Halle belegt","M_15FC0059CD29"]
["Mädchenliga","5. Blockspieltag Mädchenliga","So","2025-02-16","10:00:00","18:00:00",null,null,null,null,"xxxx, yyyy","erinnerungsdienst@sg-huettenfeld.de,erinnerungsdienst@sg-huettenfeld.de",null,"Turnhalle Königsbrunnenstrasse 7, 64385 Reichelsheim (Oberkainsbach) / 37,5km / 49min","Zwei Spielrunden, Beginn 11:00 und  13:00 Uhr","M_728B87FF0902","015161481925, 015161481925"]
["Lit. Gym.","Litauischer Unabhängigkeitstag","Do","2025-02-20","00:01:00","23:59:00",null,null,null,null,null,null,null,"Bürgerhaus Hüttenfeld","Halle belegt","M_3513799C1715"]
["Lit. Gym.","Litauischer Unabhängigkeitstag","Fr","2025-02-21","00:01:00","23:59:00",null,null,null,null,null,null,null,"Bürgerhaus Hüttenfeld","Halle belegt","M_0906EC07B314"]
["Lit. Gym.","Litauischer Unabhängigkeitstag","Sa","2025-02-22","00:01:00","23:59:00",null,null,null,null,null,null,null,"Bürgerhaus Hüttenfeld","Halle belegt","M_CF6AC1C840EF"]
["Lit. Gym.","Litauischer Unabhängigkeitstag","So","2025-02-23","00:01:00","23:59:00",null,null,null,null,null,null,null,"Bürgerhaus Hüttenfeld","Halle belegt","M_A1AF1F250C11"]
["Lit. Gym.","Abbau Bühne","Mo","2025-02-24","00:01:00","16:00:00",null,null,null,null,null,null,null,"Bürgerhaus Hüttenfeld","Halle belegt","M_0679B86270C0"]
["Sonder-Training","Systemtraining (Udo Schumacher)","Sa","2025-03-01","11:00:00","13:00:00",null,null,null,null,null,null,"10:45:00","Bürgerhaus Hüttenfeld",null,"M_AC7CBBB4C24F"]
["SGH","Aufbau Kinderfasching","So","2025-03-02","16:00:00","22:00:00",null,null,null,null,null,null,null,"Bürgerhaus Hüttenfeld","Halle belegt","M_D434E55BACC5"]
["SGH","Kinderfasching","Mo","2025-03-03","13:00:00","22:00:00",null,null,null,null,null,null,null,"Bürgerhaus Hüttenfeld","Halle belegt","M_DBE469640A31"]
["Senioren","Hessische Einzelmeisterschaft (HEM) Senioren","Fr","2025-03-07",null,null,null,null,null,null,null,null,null,"Arheilgen",null,"M_ADA738FC789A"]
["Sonder-Training","Systemtraining (Udo Schumacher)","Sa","2025-03-08","11:00:00","13:00:00",null,null,null,null,null,null,"10:45:00","Bürgerhaus Hüttenfeld",null,"M_1AE627C67B7B"]
["Junioren","Kreis-Vorranglistenturnier Nachwuchs","Sa","2025-03-08",null,null,null,null,null,null,"jori,pihö,thja,sige,erku","jonas@sg-huettenfeld.de,pia@sg-huettenfeld.de,thomas@sg-huettenfeld.de,simon@sg-huettenfeld.de,k_uzu@hotmail.de",null,"Odenwaldhalle, Kleiststraße 11, 64668 Rimbach / 18,8km / 25min",null,"M_528801636CAF","01717057707, 015201585090, 015142601126, 017624943376, 017671958302"]
["Senioren","Hessische Einzelmeisterschaft (HEM) Senioren","Sa","2025-03-08",null,null,null,null,null,null,null,null,null,null,null,"M_9352F505D6C3"]
["Junioren","Kreis-Endranglistenturnier Nachwuchs","So","2025-03-09",null,null,null,null,null,null,"hemö,leme,yyyy","heiko@sg-huettenfeld.de,leon@sg-huettenfeld.de,erinnerungsdienst@sg-huettenfeld.de",null,"Odenwaldhalle, Kleiststraße 11, 64668 Rimbach / 18,8km / 25min",null,"M_5990576F9081","017663884425, 017658806863, 015161481925"]
["Senioren","Hessische Einzelmeisterschaft (HEM) Senioren","So","2025-03-09",null,null,null,null,null,null,null,null,null,null,null,"M_D904E600CBAC"]
["Lit. Gym.","\"kleines\" Basketball-Turnier","Sa","2025-03-15","08:00:00","14:00:00",null,null,null,null,null,null,null,"Bürgerhaus Hüttenfeld","Halle belegt, LigaspielSGH I nach 16:00","M_73A34720B876"]
[null,"Kreisentscheid Minimeisterschaften","Sa","2025-03-15",null,null,null,null,null,null,null,null,null,"Veranstaltungsort offen",null,"M_B41E18BCD48D","015161481925"]
[null,"Kreisentscheid Minimeisterschaften","So","2025-03-16",null,null,null,null,null,null,null,null,null,"Veranstaltungsort offen",null,"M_15F6A6664470","015161481925"]
["Junioren","Kreis-Jahrgangsmeisterschaften (KJM)","So","2025-03-16",null,null,null,null,null,null,"hemö,leme,yyyy","heiko@sg-huettenfeld.de,leon@sg-huettenfeld.de,erinnerungsdienst@sg-huettenfeld.de",null,"Neue Jahnturnhalle, Wasserwerkstr. 4, 68642 Bürstadt / 20,3km / 24min",null,"M_D7864C99A2B5","017663884425, 017658806863, 015161481925"]
["Sonder-Training","Systemtraining (Udo Schumacher)","Sa","2025-03-22","11:00:00","13:00:00",null,null,null,null,null,null,"10:45:00","Bürgerhaus Hüttenfeld",null,"M_4A002134705D"]
["Sonder-Training","Systemtraining (Udo Schumacher)","Sa","2025-03-29","11:00:00","13:00:00",null,null,null,null,null,null,"10:45:00","Bürgerhaus Hüttenfeld",null,"M_E97153AF54E3"]
["Mädchenliga","6. Blockspieltag Mädchenliga","Sa","2025-04-05","10:00:00","18:00:00",null,null,null,null,"xxxx,yyyy","erinnerungsdienst@sg-huettenfeld.de,erinnerungsdienst@sg-huettenfeld.de",null,"Halle der Käthe-Kollwitz Schule Westhöchsterstr. 103, 65931 Frankfurt / 72,1km / 47min","Zwei Spielrunden, Beginn 11:00 und  13:00 Uhr","M_000BD27D5A7D","015161481925, 015161481925"]
["MGV","Dampfnudelessen & Ehrungen","Sa","2025-04-12","11:00:00","23:00:00",null,null,null,null,null,null,null,"Bürgerhaus Hüttenfeld","Halle belegt","M_7D4BE4FFD9A8"]
["Junioren","Bezirksentscheid Mini-Meisterschaften","Sa","2025-04-26",null,null,null,null,null,null,null,null,null,"Veranstaltungsort offen",null,"M_1A091B6F5666","015161481925"]
["Junioren","Bezirks-Jahrgangsmeisterschaften (BJM)","Sa","2025-04-26",null,null,null,null,null,null,"jori,yyyy","jonas@sg-huettenfeld.de,erinnerungsdienst@sg-huettenfeld.de",null,"Veranstaltungsort offen",null,"M_3A0D6191685F","01717057707, 015161481925"]
[null,"Bezirksentscheid Mini-Meisterschaften","So","2025-04-27",null,null,null,null,null,null,null,null,null,"Veranstaltungsort offen",null,"M_40B500FE4CC7","015161481925"]
["Junioren","Bezirks-Jahrgangsmeisterschaften (BJM)","So","2025-04-27",null,null,null,null,null,null,"jori,yyyy","jonas@sg-huettenfeld.de,erinnerungsdienst@sg-huettenfeld.de",null,"Veranstaltungsort offen",null,"M_A883F30A2ABC","01717057707, 015161481925"]
["SGH","SGH-Maifest","Do","2025-05-01",null,null,null,null,null,null,null,null,null,"Sportpark im Hegwald","Tag der Arbeit","M_728017236F05"]
["Sonder-Training","Systemtraining (Udo Schumacher)","Sa","2025-05-03","11:00:00","13:00:00",null,null,null,null,null,null,"10:45:00","Bürgerhaus Hüttenfeld",null,"M_78287F539697"]
["Eltern als Betreuer","Elternabend Tischtennis-Nachwuchs","Di","2025-05-06","19:30:00","20:30:00",null,null,null,null,"kasc,casc,hemö,jori","katja@sg-huettenfeld.de,carla@sg-huettenfeld.de,heiko@sg-huettenfeld.de,jonas@sg-huettenfeld.de",null,"Bürgerhaus, Foyer oder Gruppenraum",null,"M_B9055C1CDB17","015123274161, 01637964195, 017663884425, 01717057707"]
["Sonder-Training","Systemtraining (Udo Schumacher)","Sa","2025-05-10","11:00:00","13:00:00",null,null,null,null,null,null,"10:45:00","Bürgerhaus Hüttenfeld",null,"M_52A69E707123"]
["Junioren","Vereinsmeisterschaft Nachwuchs","Fr","2025-05-16","18:00:00","20:15:00",null,null,null,null,"pihö, hemö, jori","pia@sg-huettenfeld.de,heiko@sg-huettenfeld.de,jonas@sg-huettenfeld.de",null,"Bürgerhaus Hüttenfeld",null,"M_3C531BD9CF92","015201585090, 017663884425, 01717057707"]
["Lit. Gym.","\"großes\" Basketball-Turnier","Sa","2025-05-17","08:00:00","22:00:00",null,null,null,null,null,null,null,"Bürgerhaus Hüttenfeld","Halle belegt","M_A65A774E3709"]
["Junioren","Hessische Jahrgangsmeisterschaften (HJM)","Sa","2025-05-17",null,null,null,null,null,null,"peha","peter@sg-huettenfeld.de",null,"Veranstaltungsort offen",null,"M_B261CE54F476","017634513703"]
["Junioren","Hessische Jahrgangsmeisterschaften (HJM)","So","2025-05-18",null,null,null,null,null,null,"peha","peter@sg-huettenfeld.de",null,"Veranstaltungsort offen",null,"M_6F093E1CB4F8","017634513703"]
["Sonder-Training","Systemtraining (Udo Schumacher)","Sa","2025-05-24","11:00:00","13:00:00",null,null,null,null,null,null,"10:45:00","Bürgerhaus Hüttenfeld",null,"M_B74098AC2321"]
["Junioren","Bezirks-Vorranglistenturnier Nachwuchs","Sa","2025-05-24",null,null,null,null,null,null,"pihö,leme,erku,yyyy","pia@sg-huettenfeld.de,leon@sg-huettenfeld.de,k_uzu@hotmail.de,erinnerungsdienst@sg-huettenfeld.de",null,"Veranstaltungsort offen",null,"M_9F46E84D23FD","015201585090, 017658806863, 017671958302, 015161481925"]
["Junioren","Bezirks-Vorranglistenturnier Nachwuchs","So","2025-05-25",null,null,null,null,null,null,"pihö,leme,erku,yyyy","erinnerungsdienst@sg-huettenfeld.de,erinnerungsdienst@sg-huettenfeld.de",null,"Veranstaltungsort offen",null,"M_DF4AAF71E340","015161481925, 015161481925"]
["Junioren","Jugendfreizeit Mosbach","Fr","2025-06-13",null,null,null,null,null,null,"kasc,casc,jori,hemö,pihö","katja@sg-huettenfeld.de,carla@sg-huettenfeld.de,jonas@sg-huettenfeld.de,heiko@sg-huettenfeld.de,pia@sg-huettenfeld.de",null,null,null,"M_69E9FC7C0811","015123274161, 01637964195, 01717057707, 017663884425, 015201585090"]
["MGV","Sommerkonzert der Youg Voices","Sa","2025-06-14","10:00:00","22:00:00",null,null,null,null,null,null,null,"Bürgerhaus Hüttenfeld","Halle belegt","M_DBE3CAEDCC8B"]
["Junioren","Bezirks-Endrangliste (BERL)","Sa","2025-06-14",null,null,null,null,null,null,"leme,erku,pihö,peha","leon@sg-huettenfeld.de,k_uzu@hotmail.de,pia@sg-huettenfeld.de,peter@sg-huettenfeld.de",null,"Veranstaltungsort offen","Kollission mit Freizeit Mosbach?","M_5CDF58EE9E07","017658806863, 017671958302, 015201585090, 017634513703"]
["Junioren","Jugendfreizeit Mosbach","Sa","2025-06-14",null,null,null,null,null,null,"kasc,casc,jori,hemö,pihö","katja@sg-huettenfeld.de,carla@sg-huettenfeld.de,jonas@sg-huettenfeld.de,heiko@sg-huettenfeld.de,pia@sg-huettenfeld.de",null,null,null,"M_676A373F51CB","015123274161, 01637964195, 01717057707, 017663884425, 015201585090"]
["Junioren","Bezirks-Endrangliste (BERL)","So","2025-06-15",null,null,null,null,null,null,"leme,erku,pihö,peha","erinnerungsdienst@sg-huettenfeld.de",null,"Veranstaltungsort offen","Kollission mit Freizeit Mosbach?","M_0358ED7F9F8C","015161481925"]
["Junioren","Jugendfreizeit Mosbach","So","2025-06-15",null,null,null,null,null,null,"kasc,casc,jori,hemö,pihö","katja@sg-huettenfeld.de,carla@sg-huettenfeld.de,jonas@sg-huettenfeld.de,heiko@sg-huettenfeld.de,pia@sg-huettenfeld.de",null,null,null,"M_52E0DCCE1D45","015123274161, 01637964195, 01717057707, 017663884425, 015201585090"]
["Sonder-Training","Systemtraining (Udo Schumacher)","Sa","2025-06-28","11:00:00","13:00:00",null,null,null,null,null,null,"10:45:00","Bürgerhaus Hüttenfeld",null,"M_1EF59644300D"]
["Sonder-Training","Systemtraining (Udo Schumacher)","Sa","2025-07-05","11:00:00","13:00:00",null,null,null,null,null,null,"10:45:00","Bürgerhaus Hüttenfeld",null,"M_24A85D5F7CC0"]
["Flohmarktinitiative","Flohmarkt alles fürs Kind","Sa","2025-09-06","11:00:00","23:59:00",null,null,null,null,null,null,null,"Bürgerhaus Hüttenfeld","Halle belegt","M_591D8973B446"]
["Flohmarktinitiative","Flohmarkt alles fürs Kind","So","2025-09-07","00:00:00","12:00:00",null,null,null,null,"xxxx","erinnerungsdienst@sg-huettenfeld.de",null,"Bürgerhaus Hüttenfeld","Halle belegt","M_7B27D0C5209B","015161481925"]
["Junioren","Kreis-Einzelmeisterschaft Nachwuchs","Sa","2025-09-20",null,null,null,null,null,null,"xxxx","erinnerungsdienst@sg-huettenfeld.de",null,"Sedanhalle, Sedanstraße 7, 68623 Lampertheim / 9,5km / 12min",null,"M_6A3E6D381BD5","015161481925"]
["Junioren","Kreis-Einzelmeisterschaft Nachwuchs","So","2025-09-21",null,null,null,null,null,null,"xxxx","erinnerungsdienst@sg-huettenfeld.de",null,"Sedanhalle, Sedanstraße 7, 68623 Lampertheim / 9,5km / 12min",null,"M_791AF2C1FFBB","015161481925"]
["Flohmarktinitiative","Mama Kind Flohmarkz","Sa","2025-11-22","10:00:00","23:00:00",null,null,null,null,null,null,null,"Bürgerhaus Hüttenfeld","Halle belegt","M_33FBE33516E4"]
["SGH","Adventsturnier der SGH-Volleyballabteilung","Sa","2025-11-29","08:00:00","23:59:00",null,null,null,null,null,null,null,"Bürgerhaus Hüttenfeld","Halle belegt","M_BD2DD420208F"]
[null,"Zwibur Bühnen- und Kulissenaufbau\nTraining eingeschränkt nur nach Absprache","Di","2025-12-09","00:01:00","23:50:00",null,null,null,null,null,null,null,"Bürgerhaus Hüttenfeld","Halle belegt","M_4504621FB788"]
[null,"Zwibur Bühnen- und Kulissenaufbau\nTraining eingeschränkt nur nach Absprache","Mi","2025-12-10","00:01:00","23:50:00",null,null,null,null,null,null,null,"Bürgerhaus Hüttenfeld","Halle belegt","M_D7B77442CD67"]
[null,"Zwibur Bühnen- und Kulissenaufbau\nTraining eingeschränkt nur nach Absprache","Do","2025-12-11","00:01:00","23:50:00",null,null,null,null,null,null,null,"Bürgerhaus Hüttenfeld","Halle belegt","M_FB8D63E9C06F"]
[null,"Zwibur Bühnen- und Kulissenaufbau\nTraining eingeschränkt nur nach Absprache","Fr","2025-12-12","00:01:00","23:50:00",null,null,null,null,null,null,null,"Bürgerhaus Hüttenfeld","Halle belegt","M_654CE2E0EC69"]
[null,"Zwibur Bühnen- und Kulissenaufbau\nTraining eingeschränkt nur nach Absprache","Sa","2025-12-13","00:01:00","23:50:00",null,null,null,null,null,null,null,"Bürgerhaus Hüttenfeld","Halle belegt","M_D3C7921DF1AF"]
["Pro Hüttenfeld","Weihnachtsmarkt","Sa","2025-12-13","18:00:00","23:00:00",null,null,null,null,null,null,null,null,null,"M_278E3DA41E8A"]
[null,"Zwibur Proben, kein Training","So","2025-12-14","00:01:00","23:50:00",null,null,null,null,null,null,null,null,null,"M_21F4E835CD56"]
[null,"Zwibur Proben, kein Training","Mo","2025-12-15","00:01:00","23:50:00",null,null,null,null,null,null,null,null,null,"M_DD704F51607A"]
[null,"Zwibur Proben, kein Training","Di","2025-12-16","00:01:00","23:50:00",null,null,null,null,null,null,null,null,null,"M_BB3144F3AE55"]
[null,"Zwibur Proben, kein Training","Mi","2025-12-17","00:01:00","23:50:00",null,null,null,null,null,null,null,null,null,"M_CC73025DA804"]
[null,"Zwibur Proben, kein Training","Do","2025-12-18","00:01:00","23:50:00",null,null,null,null,null,null,null,null,null,"M_15F1D2B5E108"]
[null,"Zwibur Proben, kein Training","Fr","2025-12-19","00:01:00","23:50:00",null,null,null,null,null,null,null,null,null,"M_E8DD209C7F3A"]
[null,"Zwibur Theatervorführung","Sa","2025-12-20","00:01:00","23:50:00",null,null,null,null,null,null,null,null,null,"M_BB8FD3A5DB72"]
[null,"Zwibur Proben, Halle bestuhlt","So","2025-12-21","00:01:00","23:50:00",null,null,null,null,null,null,null,null,null,"M_02A52A90DE43"]
[null,"Zwibur Proben, Halle bestuhlt","Mo","2025-12-22","00:01:00","23:50:00",null,null,null,null,null,null,null,null,null,"M_BC6DC706980C"]
[null,"Zwibur Proben, Halle bestuhlt","Di","2025-12-23","00:01:00","23:50:00",null,null,null,null,null,null,null,null,null,"M_65D533439F75"]
[null,"Zwibur Proben, Halle bestuhlt","Mi","2025-12-24","00:01:00","23:50:00",null,null,null,null,null,null,null,null,null,"M_A4B61F5AF768"]
[null,"Zwibur Proben, Halle bestuhlt","Do","2025-12-25","00:01:00","23:50:00",null,null,null,null,null,null,null,null,null,"M_B5DC8344F16B"]
[null,"Zwibur Proben, Halle bestuhlt","Fr","2025-12-26","00:01:00","23:50:00",null,null,null,null,null,null,null,null,null,"M_56368E1C2AAC"]
[null,"Zwibur Theateraufführung","Sa","2025-12-27","00:01:00","23:50:00",null,null,null,null,null,null,null,null,null,"M_7C3E625A3E37"]
[null,"Bühnenabbau","So","2025-12-28","00:01:00","23:50:00",null,null,null,null,null,null,null,null,null,"M_E8F7CB43AFC0"]

{"sheet":"Spieler","index":4,"n_rows":99,"n_cols":42,"rows_kept":99,"cut":false,"hidden":false,"merged":[]}
[]
[]
[]
[]
[]
[]
[]
[]
[]
[]
["Name","Vorname","Kürzel","Kurzname","Email","Handy-Nummer","AF_1","AF_2","AF_3","AF_4","AF_5","AF_6","AF_7","AF_8","AF_9","AF_10","TG_1","TG_2","TG_3","TG_4","TG_5","TG_6","TG_7","TG_8","TG_9","TG_10","Team_1","Team_2","Team_3","Team_4","Trainingstermine","Liste","Geburtstag","Adresse (berechnet)","Telefon-Nummer","E-Mail-Adresse","Vornamename (berechnet)","Adresse 1","Adresse 2","PLZ","Ort","Land"]
["Amato","Mario","maam","MarioA","mario@sg-huettenfeld.de","0170-1178300","Senioren",null,null,null,null,null,null,null,null,null,null,null,null,null,null,null,null,null,null,null,null,null,null,null,null,{"$f":"IF(DATEDIF((AG12),TODAY(),\"Y\")<18,2,1)","v":1},"1951-01-20",{"$f":"IF(AL12=\"\",\"\",IF(AM12=\"\",AL12 & \", \" & AN12 &  \" \"& AO12, AL12 & \", \"&AN12& \" \"&AM12))","v":"Johann-Walter-Straße 14, 68623 Hüttenfeld"},"06256-1090","mario-amato@web.de",{"$f":"B12& \" \" & A12","v":"Mario Amato"},"Johann-Walter-Straße 14","Hüttenfeld",68623,"Lampertheim","DE"]
["Berg","Frank","frbe","FrankB","frank@sg-huettenfeld.de","0178-6846315","Senioren",null,null,null,null,null,null,null,null,null,"Erwachsene",null,null,null,null,null,null,null,null,null,null,null,null,null,null,1,"1989-04-18","Jakob-Müller-Straße 26, 68623 Hüttenfeld",null,"frankberg@live.de","Frank Berg","Jakob-Müller-Straße 26","Hüttenfeld",68623,"Lampertheim","DE"]
["Berg","Volker","vobe","VolkerB","volker@sg-huettenfeld.de","0176-23165187","Senioren","Oldstars","Mannschaftsführer",null,null,null,null,null,null,null,"Erwachsene",null,null,null,null,null,null,null,null,null,"Herren I",null,null,null,null,1,"1987-11-14","Lorscher Straße 10, 68623 Hüttenfeld",null,"volker@sg-huettenfeld.de","Volker Berg","Lorscher Straße 10","Hüttenfeld",68623,"Lampertheim","DE"]
["Blümbott","Bernd","bebl","BerndB","bernd@sg-huettenfeld.de","0176-20942177","Senioren","Oldstars",null,null,null,null,null,null,null,null,"Erwachsene",null,null,null,null,null,null,null,null,null,"Herren II",null,null,null,null,1,"1980-12-25","Schannenbacher Weg 19, 64646 Heppenheim",null,"bernd.bluembott@googlemail.com","Bernd Blümbott","Schannenbacher Weg 19",null,64646,"Heppenheim","DE"]
["Bontenakel","Christian","chbo","ChristianB","christian@sg-huettenfeld.de","0152-28751290",null,null,null,null,null,null,null,null,null,null,null,null,null,null,null,null,null,null,null,null,null,null,null,null,null,1,"1974-10-29","Blumenstraße 1, 68623 Hüttenfeld","06256-5599009","chris.bonte@yahoo.de","Christian Bontenakel","Blumenstraße 1","Hüttenfeld",68623,"Lampertheim","DE"]
["Bracklow","Stefan","stbr","StefanB","stefan@sg-huettenfeld.de","0151-40223298","Senioren","Oldstars",null,null,null,null,null,null,null,null,"Erwachsene",null,null,null,null,null,null,null,null,null,"Herren III","Herren IV",null,null,null,1,"1964-06-04","Weinbergstraße 41, 69488 Nieder-Liebersbach","06201-43748","megstef@freenet.de","Stefan Bracklow","Weinbergstraße 41",null,69488,"Nieder-Liebersbach","DE"]
["Büchler","Jörg","jöbü","JörgB","joerg@sg-huettenfeld.de","0176-23265011","Senioren",null,null,null,null,null,null,null,null,null,"Erwachsene",null,null,null,null,null,null,null,null,null,null,null,null,null,null,1,"1972-07-19","Hirtenweg 3, 68623 Hüttenfeld",null,null,"Jörg Büchler","Hirtenweg 3","Hüttenfeld",68623,"Lampertheim","DE"]
["Czermak","Birgit","bicz","BirgitC","Tb-czermak@web.de","0178-1532322","Eltern als Betreuer",null,null,null,null,null,null,null,null,null,"Erwachsene",null,null,null,null,null,null,null,null,null,null,null,null,null,null,1,null,"Johann-Walter-Straße 15, 68623 Hüttenfeld",null,null,"Birgit Czermak","Johann-Walter-Straße 15","Hüttenfeld",68623,"Lampertheim","DE"]
["Czermak","Nils","nicz","NilsC","Tb-czermak@web.de",null,"Junioren",null,null,null,null,null,null,null,null,null,null,"Nachwuchs",null,null,null,null,null,null,null,null,"Jungen 19 I",null,null,null,null,2,"2009-05-15","Johann-Walter-Straße 15, 68623 Hüttenfeld","06256-8597810","tn-czermak@web.de","Nils Czermak","Johann-Walter-Straße 15","Hüttenfeld",68623,"Lampertheim","DE"]
["Daenschel","Johannes","joda","JohannesD","johannes@sg-huettenfeld.de","0176-21352190","Senioren",null,"Mannschaftsführer",null,null,null,null,null,null,null,"Erwachsene",null,null,null,null,null,null,null,null,null,"Herren V",null,null,null,null,1,"1968-12-20","Mittelweg  21, 68623 Hüttenfeld","06256-858677","j.daenschel@gmx.de","Johannes Daenschel","Mittelweg  21","Hüttenfeld",68623,"Lampertheim","DE"]
["Ehret","Friedhelm","freh","FriedhelmE","friedhelm@sg-huettenfeld.de",null,"Senioren","Oldstars",null,null,null,null,null,null,null,null,"Erwachsene",null,null,null,null,null,null,null,null,null,"Herren III",null,null,null,null,1,"1952-09-29","Jakob-Müller-Straße 9, 68623 Hüttenfeld","06256-1696","friedhelm.ehret@web.de","Friedhelm Ehret","Jakob-Müller-Straße 9","Hüttenfeld",68623,"Lampertheim","DE"]
["Ehret","Kirsten","kieh","KirstenE","ehretkirsten@gmail.com","0163-1706338",null,null,null,null,null,null,null,null,null,null,null,null,null,null,null,null,null,null,null,null,null,null,null,null,null,1,null,"",null,null,"Kirsten Ehret"]
["Ehret","Nico","nieh","NicoE","ehretkirsten@gmail.com","0163-1706338","Junioren",null,null,null,null,null,null,null,null,null,null,"Nachwuchs",null,null,null,null,null,null,null,null,"Jungen 19 I",null,null,null,null,2,"2010-06-02","Blumenstraße 12, 68623 Hüttenfeld","06256 - 1013","ehretkirsten@gmail.com","Nico Ehret","Blumenstraße 12","Hüttenfeld",68623,"Lampertheim","DE"]
["Geist","Fabian","fage","FabianG",null,null,"Junioren","Junioren U12",null,null,null,null,null,null,null,null,null,"Nachwuchs",null,null,null,null,null,null,null,null,null,null,null,null,null,2,"2015-06-07","Jakob-Müller-Straße 7, 68623 Hüttenfeld",null,null,"Fabian Geist","Jakob-Müller-Straße 7","Hüttenfeld",68623,"Lampertheim","DE"]
["Geist","Simon","sige","SimonG","simon@sg-huettenfeld.de","0176-24943376","Senioren",null,null,null,null,null,null,null,null,null,"Erwachsene",null,null,null,null,null,null,null,null,null,"Herren V",null,null,null,null,1,"1981-05-08","Jakob-Müller-Straße 7, 68623 Hüttenfeld","06256-8599951","simon@thespecter.de","Simon Geist","Jakob-Müller-Straße 7","Hüttenfeld",68623,"Lampertheim","DE"]
["Gerber","Ramin","rage","RaminG","ramin@sg-huettenfeld.de","0176-70902586","Senioren",null,null,null,null,null,null,null,null,null,"Erwachsene",null,null,null,null,null,null,null,null,null,"Herren IV",null,null,null,null,1,"1993-02-02","Luisenstr. 37, 68519 Viernheim",null,"ramingerber@web.de","Ramin Gerber","Luisenstr. 37",null,68519,"Viernheim","DE"]
["Gerhardt","Anke","ange","AnkeG","anke.gerhardt@gmx.net ","0152-02991512","Eltern als Betreuer",null,null,null,null,null,null,null,null,null,"Erwachsene",null,null,null,null,null,null,null,null,null,null,null,null,null,null,1,null,"Seefeldstraße 38a, 68623 Hüttenfeld",null,null,"Anke Gerhardt","Seefeldstraße 38a","Hüttenfeld",68623,"Lampertheim","DE"]
["Gerhardt","Luca","luge","LucaG","anke.gerhardt@gmx.net ","0174-2453380","Junioren",null,null,null,"Sonder-Training",null,null,null,null,null,null,"Nachwuchs",null,null,null,null,null,null,null,null,"Jungen 15 I",null,null,null,null,2,"2010-05-31","Seefeldstraße 38a, 68623 Hüttenfeld",null,"gerhardt_anke@web.de","Luca Gerhardt","Seefeldstraße 38a","Hüttenfeld",68623,"Lampertheim","DE"]
["Giovanni","Gianonne","gigi","GiovanniG","bella_capri@gmx.de","0176-2069699","Junioren",null,null,null,null,null,null,null,null,null,null,"Nachwuchs",null,null,null,null,null,null,null,null,"Jungen 19 I",null,null,null,null,2,"2009-10-05","Hügelstraße 51, 64353 Lorsch",null,"bella_capri@gmx.de","Gianonne Giovanni","Hügelstraße 51",null,64353,"Lorsch","DE"]
["Gumbel","Robin","rogu","RobinG","robin@sg-huettenfeld.de","0157-53699354","Senioren",null,null,null,null,null,null,null,null,null,"Erwachsene",null,null,null,null,null,null,null,null,null,"Herren I","Herren II",null,null,null,1,"1991-09-09","Graudenzer Weg 3, 69502 Hemsbach",null,"robin.gumbel@heidelberg.de","Robin Gumbel","Graudenzer Weg 3",null,69502,"Hemsbach","DE"]
["Günther","Florian","flgü","FlorianG","florian@sg-huettenfeld.de","0176-70678979","Senioren",null,null,null,null,null,null,null,null,null,"Erwachsene",null,null,null,null,null,null,null,null,null,null,null,null,null,null,1,"1997-09-15","An der Tuchbleiche 11, 68623 Hüttenfeld","06256-428","guenther_florian@t-online.de","Florian Günther","An der Tuchbleiche 11","Hüttenfeld",68623,"Lampertheim","DE"]
["Günther","Ludwig","lugü","LudwigG","ludwig@sg-huettenfeld.de","0171-2215881","Senioren","Oldstars","Mannschaftsführer",null,null,null,null,null,null,null,"Erwachsene",null,null,null,null,null,null,null,null,null,"Herren III",null,null,null,null,1,"1952-03-13","Kolping Straße 9, 64646 Heppenheim","06252-671710","gulu98@googlemail.com","Ludwig Günther","Kolping Straße 9",null,64646,"Heppenheim","DE"]
["Gusteinis","Sylwia","sygu","SylwiaG","sylwia.gustek@gmail.com","0154-45074979","Eltern als Betreuer",null,null,null,null,null,null,null,null,null,"Erwachsene",null,null,null,null,null,null,null,null,null,null,null,null,null,null,1,null,"Heppenheimer Straße 6c, 68623 Hüttenfeld",null,null,"Sylwia Gusteinis","Heppenheimer Straße 6c","Hüttenfeld",68623,"Lampertheim","DE"]
["Gusteinis","Zuzanna","zugu","ZuzannaG","sylwia.gustek@gmail.com",null,"Junioren","Junioren U12",null,null,null,"Mädchenliga",null,null,null,"J13",null,"Nachwuchs",null,null,null,null,null,null,null,null,"Jungen 13 I",null,null,null,null,2,"2013-09-09","Heppenheimer Straße 6c, 68623 Hüttenfeld",null,"sylvia.gustek@gmail.com","Zuzanna Gusteinis","Heppenheimer Straße 6c","Hüttenfeld",68623,"Lampertheim","DE"]
["Haas","Peter","peha","PeterH","peter@sg-huettenfeld.de","0176-34513703","Senioren",null,null,null,null,null,null,null,null,null,"Erwachsene",null,null,null,null,null,null,null,null,null,"Herren I","Herren II",null,null,null,1,"1986-09-18","Grünberger Straße 29A, 69502 Hemsbach",null,"haas.hemsbach@gmail.com","Peter Haas","Grünberger Straße 29A",null,69502,"Hemsbach","DE"]
["Händler","Erich","erhä","ErichH","erich@sg-huettenfeld.de","0151-61481925","Senioren","Oldstars",null,null,null,null,null,null,null,null,"Erwachsene",null,null,null,null,null,null,null,null,null,"Herren III","Herren IV",null,null,null,1,"1949-06-06","Johann-Stelz-Straße 81, 68623 Hüttenfeld","06256-359","erich@haendlers.de","Erich Händler","Johann-Stelz-Straße 81","Hüttenfeld",68623,"Lampertheim","DE"]
["Herd","Leon","lehe","LeonH","leonherd@gmx.de","0172-8903319",null,null,null,"Trainer",null,null,null,null,null,null,null,null,null,null,null,null,null,null,null,null,null,null,null,null,null,1,"2002-05-17","Blücherstr. 26, 68623 Lampertheim",null,null,"Leon Herd","Blücherstr. 26",null,68623,"Lampertheim","DE"]
["Heurich","Daniela","dahe","DanielaH","lars-heurich@web.de","01577-0485768","Eltern als Betreuer",null,null,null,null,null,null,null,null,null,null,null,null,null,null,null,null,null,null,null,null,null,null,null,null,1,null,"Lorscher Straße 20, 68623 Hüttenfeld",null,null,"Daniela Heurich","Lorscher Straße 20","Hüttenfeld",68623,"Lampertheim","DE"]
["Heurich","Simon","sihe","SimonH","lars-heurich@web.de",null,"Junioren","Junioren U12",null,null,"Sonder-Training",null,null,null,null,"J13",null,"Nachwuchs",null,null,null,null,null,null,null,null,"Jungen 13 I",null,null,null,null,2,"2012-06-06","Lorscher Straße 20, 68623 Hüttenfeld",null,null,"Simon Heurich","Lorscher Straße 20","Hüttenfeld",68623,"Lampertheim","DE"]
["Hördt","Pia","pihö","PiaH","pia@sg-huettenfeld.de","0152-01585090","Senioren",null,null,"Trainer",null,null,null,null,null,null,"Erwachsene",null,null,null,null,null,null,null,null,null,"Damen I",null,null,null,null,1,"2006-02-28","Hirtenweg 4, 68623 Hüttenfeld","06256-1790","pia.hoerdt@icloud.com","Pia Hördt","Hirtenweg 4","Hüttenfeld",68623,"Lampertheim","DE"]
["Ihrig","Jannis","jaih","JannisI","jannis@sg-huettenfeld.de","0176-64451240","Senioren",null,null,null,null,null,null,null,null,null,"Erwachsene",null,null,null,null,null,null,null,null,null,"Herren IV",null,null,null,null,1,"2000-07-21","Blumenstraße 14, 68623 Hüttenfeld","06256-5599044","gamer2000@freenet.de","Jannis Ihrig","Blumenstraße 14","Hüttenfeld",68623,"Lampertheim","DE"]
["Jahn","Robin","roja","RobinJ",null,null,"Junioren","Junioren U12",null,null,"Sonder-Training",null,null,null,null,"J13",null,"Nachwuchs",null,null,null,null,null,null,null,null,"Jungen 13 I",null,null,null,null,2,"2015-12-14","Lampertheimer Str.21, 68623 Hüttenfeld",null,null,"Robin Jahn","Lampertheimer Str.21","Hüttenfeld",68623,"Lampertheim","DE"]
["Jahn","Thomas","thja","ThomasJ","thomas@sg-huettenfeld.de","0151-42601126","Senioren",null,"Mannschaftsführer",null,null,null,null,null,null,null,"Erwachsene",null,null,null,null,null,null,null,null,null,"Herren IV",null,null,null,null,{"$f":"IF(DATEDIF((AG44),TODAY(),\"Y\")<18,2,1)","v":1},"1986-03-09",{"$f":"IF(AL44=\"\",\"\",IF(AM44=\"\",AL44 & \", \" & AN44 &  \" \"& AO44, AL44 & \", \"&AN44& \" \"&AM44))","v":"Lampertheimer Str.21, 68623 Hüttenfeld"},null,"wackskoal@gmail.com",{"$f":"B44& \" \" & A44","v":"Thomas Jahn"},"Lampertheimer Str.21","Hüttenfeld",68623,"Lampertheim","DE"]
["Knof-Fuchs","Christa","chkn","ChristaK","christa@sg-huettenfeld.de","0170-2773097","Senioren",null,null,null,null,null,null,null,null,null,"Erwachsene",null,null,null,null,null,null,null,null,null,"Damen I",null,null,null,null,1,"1955-01-06","Kappengasse 16, 64625 Bensheim","06251-136522","c.knoffuchs@gmail.com","Christa Knof-Fuchs","Kappengasse 16",null,64625,"Bensheim","DE"]
["Koch","Tim","tiko","TimK","tim@sg-huettenfeld.de","0176-82475246","Senioren",null,null,null,null,null,null,null,null,null,"Erwachsene",null,null,null,null,null,null,null,null,null,null,null,null,null,null,1,"1996-11-27","Baumgartenstraße 1b, 68623 Hüttenfeld","06256-831203","koch.tim1996@gmail.com","Tim Koch","Baumgartenstraße 1b","Hüttenfeld",68623,"Lampertheim","DE"]
["Kohl","Patricia","pako","PatriciaK","patricia@sg-huettenfeld.de","0152-09496166","Senioren",null,"Mannschaftsführer",null,null,null,null,null,null,null,"Erwachsene",null,null,null,null,null,null,null,null,null,"Damen I",null,null,null,null,1,"1999-03-09","Wilhelmstraße 46, 68623 Lampertheim","06206-53858","patricia-99@gmx.de","Patricia Kohl","Wilhelmstraße 46",null,68623,"Lampertheim","DE"]
["Kuzu","Erdem","erku","ErdemK","k_uzu@hotmail.de","0176-71958302","Senioren",null,null,null,null,null,null,null,null,null,"Erwachsene",null,null,null,null,null,null,null,null,null,"Herren II","Herren III",null,null,null,1,"2004-04-05","Mittelweg 13, 68623 Hüttenfeld","06256-859197","k_uzu@hotmail.de","Erdem Kuzu","Mittelweg 13","Hüttenfeld",68623,"Lampertheim","DE"]
["Kuzu","Saadet","saku","SaadetK","k_uzu@hotmail.de","0176-71958302","Eltern als Betreuer",null,null,null,null,null,null,null,null,null,"Erwachsene",null,null,null,null,null,null,null,null,null,null,null,null,null,null,1,null,"Mittelweg 13, 68623 Hüttenfeld",null,null,"Saadet Kuzu","Mittelweg 13","Hüttenfeld",68623,"Lampertheim","DE"]
["Luft","Christopher","chlu","ChristopherL","luft.christopher@gmx.de","01573-5222603",null,null,null,"Trainer",null,null,null,null,null,null,null,null,null,null,null,null,null,null,null,null,null,null,null,null,null,1,null,"","01573-5222603","luft.christopher@gmx.de","Christopher Luft"]
["Melzer","Anna","anme","AnnaM","annamel79@web.de","0176-74511333","Eltern als Betreuer",null,"Mannschaftsführer",null,null,null,null,null,null,null,"Erwachsene",null,null,null,null,null,null,null,null,null,null,null,null,null,null,1,null,"Viernheimer Straße 32, 68623 Hüttenfeld","06256-859174","annamel79@web.de","Anna Melzer","Viernheimer Straße 32","Hüttenfeld",68623,"Lampertheim","DE"]
["Melzer","Leon","leme","LeonM","leon@sg-huettenfeld.de","0176-58806863","Junioren",null,null,"Trainer",null,null,null,null,null,null,"Erwachsene",null,null,null,null,null,null,null,null,null,"Herren I","Herren II",null,null,null,2,"2007-03-05","Viernheimer Straße 32, 68623 Hüttenfeld","06256-859175","leonmelzer07@web.de","Leon Melzer","Viernheimer Straße 32","Hüttenfeld",68623,"Lampertheim","DE"]
["Metzger","Jonah","jome","JonahM",null,"0163-2536716","Junioren","Junioren U12",null,null,null,null,null,null,null,null,null,"Nachwuchs",null,null,null,null,null,null,null,null,null,null,null,null,null,2,"2013-09-28","Sophie-Scholl-Straße 26c, 68623 Lampertheim","06206-9271766","sinah-metzger@gmx.de","Jonah Metzger","Sophie-Scholl-Straße 26c",null,68623,"Lampertheim","DE"]
["Möller","Dieter","dimö","DieterM","dieter@sg-huettenfeld.de","0162-9370636","Senioren",null,null,null,null,null,null,null,null,null,"Erwachsene",null,null,null,null,null,null,null,null,null,"Herren IV",null,null,null,null,1,"1960-05-02","Mittelweg 6, 68623 Hüttenfeld","06256-831203","dieter.moeller@gmx.de","Dieter Möller","Mittelweg 6","Hüttenfeld",68623,"Lampertheim","DE"]
["Möller","Heiko","hemö","HeikoM","heiko@sg-huettenfeld.de","0176-63884425","Senioren",null,null,"Trainer","Sonder-Training",null,null,null,null,null,"Erwachsene",null,null,null,null,null,null,null,null,null,"Herren I",null,null,null,null,1,"1998-01-21","Lindenstraße 15, 64347 Griesheim",null,"heiko.moeller21@googlemail.com","Heiko Möller","Lindenstraße 15",null,64347,"Griesheim","DE"]
["Müller","Emily","emmü","EmilyM","mimueller82@googlemail.com ",null,"Junioren","Junioren U12",null,null,"Sonder-Training","Mädchenliga",null,null,null,null,null,"Nachwuchs",null,null,null,null,null,null,null,null,"Jungen 15 I",null,null,null,null,2,"2013-01-28","Waldstraße 31c, 68623 Hüttenfeld","06256-377491","mimueller82@googlemail.com","Emily Müller","Waldstraße 31c","Hüttenfeld",68623,"Lampertheim","DE"]
["Müller","Michael","mimü","MichaelM","mimueller82@googlemail.com ","0173-3290493","Eltern als Betreuer",null,null,null,null,null,null,null,null,null,"Erwachsene",null,null,null,null,null,null,null,null,null,null,null,null,null,null,1,null,"Waldstraße 31c, 68623 Hüttenfeld",null,null,"Michael Müller","Waldstraße 31c","Hüttenfeld",68623,"Lampertheim","DE"]
["Mussavi","Amin","ammu","AminM","amin@sg-huettenfeld.de","0152 02911243","Senioren",null,null,null,null,null,null,null,null,null,"Erwachsene",null,null,null,null,null,null,null,null,null,"Herren IV",null,null,null,null,1,"1993-01-15","Ödenburger Straße 10A, 64295 Darmstadt",null,"amen3654@gmail.com","Amin Mussavi","Ödenburger Straße 10A",null,64295,"Darmstadt","DE"]
["Obaido","Julia","juob","JuliaO","obadiat@t-hotmail.com","0172-8024523","Junioren","Junioren U12",null,null,"Sonder-Training","Mädchenliga",null,null,null,"j13",null,"Nachwuchs",null,null,null,null,null,null,null,null,"Jungen 13 I",null,null,null,null,2,"2013-04-25","Schwalbenstraße 26, 68623 Lampertheim",null,"obadiat@hotmail.com","Julia Obaido","Schwalbenstraße 26",null,68623,"Lampertheim","DE"]
["Reich","Alicia","alre","AliciaR","alicia.reich@yahoo.de","0176-92416247","Eltern als Betreuer",null,null,null,null,null,null,null,null,null,"Erwachsene",null,null,null,null,null,null,null,null,null,null,null,null,null,null,1,null,"Waldstraße 48, 68623 Hüttenfeld","06256-3779972",null,"Alicia Reich","Waldstraße 48","Hüttenfeld",68623,"Lampertheim","DE"]
["Reich","Anna-Marleen","anre","Anna-MarleenR","alicia.reich@yahoo.de",null,"Junioren","Junioren U12",null,null,null,"Mädchenliga",null,null,null,"J13",null,"Nachwuchs",null,null,null,null,null,null,null,null,"Jungen 13 I",null,null,null,null,2,"2013-08-21","Waldstraße 48, 68623 Hüttenfeld",null,null,"Anna-Marleen Reich","Waldstraße 48","Hüttenfeld",68623,"Lampertheim","DE"]
["Reich","Fritz","frre","FritzR","fritz@sg-huettenfeld.de",null,"Senioren","Oldstars",null,null,null,null,null,null,null,null,"Erwachsene",null,null,null,null,null,null,null,null,null,"Herren V",null,null,null,null,1,"1937-03-22","Waldstraße 48, 68623 Hüttenfeld","06256-1390","fritz@sg-huettenfeld.de","Fritz Reich","Waldstraße 48","Hüttenfeld",68623,"Lampertheim","DE"]
["Reiter","Markus","mare","MarkusR","markus.reiter@sg-huettenfeld.de","0172-4648448",null,null,null,"Trainer",null,null,null,null,null,null,"Erwachsene",null,null,null,null,null,null,null,null,null,null,null,null,null,null,1,null,"",null,"markus.reiter@gmx.info","Markus Reiter",null,null,null,null,"DR"]
["Richter","Jonas","jori","JonasR","jonas@sg-huettenfeld.de","0171-7057707","Senioren",null,null,"Trainer",null,null,null,null,null,null,"Erwachsene",null,null,null,null,null,null,null,null,null,"Herren III","Herren IV",null,null,null,1,"1996-09-02","Lampertheimer Str. 24, 68623 Hüttenfeld","06256-1416","jonas-richter96@gmx.de","Jonas Richter","Lampertheimer Str. 24","Hüttenfeld",68623,"Lampertheim","DE"]
["Ritter","Hellmut","heri","HellmutR","hellmut@sg-huettenfeld.de","0177-8686750","Senioren",null,null,null,null,null,null,null,null,null,"Erwachsene",null,null,null,null,null,null,null,null,null,"Herren I","Herren II",null,null,null,1,"1948-01-19","Rudolf-Diesel-Weg 2, 64653 Lorsch","06252-57327","hellmutritter@web.de","Hellmut Ritter","Rudolf-Diesel-Weg 2",null,64653,"Lorsch","DE"]
["Rost","Daniel","daro","DanielR","daniel@sg-huettenfeld.de","0157-86737287","Senioren",null,null,null,null,null,null,null,null,null,"Erwachsene",null,null,null,null,null,null,null,null,null,null,null,null,null,null,1,"1978-07-05","Westendstraße 20, 68623 Lampertheim",null,"rost.daniel@gmx.de","Daniel Rost","Westendstraße 20",null,68623,"Lampertheim","DE"]
["Schietzold","Katja","kasc","KatjaS","katja@sg-huettenfeld.de","0151-23274161","Senioren",null,"Mannschaftsführer","Trainer","Sonder-Training",null,null,null,null,null,"Erwachsene",null,null,null,null,null,null,null,null,null,"Damen I",null,null,null,null,1,"1977-04-02","Johann-Stelz-Straße 83, 68623 Hüttenfeld","06256-859146","katjaschietzold@gmail.com","Katja Schietzold","Johann-Stelz-Straße 83","Hüttenfeld",68623,"Lampertheim","DE"]
["Schietzold","Matti","mas1","MattiSchi","mattihuettenfeld@gmail.com",null,"Junioren",null,null,null,"Sonder-Training",null,null,null,null,null,null,"Nachwuchs",null,null,null,null,null,null,null,null,"Jungen 15 I",null,null,null,null,2,"2011-04-25","Johann-Stelz-Straße 83, 68623 Hüttenfeld","06256-859146",null,"Matti Schietzold","Johann-Stelz-Straße 83","Hüttenfeld",68623,"Lampertheim","DE"]
["Schifferdecker","Ben","besc","BenS","carla@sg-huettenfeld.de",null,"Junioren",null,null,null,"Sonder-Training",null,null,null,null,null,null,"Nachwuchs",null,null,null,null,null,null,null,null,"Jungen 15 I",null,null,null,null,2,"2011-05-11","Rosenweg 2, 68623 Hüttenfeld","06256-3779958","andreasschifferdecker@t-online.de","Ben Schifferdecker","Rosenweg 2","Hüttenfeld",68623,"Lampertheim","DE"]
["Schifferdecker","Carla","casc","CarlaS","carla@sg-huettenfeld.de","0163-7964195","Senioren",null,null,"Trainer","Sonder-Training",null,null,null,null,null,"Erwachsene",null,null,null,null,null,null,null,null,null,"Damen I",null,null,null,null,1,"1979-11-09","Rosenweg 2, 68623 Hüttenfeld","06256-3779958","carlchen_79@yahoo.de","Carla Schifferdecker","Rosenweg 2","Hüttenfeld",68623,"Lampertheim","DE"]
["Schumacher","Udo","udsc","UdoS","udoschuhmacher@t-online.de","0176-55623623",null,null,null,"Trainer",null,null,null,null,null,null,"Erwachsene",null,null,null,null,null,null,null,null,null,null,null,null,null,null,1,null,"",null,null,"Udo Schumacher",null,null,null,null,"DR"]
["Schwarz","Matti","mas2","MattiSchw",null,null,"Junioren",null,null,null,"Sonder-Training",null,null,null,null,null,null,"Nachwuchs",null,null,null,null,null,null,null,null,null,null,null,null,null,1,null,"",null,null,"Matti Schwarz"]
["Seiler","Martin","mase","MartinS","martin.seiler@sg-huettenfeld.de","01512-2237947",null,null,null,"Trainer",null,null,null,null,null,null,"Erwachsene",null,null,null,null,null,null,null,null,null,null,null,null,null,null,1,"1964-02-12","Kastanienweg 3, 69502 Hemsbach",null,"m.seiler@hz-pbs.de","Martin Seiler","Kastanienweg 3",null,69502,"Hemsbach","DE"]
["Sippel","Anja","ansi","AnjaS","anja@sg-huettenfeld.de","0172-7583094","Senioren",null,null,null,"Sonder-Training",null,null,null,null,null,"Erwachsene",null,null,null,null,null,null,null,null,null,"Damen I",null,null,null,null,1,"1976-08-09","Konrad-Adenauer-Allee 3d, 64653 Lorsch","06151-9369847","anjasippel@gmail.com","Anja Sippel","Konrad-Adenauer-Allee 3d",null,64653,"Lorsch","DE"]
["Slager","Pascal","pasl","PascalS","pascal@sg-huettenfeld.de","0179-4133995","Senioren",null,null,null,null,null,null,null,null,null,"Erwachsene",null,null,null,null,null,null,null,null,null,"Herren II",null,null,null,null,1,"2000-08-21","Ruthenweg 9, 68623 Hüttenfeld","06256-859356","pascal21082000@gmail.com","Pascal Slager","Ruthenweg 9","Hüttenfeld",68623,"Lampertheim","DE"]
["Steffan","Patrick","past","PatrickS","patrick@sg-huettenfeld.de","0152-09187382","Senioren",null,null,null,null,null,null,null,null,null,"Erwachsene",null,null,null,null,null,null,null,null,null,"Herren V",null,null,null,null,{"$f":"IF(DATEDIF((AG76),TODAY(),\"Y\")<18,2,1)","v":1},"1994-07-15",{"$f":"IF(AL76=\"\",\"\",IF(AM76=\"\",AL76 & \", \" & AN76 &  \" \"& AO76, AL76 & \", \"&AN76& \" \"&AM76))","v":"Heinrich-Heine-Straße 9, 68623 Lampertheim"},"06206-59645","p-steffan@web.de",{"$f":"B76& \" \" & A76","v":"Patrick Steffan"},"Heinrich-Heine-Straße 9",null,68623,"Lampertheim","DE"]
["Steier","Gwen","gwst","GwenS","gwen@sg-huettenfeld.de","0152-23230343","Senioren",null,null,null,null,null,null,null,null,null,"Erwachsene",null,null,null,null,null,null,null,null,null,"Herren I",null,null,null,null,1,"1994-05-23","Klauprechtstraße 20, 76137 Karlsruhe","06256-1523","gwen.steier@gmail.com","Gwen Steier","Klauprechtstraße 20",null,76137,"Karlsruhe","DE"]
["Stieler","Ilka","ilst","IlkaS","ilka@sg-huettenfeld.de","0163-6868428","Senioren",null,null,null,null,null,null,null,null,null,"Erwachsene",null,null,null,null,null,null,null,null,null,"Damen I",null,null,null,null,1,"1968-04-28","Mühlweg 47, 69502 Hemsbach","06201-470215","ilka.stieler@gmail.com","Ilka Stieler","Mühlweg 47",null,69502,"Hemsbach","DE"]
["Thomas","Matthias","math","MatthiasT","matthias@sg-huettenfeld.de","0176-84148197","Senioren",null,null,null,null,null,null,null,null,null,"Erwachsene",null,null,null,null,null,null,null,null,null,"Herren I",null,null,null,null,1,"1991-03-17","Viernheimer Straße 65, 68623 Hüttenfeld","06256-1795","matzematthiasthomas@gmx.de","Matthias Thomas","Viernheimer Straße 65","Hüttenfeld",68623,"Lampertheim","DE"]
["Usaitis","Nojus","nous","NojusU","dtinatus@gmail.com","0151-45020302","Junioren","Junioren U12",null,null,null,null,null,null,null,null,null,"Nachwuchs",null,null,null,null,null,null,null,null,"Jungen 13 I",null,null,null,null,2,"2014-01-12","Viernheimer Straße 46, 68623 Hüttenfeld","0151-45020302","dzinatus@gmail.com","Nojus Usaitis","Viernheimer Straße 46","Hüttenfeld",68623,"Lampertheim","DE"]
["Van Beek","Birgit","bibe","BirgitVB","bibivanbeek@aol.com","0176-20925748","Eltern als Betreuer",null,null,null,null,null,null,null,null,null,"Erwachsene",null,null,null,null,null,null,null,null,null,null,null,null,null,null,1,null,"Jakob-Müller-Straße 27, 68623 Hüttenfeld",null,null,"Birgit Van Beek","Jakob-Müller-Straße 27","Hüttenfeld",68623,"Lampertheim","DE"]
["Vogl","Dirk","divo","DirkV","dirk@sg-huettenfeld.de","0151-54826447","Senioren",null,null,null,null,null,null,null,null,null,"Erwachsene",null,null,null,null,null,null,null,null,null,"Herren V",null,null,null,null,1,"1968-07-30","Am Bachsteg 14, 68623 Lampertheim","06206-9517123","dirkvogl@freenet.de","Dirk Vogl","Am Bachsteg 14",null,68623,"Lampertheim","DE"]
["Wagner","Daniela","dawa","DanielaW","wagnerdaniela@hotmail.com","0178-2095866",null,null,null,null,null,null,null,null,null,null,null,null,null,null,null,null,null,null,null,null,null,null,null,null,null,1,null,"",null,null,"Daniela Wagner"]
["Weber","Inga","inwe","IngaW","planet-inga@web.de","0176-31583607",null,null,null,null,null,null,null,null,null,null,null,null,null,null,null,null,null,null,null,null,null,null,null,null,null,1,null,"",null,null,"Inga Weber"]
["Weber","Miro","miw1","MiroW","planet-inga@web.de",null,"Junioren",null,null,null,null,null,null,null,null,null,null,"Nachwuchs",null,null,null,null,null,null,null,null,"Jungen 19 I",null,null,null,null,2,"2010-06-18","Alfred-Delp-Straße 36, 68623 Hüttenfeld","06256 3099974",null,"Miro Weber","Alfred-Delp-Straße 36","Hüttenfeld",68623,"Lampertheim","DE"]
["Wegner","Lana","lawe","LanaW","michaelwegner1107@gmail.com",null,"Junioren","Junioren U12",null,null,null,"Mädchenliga",null,null,null,"J13",null,"Nachwuchs",null,null,null,null,null,null,null,null,"Jungen 13 I",null,null,null,null,2,"2012-07-11","Annelie-von-Heyl-Straße 24, 68623 Hüttenfeld",null,"michaelwegner1107@gmail.com","Lana Wegner","Annelie-von-Heyl-Straße 24","Hüttenfeld",68623,"Lampertheim","DE"]
["Wegner","Michael","miw2","MichaelW","michaelwegner1107@gmail.com","0171-3451864","Eltern als Betreuer",null,null,null,null,null,null,null,null,null,"Erwachsene",null,null,null,null,null,null,null,null,null,null,null,null,null,null,1,null,"Annelie-von-Heyl-Straße 24, 68623 Hüttenfeld",null,null,"Michael Wegner","Annelie-von-Heyl-Straße 24","Hüttenfeld",68623,"Lampertheim","DE"]
["Weidenauer","Holger","howe","HolgerW","holger@sg-huettenfeld.de","0177-8936955",null,null,null,"Trainer",null,null,null,null,null,null,"Erwachsene",null,null,null,null,null,null,null,null,null,null,null,null,null,null,1,"1974-02-24","Friedrichstr. 33, 68519 Viernheim",null,"weidis-h@gmx.de","Holger Weidenauer","Friedrichstr. 33",null,68519,"Viernheim","DE"]
["Weimer","Jennifer","jewe","JenniferW","jenny@sg-huettenfeld.de","0176- 61491055","Senioren",null,null,null,null,null,null,null,null,null,"Erwachsene",null,null,null,null,null,null,null,null,null,null,null,null,null,null,1,"2000-04-23","Baumgartenstraße 7c, 68623 Hüttenfeld","06256-831081","jenny.weimer@gmx.de","Jennifer Weimer","Baumgartenstraße 7c","Hüttenfeld",68623,"Lampertheim","DE"]
["Wetzel","Jonas","jowe","JonasW","claudia@sg-huettenfeld.de",null,"Junioren","Junioren U12",null,null,null,null,null,null,null,null,null,null,null,null,null,null,null,null,null,null,null,null,null,null,null,2,"2011-08-29","Rosenweg 1, 68623 Hüttenfeld",null,null,"Jonas Wetzel","Rosenweg 1","Hüttenfeld",68623,"Lampertheim","DE"]
["Wetzel","Jürgen","jüwe","JürgenW","juergen@sg-huettenfeld.de","0170-7661020","Senioren","Oldstars",null,null,null,null,null,null,null,null,"Erwachsene",null,null,null,null,null,null,null,null,null,"Herren V",null,null,null,null,1,"1948-06-29","An der Tuchbleiche 8, 68623 Hüttenfeld","06256-820520","jwetzel48@freenet.de","Jürgen Wetzel","An der Tuchbleiche 8","Hüttenfeld",68623,"Lampertheim","DE"]
["Wetzel","Markus","maw2","MarkusWet","markus.wetzel@sg-huettenfeld.de","0170-7661010","Senioren","Oldstars",null,null,null,null,null,null,null,null,"Erwachsene",null,null,null,null,null,null,null,null,null,"Herren V",null,null,null,null,1,"1976-08-15","Rosenweg 1, 68623 Hüttenfeld","06256-82050","claudia.wetzel1@gmx.de","Markus Wetzel","Rosenweg 1","Hüttenfeld",68623,"Lampertheim","DE"]
["Wolf","Jannis","jawo","JannisW","bibivanbeek@aol.com",null,"Junioren",null,null,null,null,null,null,null,null,null,null,"Nachwuchs",null,null,null,null,null,null,null,null,"Jungen 19 I",null,null,null,null,2,"2009-07-29","Jakob-Müller-Straße 27, 68623 Hüttenfeld","06256-238020","bibivanbeek@aol.com","Jannis Wolf","Jakob-Müller-Straße 27","Hüttenfeld",68623,"Lampertheim","DE"]
["Wolf","Timo","tiwo","TimoW","t.wolf@treppenwolf.de","0179-52982573","Eltern als Betreuer",null,null,null,null,null,null,null,null,null,null,null,null,null,null,null,null,null,null,null,null,null,null,null,null,1,null,"",null,null,"Timo Wolf"]
["Zahn","Angela","anza","AngelaZ","angela@sg-huettenfeld.de","0172-6323149","Senioren",null,null,null,null,null,null,null,null,null,"Erwachsene",null,null,null,null,null,null,null,null,null,"Damen I",null,null,null,null,1,"1969-05-19","Sepp-Herberger-Weg 3, 68623 Hüttenfeld","06256-858693","zahn.angela@arcor.de","Angela Zahn","Sepp-Herberger-Weg 3","Hüttenfeld",68623,"Lampertheim","DE"]
["Zahn","Paul","paza","PaulZ","angela@sg-huettenfeld.de",null,"Junioren",null,null,null,null,null,null,null,null,null,null,"Nachwuchs",null,null,null,null,null,null,null,null,null,null,null,null,null,2,"2011-09-25","Sepp-Herberger-Weg 3, 68623 Hüttenfeld",null,null,"Paul Zahn","Sepp-Herberger-Weg 3","Hüttenfeld",68623,"Lampertheim","DE"]
["Zintel","Jakob","jazi","JakobZ","jakob@sg-huettenfeld.de","0163 3958075","Senioren","Oldstars",null,null,null,null,null,null,null,null,"Erwachsene",null,null,null,null,null,null,null,null,null,"Herren V",null,null,null,null,1,"1943-02-02","Johann-Walter-Straße 19, 68623 Hüttenfeld","06256-1072","j.zintel@unity-mail.de","Jakob Zintel","Johann-Walter-Straße 19","Hüttenfeld",68623,"Lampertheim","DE"]
["NN","NN","yyyy","ElternFahrdienst_offen","erinnerungsdienst@sg-huettenfeld.de","0151-61481925",null,null,null,null,null,null,null,null,null,null,null,null,null,null,null,null,null,null,null,null,null,null,null,null,null,1,null,"",null,null,"NN NN"]
["NN","NN","xxxx","Betreuung_offen","erinnerungsdienst@sg-huettenfeld.de","0151-61481925",null,null,null,null,null,null,null,null,null,null,{"$f":"IF(U99=\"\",\"\",IF(V99=\"\",U99 & \", \" & W99 &  \" \"& X99, U99 & \", \"&W99& \" \"&V99))","v":""},null,null,null,null,null,null,null,null,null,null,null,null,null,null,1,null,"",null,null,"NN NN"]

{"sheet":"Gegner","index":5,"n_rows":123,"n_cols":14,"rows_kept":123,"cut":false,"hidden":false,"merged":[[9,4,9,5]]}
[]
[]
[]
[]
[]
[]
[]
[]
[]
[null,"String identisch Click-TT",null,"String identisch mit Rohexport, Spalten12 -15, kommata-getrtrennt","Routenplaner Googlemaps",null,null,"Googlemaps"]
["Stadt","Verein","Halle","Ort","Entfernung (km)","Fahrzeit (min)","Vereinsname - Kurzform","GPS","Venue Name","Venue Description","Venue Address","Venue Zip","Venue City","Venue Country"]
["Arheilgen","SG Arheilgen",1,"SGA-Sportzentrum, Auf der Hardt 80, 64291 Darmstadt",47.1,40,"SG Arheilgen","49.904187, 8.668492","SGA-Sportzentrum Arheilgen","SGA-Sportzentrum","Auf der Hardt 80",64291,"Darmstadt","Deutschland"]
["Auerbach","TSV RW Auerbach",1,"GGEW Sportzentrum Geb. B, Saarstrasse 56, 64625 Bensheim-Auerbach",14.9,17,"TSV Auerbach","49.695236, 8.611327","GGEW Sportzentrum Auerbach","GGEW SportzentrumTSV Auerbach","Saarstrasse 56",64625,"Bensheim-Auerbach","Deutschland"]
["Auerbach","TSV RW Auerbach",2,"TSV Turnhalle Geb. A3, Saarstrasse 56, 64625 Bensheim-Auerbach",14.9,17,"TSV Auerbach","49.695236, 8.611327","TSV Turnhalle","TSV Turnhalle Geb. A3","Saarstrasse 56",64625,"Bensheim-Auerbach","Deutschland"]
["Beedenkirchen","SV Blau-Weiss Beedenkirchen",1,"Dorfgemeinschaftshaus, Am Stotz 8, 64686 Lautertal-Beedenkirchen",24.4,34,"SV Beedenkirchen","49.733586, 8.704849","Dorfgemeinschaftshaus Beedenkirchen","Dorfgemeinschaftshaus Beedenkirchen","Am Stotz, 64686 ",64686,"Lautertal-Beedenkirchen","Deutschland"]
["Beerfelden","TV 1858 Beerfelden",1,"Alte Turnhalle, Hirschhorner Straße 40, 64743 Beerfelden",43.8,53,"TV Beerfelden","49.565531, 8.971708","Alte Turnhalle, Beerfelden","Alte Turnhalle","Hirschhorner Straße 40",64743,"Beerfelden","Deutschland"]
["Bensheim","DJK SSG Bensheim",1,"Karl Kübel Schule, Berliner Ring 34-38, 64625 Bensheim",14.2,11,"SSG Bensheim","49.672906, 8.605934","Karl Kübel Schule, Bensheim","Karl Kübel Schule","Berliner Ring 34-38",64625,"Bensheim","Deutschland"]
["Bensheim","SG Gronau",1,"Dorfgemeinschaftshaus Gronau, Märkerwaldstr. 81a, 64625 Bensheim-Gronau",16,24,"SG Gronau","49.683298, 8.671704","Dorfgemeinschaftshaus Gronau","Dorfgemeinschaftshaus Gronau","Märkerwaldstr. 81a",64625,"Bensheim","Deutschland"]
["Bensheim","TTC Bensheim",2,"Kirchbergschule, Darmstädter Straße 45, 64625 Bensheim",14.4,19,"TTC Bensheim","49.687572, 8.622297","Kirchbergschule, Bensheim","Kirchbergschule","Darmstädter Straße 45",64625,"Bensheim","Deutschland"]
["Bensheim","VfL Bensheim",1,"neue Halle am Alten Kurfürstlichen Gymnasium, Franz-Liszt-Straße / Fehlheimer Straße, 64625 Bensheim",14.7,20,"VfL Bensheim","49.688435, 8.617192","Neue Halle am AKG, Bensheim","Neue Halle am Alten Kurfürstlichen Gymnasium","Franz-Liszt-Straße 11",64625,"Bensheim","Deutschland"]
["Bensheim","VfL Bensheim",2,"Kirchbergschule, Darmstädter Straße 45, 64625 Bensheim",14.1,19,"VfL Bensheim","49.689135, 8.621907","Kirchbergschule, Bensheim","Kirchbergschule","Darmstädter Straße 45",64625,"Bensheim","Deutschland"]
["Bergen-Enkheim","TV 1874 Bergen-Enkheim",1,"Vereinssporthalle TV Bergen-Enkheim, Landgraben 30, 60388 Frankfurt am Main",81.900000000000006,57,"TV Bergen-Enkheim","50.1598723, 8.747432","Vereinssporthalle TV Bergen-Enkheim","Vereinssporthalle","Landgraben 30",60388,"Frankfurt am Main","Deutschland"]
["Bonsweiher","TTG Bonsweiher",1,"Dorfgemeinschaftshaus Bonsweiher, Laudenbacher Straße, 69509 Mörlenbach-Bonsweiher",14.8,19,"TTG Bonsweiher","50.159872, 8.7474329","Dorfgemeinschaftshaus, Bonsweiher","Dorfgemeinschaftshaus Bonsweiher","Laudenbacher Straße 2",69509,"Mörlenbach-Bonsweiher","Deutschland"]
["Bornheim","TG Bornheim 1860",2,"Helmholtzschule, Habsburger Allee 57, 60385 Frankfurt am Main",76.3,55,"TG Bornheim","50.119656,8.708283","Helmholzschule","Turnhalle Helmholtzschule","Habsburger Allee 57",60385,"Frankfurt am Main","Deutschland"]
["Bornheim","TG Bornheim 1860",3,"Linneschule, Linnestr. 18-20, 60385 Frankfurt am Main",77.400000000000006,56,"TG Bornheim","50.122027, 8.706774","Linneschule","Linneschule Obertshausen","Linnestr. 18-20",60385,"Frankfurt am Main","Deutschland"]
["Bürstadt","TV 1891 Bürstadt",1,"Neue Jahnturnhalle, Wasserwerkstr. 4, 68642 Bürstadt",20.3,24,"TV Bürstadt","49.642867, 8.474214","Neue Jahnturnhalle, Bürstadt","Neue Jahnturnhalle","Wasserwerkstr. 4",68642,"Bürstadt","Deutschland"]
["Bürstadt","TV 1891 Bürstadt",2,"Sporthalle Bobstadt, St.-Josef-Str., 68642 Bürstadt-Bobstadt",14.7,19,"TV Bürstadt","49.665254, 8.443949","Sporthalle, Bobstadt","Sporthalle Bobstadt","St.-Josef-Str. 16",68642,"Bürstadt-Bobstadt","Deutschland"]
["Brensbach","TTG Brensbach 1975",1,"Sporthalle am Gemeindezentrum Brensbach, Ezyer Strasse, 64395 Brensbach",53.5,49,"TTG Brensbach","49.77485, 8.8833932"]
["Crumstadt","SV 1946 Crumstadt",1,"Kreissporthalle Crumstadt, Zum Wiesengrund 3, 64850 Riedstadt",32.6,32,"SV Crumstadt","49.815580, 8.507857","Kreissporthalle Crumstadt","Fritz Strauch Halle Kreissporthalle Crumstadt","Ecke Friedrich-Ebert-Straße/Zum Wiesengrund",64560,"Riedstadt","Deutschland"]
["Darmstadt","1.TTC Darmstadt",1,"Turnhalle der Friedrich-Ebert-Schule, Eingang vom Heimstättenweg 99, 64295 Darmstadt",30.8,25,"1. TTC Darmstadt","49.809903, 8.592374","Turnhalle der Friedrich-Ebert-Schule","Turnhalle der Friedrich-Ebert-Schule","Heimstättenweg 99",64295,"Darmstadt","Deutschland"]
["Dornheim","SG 1886 Dornheim",1,"Riedhallenanbau, Im Schießgarten, 64521 Groß-Gerau/Dornheim",51.8,39,"SG Dornheim","49.873170, 8.4821622","Riedhallenanbau","Riedhallenanbau Dornheim","Im Schießgarten",64521,"Groß-Gerau/Dornheim","Deutschland"]
["Dornheim","SG 1886 Dornheim",2,"Sporthalle Dornheim, Am Sportfeld 7, 64521 Groß-Gerau/Dornheim",52.1,40,"SG Dornheim","49.873137, 8.47999802","Sporthalle","Sporthalle Dornheim","Am Sportfeld 7",64521,"Groß-Gerau/Dornheim","Deutschland"]
["Einhausen","BSC 1957 Einhausen",1,"Sporthalle Einhausen, Sepp-Herberger-Straße, 64683 Einhausen",12.3,16,"BSC Einhausen","49.669291, 8.539770","Sporthalle, Einhausen","Sporthalle Einhausen","Sepp-Herberger-Straße",64683,"Einhausen","Deutschland"]
["Ellenbach","TSV Ellenbach 1913/65",1,"TSV-Halle Ellenbach, Schlierbacher Straße 43, 64658 Fürth-Ellenbach",22.1,32,"TSV Ellenbach","49.665481, 8.768265","TSV-Halle, Ellenbach","TSV-Halle Ellenbach","Schlierbacher Straße 43",64658,"Fürth-Ellenbach","Deutschland"]
["Eppertshausen","TTC 1954 Eppertshausen",1,"Bürgerhalle, Waldstraße 19,  64859 Eppertshausen",62.2,49,"TTC  Eppertshausen","49.966775, 8.84999","Bürgerhalle Eppertshausen","Bürgerhalle","Walsdstr.19",64859,"Eppertshausen","Deutschland"]
["Erlenbach","FSV 1954 Erlenbach",1,"Sport + Kulturhalle, Mittershäuser Weg 19, 64658 Fürth-Erlenbach",20.3,32,"FSV Erlenbach","49.664622, 8.742567","Sport- und Kulturhalle, Erlenbach","Sport- und Kulturhalle","Mittershäuser Weg 19",64658,"Fürth-Erlenbach","Deutschland"]
["Erlenbach (Bad König)","TSV Erlenbach 1950",1,"Heinz-Graubner-Halle, Schulhohlstraße 8, 64711 Erbach-Erlenbach",50.8,64,"TSV Erlenbach","49.650882, 9.012649","Heinz-Graubner-Halle","Heinz-Graubner-Halle","Schulhohlstraße 8",64711,"Erbach-Erlenbach","Deutschland"]
["Eschbach","TTC Eschbach",1,"Bürgerhaus Eschbach, Schulstraße, 61250 Eschbach",100,71,"TTC Eschbach","50.354581, 8.540102","Bürgerhaus Eschbach","Bürgerhaus Eschbach","Schulstraße 15",61250,"Usingen","Deutschland"]
["Fehlheim","VfR Fehlheim 1929",1,"Turnhalle der Carl-Orff-Schule, Im Ebertswinkel, 64625 Bensheim-Fehlheim",19.8,18,"VfR Fehlheim","49.705151, 8.568834","Turnhalle der Carl-Orff-Schule, Fehlheim","Turnhalle der Carl-Orff-Schule","Im Ebertswinkel",64625,"Bensheim-Fehlheim","Deutschland"]
["Fehlheim","VfR Fehlheim 1929",2,"Turnhalle AKG, Ecke Franz-Liszt-Straße / Fehlheimer Straße, 64625 Bensheim",14.7,20,"VfR Fehlheim","49.688435, 8.617192","Neue Halle am AKG, Bensheim","Neue Halle am Alten Kurfürstlichen Gymnasium","Franz-Liszt-Straße 11",64625,"Bensheim","Deutschland"]
["Frankfurt","Eintracht Frankfurt",1,"Georg-Büchner-Schule, Pfingstbrunnenstr. 15-17, 60486 Frankfurt",68.099999999999994,43,"Eintracht Frankfurt","50.116066,8.637895","Georg-Büchner-Schule","Turnhalle der Georg-Büchner-Schule","Pfingstbrunnenstr. 15-17",60468,"Frankfurt","Deutschland"]
["Fürth","SV Fürth",1,"Neu Sporthalle,An der Grundschule, Goethestr. 6, 64658 Fürth",21.2,31,"SV Fürth ","49.647942, 8.788599","Neue Sporthalle an der Grundschule, Fürth","Neu Sporthalle an der Grundschule","Goethestr. 6",64658,"Fürth","Deutschland"]
["Gadernheim","TTC Gadernheim",1,"Turnhalle der Mittelpunkt-Schule Gadernheim, Heidenbergstr. 18, 64686 Lautertal-Gadernheim",25.7,37,"TTC Gadernheim","49.714612, 8.739213","Turnhalle Mittelpunktschule, Gadernheim","Turnhalle Mittelpunktschule","Heidenbergstr. 18",64686,"Lautertal-Gadernheim","Deutschland"]
["Ginsheim","TTC Ginsheim",1,"Turnhalle neben Bürgerhaus, Frankfurter Str. 39, 65462 Ginsheim-Gustavsburg",65.599999999999994,44,"TTC Ginsheim","49.96729463, 8.3497295","Turnhalle neben Bürgerhaus","Turnhalle neben Bürgerhaus","Frankfurter Str. 39",65462,"Ginsheim-Gustavsburg","Deutschland"]
["Ginsheim","TTC Ginsheim",2,"IGS Mainspitze Halle B, Sophie-und-Hans-Scholl-Strasse, 65462 Ginsheim-Gustavsburg",65,44,"TTC Ginsheim","49.9763850, 8.3346583","IGS Mainspitze Halle B","IGS Mainspitze Halle B","Sophie-und-Hans-Scholl-Strasse",65462,"Ginsheim-Gustavsburg","Deutschland"]
["Gräfenhausen","TTV Gräfen-/Schneppenh./Weiterstadt",1,"Sporthalle Gräfenhausen, Darmstädter Landstraße 68, 64331 Weiterstadt-Gräfenhausen",44.9,33,"TTV GSW","49.924145, 8.607379","Sporthalle Gräfenhausen","Sporthalle Gräfenhausen"," Darmstädter Landstraße 68",64331,"Weiterstadt-Gräfenhausen","Deutschland"]
["Gräfenhausen","TTV Gräfen-/Schneppenh./Weiterstadt",2,"Sporthalle Braunshardt, Forststrasse, 64331 Weiterstadt-Braunshardt",45.4,35,"TTV GSW","49.912205, 8.568233","Sporthalle Braunshardt","Sporthalle Braunshardt","Forststraße",64331,"Weiterstadt-Braunshardt","Deutschland"]
["Groß-Gerau","TV 1846 Groß-Gerau",1,"Kreissporthalle Groß-Gerau AM VFR Sportplatz, Darmstädter Str.(gegenüber Kreisberufsschule), 64521 Groß-Gerau",47,34,"TV Groß-Gerau","49.915085, 8.489949","Kreissporthalle Groß-Gerau AM VFR Sportplatz","Kreissporthalle","Darmstädter Straße 45",64521,"Groß-Gerau","Deutschland"]
["Groß-Gerau","TV 1846 Groß-Gerau",2,"Turnhalle der Schillerschule auf Esch, Brüsseler Ring 34, 64521 Groß - Gerau",49.1,35,"TV Groß-Gerau","49.907720, 8.476067","Turnhalle der Schillerschule auf Esch","Turmhalle Schiilerschule","Brüsseler Ring 34",64521,"Groß  - Gerau","Deutschland"]
["Groß-Rohrheim","TTC 1950 Groß-Rohrheim",1,"Bürgerhalle / Bürgerhallenanbau, Jahnstraße, 68649 Groß-Rohrheim",21.1,26,"TTC Groß Rohrheim","49.718370, 8.471097","Bürgerhalle, Groß-Rohrheim","Bürgerhalle / Bürgerhallenanbau","Jahnstraße 9",68649,"Groß-Rohrheim","Deutschland"]
["Groß-Umstadt","Spvgg. 1928 Groß-Umstadt",1,"Geiersberghalle, Karolingerstr. 2, 64823 Groß-Umstadt",60.2,52,"Spvgg. Groß-Umstadt","48.869833,8.934617","Geiersberghalle Groß-Umstadt","Geiersbergalle","Karolingerstr. 2",64823,"Groß-Umstadt","Deutschland"]
["Hambach","TSV Hambach 1899",1,"Schlossberghalle, Im Schalbert 2, 64646 HP-Hambach",9.6999999999999993,16,"TSV Hambach","49.649906, 8.651643","Schlossberghalle, Hambach","Schlossberghalle","Im Schalbert 2",64646,"HP-Hambach","Deutschland"]
["Hammelbach","SV 1947 Hammelbach",1,"Schulturnhalle Wahlen, Friedhofstraße 19, 64689 Wahlen",34.1,44,"SV Hammelbach","49.612437, 8.860966","Schulturnhalle Wahlen","Schulturnhalle","Friedhofstraße 19",64689,"Wahlen","Deutschland"]
["Heddernheim","Turnerschaft 1860 FFM Heddernheim",1,"Robert-Schuhmann-Schule, Heddernheimer Kirchstraße 13, 60439 Frankfurt am Main",77.5,53,"Turnerschaft Heddernheim","50.158900, 8.645889","Robert-Schuhmann-Schule, Heddernheim","Robert-Schuhmann-Schule","Heddernheimer Kirchstraße 13",60439,"Frankfurt am Main","Deutschland"]
["Heppenheim","TTC Heppenheim",1,"Turnhalle Konrad-Adenauer-Schule, Mainzer Str.8 / Zufahrt über Weinheimer Straße, 64646 Heppenheim",6.7,9,"TTC Heppenheim","49.634643, 8.627708","Turnhalle Konrad-Adenauer-Schule, Heppenheim","Turnhalle Konrad-Adenauer-Schule","Mainzer Str.8 ",64646,"Heppenheim","Deutschland"]
["Heppenheim","TV 1907 Ober-Laudenbach",1,"Turnhalle Oberlaudenbach, Oberlaudenbacher Str., 64646 Heppenheim",9.8000000000000007,15,"TV Ober-Laudenbach","49.614796, 8.678708","Turnhalle, Oberlaudenbach","Turnhalle","Oberlaudenbacherstr. 75",64646,"Heppenheim","Deutschland"]
["Heusenstamm","TTC Heusenstamm",1,"Kultur und Sportzentrum Martinsee, Martinseestrasse 2, 63150 Heusenstamm",77.2,52,"TTC Heusenstamm","50.053151, 8.824724","Kultur und Sportzentrum Martinsee","Kultur und Sportzentrum","Martinseestrasse 2",63150,"Heusenstamm","Deutschland"]
["Höchst","TSV 1875 Höchst",1,"Sporthalle der Grundschule, Pestalozzistraße, 64739 Höchst",63,58,"TSV Höchst","49.792316, 8.992645","Sporthalle Grundschule Petalozzistraße","Sporthalle","Petalozzistraß4",64739,"Höchst","Deutschland"]
["Höchst","TSV 1875 Höchst",2,"TSV Turnhalle am Schwimmbad, Jahnstraße 1, 64739 Höchst",62.7,54,"TSV Höchst","49.803780, 8.9881651","TSV Sporthalle am Schwimmbad","TSV Sporthalle","Janhstraße 14",64739,"Höchst","Deutschland"]
["Hofheim","TV 1896 Hofheim/Ried",1,"Sporthalle am Sportplatz, Am Sportpark, 68623 Lampertheim-Hofheim",21.4,24,"TV Hofheim","49.653687, 8.402477","Sporthalle am Sportplatz, Hofheim","Sporthalle am Sportplatz","Am Sportpark",68623,"Lampertheim-Hofheim","Deutschland"]
["Hornbach","TTC 1955 Hornbach",1,"Mehrzweckhalle Hornbach, Heimstr. 3, 69488 Birkenau-Hornbach",16.399999999999999,21,"TTC Hornbach","49.567785, 8.731369","Mehrzweckhalle, Hornbach","Mehrzweckhalle Hornbach","Heimstr. 3",69488,"Birkenau-Hornbach","Deutschland"]
["Hüttenfeld","SG 1946 Hüttenfeld",1,"Bürgerhaus, Alfred-Delp-Straße 50, 68623 Lampertheim-Hüttenfeld",0,0,"SGH","49.595314, 8.583223","Bürgerhaus Hüttenfeld","Bürgerhaus","Alfred-Delp-Straße 50",68623,"Lampertheim-Hüttenfeld","Deutschland"]
["Kelsterbach","TTC 1948 Kelsterbach",1,"Kl. Halle der Gesamtschule, Mörfelder Strasse 52, 65451 Kelsterbach",66,42,"TTC Kelsterbach","50.0593943, 8.537020","Kleine Halle Geamtschule"," Gesamtschule Kelsterbach","Mörfelder Strasse 52",65451,"Kelsterbach","Deutschland"]
["Kirschhausen","SV Kirschhausen 1921",1,"Turnhalle Eichendorff Schule, Schulstr. 26, 64646 Kirschhausen",12,19,"SV Kirschhausen","49.642649, 8.687861","Turnhalle Eichendorff Schule, Kirschhausen","Turnhalle Eichendorff Schule","Schulstr. 26",64646,"Kirschhausen","Deutschland"]
["Klein-Krotzenburg","SC 1995 Klein-Krotzenburg",1,"Kreuzburghalle, Herderstraße, 63512 Hainburg; OT.: Klein Krotzenburg",84.2,62,"SC Klein-Krotzenburg","50.074700, 8.962703","Kreuzburghalle","Kreuzburghalle Klein-Krotzenburg","Herderstraße",63512,"Hainburg  OT Klein Krotzenburg","Deutschland"]
["Klein-Krotzenburg","SC 1995 Klein-Krotzenburg",2,"Schulturnhalle der Kreuzburgschule, Kanalstraße, 63512 Hainburg  OT.: Klein Krotzenburg",87,71,"SC Klein-Krotzenburg","50.09940, 8.970308","Schulturnhalle der Kreuzburgschule","Schulturnhalle der Kreuzburgschule","Kanalstraße",63512,"Hainburg  OT Klein Krotzenburg","Deutschland"]
["Königstädten","SV Al. 1907 Königstädten",1,"Grundschule Königstädten, Forsthausstrasse, 65428 Rüsselsheim",57.2,37,"SV Königstädten","49.964595,8.451548","Turnhalle Grundschule Königstädten","Turnhalle Grundschule Königstädten","Forsthausstraße 11",65428,"Rüsselsheim","Deutschland"]
["Lampertheim","TTC 1957 Lampertheim",1,"Sedanhalle, Sedanstraße 7, 68623 Lampertheim",9.5,12,"TTC Lampertheim","49.595138, 8.470990","Sedanhalle, Lampertheim","Sedanhalle","Sedanstraße 7",68623,"Lampertheim","Deutschland"]
["Lampertheim","TV 1883 Lampertheim",1,"TV Jahnturnhalle, Am Sportfeld 6, 68623 Lampertheim",10.9,14,"TV Lampertheim","49.584775, 8.493561","TV Jahnturnhalle, Lampertheim","TV Jahnturnhalle","Am Sportfeld 6",68623,"Lampertheim","Deutschland"]
["Langen","TTC Langen 1950",1,"Turnhalle am Dreieich Gymnasium, Goethestr. 6, 63225 Langen",45.1,38,"TTC Langen 1950","49.988937, 8.665819","Turnhalle Dreieich-Gymnasium","Turnhalle Dreieich-Gymnasium","Goethestr. 6",63225,"Langen","Deutschland"]
["Langen-Brombach","TTC Langen-Brombach",1,"Hallenanbau der Sporthalle Kirchbrombach, Johann-Adam-Groh-Straße 2, 64753 Brombachtal / Kirchbrombach",44.4,56,"TTC Langen-Brombach","49,733166, 8,952892","Sporthalle Brombachta, Hallenanbau","Sporthalle Brombachtal, Hallenanbau"," Adam-Groh-Straße 2",64753,"Brombachtal OT Kirschbrombach","Deutschland"]
["Lindenfels","TSV Lindenfels 1899",1,"Turnhalle Carl-Orff-Schule, Almenweg, 64678 Lindenfels",26.1,36,"TSV Lindenfels","49.688801, 8.779186","Turnhalle Carl-Orff-Schule, Lindenfels","Turnhalle Carl-Orff-Schule","Almenweg",64678,"Lindenfels","Deutschland"]
["Löhrbach","SKG Löhrbach",1,"SKG-Halle, Schulstr. 14, 69488 Birkenau-Löhrbach",18.600000000000001,25,"SKG Löhrbach","49.548728, 8.755093","SKG-Halle, Löhrbach","SKG-Halle","Schulstr. 14",69488,"Birkenau-Löhrbach","Deutschland"]
["Lorsch","TTC 2010 Lorsch",1,"Sporthalle Wingertsbergschule, Bahnhofstraße 17 a, 64653 Lorsch",7.7,12,"TTC Lorsch","49.655300, 8.567708","Sporthalle Wingertsbergschule, Lorsch","Sporthalle Wingertsbergschule","Bahnhofstraße 17a",64653,"Lorsch","Deutschland"]
["Lorsch","TTV TOPSPIN Lorsch",1,"Werner-von-Siemens-Halle, Kiefernstr. 2, 64653 Lorsch",6.2,9,"TOPSPIN Lorsch","49.642863, 8.565461","Werner-von-Siemens-Halle, Lorsch","Werner-von-Siemens-Halle","Kiefernstr. 2",64653,"Lorsch","Deutschland"]
["Lorsch","TTV TOPSPIN Lorsch",2,"Sporthalle Wingertsbergschule, Bahnhofstraße 17a, 64653 Lorsch",7.7,12,"TOPSPIN Lorsch","49.655300, 8.567708","Sporthalle Wingertsbergschule, Lorsch","Sporthalle Wingertsbergschule","Bahnhofstraße 17a",64653,"Lorsch","Deutschland"]
["Mainflingen","TSG Mainflingen 1909",1,"Kleine Halle am Sportplatz, Am Sportplatz 6, 63533 Mainhausen",80.8,60,"TSG Mainflingen","50.026109, 9.023569","Kleine Halle am Sportplatz","Kleine Halle am Sportplatz","Am Sportplatz 6",63533,"Mainhausen","Deutschland"]
["Mainflingen","TSG Mainflingen 1909",2,"Große Halle am Sportplatz, Am Sportplatz 6, 63533 Mainflingen",80.8,60,"TSG Mainflingen","50.026109, 9.023569","Große Halle am Sportplatz","Große Halle am Sportplatz","Am Sportplatz 6",63533,"Mainhausen","Deutschland"]
["Mitlechtern","SG 03 Mitlechtern",1,"Pfalzbach-Halle, Alzenauer Str., 64668 Mitlechtern",16.2,24,"SG Mitlechtern","49.644314, 8.733608","Pfalzbach-Halle, Mitlechtern","Pfalzbach-Halle","Alzenauer Str. 2",64668,"Rimbach-Mitlechtern","Deutschland"]
["Mörfelden","TTC Mörfelden 1952",1,"Stadthalle Walldorf, Waldstraße 100 (Sportlereingang Haupteingang), 64546 Mörfelden-Walldorf",56.1,40,"TTC Mörfelden","50.0030661, 8.5684076","Stadthalle","Stadthalle Walldorf","Waldstraße 100 ",64546,"Mörfelden-Walldorf","Deutschland"]
["Mörlenbach","SV 1896 Mörlenbach",1,"Weschnitztalhalle, Schulstraße, 69509 Mörlenbach",16.2,22,"SV Mörlenbach","49.603743, 8.735096","Weschnitztalhalle, Mörlenbach","Weschnitztal Halle","Schulstr. 12",69509,"Mörlenbach","Deutschland"]
["Nieder-Liebersbach","SV 1893 Ndr.-Liebersbach",1,"SVG Sportheim, Liebersbacher Str. 140, 69488 Birkenau",10.199999999999999,18,"SV Ndr.-Liebersbach","49.586830, 8.700970","SVG Sportheim, Nieder-Liebersbach","SVG Sportheim","Liebersbacher Str. 140",69488,"Birkenau","Deutschland"]
["Nieder-Ramstadt","TSV Nieder-Ramstadt",1,"TSV Turnhalle, Ober-Ramstädter-Str. 37, 64367 Mühltal OT Nieder-Ramstadt",39.200000000000003,29,"TSV Nieder-Ramstadt","49.826098,8.699415","TSV Turnhalle, Nieder-Ramstadt","TSV-Turnhalle","Ober-Ramstädter-Str. 37",64367,"Mühltal OT Nieder-Ramstadt","Deutschland"]
["Ober-Hainbrunn","SV 1972 Ober-Hainbrunn",1,"Sporthalle Oberhainbrunn, Neckarstrasse 39, 64757 Ober-Hainbrunn",51,52,"SV Ober-Hainbrunn","49.487093, 8.901626","Sporthalle Ober-Hainbrunn","Sporthalle","Neckarstrasse 39",64757,"Ober-Hainbrunn","Deutschland"]
["Ober-Kainsbach","SV Ober-Kainsbach",1,"Dorfgemeinschaftshaus, Königsbrunnenstr. 7, 64385 Ober - Kainsbach",37.9,51,"SV Ober-Kainsbach","49.725613, 8.900394","Dorfgemeinschaftshaus, Ober-Kainsbach","Dorfgemeinschaftshaus","Königsbrunnenstr. 7",64385,"Ober-Kainsbach","Deutschland"]
["Ober-Mumbach","SKG Ober-Mumbach",1,"Hermann Schütz Sporthalle, Hellklinger Straße, 69509 Mörlenbach/Ober-Mumbach",17.8,23,"SKG Ober-Mumbach","49.576690, 8.752365","SKG Sporthalle, Ober-Mumbach","SKG Sporthalle","Hellklinger Straße 40",69509,"Mörlenbach/Ober-Mumbach","Deutschland"]
["Ober-Mumbach","SKG Ober-Mumbach",2,"TSV Sport und Kulturhalle, Krappengasse, 69509 Mörlenbach /Weiher",18.3,27,"SKG Ober-Mumbach","49.589432, 8.765176","TSV Turnhalle Weiher","TSV Turnhalle","Krabbengasse",69509,"Mörlenbach/Weiher","Deutschland"]
["Oberrad","TSG Oberrad",1,"Sporthalle Spatzengasse (Zugang Georg-Treser-Str.), Spatzengasse, 60599 Frankfurt",75,56,"TSG Oberrad","50.100852, 8.715999","Sporthalle Spatzengasse","Sporthalle Spatzengasse (Zugang Georg-Treser-Str.)","Spatzengasse",60599,"Frankfurt","Deutschland"]
["Oberrad","TSG Oberrad",2,"Mühlbergschule, Lettigkautweg 8, 60599 Frankfurt",71.099999999999994,54,"TSG Oberrad","50.099113, 8.702075","Sporthalle Mühlbergschule","Sporthalle Mühlbergschule"," Lettigkautweg 8",60599,"Frankfurt","Deutschland"]
["Oberrad","TSG Oberrad",3,"Gruneliusschule, Wiener Str. 13, 60599 Frankfurt",74.599999999999994,53,"TSG Oberrad","50.110182, 8.716741","Sporthalle Gruneliusschule","Sporthalle Gruneliusschule","Wiener Str. 13",60599,"Frankfurt","Deutschland"]
["Ober-Roden","DJK-TTC Ober-Roden",1,"Sporthalle an der Kulturhalle, Dieburgerstr., 63322 Rödermark/Ober-Roden",68.3,53,"TTC Ober-Roden","49.984250,8.816937","Sporthalle an der Kulturhalle, Ober-Roden","Sporthalle an der Kulturhalle","Kapellenstraße 14",63322,"Rödermark","Deutschland"]
["Obertshausen","TG 1860 Obertshausen",1,"Sporthalle Badstraße, Badstraße 15-17, 63179 Obertshausen",78.8,55,"TG Obertshausen","50.068180, 8.862252","Sporthalle Badstraße","Sporthalle Badstraße, Obertshausen","Badstraße 15-17",63179,"Obertshausen","Deutschland"]
["Offenbach","DJK SV Eiche Offenbach",1,"Lauterbornschule, Schubertsr.89, 63069 Offenbach",71.8,56,"Eiche Offenbach","50.084457, 8.759301","Lauterbornschule","Sporthalle Lauterbornschule","Schubertsr.89",63069,"Offenbach","Deutschland"]
["Offenthal","TTC 1972 Offenthal",1,"Philipp-Köppen-Halle, Friedhofstr., 63303 Dreich-Offenthal",61.8,45,"TTC Offenthal","49.981892, 8.746281","Philipp-Köppen-Halle, Friedhofstr.","Philipp-Köppen-Halle","Friedhofstraße",63303,"Dreieich","Deutschland"]
["Reichelsheim","KSV Reichelsheim 1892",1,"Reichenberghalle, Konrad-Adenauer-Allee 1, 64385 Reichelsheim",29.9,39,"KSV Reichelsheim","49.713662, 8.841728","Reichenberghalle Reichelsheim","Reichenberghalle","Konrad-Adenauer-Allee 1",64385,"Reichelsheim","Deutschland"]
["Reichenbach","TSV 1893 Reichenbach",1,"TSV-Turnhalle, Brandauer-Klinger-Weg, 64686 Lautertal-Reichenbach",23.3,28,"TSV Reichenbach","49.713056, 8.698694","TSV-Turnhalle, Reichenbach","TSV-Turnhalle","Brandauer-Klinger-Weg 15",64686,"Lautertal-Reichenbach","Deutschland"]
["Reinheim-Georgenhausen","KSG 1945 Georgenhausen",1,"Hirschbachhalle Reinheim Georgenhausen, Am Mühlbach 17, 64354 Reinheim-Georgenhausen",46.7,47,"KSG Georgenhausen","49.842814, 8.796283","Hirschbachhalle, Reinheim Georgenhausen","Hirschbachhalle","Am Mühlbach 17",64354,"Reinheim-Georgenhausen","Deutschland"]
["Rimbach","TSK SW Rimbach",1,"Odenwaldhalle, Kleiststraße 11, 64668 Rimbach",18.8,25,"TSK Rimbach","49.618246, 8.755887","Odenwaldhalle, Rimbach","Odenwaldhalle","Kleiststraße 11",64668,"Rimbach","Deutschland"]
["Rimbach","TSK SW Rimbach",2,"Mehrzweckhalle, Brunnengasse 41,64668 Rimbach",19.600000000000001,25,"TSK Rimbach","49.6198089, 8.7646776","Mehrzweckhalle Rimbach","Mehrzweckhalle Hornbach","Brunnengasse 41",64668,"Rimbach","Deutschland"]
["Rodgau","JSK Rodgau",1,"Turnhalle der Wilhelm-Busch-Schule, Kasseler Str., 63110 Rodgau",72.599999999999994,56,"JSK Rodgau","50.023425, 8.871769","Turnhalle der Wilhelm-Busch-Schule","Turnhalle der Wilhelm-Busch-Schule","Kasseler Str.",63110,"Rodgau","Deutschland"]
["Rosengarten","TGV Rosengarten",1,"Dorfgemeinschaftshaus, Rheingoldstr.5, 68623 Lampertheim-Rosengarten",18.2,20,"TGV Rosengarten","49.635736, 8.390555","Dorfgemeinschaftshaus, Rosengarten","Dorfgemeinschaftshaus","Rheingoldstr.5",68623,"Lampertheim-Rosengarten","Deutschland"]
["Sachsenhausen","TSV Sachsenhausen 1857",1,"Turnhalle TSV Sachsenhausen, Walter-Kolb-Str. 19, 60594 Frankfurt",67.8,48,"TSV Sachsenhausen","50.104780, 8.683735","Turnhalle TSV Sachsenhausen","Turnhalle TSV Sachsenhause","Walter-Kolb-Str.19",60594,"Frankfurt","Deutschland"]
["Schaafheim","TTC 1988 Schaafheim",1,"Kulturhalle, Sporthallenstraße 1, 64850 Schaafheim",68,59,"TTC Schaafheim","49.923790, 9.002139","Kulturhalle Schaafheim","Kulturhalle","Sporthallenstraße  1",64850,"Schaafheim","Deutschland"]
["Schwanheim","TischTennis-Team Schwanheim",1,"Dorfgemeinschaftshaus Schwanheim, Weyrichstraße 23, 64625 Bensheim",15.1,18,"TTT Schwanheim","49.700305, 8.567078","Dorfgemeinschaftshaus, Schwanheim","Dorfgemeinschaftshaus Schwanheim","Weyrichstraße 23",64625,"Bensheim","Deutschland"]
["Schwanheim (Ffm)","TuS 1872 Schwanheim",1,"große Turnhalle, Saarbrücker Straße 4, 60529 Frankfurt (Main)",65.3,44,"TuS Schwanheim","50.082974, 8.580179","TUS Turnhalle","große TUS  Turnhalle","Saarbrücker Straße 4",60529,"Frankfurt","Deutschland"]
["Seidenbuch","SG Seidenbuch",1,"Sporthaus am Sportplatz, Glashüttenweg 11, 64678 Lindenfels-Seidenbuch",21.2,33,"SG Seidenbuch","49.688768, 8.737100","Sporthaus am Sportplatz","Sporthaus am Sportplatz","Glashüttenweg",64678,"Lindenfels-Seidenbuch","Deutschland"]
["Sossenheim","SG 1878 Sossenheim",1,"kl. Turnhalle Henry-Dunant-Schule, Schaumburgerstraße 62, 65936 Frankfurt-Sossenheim",70.400000000000006,47,"SG Sossenheim","50.118958, 8.560571","Kleine Turnhalle Edith-Stein-Schule","Kleine Turnhalle Edith-Stein-Schule","Schaumburgerstraße 66",65936,"Frankfurt-Sossenheim","Deutschland"]
["Sossenheim","SG 1878 Sossenheim",2,"gr. Turnhalle Edith-Stein-Schule, Schaumburgerstraße 66, 65936 Frankfurt-Sossenheim",70.400000000000006,47,"SG Sossenheim","50.118958, 8.560571","Große Turnhalle Edith-Stein-Schule","Große Turnhalle Edith-Stein-Schule","Schaumburgerstraße 66",65936,"Frankfurt-Sossenheim","Deutschland"]
["Sprendlingen","Sprendlinger Turngemeinde 1848",1,"Hans-Meudt-Halle, Breslauerstraße 20, 63303 Dreieich",59.8,45,"Sprendlinger TG","50.02059, 8.69106","Hans-Meudt-Halle, Dreieich","Hans-Meudt-Halle","Breslauerstraße 20",63303,"Dreieich","Deutschland"]
["Stockheim","TV 07 Stockheim",1,"Turnhalle Stockheim, Mühlstraße 15a, 64720 Michelstadt",48,61,"TV Stockheim","49.667597, 9.001724","Turnhalle Stockheim","Turnhalle","Mühlstraße 15",64720,"Michelstadt","Deutschland"]
["Vöckelsbach","SG Vöckelsbach 1980",1,"Dorfgemeinschaftshaus, Götzensteinstrasse 57, 69509 Mörlenbach-Vöckelsbach",21.1,27,"SG Vöckelsbach","49.733166, 8.952891","Dorfgemeinschaftsgaus Vöckelsbach","Dorfgemeinschaftshaus"," Götzensteinstraße 57",69509,"Mörlenbach-Vöckelsbach","Deutschland"]
["Wald-Erlenbach","KG Wald-Erlenbach",1,"Dorfgemeinschaftshaus, Siegfriedstr.509, 64646 HP/Wald-Erlenbach",15.1,22,"KG Wald-Erlenbach","49.644518, 8.723225","Dorfgemeinschaftshaus, Wald-Erlenbach","Dorfgemeinschaftshaus","Siegfriedstr.509",64646,"Heppenheim-Wald-Erlenbach","Deutschland"]
["Wald-Michelbach","SG Wald-Michelbach",1,"Turnhalle Überwald-Gymnasium, Forsthausstr. 20, 69483 Wald-Michelbach",27,36,"SG Wald-Michelbach","49.566969, 8.828180","Turnhalle Überwald-Gymnasium, Wald-Michelbach","Turnhalle Überwald-Gymnasium","Forsthausstraße 20",69483,"Wald-Michelbach","Deutschland"]
["Walldorf","SV Rot-Weiß 1914 Walldorf",1,"Stadthalle Walldorf, Waldstraße 100, 64546 Mörfelden/Walldorf",63.2,43,"SV RW Walldorf","50.004349, 8.566405","Stadthalle","Stadthalle Walldorf","Waldstraße 100",64546,"Mörfelden-Walldorf","Deutschland"]
["Walldorf","SV Rot-Weiß 1914 Walldorf",2,"Turnhalle der Wilhelm-Arnoul-Schule, Waldstr. 96, 64546 Mörfelden-Walldorf",63.2,43,"SV RW Walldorf","50.004349, 8.566406","Turnhalle der Wilhelm-Arnoul-Schule","Turnhalle der Wilhelm-Arnoul-Schule","Waldstraße 96",64546,"Mörfelden-Walldorf","Deutschland"]
["Wattenheim","SG Nordheim-Wattenheim 1948 e.V.",1,"Sporthalle Wattenheim, Schulstr. 30, 68647 Biblis-Wattenheim",23.1,25,"SG Nordheim-Wattenheim","49.687018, 8.407750","Sporthalle Wattenheim","Sporthalle Wattenheim","Schulstr. 30",68647,"Biblis-Wattenheim","Deutschland"]
["Weiher","TSV 1904 Weiher",1,"TSV-Halle, Krabbengasse, 69509 Mörlenbach-Weiher",18.2,24,"TSV Weiher","49.586272, 8.766983","Sport- und Kulturhalle, Weiher","Sport- und Kulturhalle","Am Gerätehaus 1",69509,"Mörlenbach-Weiher","Deutschland"]
["Wersau","TV 1908 Wersau",1,"Sporthalle Wersau, Am Sportplatz, 64395 Brensbach - Wersau",52.4,47,"TV Wersau","49.778001, 8.860544","Sporthalle Wersau","Sporthalle Wersauam Sportplatz"," Am Sportplatz",64395,"Brensbach - Wersau","Deutschland"]
["Wersau","TV 1908 Wersau",2,"Sporthalle am Gemeindezentrum Brensbach, Ezyer Strasse, 64395 Brensbach",53.6,49,"TV Wersau","49.774842, 8.883382","Sporthalle am Gemeindezentrum","Sporthalle am Gemeindezentrum Brensbac","Ezyer Strasse",64395,"Brensbach","Deutschland"]
["Zeilsheim","DJK-SG 1929 Zeilsheim",1,"Käthe-Kollwitz Schule, Westhöchsterstr. 103, 65931 Frankfurt",72.5,47,"DJK Zeilsheim","50.093873, 8.4952503","Käthe-Kollwitz Schule","Sporthalle","West-Höchster Str. 103",63931,"Frankfurt","Deutschland"]
["Zell","SKG Zell",1,"Dorfgemeinschaftshaus Zell, Gronauer Straße 98-100, 64625 Bensheim-Zell",13.6,22,"SKG Zell","49.674877, 8.644611","Dorfgemeinschaftshaus Zell","Dorfgemeinschaftshaus Zell","Gronauer Straße 98-100",64625,"Bensheim-Zell","Deutschland"]
["Zell","SKG Zell",2,"Dorfgemeinschaftshaus Gronau, Märkerwaldstraße 81a 64625 Bensheim-Gronau",15.8,24,"SKG Zell","49.6853764, 8.6718131","Dorfgemeinschaftshaus Gronau","Dorfgemeinschaftshaus Gronau","Märkerwaldstraße 81a",64625,"Bensheim-Gronau","Deutschland"]
["Zwingenberg","TuS 1884 Zwingenberg",1,"Jakop-Delp-Halle, Wiesenpromenade 5, 64673 Zwingenberg",21.7,18,"TuS Zwingenberg","49.723201, 8.611692","Jakob-Delp-Halle, Zwingenberg","Jakob-Delp-Halle","Wiesenpromenade 5",64673,"Zwingenberg","Deutschland"]

{"sheet":"Mannschaften","index":6,"n_rows":22,"n_cols":10,"rows_kept":22,"cut":false,"hidden":false,"merged":[[10,9,11,9],[10,8,11,8],[10,1,10,2],[10,7,11,7],[10,0,11,0],[10,3,11,3],[10,4,11,4],[10,5,11,5],[10,6,11,6]]}
[]
[]
[]
[]
[]
[]
[]
[]
[]
[]
["Mannschaft","Einspielzeit\nin Minuten",null,"Mannschafts-\nführer","Telefon","E-Mail","Spieldauer\nin Minuten","Mannschaft als\nAbteilungsgruppe","Spielsystem\nVerbandsspiel","Spielsystem\nPokalspiel"]
[null,"Heimspiel","Auswärtsspiel"]
["Damen I",30,45,"Patricia Kohl","0152-09496166","patricia@sg-huettenfeld.de",120,"Damen 1","Braunschweiger System"]
["Herren I",30,30,"Volker Berg","0176-23165187","volker@sg-huettenfeld.de",120,"Herren 1","4er-Bundessystem","3er-Pokalsystem"]
["Herren II",30,30,"Bernd Blümbott","0176-20942177","bernd@sg-huettenfeld.de",120,"Herren 2","4er-Bundessystem","3er-Pokalsystem"]
["Herren III",30,30,"Ludwig Günther","0171-2215881","ludwig@sg-huettenfeld.de",120,"Herren 3","4er-Bundessystem","3er-Pokalsystem"]
["Herren IV",30,30,"Thomas Jahn","0151-42601126","thomas@sg-huettenfeld.de",120,"Herren 4","4er-Bundessystem","3er-Pokalsystem"]
["Herren V",30,30,"Johannes Daenschel","0176-21352190","johannes@sg-huettenfeld.de",120,"Herren 5","4er-Bundessystem","3er-Pokalsystem"]
["Mädchen 13 I",30,30,"Katja Schietzold","0151-23274161","katja@sg-huettenfeld.de",90,"Mädchen 13 1"," Corbillon-Cup"]
["Jungen 13 I",30,30,"Katja Schietzold","0151-23274161","katja@sg-huettenfeld.de",120,"Jungen 13 1","Braunschweiger System"]
["Jungen 15 I",30,30,"Katja Schietzold","0151-23274161","katja@sg-huettenfeld.de",120,"Jungen 15 1","Braunschweiger System","3er-Pokalsystem"]
["Jungen 19 I",30,30,"Katja Schietzold","0151-23274161","katja@sg-huettenfeld.de",120,"Jungen 19 1","Braunschweiger System"]

{"sheet":"ini","index":7,"n_rows":42,"n_cols":8,"rows_kept":42,"cut":false,"hidden":false,"merged":[[32,2,35,2],[1,4,1,7],[0,4,0,7]]}
["Letzter Bearbeiter","Erich Händler","2025-02-27T11:31:54","Zellen A1 und B1 werden vom Programm überschrieben","Blacklist Terminerinnerungen"]
["Pfad Listenausgabe",null,null,null,"Die Handy- und die Email-Spalte sind unabhängig von einander"]
["Pfad lokale Datensicherung","C:\\Datensicherung\\Masterliste\\",null,null,"Name","Handy","Name","Email"]
["Dateiname Mailsender-Excel","mailsender.xlsx",null,null,"MatthiasT","017684148197","MarkusR","markus.reiter@sg-huettenfeld.de"]
["Dateiname Mailmerge-CSV","Mailmerge.csv",null,null,"TimK","017682475246","UdoS","udoschuhmacher@t-online.de"]
["Dateiname Spieler-Terminlisten","Termine.xlsx",null,null,"UdoS","017655623623","ChristopherL","luft.christopher@gmx.de"]
["Dateiname GoogleMail-Dateien","Spielorte_",null,null,"MarkusR","01724648448","LeonH","leonherd@gmx.de"]
["Dateiname Spielerliste","Spieler_Kontaktdaten.xlsx",null,null,"ChristopherL","015735222603"]
["Prozent Verkleinerung für Drucklayout für Franks Adressliste",84,null,null,"LeonH","01728903319"]
["HTTV-Vereinsnummer (SGH ist 41023)",41023]
[]
["Trainingsgeneratur:\nVergangene Termine anzeigen?","False","True oder False"]
["Listen/Kalender vergangene Termine\nanzeigen (außer Betreunungsübersicht)","False"]
["Spielerspezifische Listen Text Zeile 1","Terminplan Saison 2024/2025 für "]
["Spielerspezifische Listen Text Zeile 3","Bitte bewahre diese Liste gut auf und sei pünktlich bei den Veranstaltungen. \nSEHR WICHTIG: Wenn Du zu einem Termin nicht kannst, melde Dich bitte eine Woche vorher bei Deinem Mannschaftsführer, im Fall einer Krankheit bitte schnellstmöglich."]
["Spielerspezifische Listen Text Zeile 4","Solltest Du Fragen zu den Terminen haben, wende Dich bitte ebenfalls an Deinen Mannschaftsführer: "]
[]
[]
["Auf True setzen, wenn der kritische Befehl \nApplication.PrintCommunication = False verwendet werden soll. Das verkürzt  den (erheblichen) Zeitbedarf für den Pagesetup der Sheets um einen Faktor 10","True","Ambivaletes Statement. Kann Felermeldung mit dem Default-Drucker erzeugen. In diesem Fall auf False setzten"]
[]
["ics Dateien anlegen","True","True oder False"]
[]
["Zusätzliche lokale Datensicherung nach Button \"Speichern und Beenden\"","True","True oder False"]
[]
["Keywords zur Terminunterdrückung in TheEventsCalendar, durch Kommata abgetrennt",null,"Innerhalb der einzelnen Keywords dürfen keine Kommata sein","fällt aus,Halle belegt,Bürgerhaus belegt, abgesagt, canceled, cancelled,gecanceled, gecancelled,nicht in TEC"]
[]
["Terminerinnerung: Anzahl der Tage vor dem Termin, an dem die Email rausgeht",4]
[]
["Terminerinnerung: Anzahl der Tage vor dem Termin, an dem die SMS rausgeht",0]
[]
["Terminerinnerung: Anzahl der Tage vor dem Termin, an dem die Email \"Vorwarnung\" an den Administrator rausgeht",1]
[]
["Zeitbegrenzung ML von","01.01.2025","werden vom Programm überschrieben"]
["Zeitbegrenzung ML bis","30.06.2025"]
["Dummy-Pokalspiel Tag","13.10.2024"]
["Dummy-Pokalspiel Zeit","16:00"]
[]
["Vorlauf Heimspiel",30]
["Vorlauf Auswärtsspiel",45]
["Spieldauer",120]
[]
["Trainigstermine in Betreuerliste","False"]

{"sheet":"Generisch","index":8,"n_rows":72,"n_cols":7,"rows_kept":72,"cut":false,"hidden":false,"merged":[]}
["Betrifft","Wettbewerb","Tag","Datum","Beginn","Gegner","Veranstaltung"]
["Damen I","Damen BK Gr.1","Di","2025-01-28","20:00:00","SV RW Walldorf I","A"]
["Damen I","Damen BK Gr.1","So","2025-02-02","10:00:00","SV Mörlenbach I","H"]
["Damen I","Damen BK Gr.1","Do","2025-02-13","20:00:00","TTC Kelsterbach I","H"]
["Damen I","Damen BK Gr.1","Mo","2025-02-24","19:30:00","TTC Ginsheim II","A"]
["Damen I","Damen BK Gr.1","Mi","2025-03-05","20:00:00","SG Seidenbuch II","A"]
["Damen I","Damen BK Gr.1","Do","2025-03-27","20:00:00","BSC Einhausen I","H"]
["Damen I","Damen BK Gr.1","Sa","2025-04-05","11:00:00","TSK Rimbach II","A"]
["Herren I","Herren BK Gr. 1","So","2025-01-19","14:30:00","SV Kirschhausen I","H"]
["Herren I","Herren BK Gr. 1","So","2025-01-26","14:30:00","TSV Hambach I","H"]
["Herren I","Herren BK Gr. 1","Fr","2025-02-07","20:30:00","TV Bürstadt IV","A"]
["Herren I","Herren BK Gr. 1","Sa","2025-03-01","18:00:00","TSV Ellenbach II","A"]
["Herren I","Herren BK Gr. 1","Sa","2025-03-08","16:45:00","TTC Lampertheim V","H"]
["Herren I","Herren BK Gr. 1","Sa","2025-03-15","16:45:00","TV Bürstadt II","H"]
["Herren I","Herren BK Gr. 1","Fr","2025-03-21","20:00:00","VfR Fehlheim V","A"]
["Herren I","Herren BK Gr. 1","Sa","2025-03-29","14:30:00","SG Mitlechtern I","H"]
["Herren I","Herren BK Gr. 1","Mi","2025-04-02","20:00:00","TTC Lampertheim III","A"]
["Herren II","Herren KL W","Fr","2025-01-31","20:15:00","TV Bürstadt V","H"]
["Herren II","Herren KL W","Mo","2025-02-10","20:00:00","TTC Lampertheim VI","A"]
["Herren II","Herren KL W","Mo","2025-02-24","20:15:00","TSV Auerbach II","A"]
["Herren II","Herren KL W","Do","2025-03-06","20:15:00","SG Nordheim-Wattenheim I","A"]
["Herren II","Herren KL W","Di","2025-03-11","20:00:00","SG Gronau II","A"]
["Herren II","Herren KL W","Fr","2025-03-21","20:15:00","VfL Bensheim I","H"]
["Herren II","Herren KL W","Fr","2025-03-28","20:00:00","SV Kirschhausen II","A"]
["Herren II","Herren KL W","Do","2025-04-03","20:15:00","SSG Bensheim II","H"]
["Herren III","Herren 3. KK W 1","Mi","2025-01-15","19:30:00","SGH V","D"]
["Herren III","Herren 3. KK W 1","Mo","2025-01-20","20:15:00","TSV Hambach III","A"]
["Herren III","Herren 3. KK W 1","Fr","2025-02-14","20:15:00","TTC Heppenheim VII","H"]
["Herren III","Herren 3. KK W 1","Fr","2025-02-21","20:00:00","SKG Zell I","A"]
["Herren III","Herren 3. KK W 1","Fr","2025-02-28","20:15:00","TSV Auerbach VII","H"]
["Herren III","Herren 3. KK W 1","Fr","2025-03-14","20:15:00","TV Ober-Laudenbach III","H"]
["Herren III","Herren 3. KK W 1","Mi","2025-03-19","19:30:00","TTC Lorsch III","A"]
["Herren III","Herren 3. KK W 1","Fr","2025-03-28","20:15:00","SG Gronau V","H"]
["Herren III","Herren 3. KK W 1","Mi","2025-04-02","20:00:00","TTC Lampertheim XI","A"]
["Herren IV","Herren 3. KK W 2","Fr","2025-01-24","20:15:00","VfR Fehlheim VII","H"]
["Herren IV","Herren 3. KK W 2","Fr","2025-01-31","20:15:00","TSV Hambach IV","H"]
["Herren IV","Herren 3. KK W 2","Do","2025-02-06","20:00:00","TV Ober-Laudenbach II","A"]
["Herren IV","Herren 3. KK W 2","Do","2025-02-27","20:15:00","SG Gronau IV","A"]
["Herren IV","Herren 3. KK W 2","Fr","2025-03-07","20:15:00","TTC Lorsch II","H"]
["Herren IV","Herren 3. KK W 2","Fr","2025-03-14","20:15:00","BSC Einhausen II","A"]
["Herren IV","Herren 3. KK W 2","Fr","2025-03-21","20:15:00","TSV Auerbach VI","H"]
["Herren IV","Herren 3. KK W 2","Fr","2025-03-28","19:30:00","SSG Bensheim IV","A"]
["Herren IV","Herren 3. KK W 2","Fr","2025-04-04","20:15:00","TV Bürstadt IX","H"]
["Herren V","Herren 3. KK W 1","Mi","2025-01-15","19:30:00","SGH III","D"]
["Herren V","Herren 3. KK W 1","Mi","2025-01-22","19:30:00","SG Gronau V","H"]
["Herren V","Herren 3. KK W 1","Di","2025-01-28","19:30:00","SKG Zell I","A"]
["Herren V","Herren 3. KK W 1","Mi","2025-02-05","20:00:00","TTC Lampertheim XI","A"]
["Herren V","Herren 3. KK W 1","Mi","2025-02-12","19:30:00","TSV Auerbach VII","H"]
["Herren V","Herren 3. KK W 1","So","2025-02-16","13:00:00","TTC Heppenheim VII","A"]
["Herren V","Herren 3. KK W 1","Mi","2025-02-26","19:30:00","TV Ober-Laudenbach III","H"]
["Herren V","Herren 3. KK W 1","Mo","2025-03-24","20:15:00","TSV Hambach III","A"]
["Herren V","Herren 3. KK W 1","Mi","2025-04-02","19:30:00","TTC Lorsch III","A"]
["Jungen 13 I","Jungen 13 2.KK","So","2025-02-02","10:00:00","SV Fürth  I","H"]
["Jungen 13 I","Jungen 13 2.KK","Sa","2025-02-08","14:00:00","TTC Groß Rohrheim III","A"]
["Jungen 13 I","Jungen 13 2.KK","So","2025-02-09","10:00:00","TSV Weiher I","H"]
["Jungen 13 I","Jungen 13 2.KK","Fr","2025-02-28","18:15:00","SG Wald-Michelbach II","A"]
["Jungen 13 I","Jungen 13 2.KK","Fr","2025-03-14","17:45:00","TSK Rimbach II","A"]
["Jungen 13 I","Jungen 13 2.KK","So","2025-03-23","10:00:00","TSV Auerbach II","H"]
["Jungen 15 I","Jungen 15 KL","Sa","2025-01-18","13:00:00","TTC Heppenheim II","A"]
["Jungen 15 I","Jungen 15 KL","Sa","2025-01-25","13:30:00","TSV Ellenbach I","A"]
["Jungen 15 I","Jungen 15 KL","Fr","2025-01-31","18:15:00","TTC Heppenheim I","H"]
["Jungen 15 I","Jungen 15 KL","Mi","2025-02-12","17:30:00","TSK Rimbach I","A"]
["Jungen 15 I","Jungen 15 KL","Fr","2025-03-07","18:15:00","TV Bürstadt I","H"]
["Jungen 15 I","Jungen 15 KL","Fr","2025-03-14","18:15:00","TSV Auerbach I","H"]
["Jungen 15 I","Jungen 15 KL","Sa","2025-03-22","10:00:00","TTC Heppenheim I","A"]
["Jungen 15 I","Jungen 15 KL","Fr","2025-04-04","18:15:00","TTC Groß Rohrheim I","H"]
["Jungen 19 I","Jungen 19 1. KK","So","2025-01-26","10:00:00","TSV Ellenbach I","H"]
["Jungen 19 I","Jungen 19 1. KK","So","2025-02-09","10:00:00","TSV Auerbach I","H"]
["Jungen 19 I","Jungen 19 1. KK","Mo","2025-02-24","18:15:00","TSV Hambach I","A"]
["Jungen 19 I","Jungen 19 1. KK","So","2025-03-02","10:00:00","SKG Ober-Mumbach II","H"]
["Jungen 19 I","Jungen 19 1. KK","Sa","2025-03-22","14:00:00","TSV Reichenbach I","A"]
["Jungen 19 I","Jungen 19 1. KK","So","2025-04-06","10:00:00","TSV Lindenfels I","H"]

{"sheet":"Mailmerge","index":9,"n_rows":74,"n_cols":28,"rows_kept":74,"cut":false,"hidden":false,"merged":[]}
["Betrifft","Veranstaltung","Tag","Datum","Beginn","Ende","Wettbewerb","Gegner","Es spielt","Es fehlt","Betreuer/Fahrer","eMail_Fahrer","Treffen","Halle/Ort/Fahrzeit","Bemerkung","Eventcode","Telefon","Spielsystem","Reserve_1","Reserve_2","E1_Sendetermin","E1_Status","E2_Sendetermin","E2_Status","SMS1_Sendetermin","SMS1_Status","SMS2_Sendetermin","SMS2_Status"]
["Junioren","Neujahrs-Ausflug","Freitag","17.01.2025",null,null,null,null,null,null,"KatjaS, CarlaS, JonasR, HeikoM","katja@sg-huettenfeld.de,carla@sg-huettenfeld.de,jonas@sg-huettenfeld.de,heiko@sg-huettenfeld.de","09:00:00",null,null,"M_5042E2AE4FD8","015123274161, 01637964195, 01717057707, 017663884425",null,null,null,"13.01.2025","open","12.01.2025","open","17.01.2025","open","16.01.2025","open"]
["Jungen 15 I","Auswärtsspiel","Samstag","18.01.2025","13:00:00","15:00:00","Jungen 15 KL","TTC Heppenheim II",null,null,"CarlaS","carla@sg-huettenfeld.de","12:20:00","Turnhalle Konrad-Adenauer-Schule, Mainzer Str.8 / Zufahrt über Weinheimer Straße, 64646 Heppenheim / 6,7km / 9min",null,"W_Jungen 15 Kreisliga212374102341053","01637964195","Braunschweiger System",null,null,"14.01.2025","open","13.01.2025","open","18.01.2025","open","17.01.2025","open"]
["Mädchenliga","4. Blockspieltag Mädchenliga 3er?","Sonntag","19.01.2025","10:00:00","18:00:00",null,null,"JuliaO, ZuzannaG, LanaW",null,"EmilyM","mimueller82@googlemail.com ",null,"TSV Turnhalle am Schwimmbad, Jahnstraße 1, 64739 Höchst / 62,7km / 54min",null,"M_93F8175CED32","",null,null,null,"15.01.2025","open","14.01.2025","open","19.01.2025","open","18.01.2025","open"]
["Jungen 15 I","Auswärtsspiel","Samstag","25.01.2025","13:30:00","15:30:00","Jungen 15 KL","TSV Ellenbach I",null,null,"DanielaW","wagnerdaniela@hotmail.com","12:30:00","TSV-Halle Ellenbach, Schlierbacher Straße 43, 64658 Fürth-Ellenbach / 22,1km / 32min",null,"W_Jungen 15 Kreisliga112384101141023","01782095866","Braunschweiger System",null,null,"21.01.2025","open","20.01.2025","open","25.01.2025","open","24.01.2025","open"]
["Jungen 19 I","Heimspiel","Sonntag","26.01.2025","10:00:00","12:00:00","Jungen 19 1. KK","TSV Ellenbach I",null,null,"PatriciaK","patricia@sg-huettenfeld.de","09:30:00","Bürgerhaus Hüttenfeld, Alfred-Delp-Straße 50, 68623 Lampertheim-Hüttenfeld",null,"W_Jungen 19 1. Kreisklasse112294101141023","015209496166","Braunschweiger System",null,null,"22.01.2025","open","21.01.2025","open","26.01.2025","open","25.01.2025","open"]
["Jungen 15 I","Heimspiel","Freitag","31.01.2025","18:15:00","20:15:00","Jungen 15 KL","TTC Heppenheim I",null,null,"KatjaS, CarlaS","katja@sg-huettenfeld.de,carla@sg-huettenfeld.de","17:45:00","Bürgerhaus Hüttenfeld, Alfred-Delp-Straße 50, 68623 Lampertheim-Hüttenfeld",null,"W_Jungen 15 Kreisliga112424102341053","015123274161, 01637964195","Braunschweiger System",null,null,"27.01.2025","open","26.01.2025","open","31.01.2025","open","30.01.2025","open"]
["Jungen 13 I","Heimspiel","Sonntag","02.02.2025","10:00:00","12:00:00","Jungen 13 2.KK","SV Fürth  I",null,null,"DirkV","dirk@sg-huettenfeld.de","09:30:00","Bürgerhaus Hüttenfeld, Alfred-Delp-Straße 50, 68623 Lampertheim-Hüttenfeld",null,"W_Jungen 13 2.Kreisklasse112334101441023","015154826447","Braunschweiger System",null,null,"29.01.2025","open","28.01.2025","open","02.02.2025","open","01.02.2025","open"]
[null,"Ortsentscheid Minimeisterschaft","Dienstag","04.02.2025","16:30:00","20:00:00",null,null,null,null,"ChristopherL, LeonH, CarlaS, KatjaS","carla@sg-huettenfeld.de,katja@sg-huettenfeld.de",null,"Bürgerhaus Hüttenfeld",null,"M_F53B16B22579","01637964195, 015123274161",null,null,null,"31.01.2025","open","30.01.2025","open","04.02.2025","open","03.02.2025","open"]
["Nachwuchs","Training","Dienstag","04.02.2025","17:30:00","19:15:00",null,null,null,null,"ChristopherL, JonasR, LeonH","jonas@sg-huettenfeld.de","17:30:00","Bürgerhaus, Hüttenfeld",null,"T_F8B540FBC9A0","01717057707",null,null,null,"31.01.2025","open","30.01.2025","open","04.02.2025","open","03.02.2025","open"]
["Nachwuchs","Training","Freitag","07.02.2025","18:00:00","19:30:00",null,null,null,null,"JonasR, HeikoM, PiaH, ErdemK","jonas@sg-huettenfeld.de,heiko@sg-huettenfeld.de,pia@sg-huettenfeld.de,k_uzu@hotmail.de","18:00:00","Bürgerhaus, Hüttenfeld",null,"T_30680D5D27DE","01717057707, 017663884425, 015201585090, 017671958302",null,null,null,"03.02.2025","open","02.02.2025","open","07.02.2025","open","06.02.2025","open"]
["Jungen 13 I","Auswärtsspiel","Samstag","08.02.2025","14:00:00","16:00:00","Jungen 13 2.KK","TTC Groß Rohrheim III",null,null,"ThomasJ","thomas@sg-huettenfeld.de","13:00:00","Bürgerhalle / Bürgerhallenanbau, Jahnstraße, 68649 Groß-Rohrheim / 21,1km / 26min",null,"W_Jungen 13 2.Kreisklasse312234101741023","015142601126","Braunschweiger System",null,null,"04.02.2025","open","03.02.2025","open","08.02.2025","open","07.02.2025","open"]
["Jungen 13 I","Heimspiel","Sonntag","09.02.2025","10:00:00","12:00:00","Jungen 13 2.KK","TSV Weiher I",null,null,"JohannesD","johannes@sg-huettenfeld.de","09:30:00","Bürgerhaus Hüttenfeld, Alfred-Delp-Straße 50, 68623 Lampertheim-Hüttenfeld",null,"W_Jungen 13 2.Kreisklasse112244102341050","017621352190","Braunschweiger System",null,null,"05.02.2025","open","04.02.2025","open","09.02.2025","open","08.02.2025","open"]
["Jungen 19 I","Heimspiel","Sonntag","09.02.2025","10:00:00","12:00:00","Jungen 19 1. KK","TSV Auerbach I",null,null,"MarkusWet","markus.wetzel@sg-huettenfeld.de","09:30:00","Bürgerhaus Hüttenfeld, Alfred-Delp-Straße 50, 68623 Lampertheim-Hüttenfeld",null,"W_Jungen 19 1. Kreisklasse112344100141023","01707661010","Braunschweiger System",null,null,"05.02.2025","open","04.02.2025","open","09.02.2025","open","08.02.2025","open"]
["Nachwuchs","Training","Dienstag","11.02.2025","17:30:00","19:15:00",null,null,null,null,"ChristopherL, JonasR, LeonH","jonas@sg-huettenfeld.de","17:30:00","Bürgerhaus, Hüttenfeld",null,"T_907550C69702","01717057707",null,null,null,"07.02.2025","open","06.02.2025","open","11.02.2025","open","10.02.2025","open"]
["Jungen 15 I","Auswärtsspiel","Mittwoch","12.02.2025","17:30:00","19:30:00","Jungen 15 KL","TSK Rimbach I",null,null,"KatjaS","katja@sg-huettenfeld.de","16:30:00","Odenwaldhalle, Kleiststraße 11, 64668 Rimbach / 18,8km / 25min",null,"W_Jungen 15 Kreisliga112484102341040","015123274161","Braunschweiger System",null,null,"08.02.2025","open","07.02.2025","open","12.02.2025","open","11.02.2025","open"]
["Nachwuchs","Training","Freitag","14.02.2025","18:00:00","19:30:00",null,null,null,null,"JonasR, HeikoM, PiaH, ErdemK","jonas@sg-huettenfeld.de,heiko@sg-huettenfeld.de,pia@sg-huettenfeld.de,k_uzu@hotmail.de","18:00:00","Bürgerhaus, Hüttenfeld",null,"T_258FCA7768AD","01717057707, 017663884425, 015201585090, 017671958302",null,null,null,"10.02.2025","open","09.02.2025","open","14.02.2025","open","13.02.2025","open"]
["Mädchenliga","5. Blockspieltag Mädchenliga","Sonntag","16.02.2025","10:00:00","18:00:00",null,null,null,null,"Betreuung_offen, ElternFahrdienst_offen","erinnerungsdienst@sg-huettenfeld.de,erinnerungsdienst@sg-huettenfeld.de",null,"Turnhalle Königsbrunnenstrasse 7, 64385 Reichelsheim (Oberkainsbach) / 37,5km / 49min","Zwei Spielrunden, Beginn 11:00 und  13:00 Uhr","M_728B87FF0902","015161481925, 015161481925",null,null,null,"12.02.2025","open","11.02.2025","open","16.02.2025","open","15.02.2025","open"]
["Nachwuchs","Training","Dienstag","18.02.2025","17:30:00","19:15:00",null,null,null,null,"ChristopherL, JonasR, LeonH","jonas@sg-huettenfeld.de","17:30:00","Bürgerhaus, Hüttenfeld",null,"T_46FAE44B844E","01717057707",null,null,null,"14.02.2025","open","13.02.2025","open","18.02.2025","open","17.02.2025","open"]
["Jungen 19 I","Auswärtsspiel","Montag","24.02.2025","18:15:00","20:15:00","Jungen 19 1. KK","TSV Hambach I",null,null,"KirstenE","ehretkirsten@gmail.com","17:25:00","Schlossberghalle, Im Schalbert 2, 64646 HP-Hambach / 9,7km / 16min",null,"W_Jungen 19 1. Kreisklasse112394101841023","01631706338","Braunschweiger System",null,null,"20.02.2025","open","19.02.2025","open","24.02.2025","open","23.02.2025","open"]
["Nachwuchs","Training","Dienstag","25.02.2025","17:30:00","19:15:00",null,null,null,null,"ChristopherL, JonasR, LeonH","jonas@sg-huettenfeld.de","17:30:00","Bürgerhaus, Hüttenfeld",null,"T_9266CE6E745C","01717057707",null,null,null,"21.02.2025","open","20.02.2025","open","25.02.2025","open","24.02.2025","open"]
["Nachwuchs","Training","Freitag","28.02.2025","18:00:00","19:30:00",null,null,null,null,"JonasR, HeikoM, PiaH, ErdemK","jonas@sg-huettenfeld.de,heiko@sg-huettenfeld.de,pia@sg-huettenfeld.de,k_uzu@hotmail.de","18:00:00","Bürgerhaus, Hüttenfeld",null,"T_174FF97519EF","01717057707, 017663884425, 015201585090, 017671958302",null,null,null,"24.02.2025","open","23.02.2025","open","28.02.2025","open","27.02.2025","open"]
["Jungen 13 I","Auswärtsspiel","Freitag","28.02.2025","18:15:00","20:15:00","Jungen 13 2.KK","SG Wald-Michelbach II",null,null,"MichaelW","michaelwegner1107@gmail.com","17:05:00","Turnhalle Überwald-Gymnasium, Forsthausstr. 20, 69483 Wald-Michelbach / 27km / 36min",null,"W_Jungen 13 2.Kreisklasse212294102341048","01713451864","Braunschweiger System",null,null,"24.02.2025","open","23.02.2025","open","28.02.2025","open","27.02.2025","open"]
["Jungen 19 I","Heimspiel","Sonntag","02.03.2025","10:00:00","12:00:00","Jungen 19 1. KK","SKG Ober-Mumbach II",null,null,"KatjaS","katja@sg-huettenfeld.de","09:30:00","Bürgerhaus Hüttenfeld, Alfred-Delp-Straße 50, 68623 Lampertheim-Hüttenfeld",null,"W_Jungen 19 1. Kreisklasse122444102341038","015123274161","Braunschweiger System",null,null,"26.02.2025","open","25.02.2025","open","02.03.2025","open","01.03.2025","open"]
["Nachwuchs","Training","Dienstag","04.03.2025","17:30:00","19:15:00",null,null,null,null,"ChristopherL, JonasR, LeonH","jonas@sg-huettenfeld.de","17:30:00","Bürgerhaus, Hüttenfeld",null,"T_265B8D6446D1","01717057707",null,null,null,"28.02.2025","open","27.02.2025","open","04.03.2025","open","03.03.2025","open"]
["Nachwuchs","Training","Freitag","07.03.2025","18:00:00","19:30:00",null,null,null,null,"JonasR, HeikoM, PiaH, ErdemK","jonas@sg-huettenfeld.de,heiko@sg-huettenfeld.de,pia@sg-huettenfeld.de,k_uzu@hotmail.de","18:00:00","Bürgerhaus, Hüttenfeld",null,"T_20A63E725E5E","01717057707, 017663884425, 015201585090, 017671958302",null,null,null,"03.03.2025","open","02.03.2025","open","07.03.2025","open","06.03.2025","open"]
["Jungen 15 I","Heimspiel","Freitag","07.03.2025","18:15:00","20:15:00","Jungen 15 KL","TV Bürstadt I",null,null,"JonasR, HeikoM, ElternFahrdienst_offen","jonas@sg-huettenfeld.de,heiko@sg-huettenfeld.de,erinnerungsdienst@sg-huettenfeld.de","17:45:00","Bürgerhaus Hüttenfeld, Alfred-Delp-Straße 50, 68623 Lampertheim-Hüttenfeld",null,"W_Jungen 15 Kreisliga112604100941023","01717057707, 017663884425, 015161481925","Braunschweiger System",null,null,"03.03.2025","open","02.03.2025","open","07.03.2025","open","06.03.2025","open"]
["Junioren","Kreis-Vorranglistenturnier Nachwuchs","Samstag","08.03.2025",null,null,null,null,null,null,"JonasR, PiaH, ThomasJ, SimonG, ErdemK","jonas@sg-huettenfeld.de,pia@sg-huettenfeld.de,thomas@sg-huettenfeld.de,simon@sg-huettenfeld.de,k_uzu@hotmail.de",null,"Odenwaldhalle, Kleiststraße 11, 64668 Rimbach / 18,8km / 25min",null,"M_528801636CAF","01717057707, 015201585090, 015142601126, 017624943376, 017671958302",null,null,null,"04.03.2025","open","03.03.2025","open","08.03.2025","open","07.03.2025","open"]
["Junioren","Kreis-Endranglistenturnier Nachwuchs","Sonntag","09.03.2025",null,null,null,null,null,null,"HeikoM, LeonM, ElternFahrdienst_offen","heiko@sg-huettenfeld.de,leon@sg-huettenfeld.de,erinnerungsdienst@sg-huettenfeld.de",null,"Odenwaldhalle, Kleiststraße 11, 64668 Rimbach / 18,8km / 25min",null,"M_5990576F9081","017663884425, 017658806863, 015161481925",null,null,null,"05.03.2025","open","04.03.2025","open","09.03.2025","open","08.03.2025","open"]
["Nachwuchs","Training","Dienstag","11.03.2025","17:30:00","19:15:00",null,null,null,null,"ChristopherL, JonasR, LeonH","jonas@sg-huettenfeld.de","17:30:00","Bürgerhaus, Hüttenfeld",null,"T_31C51A8AAD21","01717057707",null,null,null,"07.03.2025","open","06.03.2025","open","11.03.2025","open","10.03.2025","open"]
["Jungen 13 I","Auswärtsspiel","Freitag","14.03.2025","17:45:00","19:45:00","Jungen 13 2.KK","TSK Rimbach II",null,null,"Betreuung_offen","erinnerungsdienst@sg-huettenfeld.de","16:45:00","Odenwaldhalle, Kleiststraße 11, 64668 Rimbach / 18,8km / 25min","Wird noch verlegt","W_Jungen 13 2.Kreisklasse212394102341040","015161481925","Braunschweiger System",null,null,"10.03.2025","open","09.03.2025","open","14.03.2025","open","13.03.2025","open"]
["Nachwuchs","Training","Freitag","14.03.2025","18:00:00","19:30:00",null,null,null,null,"JonasR, HeikoM, PiaH, ErdemK","jonas@sg-huettenfeld.de,heiko@sg-huettenfeld.de,pia@sg-huettenfeld.de,k_uzu@hotmail.de","18:00:00","Bürgerhaus, Hüttenfeld",null,"T_97A8BF730540","01717057707, 017663884425, 015201585090, 017671958302",null,null,null,"10.03.2025","open","09.03.2025","open","14.03.2025","open","13.03.2025","open"]
["Jungen 15 I","Heimspiel","Freitag","14.03.2025","18:15:00","20:15:00","Jungen 15 KL","TSV Auerbach I",null,null,"JonasR, HeikoM, ElternFahrdienst_offen","jonas@sg-huettenfeld.de,heiko@sg-huettenfeld.de,erinnerungsdienst@sg-huettenfeld.de","17:45:00","Bürgerhaus Hüttenfeld, Alfred-Delp-Straße 50, 68623 Lampertheim-Hüttenfeld",null,"W_Jungen 15 Kreisliga112544100141023","01717057707, 017663884425, 015161481925","Braunschweiger System",null,null,"10.03.2025","open","09.03.2025","open","14.03.2025","open","13.03.2025","open"]
["Junioren","Kreis-Jahrgangsmeisterschaften (KJM)","Sonntag","16.03.2025",null,null,null,null,null,null,"HeikoM, LeonM, ElternFahrdienst_offen","heiko@sg-huettenfeld.de,leon@sg-huettenfeld.de,erinnerungsdienst@sg-huettenfeld.de",null,"Neue Jahnturnhalle, Wasserwerkstr. 4, 68642 Bürstadt / 20,3km / 24min",null,"M_D7864C99A2B5","017663884425, 017658806863, 015161481925",null,null,null,"12.03.2025","open","11.03.2025","open","16.03.2025","open","15.03.2025","open"]
["Nachwuchs","Training","Dienstag","18.03.2025","17:30:00","19:15:00",null,null,null,null,"ChristopherL, JonasR, LeonH","jonas@sg-huettenfeld.de","17:30:00","Bürgerhaus, Hüttenfeld",null,"T_F118B6AA0BCA","01717057707",null,null,null,"14.03.2025","open","13.03.2025","open","18.03.2025","open","17.03.2025","open"]
["Nachwuchs","Training","Freitag","21.03.2025","18:00:00","19:30:00",null,null,null,null,"JonasR, HeikoM, PiaH, ErdemK","jonas@sg-huettenfeld.de,heiko@sg-huettenfeld.de,pia@sg-huettenfeld.de,k_uzu@hotmail.de","18:00:00","Bürgerhaus, Hüttenfeld",null,"T_E0BFF96ED882","01717057707, 017663884425, 015201585090, 017671958302",null,null,null,"17.03.2025","open","16.03.2025","open","21.03.2025","open","20.03.2025","open"]
["Jungen 15 I","Auswärtsspiel","Samstag","22.03.2025","10:00:00","12:00:00","Jungen 15 KL","TTC Heppenheim I",null,null,"AnkeG","anke.gerhardt@gmx.net ","09:20:00","Turnhalle Konrad-Adenauer-Schule, Mainzer Str.8 / Zufahrt über Weinheimer Straße, 64646 Heppenheim / 6,7km / 9min",null,"W_Jungen 15 Kreisliga112654102341053","015202991512","Braunschweiger System",null,null,"18.03.2025","open","17.03.2025","open","22.03.2025","open","21.03.2025","open"]
["Jungen 19 I","Auswärtsspiel","Samstag","22.03.2025","14:00:00","16:00:00","Jungen 19 1. KK","TSV Reichenbach I",null,null,"BirgitC","Tb-czermak@web.de","13:00:00","TSV-Turnhalle, Brandauer-Klinger-Weg, 64686 Lautertal-Reichenbach / 23,3km / 28min",null,"W_Jungen 19 1. Kreisklasse112494102341039","01781532322","Braunschweiger System",null,null,"18.03.2025","open","17.03.2025","open","22.03.2025","open","21.03.2025","open"]
["Jungen 13 I","Heimspiel","Sonntag","23.03.2025","10:00:00","12:00:00","Jungen 13 2.KK","TSV Auerbach II",null,null,"MattiSchi, BenS","mattihuettenfeld@gmail.com,carla@sg-huettenfeld.de","09:30:00","Bürgerhaus Hüttenfeld, Alfred-Delp-Straße 50, 68623 Lampertheim-Hüttenfeld",null,"W_Jungen 13 2.Kreisklasse122384100141023",", ","Braunschweiger System",null,null,"19.03.2025","open","18.03.2025","open","23.03.2025","open","22.03.2025","open"]
["Nachwuchs","Training","Dienstag","25.03.2025","17:30:00","19:15:00",null,null,null,null,"ChristopherL, JonasR, LeonH","jonas@sg-huettenfeld.de","17:30:00","Bürgerhaus, Hüttenfeld",null,"T_E113E338640D","01717057707",null,null,null,"21.03.2025","open","20.03.2025","open","25.03.2025","open","24.03.2025","open"]
["Nachwuchs","Training","Freitag","28.03.2025","18:00:00","19:30:00",null,null,null,null,"JonasR, HeikoM, PiaH, ErdemK","jonas@sg-huettenfeld.de,heiko@sg-huettenfeld.de,pia@sg-huettenfeld.de,k_uzu@hotmail.de","18:00:00","Bürgerhaus, Hüttenfeld",null,"T_08697A925709","01717057707, 017663884425, 015201585090, 017671958302",null,null,null,"24.03.2025","open","23.03.2025","open","28.03.2025","open","27.03.2025","open"]
["Nachwuchs","Training","Dienstag","01.04.2025","17:30:00","19:15:00",null,null,null,null,"ChristopherL, JonasR, LeonH","jonas@sg-huettenfeld.de","17:30:00","Bürgerhaus, Hüttenfeld",null,"T_0D08EF288206","01717057707",null,null,null,"28.03.2025","open","27.03.2025","open","01.04.2025","open","31.03.2025","open"]
["Nachwuchs","Training","Freitag","04.04.2025","18:00:00","19:30:00",null,null,null,null,"JonasR, HeikoM, PiaH, ErdemK","jonas@sg-huettenfeld.de,heiko@sg-huettenfeld.de,pia@sg-huettenfeld.de,k_uzu@hotmail.de","18:00:00","Bürgerhaus, Hüttenfeld",null,"T_EAEB415DCFA6","01717057707, 017663884425, 015201585090, 017671958302",null,null,null,"31.03.2025","open","30.03.2025","open","04.04.2025","open","03.04.2025","open"]
["Jungen 15 I","Heimspiel","Freitag","04.04.2025","18:15:00","20:15:00","Jungen 15 KL","TTC Groß Rohrheim I",null,null,"JonasR, HeikoM","jonas@sg-huettenfeld.de,heiko@sg-huettenfeld.de","17:45:00","Bürgerhaus Hüttenfeld, Alfred-Delp-Straße 50, 68623 Lampertheim-Hüttenfeld",null,"W_Jungen 15 Kreisliga112704101741023","01717057707, 017663884425","Braunschweiger System",null,null,"31.03.2025","open","30.03.2025","open","04.04.2025","open","03.04.2025","open"]
["Mädchenliga","6. Blockspieltag Mädchenliga","Samstag","05.04.2025","10:00:00","18:00:00",null,null,null,null,"Betreuung_offen, ElternFahrdienst_offen","erinnerungsdienst@sg-huettenfeld.de,erinnerungsdienst@sg-huettenfeld.de",null,"Halle der Käthe-Kollwitz Schule Westhöchsterstr. 103, 65931 Frankfurt / 72,1km / 47min","Zwei Spielrunden, Beginn 11:00 und  13:00 Uhr","M_000BD27D5A7D","015161481925, 015161481925",null,null,null,"01.04.2025","open","31.03.2025","open","05.04.2025","open","04.04.2025","open"]
["Jungen 19 I","Heimspiel","Sonntag","06.04.2025","10:00:00","12:00:00","Jungen 19 1. KK","TSV Lindenfels I",null,null,"VolkerB","volker@sg-huettenfeld.de","09:30:00","Bürgerhaus Hüttenfeld, Alfred-Delp-Straße 50, 68623 Lampertheim-Hüttenfeld",null,"W_Jungen 19 1. Kreisklasse112564102341029","017623165187","Braunschweiger System",null,null,"02.04.2025","open","01.04.2025","open","06.04.2025","open","05.04.2025","open"]
["Nachwuchs","Training","Dienstag","08.04.2025","17:30:00","19:15:00",null,null,null,null,"ChristopherL, JonasR, LeonH","jonas@sg-huettenfeld.de","17:30:00","Bürgerhaus, Hüttenfeld","Osterfereien","T_1C42D61BF29E","01717057707",null,null,null,"04.04.2025","open","03.04.2025","open","08.04.2025","open","07.04.2025","open"]
["Nachwuchs","Training","Freitag","11.04.2025","18:00:00","19:30:00",null,null,null,null,"JonasR, HeikoM, PiaH, ErdemK","jonas@sg-huettenfeld.de,heiko@sg-huettenfeld.de,pia@sg-huettenfeld.de,k_uzu@hotmail.de","18:00:00","Bürgerhaus, Hüttenfeld","Osterfereien","T_D2778F4B584A","01717057707, 017663884425, 015201585090, 017671958302",null,null,null,"07.04.2025","open","06.04.2025","open","11.04.2025","open","10.04.2025","open"]
["Nachwuchs","Training","Dienstag","15.04.2025","17:30:00","19:15:00",null,null,null,null,"ChristopherL, JonasR, LeonH","jonas@sg-huettenfeld.de","17:30:00","Bürgerhaus, Hüttenfeld","Osterfereien","T_1376F9D8A833","01717057707",null,null,null,"11.04.2025","open","10.04.2025","open","15.04.2025","open","14.04.2025","open"]
["Nachwuchs","Training","Dienstag","22.04.2025","17:30:00","19:15:00",null,null,null,null,"ChristopherL, JonasR, LeonH","jonas@sg-huettenfeld.de","17:30:00","Bürgerhaus, Hüttenfeld",null,"T_165206A4F74C","01717057707",null,null,null,"18.04.2025","open","17.04.2025","open","22.04.2025","open","21.04.2025","open"]
["Nachwuchs","Training","Freitag","25.04.2025","18:00:00","19:30:00",null,null,null,null,"JonasR, HeikoM, PiaH, ErdemK","jonas@sg-huettenfeld.de,heiko@sg-huettenfeld.de,pia@sg-huettenfeld.de,k_uzu@hotmail.de","18:00:00","Bürgerhaus, Hüttenfeld",null,"T_01A935196F4C","01717057707, 017663884425, 015201585090, 017671958302",null,null,null,"21.04.2025","open","20.04.2025","open","25.04.2025","open","24.04.2025","open"]
["Junioren","Bezirks-Jahrgangsmeisterschaften (BJM)","Samstag","26.04.2025",null,null,null,null,null,null,"JonasR, ElternFahrdienst_offen","jonas@sg-huettenfeld.de,erinnerungsdienst@sg-huettenfeld.de",null,"Veranstaltungsort offen",null,"M_3A0D6191685F","01717057707, 015161481925",null,null,null,"22.04.2025","open","21.04.2025","open","26.04.2025","open","25.04.2025","open"]
["Junioren","Bezirks-Jahrgangsmeisterschaften (BJM)","Sonntag","27.04.2025",null,null,null,null,null,null,"JonasR, ElternFahrdienst_offen","jonas@sg-huettenfeld.de,erinnerungsdienst@sg-huettenfeld.de",null,"Veranstaltungsort offen",null,"M_A883F30A2ABC","01717057707, 015161481925",null,null,null,"23.04.2025","open","22.04.2025","open","27.04.2025","open","26.04.2025","open"]
["Nachwuchs","Training","Dienstag","29.04.2025","17:30:00","19:15:00",null,null,null,null,"ChristopherL, JonasR, LeonH","jonas@sg-huettenfeld.de","17:30:00","Bürgerhaus, Hüttenfeld",null,"T_4C8EB11951C2","01717057707",null,null,null,"25.04.2025","open","24.04.2025","open","29.04.2025","open","28.04.2025","open"]
["Nachwuchs","Training","Freitag","02.05.2025","18:00:00","19:30:00",null,null,null,null,"JonasR, HeikoM, PiaH, ErdemK","jonas@sg-huettenfeld.de,heiko@sg-huettenfeld.de,pia@sg-huettenfeld.de,k_uzu@hotmail.de","18:00:00","Bürgerhaus, Hüttenfeld",null,"T_8F9538E2002D","01717057707, 017663884425, 015201585090, 017671958302",null,null,null,"28.04.2025","open","27.04.2025","open","02.05.2025","open","01.05.2025","open"]
["Nachwuchs","Training","Dienstag","06.05.2025","17:30:00","19:15:00",null,null,null,null,"ChristopherL, JonasR, LeonH","jonas@sg-huettenfeld.de","17:30:00","Bürgerhaus, Hüttenfeld",null,"T_9C86B9087B0B","01717057707",null,null,null,"02.05.2025","open","01.05.2025","open","06.05.2025","open","05.05.2025","open"]
["Eltern als Betreuer","Elternabend Tischtennis-Nachwuchs","Dienstag","06.05.2025","19:30:00","20:30:00",null,null,null,null,"KatjaS, CarlaS, HeikoM, JonasR","katja@sg-huettenfeld.de,carla@sg-huettenfeld.de,heiko@sg-huettenfeld.de,jonas@sg-huettenfeld.de",null,"Bürgerhaus, Foyer oder Gruppenraum",null,"M_B9055C1CDB17","015123274161, 01637964195, 017663884425, 01717057707",null,null,null,"02.05.2025","open","01.05.2025","open","06.05.2025","open","05.05.2025","open"]
["Nachwuchs","Training","Freitag","09.05.2025","18:00:00","19:30:00",null,null,null,null,"JonasR, HeikoM, PiaH, ErdemK","jonas@sg-huettenfeld.de,heiko@sg-huettenfeld.de,pia@sg-huettenfeld.de,k_uzu@hotmail.de","18:00:00","Bürgerhaus, Hüttenfeld",null,"T_89767418832B","01717057707, 017663884425, 015201585090, 017671958302",null,null,null,"05.05.2025","open","04.05.2025","open","09.05.2025","open","08.05.2025","open"]
["Nachwuchs","Training","Dienstag","13.05.2025","17:30:00","19:15:00",null,null,null,null,"ChristopherL, JonasR, LeonH","jonas@sg-huettenfeld.de","17:30:00","Bürgerhaus, Hüttenfeld",null,"T_57E879A60D74","01717057707",null,null,null,"09.05.2025","open","08.05.2025","open","13.05.2025","open","12.05.2025","open"]
["Junioren","Vereinsmeisterschaft Nachwuchs","Freitag","16.05.2025","18:00:00","20:15:00",null,null,null,null,"PiaH, HeikoM, JonasR","pia@sg-huettenfeld.de,heiko@sg-huettenfeld.de,jonas@sg-huettenfeld.de",null,"Bürgerhaus Hüttenfeld",null,"M_3C531BD9CF92","015201585090, 017663884425, 01717057707",null,null,null,"12.05.2025","open","11.05.2025","open","16.05.2025","open","15.05.2025","open"]
["Nachwuchs","Training","Freitag","16.05.2025","18:00:00","19:30:00",null,null,null,null,"JonasR, HeikoM, PiaH, ErdemK","jonas@sg-huettenfeld.de,heiko@sg-huettenfeld.de,pia@sg-huettenfeld.de,k_uzu@hotmail.de","18:00:00","Bürgerhaus, Hüttenfeld",null,"T_546CFCF1FBDE","01717057707, 017663884425, 015201585090, 017671958302",null,null,null,"12.05.2025","open","11.05.2025","open","16.05.2025","open","15.05.2025","open"]
["Junioren","Hessische Jahrgangsmeisterschaften (HJM)","Samstag","17.05.2025",null,null,null,null,null,null,"PeterH","peter@sg-huettenfeld.de",null,"Veranstaltungsort offen",null,"M_B261CE54F476","017634513703",null,null,null,"13.05.2025","open","12.05.2025","open","17.05.2025","open","16.05.2025","open"]
["Junioren","Hessische Jahrgangsmeisterschaften (HJM)","Sonntag","18.05.2025",null,null,null,null,null,null,"PeterH","peter@sg-huettenfeld.de",null,"Veranstaltungsort offen",null,"M_6F093E1CB4F8","017634513703",null,null,null,"14.05.2025","open","13.05.2025","open","18.05.2025","open","17.05.2025","open"]
["Nachwuchs","Training","Dienstag","20.05.2025","17:30:00","19:15:00",null,null,null,null,"ChristopherL, JonasR, LeonH","jonas@sg-huettenfeld.de","17:30:00","Bürgerhaus, Hüttenfeld",null,"T_A478644119E7","01717057707",null,null,null,"16.05.2025","open","15.05.2025","open","20.05.2025","open","19.05.2025","open"]
["Nachwuchs","Training","Freitag","23.05.2025","18:00:00","19:30:00",null,null,null,null,"JonasR, HeikoM, PiaH, ErdemK","jonas@sg-huettenfeld.de,heiko@sg-huettenfeld.de,pia@sg-huettenfeld.de,k_uzu@hotmail.de","18:00:00","Bürgerhaus, Hüttenfeld",null,"T_E049EA703C09","01717057707, 017663884425, 015201585090, 017671958302",null,null,null,"19.05.2025","open","18.05.2025","open","23.05.2025","open","22.05.2025","open"]
["Junioren","Bezirks-Vorranglistenturnier Nachwuchs","Samstag","24.05.2025",null,null,null,null,null,null,"PiaH, LeonM, ErdemK, ElternFahrdienst_offen","pia@sg-huettenfeld.de,leon@sg-huettenfeld.de,k_uzu@hotmail.de,erinnerungsdienst@sg-huettenfeld.de",null,"Veranstaltungsort offen",null,"M_9F46E84D23FD","015201585090, 017658806863, 017671958302, 015161481925",null,null,null,"20.05.2025","open","19.05.2025","open","24.05.2025","open","23.05.2025","open"]
["Junioren","Bezirks-Vorranglistenturnier Nachwuchs","Sonntag","25.05.2025",null,null,null,null,null,null,"PiaH, LeonM, ErdemK, ElternFahrdienst_offen","pia@sg-huettenfeld.de,leon@sg-huettenfeld.de,k_uzu@hotmail.de,erinnerungsdienst@sg-huettenfeld.de",null,"Veranstaltungsort offen",null,"M_DF4AAF71E340","015201585090, 017658806863, 017671958302, 015161481925",null,null,null,"21.05.2025","open","20.05.2025","open","25.05.2025","open","24.05.2025","open"]
["Nachwuchs","Training","Dienstag","27.05.2025","17:30:00","19:15:00",null,null,null,null,"ChristopherL, JonasR, LeonH","jonas@sg-huettenfeld.de","17:30:00","Bürgerhaus, Hüttenfeld",null,"T_565A9D91A787","01717057707",null,null,null,"23.05.2025","open","22.05.2025","open","27.05.2025","open","26.05.2025","open"]
["Nachwuchs","Training","Freitag","30.05.2025","18:00:00","19:30:00",null,null,null,null,"JonasR, HeikoM, PiaH, ErdemK","jonas@sg-huettenfeld.de,heiko@sg-huettenfeld.de,pia@sg-huettenfeld.de,k_uzu@hotmail.de","18:00:00","Bürgerhaus, Hüttenfeld",null,"T_4374E3BDA86A","01717057707, 017663884425, 015201585090, 017671958302",null,null,null,"26.05.2025","open","25.05.2025","open","30.05.2025","open","29.05.2025","open"]
["Junioren","Jugendfreizeit Mosbach","Freitag","13.06.2025",null,null,null,null,null,null,"KatjaS, CarlaS, JonasR, HeikoM, PiaH","katja@sg-huettenfeld.de,carla@sg-huettenfeld.de,jonas@sg-huettenfeld.de,heiko@sg-huettenfeld.de,pia@sg-huettenfeld.de",null,null,null,"M_69E9FC7C0811","015123274161, 01637964195, 01717057707, 017663884425, 015201585090",null,null,null,"09.06.2025","open","08.06.2025","open","13.06.2025","open","12.06.2025","open"]
["Junioren","Bezirks-Endrangliste (BERL)","Samstag","14.06.2025",null,null,null,null,null,null,"LeonM, ErdemK, PiaH, PeterH","leon@sg-huettenfeld.de,k_uzu@hotmail.de,pia@sg-huettenfeld.de,peter@sg-huettenfeld.de",null,"Veranstaltungsort offen","Kollission mit Freizeit Mosbach?","M_5CDF58EE9E07","017658806863, 017671958302, 015201585090, 017634513703",null,null,null,"10.06.2025","open","09.06.2025","open","14.06.2025","open","13.06.2025","open"]
["Junioren","Jugendfreizeit Mosbach","Samstag","14.06.2025",null,null,null,null,null,null,"KatjaS, CarlaS, JonasR, HeikoM, PiaH","katja@sg-huettenfeld.de,carla@sg-huettenfeld.de,jonas@sg-huettenfeld.de,heiko@sg-huettenfeld.de,pia@sg-huettenfeld.de",null,null,null,"M_676A373F51CB","015123274161, 01637964195, 01717057707, 017663884425, 015201585090",null,null,null,"10.06.2025","open","09.06.2025","open","14.06.2025","open","13.06.2025","open"]
["Junioren","Bezirks-Endrangliste (BERL)","Sonntag","15.06.2025",null,null,null,null,null,null,"LeonM, ErdemK, PiaH, PeterH","leon@sg-huettenfeld.de,k_uzu@hotmail.de,pia@sg-huettenfeld.de,peter@sg-huettenfeld.de",null,"Veranstaltungsort offen","Kollission mit Freizeit Mosbach?","M_0358ED7F9F8C","017658806863, 017671958302, 015201585090, 017634513703",null,null,null,"11.06.2025","open","10.06.2025","open","15.06.2025","open","14.06.2025","open"]
["Junioren","Jugendfreizeit Mosbach","Sonntag","15.06.2025",null,null,null,null,null,null,"KatjaS, CarlaS, JonasR, HeikoM, PiaH","katja@sg-huettenfeld.de,carla@sg-huettenfeld.de,jonas@sg-huettenfeld.de,heiko@sg-huettenfeld.de,pia@sg-huettenfeld.de",null,null,null,"M_52E0DCCE1D45","015123274161, 01637964195, 01717057707, 017663884425, 015201585090",null,null,null,"11.06.2025","open","10.06.2025","open","15.06.2025","open","14.06.2025","open"]

{"sheet":"Ferien","index":10,"n_rows":22,"n_cols":3,"rows_kept":22,"cut":false,"hidden":true,"merged":[]}
["Ferien","Erster Ferientag","Letzter Ferientag"]
["Sommerferien","2022-07-25","2022-09-02"]
["Herbstferien","2022-10-24","2022-10-29"]
["Weihnachtsferien","2022-12-22","2023-01-07"]
["Osterferien","2023-04-03","2023-04-22"]
["Sommerferien","2023-07-24","2023-09-01"]
["Herbstferien","2023-10-23","2023-10-28"]
["Weihnachtsferien","2023-12-27","2024-01-13"]
["Osterferien","2024-03-25","2024-04-13"]
["Sommerferien","2024-07-15","2024-08-23"]
["Herbstferien","2024-10-14","2024-10-25"]
["Weihnachtsferien","2024-12-23","2025-01-10"]
["Osterfereien","2025-04-07","2025-04-21"]
["Sommerferien","2025-07-07","2025-08-15"]
["Herbstferien","2025-10-06","2025-10-18"]
["Weihnachtsferien","2025-12-22","2026-01-10"]
["Osterfereien","2026-03-30","2026-04-10"]
["Sommerferien","2026-06-29","2026-08-07"]
["Herbstferien","2026-10-05","2026-10-17"]
["Weihnachtsferien","2026-12-23","2027-01-12"]
["Osterfereien","2027-03-22","2027-04-02"]
["Sommerferien","2027-06-28","2027-08-06"]

{"sheet":"Pfade","index":11,"n_rows":23,"n_cols":8,"rows_kept":23,"cut":false,"hidden":false,"merged":[]}
["Transfer","Zielordner löschen","Liste","HE-ftp-Zugang","Quelle_univerell","Quelle_berechnet","Ziel auf Server"]
["No","Yes","personalisiert","ttr","\\Results\\personalisiert\\excel","D:\\Nextcloud\\Masterliste\\Results\\personalisiert\\excel","/Termine/Personalisierte_Listen/excel","2025-02-27T11:27:36"]
["No","Yes","personalisiert","ttr","\\Results\\personalisiert\\ics","D:\\Nextcloud\\Masterliste\\Results\\personalisiert\\ics","/Termine/Personalisierte_Listen/ics","2025-02-27T11:27:36"]
["No","Yes","personalisiert","ttr","\\Results\\personalisiert\\pdf","D:\\Nextcloud\\Masterliste\\Results\\personalisiert\\pdf","/Termine/Personalisierte_Listen/pdf","2025-02-27T11:27:36"]
["No","Yes","team","ttr","\\Results\\team\\excel","D:\\Nextcloud\\Masterliste\\Results\\team\\excel","/Termine/Teamlisten/excel","2025-02-27T11:27:30"]
["No","Yes","team","ttr","\\Results\\team\\ics","D:\\Nextcloud\\Masterliste\\Results\\team\\ics","/Termine/Teamlisten/ics","2025-02-27T11:27:30"]
["No","Yes","team","ttr","\\Results\\team\\pdf","D:\\Nextcloud\\Masterliste\\Results\\team\\pdf","/Termine/Teamlisten/pdf","2025-02-27T11:27:30"]
["No","Yes","betreuungen","ttr","\\Results\\betreuung","D:\\Nextcloud\\Masterliste\\Results\\betreuung","/Termine/Betreuungen","2025-02-27T11:27:39"]
["No","No","spielplan","ttr","\\Results\\spielplan","D:\\Nextcloud\\Masterliste\\Results\\spielplan","/Termine/ICAL","2025-02-27T11:27:51"]
["No","No","manuell","ttr","\\Results\\manuell","D:\\Nextcloud\\Masterliste\\Results\\manuell","/Termine/ICAL","2025-02-27T11:27:47"]
["No","No","training","ttr","\\Results\\training","D:\\Nextcloud\\Masterliste\\Results\\training","/Termine/ICAL","2025-02-27T11:27:57"]
["Yes","Yes","mlkopie","ttr","\\Results\\mlkopie","D:\\Nextcloud\\Masterliste\\Results\\mlkopie","/Termine/Aktuelle_Kopie_ML","2024-02-07T10:39:41"]
["No","Yes","flyer","ttr","\\Results\\flyer","D:\\Nextcloud\\Masterliste\\Results\\flyer","/Termine/Flyer","2025-02-27T11:28:02"]
["No","Yes","mailmerge","mailsender","\\Results\\mailmerge","D:\\Nextcloud\\Masterliste\\Results\\mailmerge","/","2025-02-27T11:27:45"]
["No","Yes","Spieler","ttr","\\Listen\\birthday\\ics_einzel_ohne","D:\\Nextcloud\\Masterliste\\Listen\\birthday\\ics_einzel_ohne","/ttsave/Kontaktdaten/ics_einzel_ohne","2025-01-20T09:28:22"]
["No","Yes","Spieler","ttr","\\Listen\\vcard_3_0/VCARD_einzel","D:\\Nextcloud\\Masterliste\\Listen\\vcard_3_0/VCARD_einzel","/ttsave/Kontaktdaten/VCARD_einzel","2025-01-20T09:28:22"]
["No","Yes","Spieler","ttr","\\Listen\\birthday\\ics_einzel_mit","D:\\Nextcloud\\Masterliste\\Listen\\birthday\\ics_einzel_mit","/ttsave/Kontaktdaten/ics_einzel_mit","2025-01-20T09:28:22"]
["No","Yes","Spieler","ttr","\\Listen\\birthday","D:\\Nextcloud\\Masterliste\\Listen\\birthday","/ttsave/Kontaktdaten","2025-01-20T09:28:22"]
["No","No","Spieler","ttr","\\Listen\\vcard_3_0","D:\\Nextcloud\\Masterliste\\Listen\\vcard_3_0","/ttsave/Kontaktdaten","2025-01-20T09:28:22"]
["No","No","Spieler","ttr","\\Listen\\Adressen","D:\\Nextcloud\\Masterliste\\Listen\\Adressen","/ttsave/Kontaktdaten","2025-01-20T09:28:22"]
["No","Yes","Spieler","ttr","\\Listen\\birthday\\ics_einzel_ohne","D:\\Nextcloud\\Masterliste\\Listen\\birthday\\ics_einzel_ohne","/Termine/Geburtstage/ics_einzel","2025-01-20T09:28:22"]
["No","Yes","Spieler","ttr","\\Listen\\birthday","D:\\Nextcloud\\Masterliste\\Listen\\birthday","/Termine/Geburtstage","2025-01-20T09:28:22"]
["No","No","Spieler","ttr","\\Listen\\Adressen","D:\\Nextcloud\\Masterliste\\Listen\\Adressen","/Termine/Geburtstage","2025-01-20T09:28:22"]

{"sheet":"Bedienungsanleitung","index":12,"n_rows":1,"n_cols":2,"rows_kept":1,"cut":false,"hidden":false,"merged":[[0,1,0,7]]}
[null,"Bedienungsanleitung durch Doppelklick öffnen"]

{"sheet":"Rohexport","index":13,"n_rows":160,"n_cols":28,"rows_kept":160,"cut":false,"hidden":true,"merged":[]}
["Termin","Wochentag","Verband","Saison","Meisterschaft","Altersklasse","Liga","Staffel","Runde","BegegnungNr","HalleNr","HalleName","HalleStrasse","HallePLZ","HalleOrt","HeimVereinVerband","HeimVereinNr","HeimVereinName","HeimMannschaftAltersklasse","HeimMannschaftNr","GastVereinVerband","GastVereinNr","GastVereinName","GastMannschaftAltersklasse","GastMannschaftNr","GastMannschaft","SpieleHeim","SpieleGast"]
["2024-09-06T20:15:00","Fr.","HeTTV","2024/25","Kreis Bergstraße 2024/25","Herren","Herren 3. Kreisklasse","Herren 3. Kreisklasse West 1","VR",3,1,"Bürgerhaus Hüttenfeld","Alfred-Delp-Straße 50",68623,"Lampertheim-Hüttenfeld","HeTTV",41023,"SG 1946 Hüttenfeld","Herren",5,"HeTTV",41023,"SG 1946 Hüttenfeld","Herren",3,"SG 1946 Hüttenfeld III",10,0]
["2024-09-06T20:15:00","Fr.","HeTTV","2024/25","Kreis Bergstraße 2024/25","Herren","Herren 3. Kreisklasse","Herren 3. Kreisklasse West 2","VR",1,1,"Bürgerhaus Hüttenfeld","Alfred-Delp-Straße 50",68623,"Lampertheim-Hüttenfeld","HeTTV",41023,"SG 1946 Hüttenfeld","Herren",4,"HeTTV",41010,"BSC 1957 Einhausen","Herren",2,"BSC 1957 Einhausen II",5,5]
["2024-09-07T14:00:00","Sa.","HeTTV","2024/25","Kreis Bergstraße 2024/25","Jungen 15","Jungen 15 Kreisliga","Jungen 15 Kreisliga","VR",4,1,"Neue Jahnturnhalle","Wasserwerkstr. 4",68642,"Bürstadt","HeTTV",41009,"TV 1891 Bürstadt","Jungen 15",1,"HeTTV",41023,"SG 1946 Hüttenfeld","Jungen 15",1,"SG 1946 Hüttenfeld",7,3]
["2024-09-09T19:30:00","Mo.","HeTTV","2024/25","Kreis Bergstraße 2024/25","Herren","Herren 3. Kreisklasse","Herren 3. Kreisklasse West 2","VR",3,1,"Sporthalle Wingertsbergschule","Bahnhofstraße 17 a",64653,"Lorsch","HeTTV",41057,"TTC 2010 Lorsch","Herren",2,"HeTTV",41023,"SG 1946 Hüttenfeld","Herren",4,"SG 1946 Hüttenfeld IV",8,2]
["2024-09-10T18:00:00","Di.","HeTTV","2024/25","Kreis Bergstraße 2024/25","Jungen 19","Jungen 19 1. Kreisklasse","Jungen 19 1. Kreisklasse","VR",1,1,"Hermann Schütz Sporthalle","Hellklinger Straße",69509,"Mörlenbach/Ober-Mumbach","HeTTV",41038,"SKG Ober-Mumbach","Jungen 19",2,"HeTTV",41023,"SG 1946 Hüttenfeld","Jungen 19",1,"SG 1946 Hüttenfeld",6,4]
["2024-09-12T20:00:00","Do.","HeTTV","2024/25","Kreis Bergstraße 2024/25","Herren","Herren 3. Kreisklasse","Herren 3. Kreisklasse West 1","VR",6,1,"Turnhalle Oberlaudenbach","Oberlaudenbacher Str.",64646,"Heppenheim","HeTTV",41037,"TV 1907 Ober-Laudenbach","Herren",3,"HeTTV",41023,"SG 1946 Hüttenfeld","Herren",3,"SG 1946 Hüttenfeld III",0,10]
["2024-09-15T18:00:00","So.","HeTTV","2024/25","Bezirk Süd 2024/25","Herren","Herren Bezirksklasse","Herren Bezirksklasse Gr. 1","VR",6,1,"Bürgerhaus Hüttenfeld","Alfred-Delp-Straße 50",68623,"Lampertheim-Hüttenfeld","HeTTV",41023,"SG 1946 Hüttenfeld","Herren",1,"HeTTV",41011,"TSV Ellenbach 1913/65","Herren",2,"TSV Ellenbach 1913/65 II",4,6]
["2024-09-19T20:00:00","Do.","HeTTV","2024/25","Kreis Bergstraße 2024/25","Herren","Herren 3. Kreisklasse","Herren 3. Kreisklasse West 1","VR",8,1,"Turnhalle Oberlaudenbach","Oberlaudenbacher Str.",64646,"Heppenheim","HeTTV",41037,"TV 1907 Ober-Laudenbach","Herren",3,"HeTTV",41023,"SG 1946 Hüttenfeld","Herren",5,"SG 1946 Hüttenfeld V",2,8]
["2024-09-20T18:15:00","Fr.","HeTTV","2024/25","Kreis Bergstraße 2024/25","Jungen 15","Jungen 15 Kreisliga","Jungen 15 Kreisliga","VR",8,1,"Bürgerhaus Hüttenfeld","Alfred-Delp-Straße 50",68623,"Lampertheim-Hüttenfeld","HeTTV",41023,"SG 1946 Hüttenfeld","Jungen 15",1,"HeTTV",41053,"TTC Heppenheim","Jungen 15",2,"TTC Heppenheim II",4,6]
["2024-09-20T19:30:00","Fr.","HeTTV","2024/25","Kreis Bergstraße 2024/25","Herren","Herren Kreisliga","Herren Kreisliga West","VR",5,1,"Karl Kübel Schule","Berliner Ring 34-38",64625,"Bensheim","HeTTV",41002,"DJK SSG Bensheim","Herren",2,"HeTTV",41023,"SG 1946 Hüttenfeld","Herren",2,"SG 1946 Hüttenfeld II",6,4]
["2024-09-20T20:15:00","Fr.","HeTTV","2024/25","Kreis Bergstraße 2024/25","Herren","Herren 3. Kreisklasse","Herren 3. Kreisklasse West 2","VR",10,1,"Bürgerhaus Hüttenfeld","Alfred-Delp-Straße 50",68623,"Lampertheim-Hüttenfeld","HeTTV",41023,"SG 1946 Hüttenfeld","Herren",4,"HeTTV",41002,"DJK SSG Bensheim","Herren",4,"DJK SSG Bensheim IV",0,10]
["2024-09-20T20:25:00","Fr.","HeTTV","2024/25","Kreis Bergstraße 2024/25","Herren","Herren 3. Kreisklasse","Herren 3. Kreisklasse West 1","VR",10,1,"Bürgerhaus Hüttenfeld","Alfred-Delp-Straße 50",68623,"Lampertheim-Hüttenfeld","HeTTV",41023,"SG 1946 Hüttenfeld","Herren",3,"HeTTV",41057,"TTC 2010 Lorsch","Herren",3,"TTC 2010 Lorsch III",7,3]
["2024-09-22T10:00:00","So.","HeTTV","2024/25","Kreis Bergstraße 2024/25","Jungen 19","Jungen 19 1. Kreisklasse","Jungen 19 1. Kreisklasse","VR",4,1,"Bürgerhaus Hüttenfeld","Alfred-Delp-Straße 50",68623,"Lampertheim-Hüttenfeld","HeTTV",41023,"SG 1946 Hüttenfeld","Jungen 19",1,"HeTTV",41018,"TSV Hambach 1899","Jungen 19",1,"TSV Hambach 1899",1,9]
["2024-09-22T11:00:00","So.","HeTTV","2024/25","Kreis Odenwald 2024/25","Mädchen 13","Mädchen 13 Kreisliga 2er","Kreisliga 2er","VR",1,1,"Bürgerhaus Hüttenfeld","Alfred-Delp-Straße 50",68623,"Lampertheim-Hüttenfeld","HeTTV",41023,"SG 1946 Hüttenfeld","Mädchen 13",1,"HeTTV",45023,"SV Ober-Kainsbach","Mädchen 13",1,"SV Ober-Kainsbach",2,3]
["2024-09-22T13:00:00","So.","HeTTV","2024/25","Kreis Odenwald 2024/25","Mädchen 13","Mädchen 13 Kreisliga 2er","Kreisliga 2er","VR",8,1,"Neue Jahnturnhalle","Wasserwerkstr. 4",68642,"Bürstadt","HeTTV",41009,"TV 1891 Bürstadt","Mädchen 13",1,"HeTTV",41023,"SG 1946 Hüttenfeld","Mädchen 13",1,"SG 1946 Hüttenfeld",3,2]
["2024-09-22T14:30:00","So.","HeTTV","2024/25","Kreis Odenwald 2024/25","Mädchen 13","Mädchen 13 Kreisliga 2er","Kreisliga 2er","VR",11,2,"TSV Turnhalle am Schwimmbad","Jahnstraße 1",64739,"Höchst","HeTTV",45015,"TSV 1875 Höchst","Mädchen 13",1,"HeTTV",41023,"SG 1946 Hüttenfeld","Mädchen 13",1,"SG 1946 Hüttenfeld",4,1]
["2024-09-23T18:15:00","Mo.","HeTTV","2024/25","Kreis Bergstraße 2024/25","Jungen 15","Jungen 15 Kreisliga","Jungen 15 Kreisliga","VR",11,1,"GGEW Sportzentrum Geb. B","Saarstrasse 56",64625,"Bensheim-Auerbach","HeTTV",41001,"TSV RW Auerbach","Jungen 15",1,"HeTTV",41023,"SG 1946 Hüttenfeld","Jungen 15",1,"SG 1946 Hüttenfeld",7,3]
["2024-09-25T18:30:00","Mi.","HeTTV","2024/25","Kreis Bergstraße 2024/25","Jungen 13","Jungen 13 2.Kreisklasse","Jungen 13 2.Kreisklasse","VR",5,1,"Neu Sporthalle,An der Grundschule","Goethestr. 6",64658,"Fürth","HeTTV",41014,"SV Fürth","Jungen 13",1,"HeTTV",41023,"SG 1946 Hüttenfeld","Jungen 13",1,"SG 1946 Hüttenfeld",2,8]
["2024-09-25T19:30:00","Mi.","HeTTV","2024/25","Kreis Bergstraße 2024/25","Herren","Herren 3. Kreisklasse","Herren 3. Kreisklasse West 1","VR",13,1,"Bürgerhaus Hüttenfeld","Alfred-Delp-Straße 50",68623,"Lampertheim-Hüttenfeld","HeTTV",41023,"SG 1946 Hüttenfeld","Herren",5,"HeTTV",41027,"TTC 1957 Lampertheim","Herren",11,"TTC 1957 Lampertheim XI",0,10]
["2024-09-26T20:00:00","Do.","HeTTV","2024/25","Bezirk Süd 2024/25","Damen","Damen Bezirksklasse","Damen Bezirksklasse Gr.1","VR",6,1,"Bürgerhaus Hüttenfeld","Alfred-Delp-Straße 50",68623,"Lampertheim-Hüttenfeld","HeTTV",41023,"SG 1946 Hüttenfeld","Damen",1,"HeTTV",41040,"TSK SW Rimbach","Damen",2,"TSK SW Rimbach II",3,7]
["2024-09-27T18:30:00","Fr.","HeTTV","2024/25","Kreis Bergstraße 2024/25","Jungen 13","Jungen 13 2.Kreisklasse","Jungen 13 2.Kreisklasse","VR",1,1,"TSV-Halle","Krabbengasse",69509,"Mörlenbach-Weiher","HeTTV",41050,"TSV 1904 Weiher","Jungen 13",1,"HeTTV",41023,"SG 1946 Hüttenfeld","Jungen 13",1,"SG 1946 Hüttenfeld",4,6]
["2024-09-27T20:15:00","Fr.","HeTTV","2024/25","Kreis Bergstraße 2024/25","Herren","Herren Kreisliga","Herren Kreisliga West","VR",12,1,"Bürgerhaus Hüttenfeld","Alfred-Delp-Straße 50",68623,"Lampertheim-Hüttenfeld","HeTTV",41023,"SG 1946 Hüttenfeld","Herren",2,"HeTTV",41024,"SV Kirschhausen 1921","Herren",2,"SV Kirschhausen 1921 II",6,4]
["2024-10-01T19:30:00","Di.","HeTTV","2024/25","Bezirk Süd 2024/25","Damen","Damen Bezirksklasse","Damen Bezirksklasse Gr.1","VR",7,1,"Kl. Halle der Gesamtschule","Mörfelder Strasse 52",65451,"Kelsterbach","HeTTV",44013,"TTC 1948 Kelsterbach","Damen",1,"HeTTV",41023,"SG 1946 Hüttenfeld","Damen",1,"SG 1946 Hüttenfeld",9,1]
["2024-10-04T18:30:00","Fr.","HeTTV","2024/25","Kreis Bergstraße 2024/25","Jungen 19","Jungen 19 1. Kreisklasse","Jungen 19 1. Kreisklasse","VR",10,1,"Turnhalle Carl-Orff-Schule","Almenweg",64678,"Lindenfels","HeTTV",41029,"TSV Lindenfels 1899","Jungen 19",1,"HeTTV",41023,"SG 1946 Hüttenfeld","Jungen 19",1,"SG 1946 Hüttenfeld",1,9]
["2024-10-04T20:00:00","Fr.","HeTTV","2024/25","Bezirk Süd 2024/25","Herren","Herren Bezirksklasse","Herren Bezirksklasse Gr. 1","VR",15,1,"Sedanhalle","Sedanstraße 7",68623,"Lampertheim","HeTTV",41027,"TTC 1957 Lampertheim","Herren",5,"HeTTV",41023,"SG 1946 Hüttenfeld","Herren",1,"SG 1946 Hüttenfeld",2,8]
["2024-10-04T20:15:00","Fr.","HeTTV","2024/25","Kreis Bergstraße 2024/25","Herren","Herren Kreisliga","Herren Kreisliga West","VR",1,1,"Bürgerhaus Hüttenfeld","Alfred-Delp-Straße 50",68623,"Lampertheim-Hüttenfeld","HeTTV",41023,"SG 1946 Hüttenfeld","Herren",2,"HeTTV",41060,"SG Nordheim-Wattenheim 1948 e.V.","Herren",1,"SG Nordheim-Wattenheim 1948 e.V.",7,3]
["2024-10-04T20:15:00","Fr.","HeTTV","2024/25","Kreis Bergstraße 2024/25","Herren","Herren 3. Kreisklasse","Herren 3. Kreisklasse West 1","VR",17,1,"Bürgerhaus Hüttenfeld","Alfred-Delp-Straße 50",68623,"Lampertheim-Hüttenfeld","HeTTV",41023,"SG 1946 Hüttenfeld","Herren",3,"HeTTV",41027,"TTC 1957 Lampertheim","Herren",11,"TTC 1957 Lampertheim XI",6,4]
["2024-10-04T20:30:00","Fr.","HeTTV","2024/25","Kreis Bergstraße 2024/25","Herren","Herren 3. Kreisklasse","Herren 3. Kreisklasse West 2","VR",16,1,"Neue Jahnturnhalle","Wasserwerkstr. 4",68642,"Bürstadt","HeTTV",41009,"TV 1891 Bürstadt","Herren",9,"HeTTV",41023,"SG 1946 Hüttenfeld","Herren",4,"SG 1946 Hüttenfeld IV",6,4]
["2024-10-06T13:00:00","So.","HeTTV","2024/25","Kreis Odenwald 2024/25","Mädchen 13","Mädchen 13 Kreisliga 2er","Kreisliga 2er","VR",22,1,"Bürgerhaus Hüttenfeld","Alfred-Delp-Straße 50",68623,"Lampertheim-Hüttenfeld","HeTTV",41023,"SG 1946 Hüttenfeld","Mädchen 13",1,"HeTTV",43052,"DJK-SG 1929 Zeilsheim","Mädchen 13",1,"DJK-SG 1929 Zeilsheim",3,2]
["2024-10-09T19:30:00","Mi.","HeTTV","Pokal 2024/25","Kreis Bergstraße Pokal 2024/25","Herren","Herren 3. Kreisklasse","3. Kreisklasse","Pokal",106,1,"Sporthalle Wingertsbergschule","Bahnhofstraße 17 a",64653,"Lorsch","HeTTV",41057,"TTC 2010 Lorsch","Herren",3,"HeTTV",41023,"SG 1946 Hüttenfeld","Herren",3,"SG 1946 Hüttenfeld III",4,3]
["2024-10-09T19:30:00","Mi.","HeTTV","2024/25","Kreis Bergstraße 2024/25","Herren","Herren 3. Kreisklasse","Herren 3. Kreisklasse West 1","VR",18,1,"Bürgerhaus Hüttenfeld","Alfred-Delp-Straße 50",68623,"Lampertheim-Hüttenfeld","HeTTV",41023,"SG 1946 Hüttenfeld","Herren",5,"HeTTV",41018,"TSV Hambach 1899","Herren",3,"TSV Hambach 1899 III",0,10]
["2024-10-09T20:15:00","Mi.","HeTTV","Pokal 2024/25","Kreis Bergstraße Pokal 2024/25","Herren","Herren Kreisliga","Kreisliga","Pokal",105,1,"Bürgerhaus Hüttenfeld","Alfred-Delp-Straße 50",68623,"Lampertheim-Hüttenfeld","HeTTV",41023,"SG 1946 Hüttenfeld","Herren",2,"HeTTV",41016,"SG Gronau","Herren",2,"SG Gronau II",4,1]
["2024-10-10T20:00:00","Do.","HeTTV","2024/25","Bezirk Süd 2024/25","Damen","Damen Bezirksklasse","Damen Bezirksklasse Gr.1","VR",12,1,"Bürgerhaus Hüttenfeld","Alfred-Delp-Straße 50",68623,"Lampertheim-Hüttenfeld","HeTTV",41023,"SG 1946 Hüttenfeld","Damen",1,"HeTTV",41043,"SG Seidenbuch","Damen",2,"SG Seidenbuch II",10,0]
["2024-10-10T20:15:00","Do.","HeTTV","2024/25","Kreis Bergstraße 2024/25","Herren","Herren 3. Kreisklasse","Herren 3. Kreisklasse West 1","VR",20,1,"Dorfgemeinschaftshaus Gronau","Märkerwaldstr. 81a",64625,"Bensheim-Gronau","HeTTV",41016,"SG Gronau","Herren",5,"HeTTV",41023,"SG 1946 Hüttenfeld","Herren",3,"SG 1946 Hüttenfeld III",1,9]
["2024-10-11T20:15:00","Fr.","HeTTV","2024/25","Kreis Bergstraße 2024/25","Herren","Herren Kreisliga","Herren Kreisliga West","VR",18,1,"Bürgerhaus Hüttenfeld","Alfred-Delp-Straße 50",68623,"Lampertheim-Hüttenfeld","HeTTV",41023,"SG 1946 Hüttenfeld","Herren",2,"HeTTV",41027,"TTC 1957 Lampertheim","Herren",6,"TTC 1957 Lampertheim VI",6,4]
["2024-10-11T20:15:00","Fr.","HeTTV","2024/25","Kreis Bergstraße 2024/25","Herren","Herren 3. Kreisklasse","Herren 3. Kreisklasse West 2","VR",20,1,"GGEW Sportzentrum Geb. B","Saarstrasse 56",64625,"Bensheim-Auerbach","HeTTV",41001,"TSV RW Auerbach","Herren",6,"HeTTV",41023,"SG 1946 Hüttenfeld","Herren",4,"SG 1946 Hüttenfeld IV",7,3]
["2024-10-12T16:30:00","Sa.","HeTTV","2024/25","Bezirk Süd 2024/25","Herren","Herren Bezirksklasse","Herren Bezirksklasse Gr. 1","VR",22,1,"Bürgerhaus Hüttenfeld","Alfred-Delp-Straße 50",68623,"Lampertheim-Hüttenfeld","HeTTV",41023,"SG 1946 Hüttenfeld","Herren",1,"HeTTV",41013,"VfR Fehlheim 1929","Herren",5,"VfR Fehlheim 1929 V",8,2]
["2024-10-12T16:30:00","Sa.","HeTTV","Pokal 2024/25","Kreis Bergstraße Pokal 2024/25","Herren","Herren 3. Kreisklasse","3. Kreisklasse","Pokal",107,1,"Neu Sporthalle,An der Grundschule","Goethestr. 6",64658,"Fürth","HeTTV",41014,"SV Fürth","Herren",4,"HeTTV",41023,"SG 1946 Hüttenfeld","Herren",5,"SG 1946 Hüttenfeld V",4,0]
["2024-10-13T10:00:00","So.","HeTTV","2024/25","Kreis Bergstraße 2024/25","Jungen 13","Jungen 13 2.Kreisklasse","Jungen 13 2.Kreisklasse","VR",11,1,"Bürgerhaus Hüttenfeld","Alfred-Delp-Straße 50",68623,"Lampertheim-Hüttenfeld","HeTTV",41023,"SG 1946 Hüttenfeld","Jungen 13",1,"HeTTV",41017,"TTC 1950 Groß-Rohrheim","Jungen 13",3,"TTC 1950 Groß-Rohrheim III",8,2]
["2024-10-13T16:00:00","So.","HeTTV","Pokal 2024/25","Kreis Bergstraße Pokal 2024/25","Jungen 15","Jungen 15 Kreisliga","Jungen 15 Kreisliga","Pokal",104,1,"Bürgerhaus Hüttenfeld","Alfred-Delp-Straße 50",68623,"Lampertheim-Hüttenfeld","HeTTV",41023,"SG 1946 Hüttenfeld","Jungen 15",1,"HeTTV",41017,"TTC 1950 Groß-Rohrheim","Jungen 15",1,"TTC 1950 Groß-Rohrheim",1,4]
["2024-10-18T20:15:00","Fr.","HeTTV","2024/25","Bezirk Süd 2024/25","Herren","Herren Bezirksklasse","Herren Bezirksklasse Gr. 1","VR",1,1,"Turnhalle Eichendorff Schule","Schulstr. 26",64646,"Kirschhausen","HeTTV",41024,"SV Kirschhausen 1921","Herren",1,"HeTTV",41023,"SG 1946 Hüttenfeld","Herren",1,"SG 1946 Hüttenfeld",8,2]
["2024-10-23T20:30:00","Mi.","HeTTV","Pokal 2024/25","Bezirk Süd Pokal 2024/25","Herren","Herren Bezirksklasse","Pokal Herren Bezirksklasse","Pokal",11,1,"Bürgerhaus Hüttenfeld","Alfred-Delp-Straße 50",68623,"Lampertheim-Hüttenfeld","HeTTV",41023,"SG 1946 Hüttenfeld","Herren",1,"HeTTV",43044,"TG Sachsenhausen 04","Herren",2,"TG Sachsenhausen 04 II",0,4]
["2024-10-28T20:15:00","Mo.","HeTTV","2024/25","Kreis Bergstraße 2024/25","Herren","Herren 3. Kreisklasse","Herren 3. Kreisklasse West 1","VR",22,1,"GGEW Sportzentrum Geb. B","Saarstrasse 56",64625,"Bensheim-Auerbach","HeTTV",41001,"TSV RW Auerbach","Herren",7,"HeTTV",41023,"SG 1946 Hüttenfeld","Herren",5,"SG 1946 Hüttenfeld V",7,3]
["2024-10-30T19:30:00","Mi.","HeTTV","2024/25","Kreis Bergstraße 2024/25","Herren","Herren Kreisliga","Herren Kreisliga West","VR",20,1,"neue Halle am Alten Kurfürstlichen Gymnasium","Franz-Liszt-Straße / Fehlheimer Straße",64625,"Bensheim","HeTTV",41004,"VfL Bensheim","Herren",1,"HeTTV",41023,"SG 1946 Hüttenfeld","Herren",2,"SG 1946 Hüttenfeld II",7,3]
["2024-11-01T20:15:00","Fr.","HeTTV","2024/25","Kreis Bergstraße 2024/25","Herren","Herren 3. Kreisklasse","Herren 3. Kreisklasse West 1","VR",25,1,"Bürgerhaus Hüttenfeld","Alfred-Delp-Straße 50",68623,"Lampertheim-Hüttenfeld","HeTTV",41023,"SG 1946 Hüttenfeld","Herren",3,"HeTTV",41051,"SKG Zell","Herren",1,"SKG Zell",7,3]
["2024-11-01T20:15:00","Fr.","HeTTV","2024/25","Kreis Bergstraße 2024/25","Herren","Herren 3. Kreisklasse","Herren 3. Kreisklasse West 2","VR",26,1,"Bürgerhaus Hüttenfeld","Alfred-Delp-Straße 50",68623,"Lampertheim-Hüttenfeld","HeTTV",41023,"SG 1946 Hüttenfeld","Herren",4,"HeTTV",41037,"TV 1907 Ober-Laudenbach","Herren",2,"TV 1907 Ober-Laudenbach II",2,8]
["2024-11-01T20:30:00","Fr.","HeTTV","2024/25","Bezirk Süd 2024/25","Herren","Herren Bezirksklasse","Herren Bezirksklasse Gr. 1","VR",12,1,"Neue Jahnturnhalle","Wasserwerkstr. 4",68642,"Bürstadt","HeTTV",41009,"TV 1891 Bürstadt","Herren",2,"HeTTV",41023,"SG 1946 Hüttenfeld","Herren",1,"SG 1946 Hüttenfeld",6,4]
["2024-11-02T18:00:00","Sa.","HeTTV","2024/25","Bezirk Süd 2024/25","Herren","Herren Bezirksklasse","Herren Bezirksklasse Gr. 1","VR",26,1,"Pfalzbach-Halle","Alzenauer Str.",64668,"Mitlechtern","HeTTV",41056,"SG 03 Mitlechtern","Herren",1,"HeTTV",41023,"SG 1946 Hüttenfeld","Herren",1,"SG 1946 Hüttenfeld",7,3]
["2024-11-04T20:00:00","Mo.","HeTTV","2024/25","Kreis Bergstraße 2024/25","Herren","Herren 3. Kreisklasse","Herren 3. Kreisklasse West 1","VR",26,1,"Turnhalle Konrad-Adenauer-Schule","Mainzer Str.8 / Zufahrt über Weinheimer Straße",64646,"Heppenheim","HeTTV",41053,"TTC Heppenheim","Herren",7,"HeTTV",41023,"SG 1946 Hüttenfeld","Herren",3,"SG 1946 Hüttenfeld III",1,9]
["2024-11-08T18:15:00","Fr.","HeTTV","2024/25","Kreis Bergstraße 2024/25","Jungen 15","Jungen 15 Kreisliga","Jungen 15 Kreisliga","VR",22,1,"Bürgerhaus Hüttenfeld","Alfred-Delp-Straße 50",68623,"Lampertheim-Hüttenfeld","HeTTV",41023,"SG 1946 Hüttenfeld","Jungen 15",1,"HeTTV",41053,"TTC Heppenheim","Jungen 11",1,"TTC Heppenheim",2,8]
["2024-11-08T20:00:00","Fr.","HeTTV","2024/25","Kreis Bergstraße 2024/25","Herren","Herren 3. Kreisklasse","Herren 3. Kreisklasse West 1","VR",28,1,"Bürgerhaus Hüttenfeld","Alfred-Delp-Straße 50",68623,"Lampertheim-Hüttenfeld","HeTTV",41023,"SG 1946 Hüttenfeld","Herren",5,"HeTTV",41051,"SKG Zell","Herren",1,"SKG Zell",0,10]
["2024-11-08T20:15:00","Fr.","HeTTV","2024/25","Bezirk Süd 2024/25","Damen","Damen Bezirksklasse","Damen Bezirksklasse Gr.1","VR",16,1,"Sporthalle Einhausen","Sepp-Herberger-Straße",64683,"Einhausen","HeTTV",41010,"BSC 1957 Einhausen","Damen",1,"HeTTV",41023,"SG 1946 Hüttenfeld","Damen",1,"SG 1946 Hüttenfeld",9,1]
["2024-11-10T10:00:00","So.","HeTTV","2024/25","Kreis Bergstraße 2024/25","Jungen 19","Jungen 19 1. Kreisklasse","Jungen 19 1. Kreisklasse","VR",18,1,"Bürgerhaus Hüttenfeld","Alfred-Delp-Straße 50",68623,"Lampertheim-Hüttenfeld","HeTTV",41023,"SG 1946 Hüttenfeld","Jungen 19",1,"HeTTV",41039,"TSV 1893 Reichenbach","Jungen 19",1,"TSV 1893 Reichenbach",10,0]
["2024-11-10T10:00:00","So.","HeTTV","2024/25","Kreis Bergstraße 2024/25","Jungen 13","Jungen 13 2.Kreisklasse","Jungen 13 2.Kreisklasse","VR",14,1,"Bürgerhaus Hüttenfeld","Alfred-Delp-Straße 50",68623,"Lampertheim-Hüttenfeld","HeTTV",41023,"SG 1946 Hüttenfeld","Jungen 13",1,"HeTTV",41048,"SG Wald-Michelbach","Jungen 13",2,"SG Wald-Michelbach II",10,0]
["2024-11-13T19:30:00","Mi.","HeTTV","2024/25","Kreis Bergstraße 2024/25","Herren","Herren 3. Kreisklasse","Herren 3. Kreisklasse West 1","VR",30,1,"Bürgerhaus Hüttenfeld","Alfred-Delp-Straße 50",68623,"Lampertheim-Hüttenfeld","HeTTV",41023,"SG 1946 Hüttenfeld","Herren",5,"HeTTV",41053,"TTC Heppenheim","Herren",7,"TTC Heppenheim VII",0,10]
["2024-11-15T18:15:00","Fr.","HeTTV","2024/25","Kreis Bergstraße 2024/25","Jungen 15","Jungen 15 Kreisliga","Jungen 15 Kreisliga","VR",25,1,"Bürgerhaus Hüttenfeld","Alfred-Delp-Straße 50",68623,"Lampertheim-Hüttenfeld","HeTTV",41023,"SG 1946 Hüttenfeld","Jungen 15",1,"HeTTV",41040,"TSK SW Rimbach","Jungen 15",1,"TSK SW Rimbach",2,8]
["2024-11-15T20:15:00","Fr.","HeTTV","2024/25","Kreis Bergstraße 2024/25","Herren","Herren Kreisliga","Herren Kreisliga West","VR",27,1,"Bürgerhaus Hüttenfeld","Alfred-Delp-Straße 50",68623,"Lampertheim-Hüttenfeld","HeTTV",41023,"SG 1946 Hüttenfeld","Herren",2,"HeTTV",41016,"SG Gronau","Herren",2,"SG Gronau II",7,3]
["2024-11-15T20:20:00","Fr.","HeTTV","2024/25","Kreis Bergstraße 2024/25","Herren","Herren 3. Kreisklasse","Herren 3. Kreisklasse West 2","VR",32,1,"Bürgerhaus Hüttenfeld","Alfred-Delp-Straße 50",68623,"Lampertheim-Hüttenfeld","HeTTV",41023,"SG 1946 Hüttenfeld","Herren",4,"HeTTV",41016,"SG Gronau","Herren",4,"SG Gronau IV",3,7]
["2024-11-16T16:45:00","Sa.","HeTTV","2024/25","Bezirk Süd 2024/25","Herren","Herren Bezirksklasse","Herren Bezirksklasse Gr. 1","VR",33,1,"Bürgerhaus Hüttenfeld","Alfred-Delp-Straße 50",68623,"Lampertheim-Hüttenfeld","HeTTV",41023,"SG 1946 Hüttenfeld","Herren",1,"HeTTV",41009,"TV 1891 Bürstadt","Herren",4,"TV 1891 Bürstadt IV",8,2]
["2024-11-18T20:15:00","Mo.","HeTTV","2024/25","Kreis Bergstraße 2024/25","Herren","Herren 3. Kreisklasse","Herren 3. Kreisklasse West 1","VR",33,1,"GGEW Sportzentrum Geb. B","Saarstrasse 56",64625,"Bensheim-Auerbach","HeTTV",41001,"TSV RW Auerbach","Herren",7,"HeTTV",41023,"SG 1946 Hüttenfeld","Herren",3,"SG 1946 Hüttenfeld III",2,8]
["2024-11-22T20:15:00","Fr.","HeTTV","2024/25","Kreis Bergstraße 2024/25","Herren","Herren Kreisliga","Herren Kreisliga West","VR",29,1,"Bürgerhaus Hüttenfeld","Alfred-Delp-Straße 50",68623,"Lampertheim-Hüttenfeld","HeTTV",41023,"SG 1946 Hüttenfeld","Herren",2,"HeTTV",41001,"TSV RW Auerbach","Herren",2,"TSV RW Auerbach II",7,3]
["2024-11-22T20:15:00","Fr.","HeTTV","2024/25","Kreis Bergstraße 2024/25","Herren","Herren 3. Kreisklasse","Herren 3. Kreisklasse West 1","VR",36,1,"Bürgerhaus Hüttenfeld","Alfred-Delp-Straße 50",68623,"Lampertheim-Hüttenfeld","HeTTV",41023,"SG 1946 Hüttenfeld","Herren",5,"HeTTV",41057,"TTC 2010 Lorsch","Herren",3,"TTC 2010 Lorsch III",2,8]
["2024-11-23T15:30:00","Sa.","HeTTV","2024/25","Kreis Bergstraße 2024/25","Jungen 15","Jungen 15 Kreisliga","Jungen 15 Kreisliga","VR",29,1,"Turnhalle Konrad-Adenauer-Schule","Mainzer Str.8 / Zufahrt über Weinheimer Straße",64646,"Heppenheim","HeTTV",41053,"TTC Heppenheim","Jungen 13",1,"HeTTV",41023,"SG 1946 Hüttenfeld","Jungen 15",1,"SG 1946 Hüttenfeld",9,1]
["2024-11-23T17:00:00","Sa.","HeTTV","2024/25","Bezirk Süd 2024/25","Damen","Damen Bezirksklasse","Damen Bezirksklasse Gr.1","VR",23,1,"Weschnitztalhalle","Schulstraße",69509,"Mörlenbach","HeTTV",41033,"SV 1896 Mörlenbach","Damen",1,"HeTTV",41023,"SG 1946 Hüttenfeld","Damen",1,"SG 1946 Hüttenfeld",5,5]
["2024-11-24T13:00:00","So.","HeTTV","2024/25","Bezirk Süd 2024/25","Damen","Damen Bezirksklasse","Damen Bezirksklasse Gr.1","VR",20,1,"Bürgerhaus Hüttenfeld","Alfred-Delp-Straße 50",68623,"Lampertheim-Hüttenfeld","HeTTV",41023,"SG 1946 Hüttenfeld","Damen",1,"HeTTV",44028,"SV Rot-Weiß 1914 Walldorf","Damen",1,"SV Rot-Weiß 1914 Walldorf",2,8]
["2024-11-24T13:00:00","So.","HeTTV","2024/25","Kreis Bergstraße 2024/25","Jungen 13","Jungen 13 2.Kreisklasse","Jungen 13 2.Kreisklasse","VR",16,1,"Bürgerhaus Hüttenfeld","Alfred-Delp-Straße 50",68623,"Lampertheim-Hüttenfeld","HeTTV",41023,"SG 1946 Hüttenfeld","Jungen 13",1,"HeTTV",41040,"TSK SW Rimbach","Jungen 13",2,"TSK SW Rimbach II",6,4]
["2024-11-25T18:30:00","Mo.","HeTTV","2024/25","Kreis Bergstraße 2024/25","Jungen 19","Jungen 19 1. Kreisklasse","Jungen 19 1. Kreisklasse","VR",23,1,"GGEW Sportzentrum Geb. B","Saarstrasse 56",64625,"Bensheim-Auerbach","HeTTV",41001,"TSV RW Auerbach","Jungen 19",1,"HeTTV",41023,"SG 1946 Hüttenfeld","Jungen 19",1,"SG 1946 Hüttenfeld",5,5]
["2024-11-28T20:15:00","Do.","HeTTV","2024/25","Bezirk Süd 2024/25","Herren","Herren Bezirksklasse","Herren Bezirksklasse Gr. 1","VR",38,1,"Schlossberghalle","Im Schalbert 2",64646,"HP-Hambach","HeTTV",41018,"TSV Hambach 1899","Herren",1,"HeTTV",41023,"SG 1946 Hüttenfeld","Herren",1,"SG 1946 Hüttenfeld",4,6]
["2024-11-30T16:00:00","Sa.","HeTTV","2024/25","Kreis Bergstraße 2024/25","Jungen 15","Jungen 15 Kreisliga","Jungen 15 Kreisliga","VR",20,1,"Bürgerhalle / Bürgerhallenanbau","Jahnstraße",68649,"Groß-Rohrheim","HeTTV",41017,"TTC 1950 Groß-Rohrheim","Jungen 15",1,"HeTTV",41023,"SG 1946 Hüttenfeld","Jungen 15",1,"SG 1946 Hüttenfeld",5,5]
["2024-12-01T11:00:00","So.","HeTTV","2024/25","Kreis Odenwald 2024/25","Mädchen 13","Mädchen 13 Kreisliga 2er","Kreisliga 2er","VR",18,2,"gr. Turnhalle Edith-Stein-Schule","Schaumburgerstraße 62",65936,"Frankfurt-Sossenheim","HeTTV",43050,"SG 1878 Sossenheim","Mädchen 13",2,"HeTTV",41023,"SG 1946 Hüttenfeld","Mädchen 13",1,"SG 1946 Hüttenfeld",1,4]
["2024-12-01T13:00:00","So.","HeTTV","2024/25","Kreis Odenwald 2024/25","Mädchen 13","Mädchen 13 Kreisliga 2er","Kreisliga 2er","VR",27,2,"gr. Turnhalle Edith-Stein-Schule","Schaumburgerstraße 62",65936,"Frankfurt-Sossenheim","HeTTV",43050,"SG 1878 Sossenheim","Mädchen 13",1,"HeTTV",41023,"SG 1946 Hüttenfeld","Mädchen 13",1,"SG 1946 Hüttenfeld",1,4]
["2024-12-02T19:45:00","Mo.","HeTTV","2024/25","Kreis Bergstraße 2024/25","Herren","Herren 3. Kreisklasse","Herren 3. Kreisklasse West 2","VR",41,1,"Turnhalle der Carl-Orff-Schule","Im Ebertswinkel",64625,"Bensheim-Fehlheim","HeTTV",41013,"VfR Fehlheim 1929","Herren",7,"HeTTV",41023,"SG 1946 Hüttenfeld","Herren",4,"SG 1946 Hüttenfeld IV",7,3]
["2024-12-04T18:30:00","Mi.","HeTTV","2024/25","Kreis Bergstraße 2024/25","Jungen 13","Jungen 13 2.Kreisklasse","Jungen 13 2.Kreisklasse","VR",20,1,"GGEW Sportzentrum Geb. B","Saarstrasse 56",64625,"Bensheim-Auerbach","HeTTV",41001,"TSV RW Auerbach","Jungen 13",2,"HeTTV",41023,"SG 1946 Hüttenfeld","Jungen 13",1,"SG 1946 Hüttenfeld",6,4]
["2024-12-05T20:00:00","Do.","HeTTV","2024/25","Bezirk Süd 2024/25","Damen","Damen Bezirksklasse","Damen Bezirksklasse Gr.1","VR",27,1,"Bürgerhaus Hüttenfeld","Alfred-Delp-Straße 50",68623,"Lampertheim-Hüttenfeld","HeTTV",41023,"SG 1946 Hüttenfeld","Damen",1,"HeTTV",44010,"TTC Ginsheim","Damen",2,"TTC Ginsheim II",0,10]
["2024-12-05T20:15:00","Do.","HeTTV","2024/25","Kreis Bergstraße 2024/25","Herren","Herren 3. Kreisklasse","Herren 3. Kreisklasse West 2","VR",43,1,"Schlossberghalle","Im Schalbert 2",64646,"HP-Hambach","HeTTV",41018,"TSV Hambach 1899","Herren",4,"HeTTV",41023,"SG 1946 Hüttenfeld","Herren",4,"SG 1946 Hüttenfeld IV",4,6]
["2024-12-06T18:15:00","Fr.","HeTTV","2024/25","Kreis Bergstraße 2024/25","Jungen 15","Jungen 15 Kreisliga","Jungen 15 Kreisliga","VR",35,1,"Bürgerhaus Hüttenfeld","Alfred-Delp-Straße 50",68623,"Lampertheim-Hüttenfeld","HeTTV",41023,"SG 1946 Hüttenfeld","Jungen 15",1,"HeTTV",41011,"TSV Ellenbach 1913/65","Jungen 15",1,"TSV Ellenbach 1913/65",7,3]
["2024-12-06T20:00:00","Fr.","HeTTV","2024/25","Kreis Bergstraße 2024/25","Herren","Herren 3. Kreisklasse","Herren 3. Kreisklasse West 1","VR",44,1,"Dorfgemeinschaftshaus Gronau","Märkerwaldstr. 81a",64625,"Bensheim-Gronau","HeTTV",41016,"SG Gronau","Herren",5,"HeTTV",41023,"SG 1946 Hüttenfeld","Herren",5,"SG 1946 Hüttenfeld V",8,2]
["2024-12-06T20:15:00","Fr.","HeTTV","2024/25","Kreis Bergstraße 2024/25","Herren","Herren 3. Kreisklasse","Herren 3. Kreisklasse West 1","VR",45,1,"Bürgerhaus Hüttenfeld","Alfred-Delp-Straße 50",68623,"Lampertheim-Hüttenfeld","HeTTV",41023,"SG 1946 Hüttenfeld","Herren",3,"HeTTV",41018,"TSV Hambach 1899","Herren",3,"TSV Hambach 1899 III",1,9]
["2024-12-06T20:30:00","Fr.","HeTTV","2024/25","Kreis Bergstraße 2024/25","Herren","Herren Kreisliga","Herren Kreisliga West","VR",36,1,"Neue Jahnturnhalle","Wasserwerkstr. 4",68642,"Bürstadt","HeTTV",41009,"TV 1891 Bürstadt","Herren",5,"HeTTV",41023,"SG 1946 Hüttenfeld","Herren",2,"SG 1946 Hüttenfeld II",8,2]
["2024-12-07T13:30:00","Sa.","HeTTV","2024/25","Kreis Bergstraße 2024/25","Jungen 19","Jungen 19 1. Kreisklasse","Jungen 19 1. Kreisklasse","VR",28,1,"TSV-Halle Ellenbach","Schlierbacher Straße 43",64658,"Fürth-Ellenbach","HeTTV",41011,"TSV Ellenbach 1913/65","Jungen 19",1,"HeTTV",41023,"SG 1946 Hüttenfeld","Jungen 19",1,"SG 1946 Hüttenfeld",4,6]
["2024-12-07T16:45:00","Sa.","HeTTV","2024/25","Bezirk Süd 2024/25","Herren","Herren Bezirksklasse","Herren Bezirksklasse Gr. 1","VR",44,1,"Bürgerhaus Hüttenfeld","Alfred-Delp-Straße 50",68623,"Lampertheim-Hüttenfeld","HeTTV",41023,"SG 1946 Hüttenfeld","Herren",1,"HeTTV",41027,"TTC 1957 Lampertheim","Herren",3,"TTC 1957 Lampertheim III",0,10]
["2024-12-13T20:00:00","Fr.","HeTTV","Pokal 2024/25","Kreis Bergstraße Pokal 2024/25","Herren","Herren Kreisliga","Kreisliga","Pokal",202,1,"Weschnitztalhalle","Schulstraße",69509,"Mörlenbach","HeTTV",41033,"SV 1896 Mörlenbach","Herren",1,"HeTTV",41023,"SG 1946 Hüttenfeld","Herren",2,"SG 1946 Hüttenfeld II",4,0]
["2024-12-13T20:15:00","Fr.","HeTTV","Pokal 2024/25","Kreis Bergstraße Pokal 2024/25","Herren","Herren 3. Kreisklasse","3. Kreisklasse","Pokal",208,1,"Turnhalle der Mittelpunkt-Schule Gadernheim","Heidenbergstr. 18",64686,"Lautertal-Gadernheim","HeTTV",41015,"TTC Gadernheim","Herren",2,"HeTTV",41023,"SG 1946 Hüttenfeld","Herren",4,"SG 1946 Hüttenfeld IV",4,0]
["2025-01-15T19:30:00","Mi.","HeTTV","2024/25","Kreis Bergstraße 2024/25","Herren","Herren 3. Kreisklasse","Herren 3. Kreisklasse West 1","RR",47,1,"Bürgerhaus Hüttenfeld","Alfred-Delp-Straße 50",68623,"Lampertheim-Hüttenfeld","HeTTV",41023,"SG 1946 Hüttenfeld","Herren",3,"HeTTV",41023,"SG 1946 Hüttenfeld","Herren",5,"SG 1946 Hüttenfeld V",9,1]
["2025-01-18T13:00:00","Sa.","HeTTV","2024/25","Kreis Bergstraße 2024/25","Jungen 15","Jungen 15 Kreisliga","Jungen 15 Kreisliga","RR",37,1,"Turnhalle Konrad-Adenauer-Schule","Mainzer Str.8 / Zufahrt über Weinheimer Straße",64646,"Heppenheim","HeTTV",41053,"TTC Heppenheim","Jungen 15",2,"HeTTV",41023,"SG 1946 Hüttenfeld","Jungen 15",1,"SG 1946 Hüttenfeld",4,6]
["2025-01-19T11:00:00","So.","HeTTV","2024/25","Kreis Odenwald 2024/25","Mädchen 13","Mädchen 13 Kreisliga 2er","Kreisliga 2er","RR",1,1,"Dorfgemeinschaftshaus","Königsbrunnenstr. 7",64385,"Ober - Kainsbach","HeTTV",45023,"SV Ober-Kainsbach","Mädchen 13",1,"HeTTV",41023,"SG 1946 Hüttenfeld","Mädchen 13",1,"SG 1946 Hüttenfeld",3,2]
["2025-01-19T13:00:00","So.","HeTTV","2024/25","Kreis Odenwald 2024/25","Mädchen 13","Mädchen 13 Kreisliga 2er","Kreisliga 2er","RR",8,1,"Bürgerhaus Hüttenfeld","Alfred-Delp-Straße 50",68623,"Lampertheim-Hüttenfeld","HeTTV",41023,"SG 1946 Hüttenfeld","Mädchen 13",1,"HeTTV",41009,"TV 1891 Bürstadt","Mädchen 13",1,"TV 1891 Bürstadt",2,3]
["2025-01-19T14:30:00","So.","HeTTV","2024/25","Bezirk Süd 2024/25","Herren","Herren Bezirksklasse","Herren Bezirksklasse Gr. 1","RR",48,1,"Bürgerhaus Hüttenfeld","Alfred-Delp-Straße 50",68623,"Lampertheim-Hüttenfeld","HeTTV",41023,"SG 1946 Hüttenfeld","Herren",1,"HeTTV",41024,"SV Kirschhausen 1921","Herren",1,"SV Kirschhausen 1921",3,7]
["2025-01-19T14:30:00","So.","HeTTV","2024/25","Kreis Odenwald 2024/25","Mädchen 13","Mädchen 13 Kreisliga 2er","Kreisliga 2er","RR",11,1,"Bürgerhaus Hüttenfeld","Alfred-Delp-Straße 50",68623,"Lampertheim-Hüttenfeld","HeTTV",41023,"SG 1946 Hüttenfeld","Mädchen 13",1,"HeTTV",45015,"TSV 1875 Höchst","Mädchen 13",1,"TSV 1875 Höchst",3,2]
["2025-01-20T20:15:00","Mo.","HeTTV","2024/25","Kreis Bergstraße 2024/25","Herren","Herren 3. Kreisklasse","Herren 3. Kreisklasse West 1","RR",50,1,"Schlossberghalle","Im Schalbert 2",64646,"HP-Hambach","HeTTV",41018,"TSV Hambach 1899","Herren",3,"HeTTV",41023,"SG 1946 Hüttenfeld","Herren",3,"SG 1946 Hüttenfeld III",9,1]
["2025-01-22T19:30:00","Mi.","HeTTV","2024/25","Kreis Bergstraße 2024/25","Herren","Herren 3. Kreisklasse","Herren 3. Kreisklasse West 1","RR",78,1,"Bürgerhaus Hüttenfeld","Alfred-Delp-Straße 50",68623,"Lampertheim-Hüttenfeld","HeTTV",41023,"SG 1946 Hüttenfeld","Herren",5,"HeTTV",41016,"SG Gronau","Herren",5,"SG Gronau V",4,6]
["2025-01-24T20:15:00","Fr.","HeTTV","2024/25","Kreis Bergstraße 2024/25","Herren","Herren 3. Kreisklasse","Herren 3. Kreisklasse West 2","RR",49,1,"Bürgerhaus Hüttenfeld","Alfred-Delp-Straße 50",68623,"Lampertheim-Hüttenfeld","HeTTV",41023,"SG 1946 Hüttenfeld","Herren",4,"HeTTV",41013,"VfR Fehlheim 1929","Herren",7,"VfR Fehlheim 1929 VII",7,3]
["2025-01-25T13:30:00","Sa.","HeTTV","2024/25","Kreis Bergstraße 2024/25","Jungen 15","Jungen 15 Kreisliga","Jungen 15 Kreisliga","RR",38,1,"TSV-Halle Ellenbach","Schlierbacher Straße 43",64658,"Fürth-Ellenbach","HeTTV",41011,"TSV Ellenbach 1913/65","Jungen 15",1,"HeTTV",41023,"SG 1946 Hüttenfeld","Jungen 15",1,"SG 1946 Hüttenfeld",3,7]
["2025-01-26T10:00:00","So.","HeTTV","2024/25","Kreis Bergstraße 2024/25","Jungen 19","Jungen 19 1. Kreisklasse","Jungen 19 1. Kreisklasse","RR",29,1,"Bürgerhaus Hüttenfeld","Alfred-Delp-Straße 50",68623,"Lampertheim-Hüttenfeld","HeTTV",41023,"SG 1946 Hüttenfeld","Jungen 19",1,"HeTTV",41011,"TSV Ellenbach 1913/65","Jungen 19",1,"TSV Ellenbach 1913/65",6,4]
["2025-01-26T14:30:00","So.","HeTTV","2024/25","Bezirk Süd 2024/25","Herren","Herren Bezirksklasse","Herren Bezirksklasse Gr. 1","RR",51,1,"Bürgerhaus Hüttenfeld","Alfred-Delp-Straße 50",68623,"Lampertheim-Hüttenfeld","HeTTV",41023,"SG 1946 Hüttenfeld","Herren",1,"HeTTV",41018,"TSV Hambach 1899","Herren",1,"TSV Hambach 1899",5,5]
["2025-01-28T19:30:00","Di.","HeTTV","2024/25","Kreis Bergstraße 2024/25","Herren","Herren 3. Kreisklasse","Herren 3. Kreisklasse West 1","RR",53,1,"Dorfgemeinschaftshaus Zell","Gronauer Straße 98-100",64625,"Bensheim-Zell","HeTTV",41051,"SKG Zell","Herren",1,"HeTTV",41023,"SG 1946 Hüttenfeld","Herren",5,"SG 1946 Hüttenfeld V",8,2]
["2025-01-28T20:00:00","Di.","HeTTV","2024/25","Bezirk Süd 2024/25","Damen","Damen Bezirksklasse","Damen Bezirksklasse Gr.1","RR",30,1,"Stadthalle Walldorf","Waldstraße 100",64546,"Mörfelden/Walldorf","HeTTV",44028,"SV Rot-Weiß 1914 Walldorf","Damen",1,"HeTTV",41023,"SG 1946 Hüttenfeld","Damen",1,"SG 1946 Hüttenfeld",8,2]
["2025-01-31T18:15:00","Fr.","HeTTV","2024/25","Kreis Bergstraße 2024/25","Jungen 15","Jungen 15 Kreisliga","Jungen 15 Kreisliga","RR",42,1,"Bürgerhaus Hüttenfeld","Alfred-Delp-Straße 50",68623,"Lampertheim-Hüttenfeld","HeTTV",41023,"SG 1946 Hüttenfeld","Jungen 15",1,"HeTTV",41053,"TTC Heppenheim","Jungen 13",1,"TTC Heppenheim",2,8]
["2025-01-31T20:15:00","Fr.","HeTTV","2024/25","Kreis Bergstraße 2024/25","Herren","Herren Kreisliga","Herren Kreisliga West","RR",44,1,"Bürgerhaus Hüttenfeld","Alfred-Delp-Straße 50",68623,"Lampertheim-Hüttenfeld","HeTTV",41023,"SG 1946 Hüttenfeld","Herren",2,"HeTTV",41009,"TV 1891 Bürstadt","Herren",5,"TV 1891 Bürstadt V",4,6]
["2025-01-31T20:15:00","Fr.","HeTTV","2024/25","Kreis Bergstraße 2024/25","Herren","Herren 3. Kreisklasse","Herren 3. Kreisklasse West 2","RR",53,1,"Bürgerhaus Hüttenfeld","Alfred-Delp-Straße 50",68623,"Lampertheim-Hüttenfeld","HeTTV",41023,"SG 1946 Hüttenfeld","Herren",4,"HeTTV",41018,"TSV Hambach 1899","Herren",4,"TSV Hambach 1899 IV",4,6]
["2025-02-02T10:00:00","So.","HeTTV","2024/25","Bezirk Süd 2024/25","Damen","Damen Bezirksklasse","Damen Bezirksklasse Gr.1","RR",33,1,"Bürgerhaus Hüttenfeld","Alfred-Delp-Straße 50",68623,"Lampertheim-Hüttenfeld","HeTTV",41023,"SG 1946 Hüttenfeld","Damen",1,"HeTTV",41033,"SV 1896 Mörlenbach","Damen",1,"SV 1896 Mörlenbach",10,0]
["2025-02-02T10:00:00","So.","HeTTV","2024/25","Kreis Bergstraße 2024/25","Jungen 13","Jungen 13 2.Kreisklasse","Jungen 13 2.Kreisklasse","RR",33,1,"Bürgerhaus Hüttenfeld","Alfred-Delp-Straße 50",68623,"Lampertheim-Hüttenfeld","HeTTV",41023,"SG 1946 Hüttenfeld","Jungen 13",1,"HeTTV",41014,"SV Fürth","Jungen 13",1,"SV Fürth",7,3]
["2025-02-05T20:00:00","Mi.","HeTTV","2024/25","Kreis Bergstraße 2024/25","Herren","Herren 3. Kreisklasse","Herren 3. Kreisklasse West 1","RR",58,1,"Sedanhalle","Sedanstraße 7",68623,"Lampertheim","HeTTV",41027,"TTC 1957 Lampertheim","Herren",11,"HeTTV",41023,"SG 1946 Hüttenfeld","Herren",5,"SG 1946 Hüttenfeld V",10,0]
["2025-02-06T20:00:00","Do.","HeTTV","2024/25","Kreis Bergstraße 2024/25","Herren","Herren 3. Kreisklasse","Herren 3. Kreisklasse West 2","RR",54,1,"Turnhalle Oberlaudenbach","Oberlaudenbacher Str.",64646,"Heppenheim","HeTTV",41037,"TV 1907 Ober-Laudenbach","Herren",2,"HeTTV",41023,"SG 1946 Hüttenfeld","Herren",4,"SG 1946 Hüttenfeld IV",7,3]
["2025-02-07T20:30:00","Fr.","HeTTV","2024/25","Bezirk Süd 2024/25","Herren","Herren Bezirksklasse","Herren Bezirksklasse Gr. 1","RR",57,1,"Neue Jahnturnhalle","Wasserwerkstr. 4",68642,"Bürstadt","HeTTV",41009,"TV 1891 Bürstadt","Herren",4,"HeTTV",41023,"SG 1946 Hüttenfeld","Herren",1,"SG 1946 Hüttenfeld",1,9]
["2025-02-08T14:00:00","Sa.","HeTTV","2024/25","Kreis Bergstraße 2024/25","Jungen 13","Jungen 13 2.Kreisklasse","Jungen 13 2.Kreisklasse","RR",23,1,"Bürgerhalle / Bürgerhallenanbau","Jahnstraße",68649,"Groß-Rohrheim","HeTTV",41017,"TTC 1950 Groß-Rohrheim","Jungen 13",3,"HeTTV",41023,"SG 1946 Hüttenfeld","Jungen 13",1,"SG 1946 Hüttenfeld",2,8]
["2025-02-09T10:00:00","So.","HeTTV","2024/25","Kreis Bergstraße 2024/25","Jungen 19","Jungen 19 1. Kreisklasse","Jungen 19 1. Kreisklasse","RR",34,1,"Bürgerhaus Hüttenfeld","Alfred-Delp-Straße 50",68623,"Lampertheim-Hüttenfeld","HeTTV",41023,"SG 1946 Hüttenfeld","Jungen 19",1,"HeTTV",41001,"TSV RW Auerbach","Jungen 19",1,"TSV RW Auerbach",4,6]
["2025-02-09T10:00:00","So.","HeTTV","2024/25","Kreis Bergstraße 2024/25","Jungen 13","Jungen 13 2.Kreisklasse","Jungen 13 2.Kreisklasse","RR",24,1,"Bürgerhaus Hüttenfeld","Alfred-Delp-Straße 50",68623,"Lampertheim-Hüttenfeld","HeTTV",41023,"SG 1946 Hüttenfeld","Jungen 13",1,"HeTTV",41050,"TSV 1904 Weiher","Jungen 13",1,"TSV 1904 Weiher",10,0]
["2025-02-10T20:00:00","Mo.","HeTTV","2024/25","Kreis Bergstraße 2024/25","Herren","Herren Kreisliga","Herren Kreisliga West","RR",48,1,"Sedanhalle","Sedanstraße 7",68623,"Lampertheim","HeTTV",41027,"TTC 1957 Lampertheim","Herren",6,"HeTTV",41023,"SG 1946 Hüttenfeld","Herren",2,"SG 1946 Hüttenfeld II",9,1]
["2025-02-12T17:30:00","Mi.","HeTTV","2024/25","Kreis Bergstraße 2024/25","Jungen 15","Jungen 15 Kreisliga","Jungen 15 Kreisliga","RR",48,1,"Odenwaldhalle","Kleiststraße 11",64668,"Rimbach","HeTTV",41040,"TSK SW Rimbach","Jungen 15",1,"HeTTV",41023,"SG 1946 Hüttenfeld","Jungen 15",1,"SG 1946 Hüttenfeld",5,5]
["2025-02-12T19:30:00","Mi.","HeTTV","2024/25","Kreis Bergstraße 2024/25","Herren","Herren 3. Kreisklasse","Herren 3. Kreisklasse West 1","RR",60,1,"Bürgerhaus Hüttenfeld","Alfred-Delp-Straße 50",68623,"Lampertheim-Hüttenfeld","HeTTV",41023,"SG 1946 Hüttenfeld","Herren",5,"HeTTV",41001,"TSV RW Auerbach","Herren",7,"TSV RW Auerbach VII",4,6]
["2025-02-13T20:00:00","Do.","HeTTV","2024/25","Bezirk Süd 2024/25","Damen","Damen Bezirksklasse","Damen Bezirksklasse Gr.1","RR",38,1,"Bürgerhaus Hüttenfeld","Alfred-Delp-Straße 50",68623,"Lampertheim-Hüttenfeld","HeTTV",41023,"SG 1946 Hüttenfeld","Damen",1,"HeTTV",44013,"TTC 1948 Kelsterbach","Damen",1,"TTC 1948 Kelsterbach",1,9]
["2025-02-14T20:15:00","Fr.","HeTTV","2024/25","Kreis Bergstraße 2024/25","Herren","Herren 3. Kreisklasse","Herren 3. Kreisklasse West 1","RR",63,1,"Bürgerhaus Hüttenfeld","Alfred-Delp-Straße 50",68623,"Lampertheim-Hüttenfeld","HeTTV",41023,"SG 1946 Hüttenfeld","Herren",3,"HeTTV",41053,"TTC Heppenheim","Herren",7,"TTC Heppenheim VII",10,0]
["2025-02-16T13:00:00","So.","HeTTV","2024/25","Kreis Bergstraße 2024/25","Herren","Herren 3. Kreisklasse","Herren 3. Kreisklasse West 1","RR",64,1,"Turnhalle Konrad-Adenauer-Schule","Mainzer Str.8 / Zufahrt über Weinheimer Straße",64646,"Heppenheim","HeTTV",41053,"TTC Heppenheim","Herren",7,"HeTTV",41023,"SG 1946 Hüttenfeld","Herren",5,"SG 1946 Hüttenfeld V",10,0]
["2025-02-16T13:00:00","So.","HeTTV","2024/25","Kreis Odenwald 2024/25","Mädchen 13","Mädchen 13 Kreisliga 2er","Kreisliga 2er","RR",18,1,"Bürgerhaus Hüttenfeld","Alfred-Delp-Straße 50",68623,"Lampertheim-Hüttenfeld","HeTTV",41023,"SG 1946 Hüttenfeld","Mädchen 13",1,"HeTTV",43050,"SG 1878 Sossenheim","Mädchen 13",2,"SG 1878 Sossenheim II",5,0]
["2025-02-21T20:00:00","Fr.","HeTTV","2024/25","Kreis Bergstraße 2024/25","Herren","Herren 3. Kreisklasse","Herren 3. Kreisklasse West 1","RR",65,1,"Dorfgemeinschaftshaus Zell","Gronauer Straße 98-100",64625,"Bensheim-Zell","HeTTV",41051,"SKG Zell","Herren",1,"HeTTV",41023,"SG 1946 Hüttenfeld","Herren",3,"SG 1946 Hüttenfeld III",5,5]
["2025-02-24T18:15:00","Mo.","HeTTV","2024/25","Kreis Bergstraße 2024/25","Jungen 19","Jungen 19 1. Kreisklasse","Jungen 19 1. Kreisklasse","RR",39,1,"Schlossberghalle","Im Schalbert 2",64646,"HP-Hambach","HeTTV",41018,"TSV Hambach 1899","Jungen 19",1,"HeTTV",41023,"SG 1946 Hüttenfeld","Jungen 19",1,"SG 1946 Hüttenfeld",10,0]
["2025-02-24T19:30:00","Mo.","HeTTV","2024/25","Bezirk Süd 2024/25","Damen","Damen Bezirksklasse","Damen Bezirksklasse Gr.1","RR",41,2,"IGS Mainspitze Halle B","Sophie-und-Hans-Scholl-Strasse",65462,"Ginsheim-Gustavsburg","HeTTV",44010,"TTC Ginsheim","Damen",2,"HeTTV",41023,"SG 1946 Hüttenfeld","Damen",1,"SG 1946 Hüttenfeld",10,0]
["2025-02-24T20:15:00","Mo.","HeTTV","2024/25","Kreis Bergstraße 2024/25","Herren","Herren Kreisliga","Herren Kreisliga West","RR",54,1,"GGEW Sportzentrum Geb. B","Saarstrasse 56",64625,"Bensheim-Auerbach","HeTTV",41001,"TSV RW Auerbach","Herren",2,"HeTTV",41023,"SG 1946 Hüttenfeld","Herren",2,"SG 1946 Hüttenfeld II",7,3]
["2025-02-26T19:30:00","Mi.","HeTTV","2024/25","Kreis Bergstraße 2024/25","Herren","Herren 3. Kreisklasse","Herren 3. Kreisklasse West 1","RR",68,1,"Bürgerhaus Hüttenfeld","Alfred-Delp-Straße 50",68623,"Lampertheim-Hüttenfeld","HeTTV",41023,"SG 1946 Hüttenfeld","Herren",5,"HeTTV",41037,"TV 1907 Ober-Laudenbach","Herren",3,"TV 1907 Ober-Laudenbach III",9,1]
["2025-02-27T20:15:00","Do.","HeTTV","2024/25","Kreis Bergstraße 2024/25","Herren","Herren 3. Kreisklasse","Herren 3. Kreisklasse West 2","RR",62,1,"Dorfgemeinschaftshaus Gronau","Märkerwaldstr. 81a",64625,"Bensheim-Gronau","HeTTV",41016,"SG Gronau","Herren",4,"HeTTV",41023,"SG 1946 Hüttenfeld","Herren",4,"SG 1946 Hüttenfeld IV",0,0]
["2025-02-28T18:15:00","Fr.","HeTTV","2024/25","Kreis Bergstraße 2024/25","Jungen 13","Jungen 13 2.Kreisklasse","Jungen 13 2.Kreisklasse","RR",29,1,"Turnhalle Überwald-Gymnasium","Forsthausstr. 20",69483,"Wald-Michelbach","HeTTV",41048,"SG Wald-Michelbach","Jungen 13",2,"HeTTV",41023,"SG 1946 Hüttenfeld","Jungen 13",1,"SG 1946 Hüttenfeld",0,0]
["2025-02-28T20:15:00","Fr.","HeTTV","2024/25","Kreis Bergstraße 2024/25","Herren","Herren 3. Kreisklasse","Herren 3. Kreisklasse West 1","RR",69,1,"Bürgerhaus Hüttenfeld","Alfred-Delp-Straße 50",68623,"Lampertheim-Hüttenfeld","HeTTV",41023,"SG 1946 Hüttenfeld","Herren",3,"HeTTV",41001,"TSV RW Auerbach","Herren",7,"TSV RW Auerbach VII",0,0]
["2025-03-01T18:00:00","Sa.","HeTTV","2024/25","Bezirk Süd 2024/25","Herren","Herren Bezirksklasse","Herren Bezirksklasse Gr. 1","RR",66,1,"TSV-Halle Ellenbach","Schlierbacher Straße 43",64658,"Fürth-Ellenbach","HeTTV",41011,"TSV Ellenbach 1913/65","Herren",2,"HeTTV",41023,"SG 1946 Hüttenfeld","Herren",1,"SG 1946 Hüttenfeld",0,0]
["2025-03-02T10:00:00","So.","HeTTV","2024/25","Kreis Bergstraße 2024/25","Jungen 19","Jungen 19 1. Kreisklasse","Jungen 19 1. Kreisklasse","RR",44,1,"Bürgerhaus Hüttenfeld","Alfred-Delp-Straße 50",68623,"Lampertheim-Hüttenfeld","HeTTV",41023,"SG 1946 Hüttenfeld","Jungen 19",1,"HeTTV",41038,"SKG Ober-Mumbach","Jungen 19",2,"SKG Ober-Mumbach II",0,0]
["2025-03-05T20:00:00","Mi.","HeTTV","2024/25","Bezirk Süd 2024/25","Damen","Damen Bezirksklasse","Damen Bezirksklasse Gr.1","RR",44,1,"Sporthaus am Sportplatz","Glashüttenweg 11",64678,"Lindenfels-Seidenbuch","HeTTV",41043,"SG Seidenbuch","Damen",2,"HeTTV",41023,"SG 1946 Hüttenfeld","Damen",1,"SG 1946 Hüttenfeld",0,0]
["2025-03-06T20:15:00","Do.","HeTTV","2024/25","Kreis Bergstraße 2024/25","Herren","Herren Kreisliga","Herren Kreisliga West","RR",59,1,"Sporthalle Wattenheim","Schulstr. 30",68647,"Biblis-Wattenheim","HeTTV",41060,"SG Nordheim-Wattenheim 1948 e.V.","Herren",1,"HeTTV",41023,"SG 1946 Hüttenfeld","Herren",2,"SG 1946 Hüttenfeld II",0,0]
["2025-03-07T18:15:00","Fr.","HeTTV","2024/25","Kreis Bergstraße 2024/25","Jungen 15","Jungen 15 Kreisliga","Jungen 15 Kreisliga","RR",60,1,"Bürgerhaus Hüttenfeld","Alfred-Delp-Straße 50",68623,"Lampertheim-Hüttenfeld","HeTTV",41023,"SG 1946 Hüttenfeld","Jungen 15",1,"HeTTV",41009,"TV 1891 Bürstadt","Jungen 15",1,"TV 1891 Bürstadt",0,0]
["2025-03-07T20:15:00","Fr.","HeTTV","2024/25","Kreis Bergstraße 2024/25","Herren","Herren 3. Kreisklasse","Herren 3. Kreisklasse West 2","RR",71,1,"Bürgerhaus Hüttenfeld","Alfred-Delp-Straße 50",68623,"Lampertheim-Hüttenfeld","HeTTV",41023,"SG 1946 Hüttenfeld","Herren",4,"HeTTV",41057,"TTC 2010 Lorsch","Herren",2,"TTC 2010 Lorsch II",0,0]
["2025-03-08T16:45:00","Sa.","HeTTV","2024/25","Bezirk Süd 2024/25","Herren","Herren Bezirksklasse","Herren Bezirksklasse Gr. 1","RR",71,1,"Bürgerhaus Hüttenfeld","Alfred-Delp-Straße 50",68623,"Lampertheim-Hüttenfeld","HeTTV",41023,"SG 1946 Hüttenfeld","Herren",1,"HeTTV",41027,"TTC 1957 Lampertheim","Herren",5,"TTC 1957 Lampertheim V",0,0]
["2025-03-11T20:00:00","Di.","HeTTV","2024/25","Kreis Bergstraße 2024/25","Herren","Herren Kreisliga","Herren Kreisliga West","RR",60,1,"Dorfgemeinschaftshaus Gronau","Märkerwaldstr. 81a",64625,"Bensheim-Gronau","HeTTV",41016,"SG Gronau","Herren",2,"HeTTV",41023,"SG 1946 Hüttenfeld","Herren",2,"SG 1946 Hüttenfeld II",0,0]
["2025-03-14T17:45:00","Fr.","HeTTV","2024/25","Kreis Bergstraße 2024/25","Jungen 13","Jungen 13 2.Kreisklasse","Jungen 13 2.Kreisklasse","RR",39,1,"Odenwaldhalle","Kleiststraße 11",64668,"Rimbach","HeTTV",41040,"TSK SW Rimbach","Jungen 13",2,"HeTTV",41023,"SG 1946 Hüttenfeld","Jungen 13",1,"SG 1946 Hüttenfeld",0,0]
["2025-03-14T18:15:00","Fr.","HeTTV","2024/25","Kreis Bergstraße 2024/25","Jungen 15","Jungen 15 Kreisliga","Jungen 15 Kreisliga","RR",54,1,"Bürgerhaus Hüttenfeld","Alfred-Delp-Straße 50",68623,"Lampertheim-Hüttenfeld","HeTTV",41023,"SG 1946 Hüttenfeld","Jungen 15",1,"HeTTV",41001,"TSV RW Auerbach","Jungen 15",1,"TSV RW Auerbach",0,0]
["2025-03-14T20:15:00","Fr.","HeTTV","2024/25","Kreis Bergstraße 2024/25","Herren","Herren 3. Kreisklasse","Herren 3. Kreisklasse West 1","RR",76,1,"Bürgerhaus Hüttenfeld","Alfred-Delp-Straße 50",68623,"Lampertheim-Hüttenfeld","HeTTV",41023,"SG 1946 Hüttenfeld","Herren",3,"HeTTV",41037,"TV 1907 Ober-Laudenbach","Herren",3,"TV 1907 Ober-Laudenbach III",0,0]
["2025-03-14T20:15:00","Fr.","HeTTV","2024/25","Kreis Bergstraße 2024/25","Herren","Herren 3. Kreisklasse","Herren 3. Kreisklasse West 2","RR",77,1,"Sporthalle Einhausen","Sepp-Herberger-Straße",64683,"Einhausen","HeTTV",41010,"BSC 1957 Einhausen","Herren",2,"HeTTV",41023,"SG 1946 Hüttenfeld","Herren",4,"SG 1946 Hüttenfeld IV",0,0]
["2025-03-15T16:45:00","Sa.","HeTTV","2024/25","Bezirk Süd 2024/25","Herren","Herren Bezirksklasse","Herren Bezirksklasse Gr. 1","RR",75,1,"Bürgerhaus Hüttenfeld","Alfred-Delp-Straße 50",68623,"Lampertheim-Hüttenfeld","HeTTV",41023,"SG 1946 Hüttenfeld","Herren",1,"HeTTV",41009,"TV 1891 Bürstadt","Herren",2,"TV 1891 Bürstadt II",0,0]
["2025-03-19T19:30:00","Mi.","HeTTV","2024/25","Kreis Bergstraße 2024/25","Herren","Herren 3. Kreisklasse","Herren 3. Kreisklasse West 1","RR",79,1,"Sporthalle Wingertsbergschule","Bahnhofstraße 17 a",64653,"Lorsch","HeTTV",41057,"TTC 2010 Lorsch","Herren",3,"HeTTV",41023,"SG 1946 Hüttenfeld","Herren",3,"SG 1946 Hüttenfeld III",0,0]
["2025-03-21T20:00:00","Fr.","HeTTV","2024/25","Bezirk Süd 2024/25","Herren","Herren Bezirksklasse","Herren Bezirksklasse Gr. 1","RR",77,1,"Turnhalle der Carl-Orff-Schule","Im Ebertswinkel",64625,"Bensheim-Fehlheim","HeTTV",41013,"VfR Fehlheim 1929","Herren",5,"HeTTV",41023,"SG 1946 Hüttenfeld","Herren",1,"SG 1946 Hüttenfeld",0,0]
["2025-03-21T20:15:00","Fr.","HeTTV","2024/25","Kreis Bergstraße 2024/25","Herren","Herren Kreisliga","Herren Kreisliga West","RR",64,1,"Bürgerhaus Hüttenfeld","Alfred-Delp-Straße 50",68623,"Lampertheim-Hüttenfeld","HeTTV",41023,"SG 1946 Hüttenfeld","Herren",2,"HeTTV",41004,"VfL Bensheim","Herren",1,"VfL Bensheim",0,0]
["2025-03-21T20:15:00","Fr.","HeTTV","2024/25","Kreis Bergstraße 2024/25","Herren","Herren 3. Kreisklasse","Herren 3. Kreisklasse West 2","RR",80,1,"Bürgerhaus Hüttenfeld","Alfred-Delp-Straße 50",68623,"Lampertheim-Hüttenfeld","HeTTV",41023,"SG 1946 Hüttenfeld","Herren",4,"HeTTV",41001,"TSV RW Auerbach","Herren",6,"TSV RW Auerbach VI",0,0]
["2025-03-22T10:00:00","Sa.","HeTTV","2024/25","Kreis Bergstraße 2024/25","Jungen 15","Jungen 15 Kreisliga","Jungen 15 Kreisliga","RR",65,1,"Turnhalle Konrad-Adenauer-Schule","Mainzer Str.8 / Zufahrt über Weinheimer Straße",64646,"Heppenheim","HeTTV",41053,"TTC Heppenheim","Jungen 11",1,"HeTTV",41023,"SG 1946 Hüttenfeld","Jungen 15",1,"SG 1946 Hüttenfeld",0,0]
["2025-03-22T14:00:00","Sa.","HeTTV","2024/25","Kreis Bergstraße 2024/25","Jungen 19","Jungen 19 1. Kreisklasse","Jungen 19 1. Kreisklasse","RR",49,1,"TSV-Turnhalle","Brandauer-Klinger-Weg",64686,"Lautertal-Reichenbach","HeTTV",41039,"TSV 1893 Reichenbach","Jungen 19",1,"HeTTV",41023,"SG 1946 Hüttenfeld","Jungen 19",1,"SG 1946 Hüttenfeld",0,0]
["2025-03-23T10:00:00","So.","HeTTV","2024/25","Kreis Bergstraße 2024/25","Jungen 13","Jungen 13 2.Kreisklasse","Jungen 13 2.Kreisklasse","RR",38,1,"Bürgerhaus Hüttenfeld","Alfred-Delp-Straße 50",68623,"Lampertheim-Hüttenfeld","HeTTV",41023,"SG 1946 Hüttenfeld","Jungen 13",1,"HeTTV",41001,"TSV RW Auerbach","Jungen 13",2,"TSV RW Auerbach II",0,0]
["2025-03-24T20:15:00","Mo.","HeTTV","2024/25","Kreis Bergstraße 2024/25","Herren","Herren 3. Kreisklasse","Herren 3. Kreisklasse West 1","RR",81,1,"Schlossberghalle","Im Schalbert 2",64646,"HP-Hambach","HeTTV",41018,"TSV Hambach 1899","Herren",3,"HeTTV",41023,"SG 1946 Hüttenfeld","Herren",5,"SG 1946 Hüttenfeld V",0,0]
["2025-03-27T20:00:00","Do.","HeTTV","2024/25","Bezirk Süd 2024/25","Damen","Damen Bezirksklasse","Damen Bezirksklasse Gr.1","RR",49,1,"Bürgerhaus Hüttenfeld","Alfred-Delp-Straße 50",68623,"Lampertheim-Hüttenfeld","HeTTV",41023,"SG 1946 Hüttenfeld","Damen",1,"HeTTV",41010,"BSC 1957 Einhausen","Damen",1,"BSC 1957 Einhausen",0,0]
["2025-03-28T19:30:00","Fr.","HeTTV","2024/25","Kreis Bergstraße 2024/25","Herren","Herren 3. Kreisklasse","Herren 3. Kreisklasse West 2","RR",83,1,"Karl Kübel Schule","Berliner Ring 34-38",64625,"Bensheim","HeTTV",41002,"DJK SSG Bensheim","Herren",4,"HeTTV",41023,"SG 1946 Hüttenfeld","Herren",4,"SG 1946 Hüttenfeld IV",0,0]
["2025-03-28T20:00:00","Fr.","HeTTV","2024/25","Kreis Bergstraße 2024/25","Herren","Herren Kreisliga","Herren Kreisliga West","RR",68,1,"Turnhalle Eichendorff Schule","Schulstr. 26",64646,"Kirschhausen","HeTTV",41024,"SV Kirschhausen 1921","Herren",2,"HeTTV",41023,"SG 1946 Hüttenfeld","Herren",2,"SG 1946 Hüttenfeld II",0,0]
["2025-03-28T20:15:00","Fr.","HeTTV","2024/25","Kreis Bergstraße 2024/25","Herren","Herren 3. Kreisklasse","Herren 3. Kreisklasse West 1","RR",85,1,"Bürgerhaus Hüttenfeld","Alfred-Delp-Straße 50",68623,"Lampertheim-Hüttenfeld","HeTTV",41023,"SG 1946 Hüttenfeld","Herren",3,"HeTTV",41016,"SG Gronau","Herren",5,"SG Gronau V",0,0]
["2025-03-29T14:30:00","Sa.","HeTTV","2024/25","Bezirk Süd 2024/25","Herren","Herren Bezirksklasse","Herren Bezirksklasse Gr. 1","RR",85,1,"Bürgerhaus Hüttenfeld","Alfred-Delp-Straße 50",68623,"Lampertheim-Hüttenfeld","HeTTV",41023,"SG 1946 Hüttenfeld","Herren",1,"HeTTV",41056,"SG 03 Mitlechtern","Herren",1,"SG 03 Mitlechtern",0,0]
["2025-04-02T19:30:00","Mi.","HeTTV","2024/25","Kreis Bergstraße 2024/25","Herren","Herren 3. Kreisklasse","Herren 3. Kreisklasse West 1","RR",86,1,"Sporthalle Wingertsbergschule","Bahnhofstraße 17 a",64653,"Lorsch","HeTTV",41057,"TTC 2010 Lorsch","Herren",3,"HeTTV",41023,"SG 1946 Hüttenfeld","Herren",5,"SG 1946 Hüttenfeld V",0,0]
["2025-04-02T20:00:00","Mi.","HeTTV","2024/25","Bezirk Süd 2024/25","Herren","Herren Bezirksklasse","Herren Bezirksklasse Gr. 1","RR",86,1,"Sedanhalle","Sedanstraße 7",68623,"Lampertheim","HeTTV",41027,"TTC 1957 Lampertheim","Herren",3,"HeTTV",41023,"SG 1946 Hüttenfeld","Herren",1,"SG 1946 Hüttenfeld",0,0]
["2025-04-02T20:00:00","Mi.","HeTTV","2024/25","Kreis Bergstraße 2024/25","Herren","Herren 3. Kreisklasse","Herren 3. Kreisklasse West 1","RR",87,1,"Sedanhalle","Sedanstraße 7",68623,"Lampertheim","HeTTV",41027,"TTC 1957 Lampertheim","Herren",11,"HeTTV",41023,"SG 1946 Hüttenfeld","Herren",3,"SG 1946 Hüttenfeld III",0,0]
["2025-04-03T20:15:00","Do.","HeTTV","2024/25","Kreis Bergstraße 2024/25","Herren","Herren Kreisliga","Herren Kreisliga West","RR",70,1,"Bürgerhaus Hüttenfeld","Alfred-Delp-Straße 50",68623,"Lampertheim-Hüttenfeld","HeTTV",41023,"SG 1946 Hüttenfeld","Herren",2,"HeTTV",41002,"DJK SSG Bensheim","Herren",2,"DJK SSG Bensheim II",0,0]
["2025-04-04T18:15:00","Fr.","HeTTV","2024/25","Kreis Bergstraße 2024/25","Jungen 15","Jungen 15 Kreisliga","Jungen 15 Kreisliga","RR",70,1,"Bürgerhaus Hüttenfeld","Alfred-Delp-Straße 50",68623,"Lampertheim-Hüttenfeld","HeTTV",41023,"SG 1946 Hüttenfeld","Jungen 15",1,"HeTTV",41017,"TTC 1950 Groß-Rohrheim","Jungen 15",1,"TTC 1950 Groß-Rohrheim",0,0]
["2025-04-04T20:15:00","Fr.","HeTTV","2024/25","Kreis Bergstraße 2024/25","Herren","Herren 3. Kreisklasse","Herren 3. Kreisklasse West 2","RR",90,1,"Bürgerhaus Hüttenfeld","Alfred-Delp-Straße 50",68623,"Lampertheim-Hüttenfeld","HeTTV",41023,"SG 1946 Hüttenfeld","Herren",4,"HeTTV",41009,"TV 1891 Bürstadt","Herren",9,"TV 1891 Bürstadt IX",0,0]
["2025-04-05T11:00:00","Sa.","HeTTV","2024/25","Bezirk Süd 2024/25","Damen","Damen Bezirksklasse","Damen Bezirksklasse Gr.1","RR",55,1,"Odenwaldhalle","Kleiststraße 11",64668,"Rimbach","HeTTV",41040,"TSK SW Rimbach","Damen",2,"HeTTV",41023,"SG 1946 Hüttenfeld","Damen",1,"SG 1946 Hüttenfeld",0,0]
["2025-04-05T11:00:00","Sa.","HeTTV","2024/25","Kreis Odenwald 2024/25","Mädchen 13","Mädchen 13 Kreisliga 2er","Kreisliga 2er","RR",22,1,"Käthe-Kollwitz Schule","Westhöchsterstr.  103",65931,"Frankfurt","HeTTV",43052,"DJK-SG 1929 Zeilsheim","Mädchen 13",1,"HeTTV",41023,"SG 1946 Hüttenfeld","Mädchen 13",1,"SG 1946 Hüttenfeld",0,0]
["2025-04-05T13:00:00","Sa.","HeTTV","2024/25","Kreis Odenwald 2024/25","Mädchen 13","Mädchen 13 Kreisliga 2er","Kreisliga 2er","RR",27,1,"Bürgerhaus Hüttenfeld","Alfred-Delp-Straße 50",68623,"Lampertheim-Hüttenfeld","HeTTV",41023,"SG 1946 Hüttenfeld","Mädchen 13",1,"HeTTV",43050,"SG 1878 Sossenheim","Mädchen 13",1,"SG 1878 Sossenheim",0,0]
["2025-04-06T10:00:00","So.","HeTTV","2024/25","Kreis Bergstraße 2024/25","Jungen 19","Jungen 19 1. Kreisklasse","Jungen 19 1. Kreisklasse","RR",56,1,"Bürgerhaus Hüttenfeld","Alfred-Delp-Straße 50",68623,"Lampertheim-Hüttenfeld","HeTTV",41023,"SG 1946 Hüttenfeld","Jungen 19",1,"HeTTV",41029,"TSV Lindenfels 1899","Jungen 19",1,"TSV Lindenfels 1899",0,0]